Workbook

Sheet Disclaimer
B1: This 'Lamb Value Calculator II' is provided under Creative Commons Licence CC-BY-SA 4.0 For more information go to www.mla.com.au/creative-commons © Meat & Livestock Australia
B2: DISCLAIMER

Sheet Hub
B2: Lamb Value Calculator Mk II
C8: X-Breed
C10: Prime
C12: Grass/Grain
B14: Developed with support from the Sheep CRC’s Meat Science Program and Meat Livestock Australia.
B17: Lamb Value Calculator MkII v1.0

Sheet Carcase Description
B1: =CONCATENATE(Lists!D51," Carcase Description") -> Lamb Carcase Description
B3: Yield Model:
B4: Trade Type: | C4: Over the Hooks | E4: Trade Price: | F4: =IF(INDEX(TradeTypeTable[CodeSel],1)=2,'Purchasing - Slaughter Expenses'!J14,'Purchasing - Slaughter Expenses'!O10) -> 7.9 | G4: /kg of HSCW
B5: Breed: | E5: Select Breed Type
B6: =Lists!C4 -> Average GR Fat Depth: | C6: 18 | D6: mm | E6: =Lists!H3 -> Range: 1 mm - 44 mm
B7: Fatscore:
B8: Average HSCW: | C8: 28.8 | D8: kg | E8: =Lists!H5 -> Range: 13 kg - 39 kg
B10: Shrinkage: | C10: 0.9 | D10: % | E10: =Lists!H6 -> Range: 0 % - 5 % | M10: Breed
B13: Chiller Data:
B14: Eye Muscle Area: | C14: 8 | D14: cm2 | E14: Range: % - %
B16: MSA Marbling: | C16: 25 | E16: Range: 110 - 1190
B18: Ossification: | C18: 26 | E18: Range: 100 - 590
B20: Meat Colour: | C20: 27 | E20: Range: 1A - 6
B22: AUSMEAT Marbling: | C22: 30 | D22: % | E22: Range: % - %
B24: : | C24: 31 | D24: % | E24: Range: % - %
B26: : | C26: 28 | D26: % | E26: Range: % - %
B28: Objective Carcase Measurement:
B29: CT LEAN %: | C29: 55 | D29: % | E29: =Lists!H11 -> Range: 47 % - 65 %
B31: DEXA CT LEAN %: | C31: 65 | D31: % | E31: =Lists!H13 -> Range: 49 % - 65 %
B33: DEXA CT FAT %: | C33: 17 | D33: % | E33: =Lists!H15 -> Range: 17 % - 39 %
B35: DEXA CT BONE %: | C35: 15 | D35: % | E35: =Lists!H17 -> Range: 12 % - 19 %
B37: Saddle: | C37: 29 | D37: % | E37: Range: % - %
B39: FQ: | C39: 25 | D39: % | E39: Range: % - %
B41: Saddle: | C41: 26 | D41: % | E41: Range: % - %
B43: HQ: | C43: 27 | D43: % | E43: Range: % - %
B45: Whole Carcase:
B47: Saddle: | C47: 32 | D47: % | E47: Range: % - %
B49: HQ: | C49: 33 | D49: % | E49: Range: % - %
B52: Whole Carcase:
B54: FQ: | C54: 31 | D54: % | E54: Range: % - %
B56: Saddle: | C56: 32 | D56: % | E56: Range: % - %
B58: HQ: | C58: 33 | D58: % | E58: Range: % - %
M61: Working Field - GR (mm)
M62: =IF(C63="X-Breed",0,1) -> 1
M64: Working Field - GR (mm)
M65: 23
C75: Carcase Peformance | E75: =Lists!E179 -> 
C76: Items | D76: (per hd)
C77: Carcase Purchase: | D77: ='Analysis Tables'!L4 -> 227.52
C78: ='Analysis Tables'!K5 -> S/F Costs (incl Revenue): | D78: ='Analysis Tables'!L5 -> 2.5
C79: ='Analysis Tables'!K6 -> Fixed Boning Costs: | D79: ='Analysis Tables'!L6 -> 1e-06
C80: ='Analysis Tables'!K7 -> Secondary Fabrication Costs: | D80: ='Analysis Tables'!L7 -> 0
C81: ='Analysis Tables'!K8 -> Primal Boning Costs: | D81: ='Analysis Tables'!L8 -> 7.7487
C82: Total Costs: | D82: ='Analysis Tables'!L9 -> 237.768701
C83: Carcase Value: | D83: ='Analysis Tables'!L10 -> 252.80711
C84: Carcase Gross Margin: | D84: ='Analysis Tables'!L11 -> 11.58160907
C85: Carcase Gross Margin (%): | D85: ='Analysis Tables'!L12 -> 0.04581203854
C87: Carcase Composition | E87: Cut Value Analysis | G87: Gross Margin Analysis
B88: Primal Region | C88: Weight (kg) | D88: Yield % | E88: Value ($) | F88: Value Propn (%) | G88: GM ($) | H88: GM (%)
B89: FQ | C89: ='Cut Selection'!I34 -> 8.826 | D89: =C89/Lists!$E$9 -> 0.3092415069 | E89: ='Analysis Tables'!C5 -> 65.18468 | F89: ='Analysis Tables'!D5 -> 0.2728435781 | G89: ='Analysis Tables'!E5 -> -23.75532038 | H89: ='Analysis Tables'!F5 -> -0.3644310347
B90: Loin | C90: ='Cut Selection'!I60 -> 5.802 | D90: =C90/Lists!$E$9 -> 0.2032879247 | E90: ='Analysis Tables'!C6 -> 61.72293 | F90: ='Analysis Tables'!D6 -> 0.2583537278 | G90: ='Analysis Tables'!E6 -> -63.85027054 | H90: ='Analysis Tables'!F6 -> -1.034465968
B91: HQ | C91: ='Cut Selection'!I70 -> 5.556 | D91: =C91/Lists!$E$9 -> 0.1946686848 | E91: ='Analysis Tables'!C7 -> 102.971 | F91: ='Analysis Tables'!D7 -> 0.4310058143 | G91: ='Analysis Tables'!E7 -> 76.25869999 | H91: ='Analysis Tables'!F7 -> 0.740584242
B92: Lean Trim | C92: ='Cut Selection'!I75 -> 1.29 | D92: =C92/Lists!$E$9 -> 0.04519845274 | E92: ='Analysis Tables'!C8 -> 9.03 | F92: ='Analysis Tables'!D8 -> 0.03779687974 | G92: ='Analysis Tables'!E8 -> 9.03
B93: Saleable Meat Totals | C93: =SUM(C89:C92) -> 21.474 | D93: =C93/Lists!$E$9 -> 0.7523965691 | E93: ='Analysis Tables'!C9 -> 238.90861 | F93: ='Analysis Tables'!D9 -> 1 | G93: ='Analysis Tables'!E9 -> -2.316890933 | H93: ='Analysis Tables'!F9 -> -0.04936035994
B94: Secondary Product Totals | C94: ='Cut Selection'!I85-'Cut Selection'!I75 -> 6.461 | E94: ='Analysis Tables'!C10 -> 13.8985 | G94: ='Analysis Tables'!E10 -> 13.8985
B95: Whole Carcase Total | C95: =C93+C94 -> 27.935 | D95: =C95/Lists!$E$9 -> 0.978774246 | E95: ='Analysis Tables'!C11 -> 252.80711 | G95: ='Analysis Tables'!E11 -> 11.58160907 | H95: ='Analysis Tables'!F11 -> 0.04581203854

Sheet Over the Hooks Grid
B1: Over the Hook Trading Grid. | AP1: =IF(AND($AK$9 >=AL9, $AK$9<=AM9),0,IF($AK$9>AL9,1*TRUNC((AL9-$AK$9)/$AK$8),1*TRUNC((AM9-$AK$9)/$AK$8)))
B2: =Lists!C148 -> Trade: Over the Hooks Breed: X-Breed Yield Model: CCW/GR Linear HCW: 28.8kg GR: 18mm | AA2: Genrate a GR OR FS (GR = 2) | AB2: 1 | AR2: Updated when sheet deactivated | BD2: ROW | BE2: =MATCH(0,BE6:BE29,0) ->  | BH2: ROW | BI2: =MATCH(0,BI6:BI29,0) -> 
B3: Grid Base Price: | C3: 8.9 | D3: /kg of CW | J3: HSCW ranges | L3: =IF(L5=1,"FATSCORES","GR Fat Depth Ranges") -> FATSCORES | AA3: HSCW min | AB3: 15 | AC3: Ranges | AJ3: GR MIN | AK3: 0 | AL3: Ranges | AS3: CARC GR | AT3: ='Carcase Description'!C6 -> 18 | AW3: CARC CW | AX3: ='Carcase Description'!C8 -> 28.8 | AZ3: =INDIRECT("AY"&AY5+6) | BD3: NO Errors | BE3: =COUNTIF(BE6:BE29,"<1") -> 0 | BH3: NO Errors | BI3: =COUNTIF(BI6:BI29,"<1") -> 0
B4: HSCW Definition | F4: HSCW ranges | AA4: HSCW max | AB4: 35 | AC4: MIN | AD4: MAX | AE4: Wts Within Band Yes = 0 | AF4: Wt Bands | AG4: Base Price Wt (Yes = 0) | AH4: Prem/Disc | AJ4: GR MAX | AK4: 30 | AL4: MIN | AM4: MAX | AN4: Wts Within Band Yes = 0 | AO4: Wt Bands | AP4: Base Price Wt (Yes = 0) | AQ4: Prem/Disc | AR4: ACTUAL GR ON OTH GRID | AU4: VLOOKUP COL | AV4: ACTUAL CW ON OTH GRID | AY4: VLOOKUP ROW | AZ4: RANGE | BD4: Number OK | BE4: =COUNTIF(BE6:BE29,">=1")+1 -> 18 | BH4: Number OK | BI4: =COUNTIF(BI6:BI29,">=1")+1 -> 11
B5: Specification | C5: Values | F5: MIN | G5: MAX | H5: Prem/Disc | J5: MIN | K5: MAX | L5: 1 | M5: 2 | N5: 3 | O5: 4 | P5: 5 | AA5: HSCW min | AB5: 15 | AG5: -1 | AJ5: GR min (0 mm to | AK5: 0 | AP5: -1 | AR5: MIN | AS5: MAX | AU5: =COUNTIF(AT6:AT26,0)+2 -> 8 | AV5: MIN | AW5: MAX | AX5: Range | AY5: =COUNTIF(AX6:AX26,0)+1 -> 14 | AZ5: =IF(AY5=22,AY6,INDIRECT("AY"&AY5+5)) -> 0.1 | BC5: MIN | BD5: MAX | BE5: Diff | BG5: MIN | BH5: MAX | BI5: Diff
B6: HSCW min (≥15 kg) | C6: 15 | D6: kg | F6: 15 | G6: 15.9 | H6: -2 | J6: 15 | K6: 15.9 | L6: 6.9 | M6: 6.9 | N6: 6.9 | O6: 6.9 | P6: 6.9 | AA6: HSCW max | AB6: 32 | AC6: =AB5 -> 15 | AD6: =AC6+$AB$7-0.1 -> 15.9 | AE6: =IF(AND(AB6>=AC6,AB6<=AC6),1,0) -> 0 | AF6: =CONCATENATE(AC6," - ", AD6, " kg") -> 15 - 15.9 kg | AG6: =IF(AND($AB$8>=AC6,$AB$8<=AD6),0,IF(AND($AB$9>=AC6,$AB$9<=AD6),0,IF(AND(AG5=0,$AB$9>AC6,$AB$9>AD6),0,IF($AB$8>AC6,-1,-1)))) -> -1 | AH6: =AG6*$AB$10 -> -0.3 | AJ6: GR max | AK6: 30 | AL6: =AK5 -> 0 | AM6: =AL6+AK$7-0.1 -> 2.9 | AN6: =IF(AND(AK6>=AL6,AK6<=AM6),1,0) -> 0 | AO6: =CONCATENATE(AL6," - ", AM6, " kg") -> 0 - 2.9 kg | AP6: =IF(AND($AK$8>=AL6,$AK$8<=AM6),0,IF(AND($AK$9>=AL6,$AK$9<=AM6),0,IF(AND(AP5=0,$AK$9>AL6,$AK$9>AM6),0,IF($AK$8>AL6,-1,-1)))) -> -1 | AQ6: =AP6*$AK$10 -> -0.2 | AR6: 0 | AS6: 2.9 | AT6: =IF($AT$3<=AS6,1,0) -> 0 | AV6: 15 | AW6: 15.9 | AX6: =IF(AND($AX$3>=AV6,$AX$3<=AW6),1,0) -> 0 | AY6: =IF(AX3<AV6,-AX3+AW6,AW6-AV6) -> 0.9 | AZ6: =INDIRECT("AY"&AY5+5) -> 0.1 | BC6: 15 | BD6: 15.9 | BE6: =IF(BD7=0,"END",IF(BD7>BD6,1,0)) -> 1 | BG6: 0 | BH6: 2.9 | BI6: =IF(BH7=0,"END",IF(BH7>BH6,1,0)) -> 1 | BR6: 0 | BS6: 4.9
B7: HSCW max (≤ 35 kg) | C7: 32 | D7: kg | F7: 16 | G7: 16.9 | H7: -0.5 | J7: 16 | K7: 16.9 | L7: 8.4 | M7: 8.4 | N7: 8.4 | O7: 8.4 | P7: 8.4 | AA7: Wt Band | AB7: 1 | AC7: =AC6+$AB$7 -> 16 | AD7: 16.9 | AE7: =(IF(AE6=1,1,IF(AND($AB$6>=AC6,$AB$6<=AD6),1,0))) -> 0 | AF7: 16 - 16.9 kg | AG7: -1 | AH7: -0.3 | AJ7: GR Band | AK7: 3 | AL7: =AL6+$AK$7 -> 3 | AM7: 5.9 | AN7: =(IF(AN6=1,1,IF(AND(AK6>=AL6,AK6<=AM6),1,0))) -> 0 | AO7: 3 - 5.9 kg | AP7: =IF(AND($AK$8>=AL7,$AK$8<=AM7),0,IF(AND($AK$9>=AL7,$AK$9<=AM7),0,IF(AND(AP6=0,$AK$9>AL7,$AK$9>AM7),0,IF($AK$8>AL7,-1,-1)))) -> -1 | AQ7: -0.2 | AR7: 3 | AS7: 5.9 | AT7: =(IF(OR(AS8="",AT6=1),1,IF(AND($AT$3>AS6,$AT$3<=AS7),1,0))) -> 0 | AV7: 16 | AW7: 16.9 | AX7: =(IF(AX6=1,1,IF(AND($AX$3>AW6,$AX$3<=AW7),1,0))) -> 0 | AY7: =IF(AX7=1,AW7-AW6-($AX$3-AW6),AW7-AW6) -> 1 | BC7: 16 | BD7: 16.9 | BE7: 1 | BG7: 3 | BH7: 5.9 | BI7: 1 | BR7: 5 | BS7: 14.9
B8: Wt Band ( ≥1kg) | C8: 1 | D8: kg | F8: 17 | G8: 17.9 | H8: -0.5 | J8: 17 | K8: 17.9 | L8: 8.4 | M8: 8.4 | N8: 8.4 | O8: 8.4 | P8: 8.4 | AA8: MInHSCW for Base Price | AB8: 18 | AC8: 17 | AD8: 17.9 | AE8: 0 | AF8: 17 - 17.9 kg | AG8: -1 | AH8: -0.3 | AJ8: Min GR for Base Price | AK8: 8 | AL8: 6 | AM8: 8.9 | AN8: =(IF(AN7=1,1,IF(AND($AK$6>=AL7,$AK$6<=AM7),1,0))) -> 0 | AO8: 6 - 8.9 kg | AP8: 0 | AQ8: 0 | AR8: 6 | AS8: 8.9 | AT8: 0 | AV8: 17 | AW8: 17.9 | AX8: 0 | AY8: 1 | BC8: 17 | BD8: 17.9 | BE8: 1 | BG8: 6 | BH8: 8.9 | BI8: 1 | BR8: 15 | BS8: 19.9
B9: Min HSCW for Base Price | C9: 18 | D9: kg | F9: 18 | G9: 18.9 | H9: 0 | J9: 18 | K9: 18.9 | L9: 8.9 | M9: 8.9 | N9: 8.9 | O9: 8.9 | P9: 8.9 | AA9: MaxHSCW for Base Price | AB9: 26 | AC9: 18 | AD9: 18.9 | AE9: 0 | AF9: 18 - 18.9 kg | AG9: 0 | AH9: 0 | AJ9: Max GR for Base Price | AK9: 25 | AL9: 9 | AM9: 11.9 | AN9: 0 | AO9: 9 - 11.9 kg | AP9: 0 | AQ9: 0 | AR9: 9 | AS9: 11.9 | AT9: 0 | AV9: 18 | AW9: 18.9 | AX9: 0 | AY9: 1 | BC9: 18 | BD9: 18.9 | BE9: 1 | BG9: 9 | BH9: 11.9 | BI9: 1 | BR9: 20 | BS9: 24.9
B10: Max HSCW for Base Price | C10: 26 | D10: kg | F10: 19 | G10: 19.9 | H10: 0 | J10: 19 | K10: 19.9 | L10: 8.9 | M10: 8.9 | N10: 8.9 | O10: 8.9 | P10: 8.9 | AA10: $ Increments for Wt Bands | AB10: 0.3 | AC10: 19 | AD10: 19.9 | AE10: 0 | AF10: 19 - 19.9 kg | AG10: 0 | AH10: 0 | AJ10: $ Increments for GR Bands | AK10: 0.2 | AL10: 12 | AM10: 14.9 | AN10: 0 | AO10: 12 - 14.9 kg | AP10: 0 | AQ10: 0 | AR10: 12 | AS10: 14.9 | AT10: 0 | AV10: 19 | AW10: 19.9 | AX10: 0 | AY10: 1 | BC10: 19 | BD10: 19.9 | BE10: 1 | BG10: 12 | BH10: 14.9 | BI10: 1 | BR10: 25 | BS10: 29.9
B11: $ Increments for Wt Bands | C11: 0.3 | D11: Wt Band | F11: 20 | G11: 20.9 | H11: 0 | J11: 20 | K11: 20.9 | L11: 8.9 | M11: 8.9 | N11: 8.9 | O11: 8.9 | P11: 8.9 | AA11: Base Price | AB11: =C3 -> 8.9 | AC11: 20 | AD11: 20.9 | AE11: 0 | AF11: 20 - 20.9 kg | AG11: 0 | AH11: 0 | AJ11: =AA11 -> Base Price | AK11: =AB11 -> 8.9 | AL11: 15 | AM11: 17.9 | AN11: 0 | AO11: 15 - 17.9 kg | AP11: 0 | AQ11: 0 | AR11: 15 | AS11: 17.9 | AT11: 0 | AV11: 20 | AW11: 20.9 | AX11: 0 | AY11: 1 | BC11: 20 | BD11: 20.9 | BE11: 1 | BG11: 15 | BH11: 17.9 | BI11: 1 | BR11: 30 | BS11: 34.9
F12: 21 | G12: 21.9 | H12: 0 | J12: 21 | K12: 21.9 | L12: 8.9 | M12: 8.9 | N12: 8.9 | O12: 8.9 | P12: 8.9 | AA12: Base HSCW is out of range | AB12: =IF(AND(C9>=C6,C9<=C7,C10>=C6,C10<=C7,C10>=C9),0,1) -> 0 | AC12: 21 | AD12: 21.9 | AE12: 0 | AF12: 21 - 21.9 kg | AG12: =IF(AND($AB$8>=AC12,$AB$8<=AD12),0,IF(AND($AB$9>=AC12,$AB$9<=AD12),0,IF(AND(AG11=0,$AB$9>AC12,$AB$9>AD12),0,IF($AB$8>AC12,-1,-1)))) -> 0 | AH12: 0 | AJ12: Base GR is out of range | AK12: =IF(AND(C35>=C32,C35<=C33,C36>=C32,C36<=C33),0,1) -> 0 | AL12: 18 | AM12: 20.9 | AN12: 0 | AO12: 18 - 20.9 kg | AP12: 0 | AQ12: 0 | AR12: 18 | AS12: 20.9 | AT12: 1 | AV12: 21 | AW12: 21.9 | AX12: 0 | AY12: 1 | BC12: 21 | BD12: 21.9 | BE12: 1 | BG12: 18 | BH12: 20.9 | BI12: 1
F13: 22 | G13: 22.9 | H13: 0 | J13: 22 | K13: 22.9 | L13: 8.9 | M13: 8.9 | N13: 8.9 | O13: 8.9 | P13: 8.9 | AA13: Error Checks | AC13: 22 | AD13: 22.9 | AE13: 0 | AF13: 22 - 22.9 kg | AG13: 0 | AH13: 0 | AJ13: Error Checks | AL13: 21 | AM13: 23.9 | AN13: 0 | AO13: 21 - 23.9 kg | AP13: 0 | AQ13: 0 | AR13: 21 | AS13: 23.9 | AT13: 1 | AV13: 22 | AW13: 22.9 | AX13: 0 | AY13: 1 | BC13: 22 | BD13: 22.9 | BE13: 1 | BG13: 21 | BH13: 23.9 | BI13: 1
F14: 23 | G14: 23.9 | H14: 0 | J14: 23 | K14: 23.9 | L14: 8.9 | M14: 8.9 | N14: 8.9 | O14: 8.9 | P14: 8.9 | AA14: HSCW MIN Within Range | AB14: =IF(C6<AB3,"Err","ok") -> ok | AC14: 23 | AD14: 23.9 | AE14: 0 | AF14: 23 - 23.9 kg | AG14: 0 | AH14: 0 | AJ14: HSCW MIN Within Range | AK14: =IF(C32<AK3,"Err","ok") -> ok | AL14: 24 | AM14: 26.9 | AN14: 0 | AO14: 24 - 26.9 kg | AP14: 0 | AQ14: 0 | AR14: 24 | AS14: 26.9 | AT14: 1 | AV14: 23 | AW14: 23.9 | AX14: 0 | AY14: 1 | BC14: 23 | BD14: 23.9 | BE14: 1 | BG14: 24 | BH14: 26.9 | BI14: 1
F15: 24 | G15: 24.9 | H15: 0 | J15: 24 | K15: 24.9 | L15: 8.9 | M15: 8.9 | N15: 8.9 | O15: 8.9 | P15: 8.9 | AA15: HSCW MAX Within Range | AB15: =IF(C7>AB4,"Err","ok") -> ok | AC15: 24 | AD15: 24.9 | AE15: 0 | AF15: 24 - 24.9 kg | AG15: 0 | AH15: 0 | AJ15: HSCW MAX Within Range | AK15: =IF(C33>AK4,"Err","ok") -> ok | AL15: 27 | AM15: 29.9 | AN15: 0 | AO15: 27 - 29.9 kg | AP15: -1 | AQ15: -0.2 | AR15: 27 | AS15: 29.9 | AT15: 1 | AV15: 24 | AW15: 24.9 | AX15: 0 | AY15: 1 | BC15: 24 | BD15: 24.9 | BE15: 1 | BG15: 27 | BH15: 29.9 | BI15: 1
F16: 25 | G16: 25.9 | H16: 0 | J16: 25 | K16: 25.9 | L16: 8.9 | M16: 8.9 | N16: 8.9 | O16: 8.9 | P16: 8.9 | AA16: MAX < MIN | AB16: =IF(C7<=C6,"Err","ok") -> ok | AC16: 25 | AD16: 25.9 | AE16: 0 | AF16: 25 - 25.9 kg | AG16: 0 | AH16: 0 | AJ16: MAX < MIN | AK16: =IF(C33<=C32,"Err","ok") -> ok | AL16: 30 | AM16: 32.9 | AN16: 0 | AO16: 30 - 32.9 kg | AP16: -1 | AQ16: -0.2 | AR16: 30 | AS16: 32.9 | AT16: 1 | AV16: 25 | AW16: 25.9 | AX16: 0 | AY16: 1 | BC16: 25 | BD16: 25.9 | BE16: 1 | BG16: 30 | BH16: 32.9 | BI16: END
F17: 26 | G17: 26.9 | H17: -0.5 | J17: 26 | K17: 26.9 | L17: 8.4 | M17: 8.4 | N17: 8.4 | O17: 8.4 | P17: 8.4 | AA17: WT Band too Small | AB17: =IF(C8<1,"Err","ok") -> ok | AC17: 26 | AD17: 26.9 | AE17: 0 | AF17: 26 - 26.9 kg | AG17: 0 | AH17: 0 | AJ17: WT Band too Small | AK17: =IF(C34<3,"Err","ok") -> ok | AL17: 33 | AM17: 35.9 | AN17: 1 | AO17: 33 - 35.9 kg | AP17: -1 | AQ17: -0.2 | AV17: 26 | AW17: 26.9 | AX17: 0 | AY17: 1 | BC17: 26 | BD17: 26.9 | BE17: 1 | BG17: =F43 -> 0 | BH17: =G43 -> 0 | BI17: END
F18: 27 | G18: 27.9 | H18: -0.5 | J18: 27 | K18: 27.9 | L18: 8.4 | M18: 8.4 | N18: 8.4 | O18: 8.4 | P18: 8.4 | AA18: WT Band < CW range | AB18: =IF(C8<=(C7-C6),"ok","Err") -> ok | AC18: 27 | AD18: 27.9 | AE18: 0 | AF18: 27 - 27.9 kg | AG18: -1 | AH18: -0.3 | AJ18: WT Band < CW range | AK18: =IF(C34<(C33-C32),"ok","Err") -> ok | AL18: 36 | AM18: 38.9 | AN18: 1 | AO18: 36 - 38.9 kg | AP18: -1 | AQ18: -0.2 | AV18: 27 | AW18: 27.9 | AX18: 0 | AY18: 1 | BC18: 27 | BD18: 27.9 | BE18: 1 | BG18: 0 | BH18: 0 | BI18: END
F19: 28 | G19: 28.9 | H19: -1 | J19: 28 | K19: 28.9 | L19: 7.9 | M19: 7.9 | N19: 7.9 | O19: 7.9 | P19: 7.9 | AA19: CW base price within range | AB19: =IF(AND(C9>=C6,C9<=C7,C10>=C6,C10<=C7,C10>=C9),"ok","Err") -> ok | AC19: 28 | AD19: 28.9 | AE19: 0 | AF19: 28 - 28.9 kg | AG19: -1 | AH19: -0.3 | AJ19: CW base price within range | AK19: =IF(AND(C35>=C32,C35<=C33,C36>=C32,C36<=C33,C36>=C35),"ok","Err") -> ok | AL19: 39 | AM19: 41.9 | AN19: 1 | AO19: 39 - 41.9 kg | AP19: -1 | AQ19: -0.2 | AV19: 28 | AW19: 28.9 | AX19: 1 | AY19: 0.1 | BC19: 28 | BD19: 28.9 | BE19: 1 | BG19: 0 | BH19: 0 | BI19: END
F20: 29 | G20: 29.9 | H20: -1 | J20: 29 | K20: 29.9 | L20: 7.9 | M20: 7.9 | N20: 7.9 | O20: 7.9 | P20: 7.9 | AA20: $ are numbers | AB20: =IF(ISNUMBER(C11),"ok","Err") -> ok | AC20: 29 | AD20: 29.9 | AE20: 0 | AF20: 29 - 29.9 kg | AG20: -1 | AH20: -0.3 | AJ20: $ are numbers | AK20: =IF((ISNUMBER(C37)),"ok","Err") -> ok | AL20: 42 | AM20: 44.9 | AN20: 1 | AO20: 42 - 44.9 kg | AP20: -1 | AQ20: -0.2 | AV20: 29 | AW20: 29.9 | AX20: 1 | AY20: 1.1 | BC20: 29 | BD20: 29.9 | BE20: 1 | BG20: 0 | BH20: 0 | BI20: END
F21: 30 | G21: 30.9 | H21: -2 | J21: 30 | K21: 30.9 | L21: 6.9 | M21: 6.9 | N21: 6.9 | O21: 6.9 | P21: 6.9 | AA21: Increment Less than Base | AB21: =IF(C11<=C3,"ok","Err") -> ok | AC21: 30 | AD21: 30.9 | AE21: 0 | AF21: 30 - 30.9 kg | AG21: =IF(AND($AB$8>=AC21,$AB$8<=AD21),0,IF(AND($AB$9>=AC21,$AB$9<=AD21),0,IF(AND(AG20=0,$AB$9>AC21,$AB$9>AD21),0,IF($AB$8>AC21,-1,-1)))) -> -1 | AH21: -0.3 | AJ21: Increment Less than Base | AK21: =IF(C37<=C3,"ok","Err") -> ok | AL21: 45 | AM21: 47.9 | AN21: 1 | AO21: 45 - 47.9 kg | AP21: =IF(AND($AK$8>=AL21,$AK$8<=AM21),0,IF(AND($AK$9>=AL21,$AK$9<=AM21),0,IF(AND(AP20=0,$AK$9>AL21,$AK$9>AM21),0,IF($AK$8>AL21,-1,-1)))) -> -1 | AQ21: -0.2 | AV21: 30 | AW21: 30.9 | AX21: 1 | AY21: 2.1 | BA21: FATSCORE | BC21: 30 | BD21: 30.9 | BE21: 1 | BG21: 0 | BH21: 0 | BI21: END
F22: 31 | G22: 31.9 | H22: -2 | J22: 31 | K22: 31.9 | L22: 6.9 | M22: 6.9 | N22: 6.9 | O22: 6.9 | P22: 6.9 | AA22: Number of Errs | AB22: =COUNTIF(AB14:AB21,"Err") -> 0 | AC22: 31 | AD22: 31.9 | AE22: 0 | AF22: 31 - 31.9 kg | AG22: -1 | AH22: -0.3 | AJ22: Number of Errs | AK22: =COUNTIF(AK14:AK21,"Err") -> 0 | AL22: 48 | AM22: 50.9 | AN22: 1 | AO22: 48 - 50.9 kg | AP22: -1 | AQ22: -0.2 | AV22: 31 | AW22: 31.9 | AX22: 1 | AY22: 3.1 | BC22: 31 | BD22: 31.9 | BE22: 1 | BG22: 0 | BH22: 0 | BI22: END
F23: 32 | G23: 32.9 | H23: -2 | J23: 32 | K23: 32.9 | L23: 6.9 | M23: 6.9 | N23: 6.9 | O23: 6.9 | P23: 6.9 | AA23: Error for OTH Generation | AC23: 32 | AD23: 32.9 | AE23: 0 | AF23: 32 - 32.9 kg | AG23: -1 | AH23: -0.3 | AJ23: Error for OTH Genration | AL23: 51 | AM23: 53.9 | AN23: 1 | AO23: 51 - 53.9 kg | AP23: -1 | AQ23: -0.2 | AV23: 32 | AW23: 32.9 | AX23: 1 | AY23: 4.1 | BA23: Error for OTH Genration using FS | BC23: 32 | BD23: 32.9 | BE23: END | BG23: 0 | BH23: 0 | BI23: END
AA24: Increment Less than Base | AB24: =IF(ABS(MIN(H6:H28))>C3,"Err","ok") -> ok | AC24: 33 | AD24: 33.9 | AE24: 1 | AF24: 33 - 33.9 kg | AG24: -1 | AH24: -0.3 | AJ24: Increment Less than Base | AK24: =IF(ABS(MIN(H32:H54))>$C$3,"Err","ok") -> ok | AL24: 54 | AM24: 56.9 | AN24: 1 | AO24: 54 - 56.9 kg | AP24: -1 | AQ24: -0.2 | AX24: 1 | AY24: -28.8 | BA24: Increment Less than Base | BB24: =IF(ABS(MIN(K32:K36))>$C$3,"Err","ok") -> ok | BE24: END | BG24: 0 | BH24: 0 | BI24: END
AA25: MIN | AB25: =MIN(H6:H28) -> -2 | AC25: 34 | AD25: 34.9 | AE25: 1 | AF25: 34 - 34.9 kg | AG25: -1 | AH25: -0.3 | AJ25: MIN | AK25: =MIN(H32:H54) -> -0.2 | AL25: 57 | AM25: 59.9 | AN25: 1 | AO25: 57 - 59.9 kg | AP25: -1 | AQ25: -0.2 | AX25: 1 | AY25: -28.8 | BA25: MIN | BB25: =MIN(K32:K36) -> 0 | BE25: END | BG25: 0 | BH25: 0 | BI25: END
AA26: Row reference | AB26: =MATCH(AB25,H6:H29,0) -> 1 | AC26: 35 | AD26: 35.9 | AE26: 1 | AF26: 35 - 35.9 kg | AG26: -1 | AH26: -0.3 | AJ26: Row reference | AK26: =MATCH(AK25,H32:H55,0) -> 1 | AL26: 60 | AM26: 62.9 | AN26: 1 | AO26: 60 - 62.9 kg | AP26: -1 | AQ26: -0.2 | AX26: 1 | AY26: -28.8 | BA26: Row reference | BB26: =MATCH(BB25,K32:K36,0) -> 1 | BE26: END | BG26: 0 | BH26: 0 | BI26: END
AA27: MIN | AB27: MAX | AC27: Prem/Disc | AJ27: MIN | AK27: MAX | AL27: Prem/Disc | BC27: =F27 -> 0 | BD27: 0 | BE27: END | BG27: 0 | BH27: 0 | BI27: END
B28: =IF(AK12=1,"GR Base Price is out side of GR range you have specified","") ->  | AA28: 15 | AB28: 15.9 | AC28: -2 | AD28: -2 | AE28: -2 | AF28: -2 | AG28: -2 | AJ28: 15 | AK28: 15.9 | AL28: -0.1 | AM28: -0.1 | AN28: -0.1 | AO28: -0.1 | AP28: -0.1 | AQ28: -0.1 | AR28: -0.1 | AS28: -0.1 | AT28: -0.1 | AU28: -0.1 | AV28: -0.1 | BC28: 0 | BD28: 0 | BE28: END | BG28: 0 | BH28: 0 | BI28: END
AA29: 16 | AB29: 16.9 | AC29: -0.5 | AD29: -0.5 | AE29: -0.5 | AF29: -0.5 | AG29: -0.5 | AJ29: 16 | AK29: 16.9 | AL29: -0.1 | AM29: -0.1 | AN29: -0.1 | AO29: -0.1 | AP29: -0.1 | AQ29: -0.1 | AR29: -0.1 | AS29: -0.1 | AT29: -0.1 | AU29: -0.1 | AV29: -0.1 | BC29: 0 | BD29: 0 | BE29: END | BG29: 0 | BH29: 0 | BI29: END
B30: GR Fat Depth Definition | F30: GR ranges | J30: Fatscores | AA30: 17 | AB30: 17.9 | AC30: -0.5 | AD30: -0.5 | AE30: -0.5 | AF30: -0.5 | AG30: -0.5 | AJ30: 17 | AK30: 17.9 | AL30: -0.1 | AM30: -0.1 | AN30: -0.1 | AO30: -0.1 | AP30: -0.1 | AQ30: -0.1 | AR30: -0.1 | AS30: -0.1 | AT30: -0.1 | AU30: -0.1 | AV30: -0.1
B31: Specification | C31: Values | F31: MIN | G31: MAX | H31: Prem/Disc | J31: Fatscore | K31: Prem/Disc | AA31: 18 | AB31: 18.9 | AC31: 0 | AD31: 0 | AE31: 0 | AF31: 0 | AG31: 0 | AJ31: 18 | AK31: 18.9 | AL31: -0.1 | AM31: -0.1 | AN31: -0.1 | AO31: -0.1 | AP31: -0.1 | AQ31: -0.1 | AR31: -0.1 | AS31: -0.1 | AT31: -0.1 | AU31: -0.1 | AV31: -0.1
B32: GR min (≥ 0 mm) | C32: 0 | D32: mm | F32: 0 | G32: 2.9 | H32: -0.2 | J32: 1 | K32: 0 | AA32: 19 | AB32: 19.9 | AC32: 0 | AD32: 0 | AE32: 0 | AF32: 0 | AG32: 0 | AJ32: 19 | AK32: 19.9 | AL32: -0.1 | AM32: -0.1 | AN32: -0.1 | AO32: -0.1 | AP32: -0.1 | AQ32: -0.1 | AR32: -0.1 | AS32: -0.1 | AT32: -0.1 | AU32: -0.1 | AV32: -0.1
B33: GR max (≤ 30mm) | C33: 13 | D33: mm | F33: 3 | G33: 5.9 | H33: -0.2 | J33: 2 | K33: 0 | AA33: 20 | AB33: 20.9 | AC33: 0 | AD33: 0 | AE33: 0 | AF33: 0 | AG33: 0 | AJ33: 20 | AK33: 20.9 | AL33: -0.1 | AM33: -0.1 | AN33: -0.1 | AO33: -0.1 | AP33: -0.1 | AQ33: -0.1 | AR33: -0.1 | AS33: -0.1 | AT33: -0.1 | AU33: -0.1 | AV33: -0.1
B34: GR Band (≥ 3 mm) | C34: 3 | D34: mm | F34: 6 | G34: 8.9 | H34: 0 | J34: 3 | K34: 0 | AA34: 21 | AB34: 21.9 | AC34: 0 | AD34: 0 | AE34: 0 | AF34: 0 | AG34: 0 | AJ34: 21 | AK34: 21.9 | AL34: -0.1 | AM34: -0.1 | AN34: -0.1 | AO34: -0.1 | AP34: -0.1 | AQ34: -0.1 | AR34: -0.1 | AS34: -0.1 | AT34: -0.1 | AU34: -0.1 | AV34: -0.1
B35: Min GR for Base Price | C35: 0 | D35: mm | F35: 9 | G35: 11.9 | H35: 0 | J35: 4 | K35: 0 | AA35: 22 | AB35: 22.9 | AC35: 0 | AD35: 0 | AE35: 0 | AF35: 0 | AG35: 0 | AJ35: 22 | AK35: 22.9 | AL35: 0 | AM35: 0 | AN35: 0 | AO35: 0 | AP35: 0 | AQ35: 0 | AR35: 0 | AS35: 0 | AT35: 0 | AU35: 0 | AV35: 0
B36: Max GR for Base Price | C36: 13 | D36: mm | F36: 12 | G36: 14.9 | H36: 0 | J36: 5 | K36: 0 | AA36: 23 | AB36: 23.9 | AC36: 0 | AD36: 0 | AE36: 0 | AF36: 0 | AG36: 0 | AJ36: 23 | AK36: 23.9 | AL36: 0 | AM36: 0 | AN36: 0 | AO36: 0 | AP36: 0 | AQ36: 0 | AR36: 0 | AS36: 0 | AT36: 0 | AU36: 0 | AV36: 0
B37: $ Increments for GR Bands | C37: 0.1 | F37: 15 | G37: 17.9 | H37: 0 | AA37: 24 | AB37: 24.9 | AC37: 0 | AD37: 0 | AE37: 0 | AF37: 0 | AG37: 0 | AJ37: 24 | AK37: 24.9 | AL37: 0 | AM37: 0 | AN37: 0 | AO37: 0 | AP37: 0 | AQ37: 0 | AR37: 0 | AS37: 0 | AT37: 0 | AU37: 0 | AV37: 0
F38: 18 | G38: 20.9 | H38: 0 | AA38: 25 | AB38: 25.9 | AC38: 0 | AD38: 0 | AE38: 0 | AF38: 0 | AG38: 0 | AJ38: 25 | AK38: 25.9 | AL38: 0 | AM38: 0 | AN38: 0 | AO38: 0 | AP38: 0 | AQ38: 0 | AR38: 0 | AS38: 0 | AT38: 0 | AU38: 0 | AV38: 0
F39: 21 | G39: 23.9 | H39: 0 | AA39: 26 | AB39: 26.9 | AC39: -0.5 | AD39: -0.5 | AE39: -0.5 | AF39: -0.5 | AG39: -0.5 | AJ39: 26 | AK39: 26.9 | AL39: -0.1 | AM39: -0.1 | AN39: -0.1 | AO39: -0.1 | AP39: -0.1 | AQ39: -0.1 | AR39: -0.1 | AS39: -0.1 | AT39: -0.1 | AU39: -0.1 | AV39: -0.1
F40: 24 | G40: 26.9 | H40: 0 | AA40: 27 | AB40: 27.9 | AC40: -0.5 | AD40: -0.5 | AE40: -0.5 | AF40: -0.5 | AG40: -0.5 | AJ40: 27 | AK40: 27.9 | AL40: -0.1 | AM40: -0.1 | AN40: -0.1 | AO40: -0.1 | AP40: -0.1 | AQ40: -0.1 | AR40: -0.1 | AS40: -0.1 | AT40: -0.1 | AU40: -0.1 | AV40: -0.1
F41: 27 | G41: 29.9 | H41: -0.2 | AA41: 28 | AB41: 28.9 | AC41: -1 | AD41: -1 | AE41: -1 | AF41: -1 | AG41: -1 | AJ41: 28 | AK41: 28.9 | AL41: -0.1 | AM41: -0.1 | AN41: -0.1 | AO41: -0.1 | AP41: -0.1 | AQ41: -0.1 | AR41: -0.1 | AS41: -0.1 | AT41: -0.1 | AU41: -0.1 | AV41: -0.1
F42: 30 | G42: 32.9 | H42: -0.2 | AA42: 29 | AB42: 29.9 | AC42: -1 | AD42: -1 | AE42: -1 | AF42: -1 | AG42: -1 | AJ42: 29 | AK42: 29.9 | AL42: -0.1 | AM42: -0.1 | AN42: -0.1 | AO42: -0.1 | AP42: -0.1 | AQ42: -0.1 | AR42: -0.1 | AS42: -0.1 | AT42: -0.1 | AU42: -0.1 | AV42: -0.1
AA43: 30 | AB43: 30.9 | AC43: -2 | AD43: -2 | AE43: -2 | AF43: -2 | AG43: -2 | AJ43: 30 | AK43: 30.9 | AL43: -0.1 | AM43: -0.1 | AN43: -0.1 | AO43: -0.1 | AP43: -0.1 | AQ43: -0.1 | AR43: -0.1 | AS43: -0.1 | AT43: -0.1 | AU43: -0.1 | AV43: -0.1
AA44: 31 | AB44: 31.9 | AC44: -2 | AD44: -2 | AE44: -2 | AF44: -2 | AG44: -2 | AJ44: 31 | AK44: 31.9 | AL44: -0.1 | AM44: -0.1 | AN44: -0.1 | AO44: -0.1 | AP44: -0.1 | AQ44: -0.1 | AR44: -0.1 | AS44: -0.1 | AT44: -0.1 | AU44: -0.1 | AV44: -0.1
AA45: 32 | AB45: 32.9 | AC45: -2 | AD45: -2 | AE45: -2 | AF45: -2 | AG45: -2 | AJ45: 32 | AK45: 32.9 | AL45: -0.1 | AM45: -0.1 | AN45: -0.1 | AO45: -0.1 | AP45: -0.1 | AQ45: -0.1 | AR45: -0.1 | AS45: -0.1 | AT45: -0.1 | AU45: -0.1 | AV45: -0.1
AJ46: 33 | AK46: 33.9 | AL46: -0.1 | AM46: -0.1 | AN46: -0.1 | AO46: -0.1 | AP46: -0.1 | AQ46: -0.1 | AR46: -0.1 | AS46: -0.1 | AT46: -0.1 | AU46: -0.1 | AV46: -0.1
AJ47: 34 | AK47: 34.9 | AL47: -0.1 | AM47: -0.1 | AN47: -0.1 | AO47: -0.1 | AP47: -0.1 | AQ47: -0.1 | AR47: -0.1 | AS47: -0.1 | AT47: -0.1 | AU47: -0.1 | AV47: -0.1
AL49: 0 | AM49: 3 | AN49: 6 | AO49: 9 | AP49: 12 | AQ49: 15 | AR49: 18 | AS49: 21 | AT49: 24 | AU49: 27 | AV49: 30
AC50: 1 | AD50: 2 | AE50: 3 | AF50: 4 | AG50: 5 | AL50: 2.9 | AM50: 5.9 | AN50: 8.9 | AO50: 11.9 | AP50: 14.9 | AQ50: 17.9 | AR50: 20.9 | AS50: 23.9 | AT50: 26.9 | AU50: 29.9 | AV50: 32.9
AC51: 0 | AD51: 0 | AE51: 0 | AF51: 0 | AG51: 0 | AL51: -0.2 | AM51: -0.2 | AN51: 0 | AO51: 0 | AP51: 0 | AQ51: 0 | AR51: -0.2 | AS51: -0.2 | AT51: -0.2 | AU51: -0.2 | AV51: -0.2
AC52: 0 | AD52: 0 | AE52: 0 | AF52: 0 | AG52: 0 | AL52: -0.2 | AM52: -0.2 | AN52: 0 | AO52: 0 | AP52: 0 | AQ52: 0 | AR52: -0.2 | AS52: -0.2 | AT52: -0.2 | AU52: -0.2 | AV52: -0.2
AC53: 0 | AD53: 0 | AE53: 0 | AF53: 0 | AG53: 0 | AL53: -0.2 | AM53: -0.2 | AN53: 0 | AO53: 0 | AP53: 0 | AQ53: 0 | AR53: -0.2 | AS53: -0.2 | AT53: -0.2 | AU53: -0.2 | AV53: -0.2
AC54: 0 | AD54: 0 | AE54: 0 | AF54: 0 | AG54: 0 | AL54: -0.2 | AM54: -0.2 | AN54: 0 | AO54: 0 | AP54: 0 | AQ54: 0 | AR54: -0.2 | AS54: -0.2 | AT54: -0.2 | AU54: -0.2 | AV54: -0.2
AC55: 0 | AD55: 0 | AE55: 0 | AF55: 0 | AG55: 0 | AL55: -0.2 | AM55: -0.2 | AN55: 0 | AO55: 0 | AP55: 0 | AQ55: 0 | AR55: -0.2 | AS55: -0.2 | AT55: -0.2 | AU55: -0.2 | AV55: -0.2
AC56: 0 | AD56: 0 | AE56: 0 | AF56: 0 | AG56: 0 | AL56: -0.2 | AM56: -0.2 | AN56: 0 | AO56: 0 | AP56: 0 | AQ56: 0 | AR56: -0.2 | AS56: -0.2 | AT56: -0.2 | AU56: -0.2 | AV56: -0.2
AC57: 0 | AD57: 0 | AE57: 0 | AF57: 0 | AG57: 0 | AL57: -0.2 | AM57: -0.2 | AN57: 0 | AO57: 0 | AP57: 0 | AQ57: 0 | AR57: -0.2 | AS57: -0.2 | AT57: -0.2 | AU57: -0.2 | AV57: -0.2
AC58: 0 | AD58: 0 | AE58: 0 | AF58: 0 | AG58: 0 | AL58: -0.2 | AM58: -0.2 | AN58: 0 | AO58: 0 | AP58: 0 | AQ58: 0 | AR58: -0.2 | AS58: -0.2 | AT58: -0.2 | AU58: -0.2 | AV58: -0.2
AC59: 0 | AD59: 0 | AE59: 0 | AF59: 0 | AG59: 0 | AL59: -0.2 | AM59: -0.2 | AN59: 0 | AO59: 0 | AP59: 0 | AQ59: 0 | AR59: -0.2 | AS59: -0.2 | AT59: -0.2 | AU59: -0.2 | AV59: -0.2
AC60: 0 | AD60: 0 | AE60: 0 | AF60: 0 | AG60: 0 | AL60: -0.2 | AM60: -0.2 | AN60: 0 | AO60: 0 | AP60: 0 | AQ60: 0 | AR60: -0.2 | AS60: -0.2 | AT60: -0.2 | AU60: -0.2 | AV60: -0.2
AC61: 0 | AD61: 0 | AE61: 0 | AF61: 0 | AG61: 0 | AL61: -0.2 | AM61: -0.2 | AN61: 0 | AO61: 0 | AP61: 0 | AQ61: 0 | AR61: -0.2 | AS61: -0.2 | AT61: -0.2 | AU61: -0.2 | AV61: -0.2
AC62: 0 | AD62: 0 | AE62: 0 | AF62: 0 | AG62: 0 | AL62: -0.2 | AM62: -0.2 | AN62: 0 | AO62: 0 | AP62: 0 | AQ62: 0 | AR62: -0.2 | AS62: -0.2 | AT62: -0.2 | AU62: -0.2 | AV62: -0.2
AC63: 0 | AD63: 0 | AE63: 0 | AF63: 0 | AG63: 0 | AL63: -0.2 | AM63: -0.2 | AN63: 0 | AO63: 0 | AP63: 0 | AQ63: 0 | AR63: -0.2 | AS63: -0.2 | AT63: -0.2 | AU63: -0.2 | AV63: -0.2
AC64: 0 | AD64: 0 | AE64: 0 | AF64: 0 | AG64: 0 | AL64: -0.2 | AM64: -0.2 | AN64: 0 | AO64: 0 | AP64: 0 | AQ64: 0 | AR64: -0.2 | AS64: -0.2 | AT64: -0.2 | AU64: -0.2 | AV64: -0.2
AC65: 0 | AD65: 0 | AE65: 0 | AF65: 0 | AG65: 0 | AL65: -0.2 | AM65: -0.2 | AN65: 0 | AO65: 0 | AP65: 0 | AQ65: 0 | AR65: -0.2 | AS65: -0.2 | AT65: -0.2 | AU65: -0.2 | AV65: -0.2
AC66: 0 | AD66: 0 | AE66: 0 | AF66: 0 | AG66: 0 | AL66: -0.2 | AM66: -0.2 | AN66: 0 | AO66: 0 | AP66: 0 | AQ66: 0 | AR66: -0.2 | AS66: -0.2 | AT66: -0.2 | AU66: -0.2 | AV66: -0.2
AC67: 0 | AD67: 0 | AE67: 0 | AF67: 0 | AG67: 0 | AL67: -0.2 | AM67: -0.2 | AN67: 0 | AO67: 0 | AP67: 0 | AQ67: 0 | AR67: -0.2 | AS67: -0.2 | AT67: -0.2 | AU67: -0.2 | AV67: -0.2
AC68: 0 | AD68: 0 | AE68: 0 | AF68: 0 | AG68: 0 | AL68: -0.2 | AM68: -0.2 | AN68: 0 | AO68: 0 | AP68: 0 | AQ68: 0 | AR68: -0.2 | AS68: -0.2 | AT68: -0.2 | AU68: -0.2 | AV68: -0.2
AL69: -0.2 | AM69: -0.2 | AN69: 0 | AO69: 0 | AP69: 0 | AQ69: 0 | AR69: -0.2 | AS69: -0.2 | AT69: -0.2 | AU69: -0.2 | AV69: -0.2
AL70: -0.2 | AM70: -0.2 | AN70: 0 | AO70: 0 | AP70: 0 | AQ70: 0 | AR70: -0.2 | AS70: -0.2 | AT70: -0.2 | AU70: -0.2 | AV70: -0.2
AJ72: 1 | AK72: 2 | AL72: 0 | AM72: 3 | AN72: 6 | AO72: 9 | AP72: 12 | AQ72: 15 | AR72: 18 | AS72: 21 | AT72: 24 | AU72: 27 | AV72: 30
AA73: MIN | AB73: MAX | AC73: 1 | AD73: 2 | AE73: 3 | AF73: 4 | AG73: 5 | AJ73: MIN | AK73: MAX | AL73: 2.9 | AM73: 5.9 | AN73: 8.9 | AO73: 11.9 | AP73: 14.9 | AQ73: 17.9 | AR73: 20.9 | AS73: 23.9 | AT73: 26.9 | AU73: 29.9 | AV73: 32.9
AA74: 15 | AB74: 15.9 | AC74: =AC28+AC51+$AB$11 -> 6.9 | AD74: =AD28+AD51+$AB$11 -> 6.9 | AE74: =AE28+AE51+$AB$11 -> 6.9 | AF74: =AF28+AF51+$AB$11 -> 6.9 | AG74: =AG28+AG51+$AB$11 -> 6.9 | AJ74: 15 | AK74: 15.9 | AL74: =AL28+AL51+$AK$11 -> 8.6 | AM74: =AM28+AM51+$AK$11 -> 8.6 | AN74: 8.8 | AO74: 8.8 | AP74: 8.8 | AQ74: 8.8 | AR74: 8.6 | AS74: 8.6 | AT74: 8.6 | AU74: 8.6 | AV74: 8.6
AA75: 16 | AB75: 16.9 | AC75: =AC29+AC52+$AB$11 -> 8.4 | AD75: 8.4 | AE75: 8.4 | AF75: 8.4 | AG75: 8.4 | AJ75: 16 | AK75: 16.9 | AL75: =AL29+AL52+$AK$11 -> 8.6 | AM75: 8.6 | AN75: 8.8 | AO75: 8.8 | AP75: 8.8 | AQ75: 8.8 | AR75: 8.6 | AS75: 8.6 | AT75: 8.6 | AU75: 8.6 | AV75: 8.6
AA76: 17 | AB76: 17.9 | AC76: 8.4 | AD76: 8.4 | AE76: 8.4 | AF76: 8.4 | AG76: 8.4 | AJ76: 17 | AK76: 17.9 | AL76: 8.6 | AM76: 8.6 | AN76: 8.8 | AO76: 8.8 | AP76: 8.8 | AQ76: 8.8 | AR76: 8.6 | AS76: 8.6 | AT76: 8.6 | AU76: 8.6 | AV76: 8.6
AA77: 18 | AB77: 18.9 | AC77: 8.9 | AD77: 8.9 | AE77: 8.9 | AF77: 8.9 | AG77: 8.9 | AJ77: 18 | AK77: 18.9 | AL77: 8.6 | AM77: 8.6 | AN77: 8.8 | AO77: 8.8 | AP77: 8.8 | AQ77: 8.8 | AR77: 8.6 | AS77: 8.6 | AT77: 8.6 | AU77: 8.6 | AV77: 8.6
AA78: 19 | AB78: 19.9 | AC78: 8.9 | AD78: 8.9 | AE78: 8.9 | AF78: 8.9 | AG78: 8.9 | AJ78: 19 | AK78: 19.9 | AL78: 8.6 | AM78: 8.6 | AN78: 8.8 | AO78: 8.8 | AP78: 8.8 | AQ78: 8.8 | AR78: 8.6 | AS78: 8.6 | AT78: 8.6 | AU78: 8.6 | AV78: 8.6
AA79: 20 | AB79: 20.9 | AC79: 8.9 | AD79: 8.9 | AE79: 8.9 | AF79: 8.9 | AG79: 8.9 | AJ79: 20 | AK79: 20.9 | AL79: 8.6 | AM79: 8.6 | AN79: 8.8 | AO79: 8.8 | AP79: 8.8 | AQ79: 8.8 | AR79: 8.6 | AS79: 8.6 | AT79: 8.6 | AU79: 8.6 | AV79: 8.6
AA80: 21 | AB80: 21.9 | AC80: 8.9 | AD80: 8.9 | AE80: 8.9 | AF80: 8.9 | AG80: 8.9 | AJ80: 21 | AK80: 21.9 | AL80: 8.6 | AM80: 8.6 | AN80: 8.8 | AO80: 8.8 | AP80: 8.8 | AQ80: 8.8 | AR80: 8.6 | AS80: 8.6 | AT80: 8.6 | AU80: 8.6 | AV80: 8.6
AA81: 22 | AB81: 22.9 | AC81: 8.9 | AD81: 8.9 | AE81: 8.9 | AF81: 8.9 | AG81: 8.9 | AJ81: 22 | AK81: 22.9 | AL81: 8.7 | AM81: 8.7 | AN81: 8.9 | AO81: 8.9 | AP81: 8.9 | AQ81: 8.9 | AR81: 8.7 | AS81: 8.7 | AT81: 8.7 | AU81: 8.7 | AV81: 8.7
AA82: 23 | AB82: 23.9 | AC82: 8.9 | AD82: 8.9 | AE82: 8.9 | AF82: 8.9 | AG82: 8.9 | AJ82: 23 | AK82: 23.9 | AL82: 8.7 | AM82: 8.7 | AN82: 8.9 | AO82: 8.9 | AP82: 8.9 | AQ82: 8.9 | AR82: 8.7 | AS82: 8.7 | AT82: 8.7 | AU82: 8.7 | AV82: 8.7
AA83: 24 | AB83: 24.9 | AC83: 8.9 | AD83: 8.9 | AE83: 8.9 | AF83: 8.9 | AG83: 8.9 | AJ83: 24 | AK83: 24.9 | AL83: 8.7 | AM83: 8.7 | AN83: 8.9 | AO83: 8.9 | AP83: 8.9 | AQ83: 8.9 | AR83: 8.7 | AS83: 8.7 | AT83: 8.7 | AU83: 8.7 | AV83: 8.7
AA84: 25 | AB84: 25.9 | AC84: 8.9 | AD84: 8.9 | AE84: 8.9 | AF84: 8.9 | AG84: 8.9 | AJ84: 25 | AK84: 25.9 | AL84: 8.7 | AM84: 8.7 | AN84: 8.9 | AO84: 8.9 | AP84: 8.9 | AQ84: 8.9 | AR84: 8.7 | AS84: 8.7 | AT84: 8.7 | AU84: 8.7 | AV84: 8.7
AA85: 26 | AB85: 26.9 | AC85: 8.4 | AD85: 8.4 | AE85: 8.4 | AF85: 8.4 | AG85: 8.4 | AJ85: 26 | AK85: 26.9 | AL85: 8.6 | AM85: 8.6 | AN85: 8.8 | AO85: 8.8 | AP85: 8.8 | AQ85: 8.8 | AR85: 8.6 | AS85: 8.6 | AT85: 8.6 | AU85: 8.6 | AV85: 8.6
AA86: 27 | AB86: 27.9 | AC86: 8.4 | AD86: 8.4 | AE86: 8.4 | AF86: 8.4 | AG86: 8.4 | AJ86: 27 | AK86: 27.9 | AL86: 8.6 | AM86: 8.6 | AN86: 8.8 | AO86: 8.8 | AP86: 8.8 | AQ86: 8.8 | AR86: 8.6 | AS86: 8.6 | AT86: 8.6 | AU86: 8.6 | AV86: 8.6
AA87: 28 | AB87: 28.9 | AC87: 7.9 | AD87: 7.9 | AE87: 7.9 | AF87: 7.9 | AG87: 7.9 | AJ87: 28 | AK87: 28.9 | AL87: 8.6 | AM87: 8.6 | AN87: 8.8 | AO87: 8.8 | AP87: 8.8 | AQ87: 8.8 | AR87: 8.6 | AS87: 8.6 | AT87: 8.6 | AU87: 8.6 | AV87: 8.6
AA88: 29 | AB88: 29.9 | AC88: 7.9 | AD88: 7.9 | AE88: 7.9 | AF88: 7.9 | AG88: 7.9 | AJ88: 29 | AK88: 29.9 | AL88: 8.6 | AM88: 8.6 | AN88: 8.8 | AO88: 8.8 | AP88: 8.8 | AQ88: 8.8 | AR88: 8.6 | AS88: 8.6 | AT88: 8.6 | AU88: 8.6 | AV88: 8.6
AA89: 30 | AB89: 30.9 | AC89: 6.9 | AD89: 6.9 | AE89: 6.9 | AF89: 6.9 | AG89: 6.9 | AJ89: 30 | AK89: 30.9 | AL89: 8.6 | AM89: 8.6 | AN89: 8.8 | AO89: 8.8 | AP89: 8.8 | AQ89: 8.8 | AR89: 8.6 | AS89: 8.6 | AT89: 8.6 | AU89: 8.6 | AV89: 8.6
AA90: 31 | AB90: 31.9 | AC90: 6.9 | AD90: 6.9 | AE90: 6.9 | AF90: 6.9 | AG90: 6.9 | AJ90: 31 | AK90: 31.9 | AL90: 8.6 | AM90: 8.6 | AN90: 8.8 | AO90: 8.8 | AP90: 8.8 | AQ90: 8.8 | AR90: 8.6 | AS90: 8.6 | AT90: 8.6 | AU90: 8.6 | AV90: 8.6
AA91: 32 | AB91: 32.9 | AC91: 6.9 | AD91: 6.9 | AE91: 6.9 | AF91: 6.9 | AG91: 6.9 | AJ91: 32 | AK91: 32.9 | AL91: 8.6 | AM91: 8.6 | AN91: 8.8 | AO91: 8.8 | AP91: 8.8 | AQ91: 8.8 | AR91: 8.6 | AS91: 8.6 | AT91: 8.6 | AU91: 8.6 | AV91: 8.6
AJ92: 33 | AK92: 33.9 | AL92: 8.6 | AM92: 8.6 | AN92: 8.8 | AO92: 8.8 | AP92: 8.8 | AQ92: 8.8 | AR92: 8.6 | AS92: 8.6 | AT92: 8.6 | AU92: 8.6 | AV92: 8.6
AJ93: 34 | AK93: 34.9 | AL93: 8.6 | AM93: 8.6 | AN93: 8.8 | AO93: 8.8 | AP93: 8.8 | AQ93: 8.8 | AR93: 8.6 | AS93: 8.6 | AT93: 8.6 | AU93: 8.6 | AV93: 8.6
AA97: HSCW ranges | AC97: =IF(AC99=1,"FATSCORES","GR Fat Depth Ranges") -> GR Fat Depth Ranges | AJ97: HSCW ranges | AL97: =IF(AL99=1,"FATSCORES","GR Fat Depth Ranges") -> GR Fat Depth Ranges
A98: 1 | B98: 1 | C98: 1 | D98: 1 | E98: 1 | F98: 1 | G98: 1 | H98: 1 | I98: 1 | J98: 1 | K98: 1 | L98: 1 | M98: 1 | N98: 1 | O98: 1 | P98: 1 | Q98: 1 | R98: 1 | S98: 1 | T98: 1 | U98: 1 | V98: 1 | W98: 1 | X98: 1 | Y98: 1 | Z98: 1 | AA98: 1 | AB98: 1 | AC98: 1 | AD98: 1 | AE98: 1 | AF98: 1 | AG98: 1 | AH98: 1 | AI98: 1 | AJ98: 1

Sheet Purchasing - Slaughter Expenses
B2: Fixed Carcase Expenses / Revenue | H2: =Lists!E179 ->  | AI2: GR or Fatscore GRID FS = 1
C3: =Lists!C148 -> Trade: Over the Hooks Breed: X-Breed Yield Model: CCW/GR Linear HCW: 28.8kg GR: 18mm | AD3: YES | AE3: OTH = 1 | AF3: Check Ranges
C4: Total Retail Value: | D4: =IF(Lists!E178=1,"",'Cut Selection'!R86) -> 252.80711 | I4: Carcase Gross Margin : | J4: =IF(Lists!E178=1,"",'Cut Selection'!T86) -> 11.58160907 | N4: Gross Profit (%) | O4: =IF(Lists!E178=1,"",'Cut Selection'!U86) -> 0.04581203854 | AC4: Type of Purchase | AE4: =IF('Carcase Description'!C4="Over the Hooks",1,0) -> 1 | AF4: OTH | AG4: On-Farm | AI4: ='Over the Hooks Grid'!L3 -> FATSCORES
AC5: Column count for GR Grid | AE5: ='Over the Hooks Grid'!AU5 -> 8 | AF5: =IF(AND(D10>=AF14,D10<=AF15),0,1) -> 0 | AG5: =IF(AND(D10>=AF14,D10<=AF15),0,1) -> 0 | AI5: =IF(AI4="FATSCORES",1,0) -> 1
C6: Carcase Summary | H6: Sale Yards Purchase | M6: =IF(INDEX(TradeTypeTable[CodeSel],1)=3,"Carcase Trade Price","OTH Purchase") -> OTH Purchase | AC6: Coulumn Count for FS Grid | AE6: =D12+1 -> 5
AC7: Min HSCW on Grid | AE7: ='Over the Hooks Grid'!K6 -> 15.9 | AF7: =IF(AND(D14>=AF12,D14<=AF13),0,1) -> 0 | AG7: =IF(AND(D14>=AF12,D14<=AF13),0,1) -> 0 | AS7: Pre-Slaughter Fixed Costs
C8: Breed Type | D8: =Lists!$F$57 -> X-Breed | I8: On-hoof Purchase Price ($/hd) | J8: 263.6 | N8: TOTAL PURCHASE PRICE ($) | O8: =IF(D14="―","―",D14*O10) -> 227.52 | AC8: HSCW for Vlookup on Grid | AE8: =IF(D14<15,D14,IF(D14<AE7,AE7,D14)) -> 28.8
AC9: Lookup HCW for GRID | AE9: =AE8+AE10 -> 28.9
C10: Average GR (mm) | D10: ='Carcase Description'!$C$6 -> 18 | E10: mm | I10: Deduct Skin Value ($) | J10: 10.35 | N10: Price ($/kg of HSCW) | O10: =IF(AF11=0,IF(AI5=1,VLOOKUP(AE9,'Over the Hooks Grid'!K6:V27,AE6,TRUE),VLOOKUP(AE9,'Over the Hooks Grid'!K6:V27,AE5,TRUE)),"―") -> 7.9 | AC10: OTH Proceeding Wt bands for given Wt | AE10: ='Over the Hooks Grid'!AZ5 -> 0.1
AE11: ERRORS | AF11: =SUM(AF5:AF10) -> 0 | AG11: =SUM(AG5:AG10) -> 0
C12: Average Fatscore | D12: =VLOOKUP(D10,Lists!$D$110:$E$115,2,TRUE) -> 4 | E12: FS1 - 5 | I12: TOTAL PURCHASE PRICE ($) | J12: =J8-J10 -> 253.25 | AD12: HSCW | AE12: MIN | AF12: =Lists!E5 -> 13
AE13: MAX | AF13: =Lists!F5 -> 39
C14: Average HSCW (kg) | D14: ='Carcase Description'!$C$8 -> 28.8 | I14: Price ($/kg of HSCW) | J14: =IF(AND(J12>0,J12<>"",D14<>"",D14>0),J12/D14,"―") -> 8.793402778 | AD14: GR | AE14: MIN | AF14: 1
AE15: MAX | AF15: =Lists!F3 -> 44
AC16: Carcase Cost | AE16: =IF(AE4=1,O8,J12) -> 227.52
B17: Pre-Slaughter Costs | H17: On - Hoof Description | M17: Slaughter Floor Revenue
C19: Stock Agents Commission ($/hd) | D19: 0 | I19: Fresh Off Shears | J19: No | K19: Yes / No | N19: Offal Returns ($/hd) | O19: 0
C21: Transportation ($/hd) | D21: 2.5 | I21: Wool Length | J21: 25 | K21: mm | N21: Other Returns ($/hd) | O21: 0
C23: Livestock Levies ($/hd) | D23: 0 | I23: Curfew Estimate (> 12hours) | J23: 24 | K23: Hours | N23: S/F Returns ($/hd) | O23: =SUM(O19:O22) -> 0 | AC23: Number of Head:
C25: Auction Fees ($/hd) | D25: 0 | I25: Suckers | J25: No | K25: Yes/No
C27: Other fixed Costs ($/hd) | D27: 0 | I27: Estimated Dressing % | J27: =J46 -> 0.526
C29: Total Pre-Slaughter Costs ($/hd) | D29: =IF(AE4=1,SUM(D19:D28)-D25,SUM(D19:D28)) -> 2.5 | I29: Empty Live weight (kg) | J29: =D14/J46 -> 54.75285171 | K29: kg
B32: Slaughter Costs | H32: Carcase Dressing % | M32: Primal % Cost Allocation
O33: Drop Wt % | Q33: User Allocation | AC33: Butcher Activated Flag | AD33: NO
C34: Slaughtering Costs ($/hd) | D34: 0 | I34: Standard Dressing Percentage | J34: 0.49 | N34: FQ | O34: =IF(ISERROR(INDEX(PrimalPerc[PercLvl1],MATCH(N34,PrimalPerc[Primal Region],0),1)),"",INDEX(PrimalPerc[PercLvl1],MATCH(N34,PrimalPerc[Primal Region],0),1)) -> 0.3353232433 | Q34: 0.232
I35: Adjustments for
C36: Other fixed Costs ($/hd) | D36: 0 | I36: Fatscore | J36: =IF(AND(D12>=1,D12<=5),VLOOKUP(D12,'Dressing % Lookups'!B5:C9,2,FALSE),0) -> 0.02 | N36: Saddle | O36: =IF(ISERROR(INDEX(PrimalPerc[PercLvl1],MATCH(N36,PrimalPerc[Primal Region],0),1)),"",INDEX(PrimalPerc[PercLvl1],MATCH(N36,PrimalPerc[Primal Region],0),1)) -> 0.3367981178 | Q36: 0.25 | AF36: =AD31 -> 0
Z37: 23.533
C38: Total Fixed Costs ($/hd) | D38: =SUM(D34:D37) -> 0 | I38: Wool Length | J38: =IF(J19<>"",VLOOKUP(J21,'Dressing % Lookups'!J5:K8,2,TRUE),0) -> 0.01 | N38: HQ | O38: =IF(ISERROR(INDEX(PrimalPerc[PercLvl1],MATCH(N38,PrimalPerc[Primal Region],0),1)),"",INDEX(PrimalPerc[PercLvl1],MATCH(N38,PrimalPerc[Primal Region],0),1)) -> 0.3278786389 | Q38: 0.518
Z39: CutCode | AB39: CutWeight
I40: Curfew Period | J40: =IF(J23<=12,0,(J23-12)*-0.001) -> -0.012 | N40: Total | O40: =SUM(O34:O38) -> 1 | Q40: =SUM(Q34:Q38) -> 1 | R40: =IF(Q40<>1,"Must Equal 100%","") ->  | Z40: FQ02.1
B41: Fixed Boning Costs | O41: Drop Wt % | Q41: User Allocation
I42: Breed Type | J42: =IF(D8<>"",VLOOKUP(D8,'Dressing % Lookups'!N5:O6,2,FALSE),0) -> 0 | N42: Sq Cut Shldr | O42: =IF(ISERROR(INDEX(PrimalPerc[PercLvl2],MATCH(N42,PrimalPerc[Primal Region],0),1)),"",INDEX(PrimalPerc[PercLvl2],MATCH(N42,PrimalPerc[Primal Region],0),1)) -> 0.2558605419 | Q42: 0.2
C44: Fixed Boning Costs ($/hd) | D44: 0 | I44: Suckers or Weaned | J44: =VLOOKUP('Dressing % Lookups'!Q5,'Dressing % Lookups'!R5:S6,2,FALSE) -> 0.018 | N44: Foreshank | O44: =IF(ISERROR(INDEX(PrimalPerc[PercLvl2],MATCH(N44,PrimalPerc[Primal Region],0),1)),"",INDEX(PrimalPerc[PercLvl2],MATCH(N44,PrimalPerc[Primal Region],0),1)) -> 0.03799247882 | Q44: 0.12
C46: Other fixed Costs ($/hd) | D46: 0 | I46: Estimated Dressing % | J46: =SUM(J34:J45) -> 0.526 | N46: Breast | O46: =IF(ISERROR(INDEX(PrimalPerc[PercLvl2],MATCH(N46,PrimalPerc[Primal Region],0),1)),"",INDEX(PrimalPerc[PercLvl2],MATCH(N46,PrimalPerc[Primal Region],0),1)) -> 0.02017361965 | Q46: 0.01
C48: Total Boning Costs ($/hd) | D48: =IF(SUM(D44:D47)=0, 0.000001,SUM(D44:D47)) -> 1e-06 | N48: Neck | O48: =IF(ISERROR(INDEX(PrimalPerc[PercLvl2],MATCH(N48,PrimalPerc[Primal Region],0),1)),"",INDEX(PrimalPerc[PercLvl2],MATCH(N48,PrimalPerc[Primal Region],0),1)) -> 0.02073595051 | Q48: 0.05
H49: Note: All values in the bright green cells can be editted
N50: Shortloin | O50: =IF(ISERROR(INDEX(PrimalPerc[PercLvl2],MATCH(N50,PrimalPerc[Primal Region],0),1)),"",INDEX(PrimalPerc[PercLvl2],MATCH(N50,PrimalPerc[Primal Region],0),1)) -> 0.1132393772 | Q50: 0.13
H52: Greyed out cells are linked to the alternative Type of Trade and are ignored in calculations. | N52: Rack | O52: =IF(ISERROR(INDEX(PrimalPerc[PercLvl2],MATCH(N52,PrimalPerc[Primal Region],0),1)),"",INDEX(PrimalPerc[PercLvl2],MATCH(N52,PrimalPerc[Primal Region],0),1)) -> 0.1119389871 | Q52: 0.4
N54: Flap | O54: =IF(ISERROR(INDEX(PrimalPerc[PercLvl2],MATCH(N54,PrimalPerc[Primal Region],0),1)),"",INDEX(PrimalPerc[PercLvl2],MATCH(N54,PrimalPerc[Primal Region],0),1)) -> 0.1119038414 | Q54: 0.01
E55: =IF($K$12=1,"Warning: Check Rec%","") ->  | H55: Carcase Costs | I55: Cost ($/hd) | K55: =IF(Lists!E178=1,"Warning; Check Recovery%","") -> 
H56: =IF(INDEX(TradeTypeTable[CodeSel],1)=2,"On Hoof Purchase Price","") ->  | I56: =IF(INDEX(TradeTypeTable[CodeSel],1)=2,J8,"") ->  | N56: HQ | O56: =IF(ISERROR(INDEX(PrimalPerc[PercLvl2],MATCH(N56,PrimalPerc[Primal Region],0),1)),"",INDEX(PrimalPerc[PercLvl2],MATCH(N56,PrimalPerc[Primal Region],0),1)) -> 0.3281552033 | Q56: 0.08
H57: =IF(INDEX(TradeTypeTable[CodeSel],1)=2,"Less Skin Revenue","") ->  | I57: =IF(INDEX(TradeTypeTable[CodeSel],1)=2,J10,"") -> 
H58: =IF(INDEX(TradeTypeTable[CodeSel],1)=3,"Carcase Trade Price","Carcase Trade Price") -> Carcase Trade Price | I58: =IF(INDEX(TradeTypeTable[CodeSel],1)=2,J12,O8) -> 227.52 | J58: =CONCATENATE("($",IF(INDEX(TradeTypeTable[CodeSel],1)=2,ROUND(J14,2),ROUND(O10,2))," / kg of HSCW)") -> ($7.9 / kg of HSCW) | N58: Total | O58: =SUM(O42:O56) -> 1 | Q58: =SUM(Q42:Q56) -> 1 | R58: =IF(Q58<>1,"Must Equal 100%","") -> 
H59: =IF(INDEX(TradeTypeTable[CodeSel],1)=3,"","Pre-slaugther Costs") -> Pre-slaugther Costs | I59: =IF(INDEX(TradeTypeTable[CodeSel],1)=3,"",D29) -> 2.5
H60: =IF(INDEX(TradeTypeTable[CodeSel],1)=3,"","Slaughter Costs") -> Slaughter Costs | I60: =IF(INDEX(TradeTypeTable[CodeSel],1)=3,"",D38) -> 0
H61: =IF(INDEX(TradeTypeTable[CodeSel],1)=3,""," Less Slaughter Floor Revenue") -> Less Slaughter Floor Revenue | I61: =IF(INDEX(TradeTypeTable[CodeSel],1)=3,"",O23) -> 0
H62: =IF(INDEX(TradeTypeTable[CodeSel],1)=3,"Shop Entry Costs","Boning Room Entry Costs") -> Boning Room Entry Costs | I62: =IF(INDEX(TradeTypeTable[CodeSel],1)=3,I58,SUM(I58:I60)-I61) -> 230.02 | N62: =IF(Lists!E178=1,"Warning; Check Recovery%","") ->  | O62: Gross Margin Analysis
H63: Carcase Fixed Boning Costs | I63: =D48 -> 1e-06 | N63: Primal Region | O63: GM ($) | Q63: GM (%)
H64: Primal Boning/Package Costs | I64: =IF(Lists!E178=1,"",'Cut Selection'!Z71+'Cut Selection'!S85) -> 7.7487 | N64: FQ | O64: ='Analysis Tables'!E5 -> -23.75532038 | Q64: ='Analysis Tables'!F5 -> -0.3644310347
H65: Carcase Final Cost | I65: =SUBTOTAL(9,I63,I62,I64) -> 237.768701 | N65: Loin | O65: ='Analysis Tables'!E6 -> -63.85027054 | Q65: ='Analysis Tables'!F6 -> -1.034465968
E66: =IF($K$12=1,"Warning: Check Rec%","") ->  | I66: =I65/D14 -> 8.255857674 | J66: /kg of HSCW | N66: HQ | O66: ='Analysis Tables'!E7 -> 76.25869999 | Q66: ='Analysis Tables'!F7 -> 0.740584242
E67: =IF($K$12=1,"Warning: Check Rec%","") ->  | I67: =IF(Lists!E178=1,"",I65/'Carcase Description'!C93) -> 11.07239923 | J67: /kg of Saleable Meat | N67: Lean Trim | O67: ='Analysis Tables'!E8 -> 9.03
N68: Saleable Meat Totals | O68: ='Analysis Tables'!E9 -> -2.316890933 | Q68: ='Analysis Tables'!F9 -> -0.04936035994
N69: Secondary Product Totals | O69: ='Analysis Tables'!E10 -> 13.8985
E70: Carcase Dressing Percentage Information Links: | N70: Whole Carcase Total | O70: ='Analysis Tables'!E11 -> 11.58160907 | Q70: ='Analysis Tables'!F11 -> 0.04581203854
F71: 1. Land Fact: Comparing lamb marketing methods NSW Ag
F72: 2. Ferguson, D., (2006). Review of the effects of food and water deprivation on animal welfare in ruminants. In: Investigating feed and water curfews for the transport of livestock within Australia – a literature review. D. Pethick (ed). Meat & Livestock Aust

Sheet Cut Selection
A1: Cut Selection | E1: =Lists!C148 -> Trade: Over the Hooks Breed: X-Breed Yield Model: CCW/GR Linear HCW: 28.8kg GR: 18mm
A2: Region | B2: Cut Type | C2: Options | E2: Cut Selection | F2: HAM # | G2: Code | H2: RowNo. | I2: Primal Wt (kg) | J2: Trim | K2: Fat | L2: Bone | M2: Waste | N2: Paddywack | O2: Intercostals | P2: Skirt | Q2: Sale Price ($/kg) | R2: Cut Value ($) | S2: Gross Margin ($) | T2: GM (%) | U2: Target GM (%) | V2: Target Sale Price ($/kg) | W2: Total Costs ($/kg) | X2: PreBone Costs ($/kg) | Y2: Fixed Bone Cost ($/kg) | Z2: Boning Costs ($/kg) | AA2: Total Costs ($) | AB2: Carton Buy-In Price ($/kg)
A3: FQ | B3: Shldr | C3: B/I or B/O | E3: Sq Cut Shldr 6mm Fat Cap, St. Cut (4 Rib) | F3: =IF(E9<>"",7,IF(E8<>"",6,IF(E7<>"",5,IF(E6<>"",4,IF(E5<>"",3,IF(E4<>"",2,IF(E3<>"",1,0))))))) -> 1 | G3: =IF(ISERROR(INDEX(YieldCalcs[Code],MATCH(E3,YieldCalcs[CutName],0),1)),"",INDEX(YieldCalcs[Code],MATCH(E3,YieldCalcs[CutName],0),1)) -> FQ04.1cc | H3: =IF(ISNA(MATCH(E3,YieldCalcs[CutName],0)),"",MATCH(E3,YieldCalcs[CutName],0)) -> 10 | I3: =IF(ISERROR(INDEX(YieldCalcs[PredWts],MATCH(G3,YieldCalcs[Code],0),1)),"",INDEX(YieldCalcs[PredWts],MATCH(G3,YieldCalcs[Code],0),1)) -> 6.718 | J3: =IF(ISERROR(INDEX(YieldCalcs[PredWts],MATCH(CONCATENATE(G3,"LT"),YieldCalcs[Code],0),1)),"",INDEX(YieldCalcs[PredWts],MATCH(CONCATENATE(G3,"LT"),YieldCalcs[Code],0),1)) ->  | K3: =IF(ISERROR(INDEX(YieldCalcs[PredWts],MATCH(CONCATENATE(G3,"F"),YieldCalcs[Code],0),1)),"",INDEX(YieldCalcs[PredWts],MATCH(CONCATENATE(G3,"F"),YieldCalcs[Code],0),1)) -> 0.153 | L3: =IF(ISERROR(INDEX(YieldCalcs[PredWts],MATCH(CONCATENATE(G3,"B"),YieldCalcs[Code],0),1)),"",INDEX(YieldCalcs[PredWts],MATCH(CONCATENATE(G3,"B"),YieldCalcs[Code],0),1)) ->  | M3: =IF(ISERROR(INDEX(YieldCalcs[PredWts],MATCH(CONCATENATE(G3,"W"),YieldCalcs[Code],0),1)),"",INDEX(YieldCalcs[PredWts],MATCH(CONCATENATE(G3,"W"),YieldCalcs[Code],0),1)) -> 0.366 | N3: =IF(ISERROR(INDEX(YieldCalcs[PredWts],MATCH(CONCATENATE(G3,"Pad"),YieldCalcs[Code],0),1)),"",INDEX(YieldCalcs[PredWts],MATCH(CONCATENATE(G3,"Pad"),YieldCalcs[Code],0),1)) -> 0.043 | O3: =IF(ISERROR(INDEX(YieldCalcs[PredWts],MATCH(CONCATENATE(G3,"Int"),YieldCalcs[Code],0),1)),"",INDEX(YieldCalcs[PredWts],MATCH(CONCATENATE(G3,"Int"),YieldCalcs[Code],0),1)) ->  | P3: =IF(ISERROR(INDEX(YieldCalcs[PredWts],MATCH(CONCATENATE(G3,"Skirt"),YieldCalcs[Code],0),1)),"",INDEX(YieldCalcs[PredWts],MATCH(CONCATENATE(G3,"Skirt"),YieldCalcs[Code],0),1)) ->  | Q3: =IF(ISERROR(INDEX(YieldCalcs[SalePrice],MATCH(G3,YieldCalcs[Code],0),1)),"",INDEX(YieldCalcs[SalePrice],MATCH(G3,YieldCalcs[Code],0),1)) -> 8.21 | R3: =IF(ISERROR(INDEX(YieldCalcs[CutValue],MATCH(G3,YieldCalcs[Code],0),1)),"",INDEX(YieldCalcs[CutValue],MATCH(G3,YieldCalcs[Code],0),1)) -> 55.15478 | S3: =IF(ISERROR(INDEX(YieldCalcs[GM$],MATCH(G3,YieldCalcs[Code],0),1)),"",INDEX(YieldCalcs[GM$],MATCH(G3,YieldCalcs[Code],0),1)) -> 7.8071798 | T3: =IF(ISERROR(INDEX(YieldCalcs[GM%],MATCH(G3,YieldCalcs[Code],0),1)),"",INDEX(YieldCalcs[GM%],MATCH(G3,YieldCalcs[Code],0),1)) -> 0.1415503751 | U3: =IF(ISERROR(INDEX(YieldCalcs[TGM%],MATCH(G3,YieldCalcs[Code],0),1)),"",INDEX(YieldCalcs[TGM%],MATCH(G3,YieldCalcs[Code],0),1)) -> 0.02 | V3: =IF(ISERROR(INDEX(YieldCalcs[TSalePrice],MATCH(G3,YieldCalcs[Code],0),1)),"",INDEX(YieldCalcs[TSalePrice],MATCH(G3,YieldCalcs[Code],0),1)) -> 7.191705531 | W3: =IF(ISNUMBER(INDEX(YieldCalcs[TotCostsPerKg],MATCH(G3,YieldCalcs[Code],0),1)),INDEX(YieldCalcs[TotCostsPerKg],MATCH(G3,YieldCalcs[Code],0),1),"") -> 7.04787142 | X3: =IF(ISERROR(INDEX(YieldCalcs[PreBoneCperkg],MATCH(G3,YieldCalcs[Code],0),1)),"",INDEX(YieldCalcs[PreBoneCperkg],MATCH(G3,YieldCalcs[Code],0),1)) -> 6.84787139 | Y3: =IF(ISERROR(INDEX(YieldCalcs[FixBoneCostperkg],MATCH(G3,YieldCalcs[Code],0),1)),"",INDEX(YieldCalcs[FixBoneCostperkg],MATCH(G3,YieldCalcs[Code],0),1)) -> 2.977076511e-08 | Z3: =IF(ISERROR(INDEX(YieldCalcs[BoningCost],MATCH(G3,YieldCalcs[Code],0),1)),"",INDEX(YieldCalcs[BoningCost],MATCH(G3,YieldCalcs[Code],0),1)) -> 0.2 | AA3: =IF(ISNUMBER(INDEX(YieldCalcs[TotCosts],MATCH(G3,YieldCalcs[Code],0),1)),INDEX(YieldCalcs[TotCosts],MATCH(G3,YieldCalcs[Code],0),1),"") -> 47.3476002 | AB3: =IF(ISERROR(INDEX(YieldCalcs[BuyInPrice],MATCH(G3,YieldCalcs[Code],0),1)),"",INDEX(YieldCalcs[BuyInPrice],MATCH(G3,YieldCalcs[Code],0),1)) -> 0
C4: ShldrRk | G4: =IF(ISERROR(INDEX(YieldCalcs[Code],MATCH(E4,YieldCalcs[CutName],0),1)),"",INDEX(YieldCalcs[Code],MATCH(E4,YieldCalcs[CutName],0),1)) ->  | H4: =IF(ISNA(MATCH(E4,YieldCalcs[CutName],0)),"",MATCH(E4,YieldCalcs[CutName],0)) ->  | I4: =IF(ISERROR(INDEX(YieldCalcs[PredWts],MATCH(G4,YieldCalcs[Code],0),1)),"",INDEX(YieldCalcs[PredWts],MATCH(G4,YieldCalcs[Code],0),1)) ->  | J4: =IF(ISERROR(INDEX(YieldCalcs[PredWts],MATCH(CONCATENATE(G4,"LT"),YieldCalcs[Code],0),1)),"",INDEX(YieldCalcs[PredWts],MATCH(CONCATENATE(G4,"LT"),YieldCalcs[Code],0),1)) ->  | K4: =IF(ISERROR(INDEX(YieldCalcs[PredWts],MATCH(CONCATENATE(G4,"F"),YieldCalcs[Code],0),1)),"",INDEX(YieldCalcs[PredWts],MATCH(CONCATENATE(G4,"F"),YieldCalcs[Code],0),1)) ->  | L4: =IF(ISERROR(INDEX(YieldCalcs[PredWts],MATCH(CONCATENATE(G4,"B"),YieldCalcs[Code],0),1)),"",INDEX(YieldCalcs[PredWts],MATCH(CONCATENATE(G4,"B"),YieldCalcs[Code],0),1)) ->  | M4: =IF(ISERROR(INDEX(YieldCalcs[PredWts],MATCH(CONCATENATE(G4,"W"),YieldCalcs[Code],0),1)),"",INDEX(YieldCalcs[PredWts],MATCH(CONCATENATE(G4,"W"),YieldCalcs[Code],0),1)) ->  | N4: =IF(ISERROR(INDEX(YieldCalcs[PredWts],MATCH(CONCATENATE(G4,"Pad"),YieldCalcs[Code],0),1)),"",INDEX(YieldCalcs[PredWts],MATCH(CONCATENATE(G4,"Pad"),YieldCalcs[Code],0),1)) ->  | O4: =IF(ISERROR(INDEX(YieldCalcs[PredWts],MATCH(CONCATENATE(G4,"Int"),YieldCalcs[Code],0),1)),"",INDEX(YieldCalcs[PredWts],MATCH(CONCATENATE(G4,"Int"),YieldCalcs[Code],0),1)) ->  | P4: =IF(ISERROR(INDEX(YieldCalcs[PredWts],MATCH(CONCATENATE(G4,"Skirt"),YieldCalcs[Code],0),1)),"",INDEX(YieldCalcs[PredWts],MATCH(CONCATENATE(G4,"Skirt"),YieldCalcs[Code],0),1)) ->  | Q4: =IF(ISERROR(INDEX(YieldCalcs[SalePrice],MATCH(G4,YieldCalcs[Code],0),1)),"",INDEX(YieldCalcs[SalePrice],MATCH(G4,YieldCalcs[Code],0),1)) ->  | R4: =IF(ISERROR(INDEX(YieldCalcs[CutValue],MATCH(G4,YieldCalcs[Code],0),1)),"",INDEX(YieldCalcs[CutValue],MATCH(G4,YieldCalcs[Code],0),1)) ->  | S4: =IF(ISERROR(INDEX(YieldCalcs[GM$],MATCH(G4,YieldCalcs[Code],0),1)),"",INDEX(YieldCalcs[GM$],MATCH(G4,YieldCalcs[Code],0),1)) ->  | T4: =IF(ISERROR(INDEX(YieldCalcs[GM%],MATCH(G4,YieldCalcs[Code],0),1)),"",INDEX(YieldCalcs[GM%],MATCH(G4,YieldCalcs[Code],0),1)) ->  | U4: =IF(ISERROR(INDEX(YieldCalcs[TGM%],MATCH(G4,YieldCalcs[Code],0),1)),"",INDEX(YieldCalcs[TGM%],MATCH(G4,YieldCalcs[Code],0),1)) ->  | V4: =IF(ISERROR(INDEX(YieldCalcs[TSalePrice],MATCH(G4,YieldCalcs[Code],0),1)),"",INDEX(YieldCalcs[TSalePrice],MATCH(G4,YieldCalcs[Code],0),1)) ->  | W4: =IF(ISNUMBER(INDEX(YieldCalcs[TotCostsPerKg],MATCH(G4,YieldCalcs[Code],0),1)),INDEX(YieldCalcs[TotCostsPerKg],MATCH(G4,YieldCalcs[Code],0),1),"") ->  | X4: =IF(ISERROR(INDEX(YieldCalcs[PreBoneCperkg],MATCH(G4,YieldCalcs[Code],0),1)),"",INDEX(YieldCalcs[PreBoneCperkg],MATCH(G4,YieldCalcs[Code],0),1)) ->  | Y4: =IF(ISERROR(INDEX(YieldCalcs[FixBoneCostperkg],MATCH(G4,YieldCalcs[Code],0),1)),"",INDEX(YieldCalcs[FixBoneCostperkg],MATCH(G4,YieldCalcs[Code],0),1)) ->  | Z4: =IF(ISERROR(INDEX(YieldCalcs[BoningCost],MATCH(G4,YieldCalcs[Code],0),1)),"",INDEX(YieldCalcs[BoningCost],MATCH(G4,YieldCalcs[Code],0),1)) ->  | AA4: =IF(ISNUMBER(INDEX(YieldCalcs[TotCosts],MATCH(G4,YieldCalcs[Code],0),1)),INDEX(YieldCalcs[TotCosts],MATCH(G4,YieldCalcs[Code],0),1),"") ->  | AB4: =IF(ISERROR(INDEX(YieldCalcs[BuyInPrice],MATCH(G4,YieldCalcs[Code],0),1)),"",INDEX(YieldCalcs[BuyInPrice],MATCH(G4,YieldCalcs[Code],0),1)) -> 
A5: REC% | B5: =SUM(I34:P34)/INDEX(YieldCalcs[PredWts],MATCH("FQ01.1",YieldCalcs[Code],0),1) -> 0.9974866478 | G5: =IF(ISERROR(INDEX(YieldCalcs[Code],MATCH(E5,YieldCalcs[CutName],0),1)),"",INDEX(YieldCalcs[Code],MATCH(E5,YieldCalcs[CutName],0),1)) ->  | H5: =IF(ISNA(MATCH(E5,YieldCalcs[CutName],0)),"",MATCH(E5,YieldCalcs[CutName],0)) ->  | I5: =IF(ISERROR(INDEX(YieldCalcs[PredWts],MATCH(G5,YieldCalcs[Code],0),1)),"",INDEX(YieldCalcs[PredWts],MATCH(G5,YieldCalcs[Code],0),1)) ->  | J5: =IF(ISERROR(INDEX(YieldCalcs[PredWts],MATCH(CONCATENATE(G5,"LT"),YieldCalcs[Code],0),1)),"",INDEX(YieldCalcs[PredWts],MATCH(CONCATENATE(G5,"LT"),YieldCalcs[Code],0),1)) ->  | K5: =IF(ISERROR(INDEX(YieldCalcs[PredWts],MATCH(CONCATENATE(G5,"F"),YieldCalcs[Code],0),1)),"",INDEX(YieldCalcs[PredWts],MATCH(CONCATENATE(G5,"F"),YieldCalcs[Code],0),1)) ->  | L5: =IF(ISERROR(INDEX(YieldCalcs[PredWts],MATCH(CONCATENATE(G5,"B"),YieldCalcs[Code],0),1)),"",INDEX(YieldCalcs[PredWts],MATCH(CONCATENATE(G5,"B"),YieldCalcs[Code],0),1)) ->  | M5: =IF(ISERROR(INDEX(YieldCalcs[PredWts],MATCH(CONCATENATE(G5,"W"),YieldCalcs[Code],0),1)),"",INDEX(YieldCalcs[PredWts],MATCH(CONCATENATE(G5,"W"),YieldCalcs[Code],0),1)) ->  | N5: =IF(ISERROR(INDEX(YieldCalcs[PredWts],MATCH(CONCATENATE(G5,"Pad"),YieldCalcs[Code],0),1)),"",INDEX(YieldCalcs[PredWts],MATCH(CONCATENATE(G5,"Pad"),YieldCalcs[Code],0),1)) ->  | O5: =IF(ISERROR(INDEX(YieldCalcs[PredWts],MATCH(CONCATENATE(G5,"Int"),YieldCalcs[Code],0),1)),"",INDEX(YieldCalcs[PredWts],MATCH(CONCATENATE(G5,"Int"),YieldCalcs[Code],0),1)) ->  | P5: =IF(ISERROR(INDEX(YieldCalcs[PredWts],MATCH(CONCATENATE(G5,"Skirt"),YieldCalcs[Code],0),1)),"",INDEX(YieldCalcs[PredWts],MATCH(CONCATENATE(G5,"Skirt"),YieldCalcs[Code],0),1)) ->  | Q5: =IF(ISERROR(INDEX(YieldCalcs[SalePrice],MATCH(G5,YieldCalcs[Code],0),1)),"",INDEX(YieldCalcs[SalePrice],MATCH(G5,YieldCalcs[Code],0),1)) ->  | R5: =IF(ISERROR(INDEX(YieldCalcs[CutValue],MATCH(G5,YieldCalcs[Code],0),1)),"",INDEX(YieldCalcs[CutValue],MATCH(G5,YieldCalcs[Code],0),1)) ->  | S5: =IF(ISERROR(INDEX(YieldCalcs[GM$],MATCH(G5,YieldCalcs[Code],0),1)),"",INDEX(YieldCalcs[GM$],MATCH(G5,YieldCalcs[Code],0),1)) ->  | T5: =IF(ISERROR(INDEX(YieldCalcs[GM%],MATCH(G5,YieldCalcs[Code],0),1)),"",INDEX(YieldCalcs[GM%],MATCH(G5,YieldCalcs[Code],0),1)) ->  | U5: =IF(ISERROR(INDEX(YieldCalcs[TGM%],MATCH(G5,YieldCalcs[Code],0),1)),"",INDEX(YieldCalcs[TGM%],MATCH(G5,YieldCalcs[Code],0),1)) ->  | V5: =IF(ISERROR(INDEX(YieldCalcs[TSalePrice],MATCH(G5,YieldCalcs[Code],0),1)),"",INDEX(YieldCalcs[TSalePrice],MATCH(G5,YieldCalcs[Code],0),1)) ->  | W5: =IF(ISNUMBER(INDEX(YieldCalcs[TotCostsPerKg],MATCH(G5,YieldCalcs[Code],0),1)),INDEX(YieldCalcs[TotCostsPerKg],MATCH(G5,YieldCalcs[Code],0),1),"") ->  | X5: =IF(ISERROR(INDEX(YieldCalcs[PreBoneCperkg],MATCH(G5,YieldCalcs[Code],0),1)),"",INDEX(YieldCalcs[PreBoneCperkg],MATCH(G5,YieldCalcs[Code],0),1)) ->  | Y5: =IF(ISERROR(INDEX(YieldCalcs[FixBoneCostperkg],MATCH(G5,YieldCalcs[Code],0),1)),"",INDEX(YieldCalcs[FixBoneCostperkg],MATCH(G5,YieldCalcs[Code],0),1)) ->  | Z5: =IF(ISERROR(INDEX(YieldCalcs[BoningCost],MATCH(G5,YieldCalcs[Code],0),1)),"",INDEX(YieldCalcs[BoningCost],MATCH(G5,YieldCalcs[Code],0),1)) ->  | AA5: =IF(ISNUMBER(INDEX(YieldCalcs[TotCosts],MATCH(G5,YieldCalcs[Code],0),1)),INDEX(YieldCalcs[TotCosts],MATCH(G5,YieldCalcs[Code],0),1),"") ->  | AB5: =IF(ISERROR(INDEX(YieldCalcs[BuyInPrice],MATCH(G5,YieldCalcs[Code],0),1)),"",INDEX(YieldCalcs[BuyInPrice],MATCH(G5,YieldCalcs[Code],0),1)) ->  | AD5: =AB5-V5 -> 
A6: =IF(Lists!F181=1,"WARNING: Check Recovery","") ->  | G6: =IF(ISERROR(INDEX(YieldCalcs[Code],MATCH(E6,YieldCalcs[CutName],0),1)),"",INDEX(YieldCalcs[Code],MATCH(E6,YieldCalcs[CutName],0),1)) ->  | H6: =IF(ISNA(MATCH(E6,YieldCalcs[CutName],0)),"",MATCH(E6,YieldCalcs[CutName],0)) ->  | I6: =IF(ISERROR(INDEX(YieldCalcs[PredWts],MATCH(G6,YieldCalcs[Code],0),1)),"",INDEX(YieldCalcs[PredWts],MATCH(G6,YieldCalcs[Code],0),1)) ->  | J6: =IF(ISERROR(INDEX(YieldCalcs[PredWts],MATCH(CONCATENATE(G6,"LT"),YieldCalcs[Code],0),1)),"",INDEX(YieldCalcs[PredWts],MATCH(CONCATENATE(G6,"LT"),YieldCalcs[Code],0),1)) ->  | K6: =IF(ISERROR(INDEX(YieldCalcs[PredWts],MATCH(CONCATENATE(G6,"F"),YieldCalcs[Code],0),1)),"",INDEX(YieldCalcs[PredWts],MATCH(CONCATENATE(G6,"F"),YieldCalcs[Code],0),1)) ->  | L6: =IF(ISERROR(INDEX(YieldCalcs[PredWts],MATCH(CONCATENATE(G6,"B"),YieldCalcs[Code],0),1)),"",INDEX(YieldCalcs[PredWts],MATCH(CONCATENATE(G6,"B"),YieldCalcs[Code],0),1)) ->  | M6: =IF(ISERROR(INDEX(YieldCalcs[PredWts],MATCH(CONCATENATE(G6,"W"),YieldCalcs[Code],0),1)),"",INDEX(YieldCalcs[PredWts],MATCH(CONCATENATE(G6,"W"),YieldCalcs[Code],0),1)) ->  | N6: =IF(ISERROR(INDEX(YieldCalcs[PredWts],MATCH(CONCATENATE(G6,"Pad"),YieldCalcs[Code],0),1)),"",INDEX(YieldCalcs[PredWts],MATCH(CONCATENATE(G6,"Pad"),YieldCalcs[Code],0),1)) ->  | O6: =IF(ISERROR(INDEX(YieldCalcs[PredWts],MATCH(CONCATENATE(G6,"Int"),YieldCalcs[Code],0),1)),"",INDEX(YieldCalcs[PredWts],MATCH(CONCATENATE(G6,"Int"),YieldCalcs[Code],0),1)) ->  | P6: =IF(ISERROR(INDEX(YieldCalcs[PredWts],MATCH(CONCATENATE(G6,"Skirt"),YieldCalcs[Code],0),1)),"",INDEX(YieldCalcs[PredWts],MATCH(CONCATENATE(G6,"Skirt"),YieldCalcs[Code],0),1)) ->  | Q6: =IF(ISERROR(INDEX(YieldCalcs[SalePrice],MATCH(G6,YieldCalcs[Code],0),1)),"",INDEX(YieldCalcs[SalePrice],MATCH(G6,YieldCalcs[Code],0),1)) ->  | R6: =IF(ISERROR(INDEX(YieldCalcs[CutValue],MATCH(G6,YieldCalcs[Code],0),1)),"",INDEX(YieldCalcs[CutValue],MATCH(G6,YieldCalcs[Code],0),1)) ->  | S6: =IF(ISERROR(INDEX(YieldCalcs[GM$],MATCH(G6,YieldCalcs[Code],0),1)),"",INDEX(YieldCalcs[GM$],MATCH(G6,YieldCalcs[Code],0),1)) ->  | T6: =IF(ISERROR(INDEX(YieldCalcs[GM%],MATCH(G6,YieldCalcs[Code],0),1)),"",INDEX(YieldCalcs[GM%],MATCH(G6,YieldCalcs[Code],0),1)) ->  | U6: =IF(ISERROR(INDEX(YieldCalcs[TGM%],MATCH(G6,YieldCalcs[Code],0),1)),"",INDEX(YieldCalcs[TGM%],MATCH(G6,YieldCalcs[Code],0),1)) ->  | V6: =IF(ISERROR(INDEX(YieldCalcs[TSalePrice],MATCH(G6,YieldCalcs[Code],0),1)),"",INDEX(YieldCalcs[TSalePrice],MATCH(G6,YieldCalcs[Code],0),1)) ->  | W6: =IF(ISNUMBER(INDEX(YieldCalcs[TotCostsPerKg],MATCH(G6,YieldCalcs[Code],0),1)),INDEX(YieldCalcs[TotCostsPerKg],MATCH(G6,YieldCalcs[Code],0),1),"") ->  | X6: =IF(ISERROR(INDEX(YieldCalcs[PreBoneCperkg],MATCH(G6,YieldCalcs[Code],0),1)),"",INDEX(YieldCalcs[PreBoneCperkg],MATCH(G6,YieldCalcs[Code],0),1)) ->  | Y6: =IF(ISERROR(INDEX(YieldCalcs[FixBoneCostperkg],MATCH(G6,YieldCalcs[Code],0),1)),"",INDEX(YieldCalcs[FixBoneCostperkg],MATCH(G6,YieldCalcs[Code],0),1)) ->  | Z6: =IF(ISERROR(INDEX(YieldCalcs[BoningCost],MATCH(G6,YieldCalcs[Code],0),1)),"",INDEX(YieldCalcs[BoningCost],MATCH(G6,YieldCalcs[Code],0),1)) ->  | AA6: =IF(ISNUMBER(INDEX(YieldCalcs[TotCosts],MATCH(G6,YieldCalcs[Code],0),1)),INDEX(YieldCalcs[TotCosts],MATCH(G6,YieldCalcs[Code],0),1),"") ->  | AB6: =IF(ISERROR(INDEX(YieldCalcs[BuyInPrice],MATCH(G6,YieldCalcs[Code],0),1)),"",INDEX(YieldCalcs[BuyInPrice],MATCH(G6,YieldCalcs[Code],0),1)) -> 
G7: =IF(ISERROR(INDEX(YieldCalcs[Code],MATCH(E7,YieldCalcs[CutName],0),1)),"",INDEX(YieldCalcs[Code],MATCH(E7,YieldCalcs[CutName],0),1)) ->  | H7: =IF(ISNA(MATCH(E7,YieldCalcs[CutName],0)),"",MATCH(E7,YieldCalcs[CutName],0)) ->  | I7: =IF(ISERROR(INDEX(YieldCalcs[PredWts],MATCH(G7,YieldCalcs[Code],0),1)),"",INDEX(YieldCalcs[PredWts],MATCH(G7,YieldCalcs[Code],0),1)) ->  | J7: =IF(ISERROR(INDEX(YieldCalcs[PredWts],MATCH(CONCATENATE(G7,"LT"),YieldCalcs[Code],0),1)),"",INDEX(YieldCalcs[PredWts],MATCH(CONCATENATE(G7,"LT"),YieldCalcs[Code],0),1)) ->  | K7: =IF(ISERROR(INDEX(YieldCalcs[PredWts],MATCH(CONCATENATE(G7,"F"),YieldCalcs[Code],0),1)),"",INDEX(YieldCalcs[PredWts],MATCH(CONCATENATE(G7,"F"),YieldCalcs[Code],0),1)) ->  | L7: =IF(ISERROR(INDEX(YieldCalcs[PredWts],MATCH(CONCATENATE(G7,"B"),YieldCalcs[Code],0),1)),"",INDEX(YieldCalcs[PredWts],MATCH(CONCATENATE(G7,"B"),YieldCalcs[Code],0),1)) ->  | M7: =IF(ISERROR(INDEX(YieldCalcs[PredWts],MATCH(CONCATENATE(G7,"W"),YieldCalcs[Code],0),1)),"",INDEX(YieldCalcs[PredWts],MATCH(CONCATENATE(G7,"W"),YieldCalcs[Code],0),1)) ->  | N7: =IF(ISERROR(INDEX(YieldCalcs[PredWts],MATCH(CONCATENATE(G7,"Pad"),YieldCalcs[Code],0),1)),"",INDEX(YieldCalcs[PredWts],MATCH(CONCATENATE(G7,"Pad"),YieldCalcs[Code],0),1)) ->  | O7: =IF(ISERROR(INDEX(YieldCalcs[PredWts],MATCH(CONCATENATE(G7,"Int"),YieldCalcs[Code],0),1)),"",INDEX(YieldCalcs[PredWts],MATCH(CONCATENATE(G7,"Int"),YieldCalcs[Code],0),1)) ->  | P7: =IF(ISERROR(INDEX(YieldCalcs[PredWts],MATCH(CONCATENATE(G7,"Skirt"),YieldCalcs[Code],0),1)),"",INDEX(YieldCalcs[PredWts],MATCH(CONCATENATE(G7,"Skirt"),YieldCalcs[Code],0),1)) ->  | Q7: =IF(ISERROR(INDEX(YieldCalcs[SalePrice],MATCH(G7,YieldCalcs[Code],0),1)),"",INDEX(YieldCalcs[SalePrice],MATCH(G7,YieldCalcs[Code],0),1)) ->  | R7: =IF(ISERROR(INDEX(YieldCalcs[CutValue],MATCH(G7,YieldCalcs[Code],0),1)),"",INDEX(YieldCalcs[CutValue],MATCH(G7,YieldCalcs[Code],0),1)) ->  | S7: =IF(ISERROR(INDEX(YieldCalcs[GM$],MATCH(G7,YieldCalcs[Code],0),1)),"",INDEX(YieldCalcs[GM$],MATCH(G7,YieldCalcs[Code],0),1)) ->  | T7: =IF(ISERROR(INDEX(YieldCalcs[GM%],MATCH(G7,YieldCalcs[Code],0),1)),"",INDEX(YieldCalcs[GM%],MATCH(G7,YieldCalcs[Code],0),1)) ->  | U7: =IF(ISERROR(INDEX(YieldCalcs[TGM%],MATCH(G7,YieldCalcs[Code],0),1)),"",INDEX(YieldCalcs[TGM%],MATCH(G7,YieldCalcs[Code],0),1)) ->  | V7: =IF(ISERROR(INDEX(YieldCalcs[TSalePrice],MATCH(G7,YieldCalcs[Code],0),1)),"",INDEX(YieldCalcs[TSalePrice],MATCH(G7,YieldCalcs[Code],0),1)) ->  | W7: =IF(ISNUMBER(INDEX(YieldCalcs[TotCostsPerKg],MATCH(G7,YieldCalcs[Code],0),1)),INDEX(YieldCalcs[TotCostsPerKg],MATCH(G7,YieldCalcs[Code],0),1),"") ->  | X7: =IF(ISERROR(INDEX(YieldCalcs[PreBoneCperkg],MATCH(G7,YieldCalcs[Code],0),1)),"",INDEX(YieldCalcs[PreBoneCperkg],MATCH(G7,YieldCalcs[Code],0),1)) ->  | Y7: =IF(ISERROR(INDEX(YieldCalcs[FixBoneCostperkg],MATCH(G7,YieldCalcs[Code],0),1)),"",INDEX(YieldCalcs[FixBoneCostperkg],MATCH(G7,YieldCalcs[Code],0),1)) ->  | Z7: =IF(ISERROR(INDEX(YieldCalcs[BoningCost],MATCH(G7,YieldCalcs[Code],0),1)),"",INDEX(YieldCalcs[BoningCost],MATCH(G7,YieldCalcs[Code],0),1)) ->  | AA7: =IF(ISNUMBER(INDEX(YieldCalcs[TotCosts],MATCH(G7,YieldCalcs[Code],0),1)),INDEX(YieldCalcs[TotCosts],MATCH(G7,YieldCalcs[Code],0),1),"") ->  | AB7: =IF(ISERROR(INDEX(YieldCalcs[BuyInPrice],MATCH(G7,YieldCalcs[Code],0),1)),"",INDEX(YieldCalcs[BuyInPrice],MATCH(G7,YieldCalcs[Code],0),1)) -> 
G8: =IF(ISERROR(INDEX(YieldCalcs[Code],MATCH(E8,YieldCalcs[CutName],0),1)),"",INDEX(YieldCalcs[Code],MATCH(E8,YieldCalcs[CutName],0),1)) ->  | H8: =IF(ISNA(MATCH(E8,YieldCalcs[CutName],0)),"",MATCH(E8,YieldCalcs[CutName],0)) ->  | I8: =IF(ISERROR(INDEX(YieldCalcs[PredWts],MATCH(G8,YieldCalcs[Code],0),1)),"",INDEX(YieldCalcs[PredWts],MATCH(G8,YieldCalcs[Code],0),1)) ->  | J8: =IF(ISERROR(INDEX(YieldCalcs[PredWts],MATCH(CONCATENATE(G8,"LT"),YieldCalcs[Code],0),1)),"",INDEX(YieldCalcs[PredWts],MATCH(CONCATENATE(G8,"LT"),YieldCalcs[Code],0),1)) ->  | K8: =IF(ISERROR(INDEX(YieldCalcs[PredWts],MATCH(CONCATENATE(G8,"F"),YieldCalcs[Code],0),1)),"",INDEX(YieldCalcs[PredWts],MATCH(CONCATENATE(G8,"F"),YieldCalcs[Code],0),1)) ->  | L8: =IF(ISERROR(INDEX(YieldCalcs[PredWts],MATCH(CONCATENATE(G8,"B"),YieldCalcs[Code],0),1)),"",INDEX(YieldCalcs[PredWts],MATCH(CONCATENATE(G8,"B"),YieldCalcs[Code],0),1)) ->  | M8: =IF(ISERROR(INDEX(YieldCalcs[PredWts],MATCH(CONCATENATE(G8,"W"),YieldCalcs[Code],0),1)),"",INDEX(YieldCalcs[PredWts],MATCH(CONCATENATE(G8,"W"),YieldCalcs[Code],0),1)) ->  | N8: =IF(ISERROR(INDEX(YieldCalcs[PredWts],MATCH(CONCATENATE(G8,"Pad"),YieldCalcs[Code],0),1)),"",INDEX(YieldCalcs[PredWts],MATCH(CONCATENATE(G8,"Pad"),YieldCalcs[Code],0),1)) ->  | O8: =IF(ISERROR(INDEX(YieldCalcs[PredWts],MATCH(CONCATENATE(G8,"Int"),YieldCalcs[Code],0),1)),"",INDEX(YieldCalcs[PredWts],MATCH(CONCATENATE(G8,"Int"),YieldCalcs[Code],0),1)) ->  | P8: =IF(ISERROR(INDEX(YieldCalcs[PredWts],MATCH(CONCATENATE(G8,"Skirt"),YieldCalcs[Code],0),1)),"",INDEX(YieldCalcs[PredWts],MATCH(CONCATENATE(G8,"Skirt"),YieldCalcs[Code],0),1)) ->  | Q8: =IF(ISERROR(INDEX(YieldCalcs[SalePrice],MATCH(G8,YieldCalcs[Code],0),1)),"",INDEX(YieldCalcs[SalePrice],MATCH(G8,YieldCalcs[Code],0),1)) ->  | R8: =IF(ISERROR(INDEX(YieldCalcs[CutValue],MATCH(G8,YieldCalcs[Code],0),1)),"",INDEX(YieldCalcs[CutValue],MATCH(G8,YieldCalcs[Code],0),1)) ->  | S8: =IF(ISERROR(INDEX(YieldCalcs[GM$],MATCH(G8,YieldCalcs[Code],0),1)),"",INDEX(YieldCalcs[GM$],MATCH(G8,YieldCalcs[Code],0),1)) ->  | T8: =IF(ISERROR(INDEX(YieldCalcs[GM%],MATCH(G8,YieldCalcs[Code],0),1)),"",INDEX(YieldCalcs[GM%],MATCH(G8,YieldCalcs[Code],0),1)) ->  | U8: =IF(ISERROR(INDEX(YieldCalcs[TGM%],MATCH(G8,YieldCalcs[Code],0),1)),"",INDEX(YieldCalcs[TGM%],MATCH(G8,YieldCalcs[Code],0),1)) ->  | V8: =IF(ISERROR(INDEX(YieldCalcs[TSalePrice],MATCH(G8,YieldCalcs[Code],0),1)),"",INDEX(YieldCalcs[TSalePrice],MATCH(G8,YieldCalcs[Code],0),1)) ->  | W8: =IF(ISNUMBER(INDEX(YieldCalcs[TotCostsPerKg],MATCH(G8,YieldCalcs[Code],0),1)),INDEX(YieldCalcs[TotCostsPerKg],MATCH(G8,YieldCalcs[Code],0),1),"") ->  | X8: =IF(ISERROR(INDEX(YieldCalcs[PreBoneCperkg],MATCH(G8,YieldCalcs[Code],0),1)),"",INDEX(YieldCalcs[PreBoneCperkg],MATCH(G8,YieldCalcs[Code],0),1)) ->  | Y8: =IF(ISERROR(INDEX(YieldCalcs[FixBoneCostperkg],MATCH(G8,YieldCalcs[Code],0),1)),"",INDEX(YieldCalcs[FixBoneCostperkg],MATCH(G8,YieldCalcs[Code],0),1)) ->  | Z8: =IF(ISERROR(INDEX(YieldCalcs[BoningCost],MATCH(G8,YieldCalcs[Code],0),1)),"",INDEX(YieldCalcs[BoningCost],MATCH(G8,YieldCalcs[Code],0),1)) ->  | AA8: =IF(ISNUMBER(INDEX(YieldCalcs[TotCosts],MATCH(G8,YieldCalcs[Code],0),1)),INDEX(YieldCalcs[TotCosts],MATCH(G8,YieldCalcs[Code],0),1),"") ->  | AB8: =IF(ISERROR(INDEX(YieldCalcs[BuyInPrice],MATCH(G8,YieldCalcs[Code],0),1)),"",INDEX(YieldCalcs[BuyInPrice],MATCH(G8,YieldCalcs[Code],0),1)) -> 
G9: =IF(ISERROR(INDEX(YieldCalcs[Code],MATCH(E9,YieldCalcs[CutName],0),1)),"",INDEX(YieldCalcs[Code],MATCH(E9,YieldCalcs[CutName],0),1)) ->  | H9: =IF(ISNA(MATCH(E9,YieldCalcs[CutName],0)),"",MATCH(E9,YieldCalcs[CutName],0)) ->  | I9: =IF(ISERROR(INDEX(YieldCalcs[PredWts],MATCH(G9,YieldCalcs[Code],0),1)),"",INDEX(YieldCalcs[PredWts],MATCH(G9,YieldCalcs[Code],0),1)) ->  | J9: =IF(ISERROR(INDEX(YieldCalcs[PredWts],MATCH(CONCATENATE(G9,"LT"),YieldCalcs[Code],0),1)),"",INDEX(YieldCalcs[PredWts],MATCH(CONCATENATE(G9,"LT"),YieldCalcs[Code],0),1)) ->  | K9: =IF(ISERROR(INDEX(YieldCalcs[PredWts],MATCH(CONCATENATE(G9,"F"),YieldCalcs[Code],0),1)),"",INDEX(YieldCalcs[PredWts],MATCH(CONCATENATE(G9,"F"),YieldCalcs[Code],0),1)) ->  | L9: =IF(ISERROR(INDEX(YieldCalcs[PredWts],MATCH(CONCATENATE(G9,"B"),YieldCalcs[Code],0),1)),"",INDEX(YieldCalcs[PredWts],MATCH(CONCATENATE(G9,"B"),YieldCalcs[Code],0),1)) ->  | M9: =IF(ISERROR(INDEX(YieldCalcs[PredWts],MATCH(CONCATENATE(G9,"W"),YieldCalcs[Code],0),1)),"",INDEX(YieldCalcs[PredWts],MATCH(CONCATENATE(G9,"W"),YieldCalcs[Code],0),1)) ->  | N9: =IF(ISERROR(INDEX(YieldCalcs[PredWts],MATCH(CONCATENATE(G9,"Pad"),YieldCalcs[Code],0),1)),"",INDEX(YieldCalcs[PredWts],MATCH(CONCATENATE(G9,"Pad"),YieldCalcs[Code],0),1)) ->  | O9: =IF(ISERROR(INDEX(YieldCalcs[PredWts],MATCH(CONCATENATE(G9,"Int"),YieldCalcs[Code],0),1)),"",INDEX(YieldCalcs[PredWts],MATCH(CONCATENATE(G9,"Int"),YieldCalcs[Code],0),1)) ->  | P9: =IF(ISERROR(INDEX(YieldCalcs[PredWts],MATCH(CONCATENATE(G9,"Skirt"),YieldCalcs[Code],0),1)),"",INDEX(YieldCalcs[PredWts],MATCH(CONCATENATE(G9,"Skirt"),YieldCalcs[Code],0),1)) ->  | Q9: =IF(ISERROR(INDEX(YieldCalcs[SalePrice],MATCH(G9,YieldCalcs[Code],0),1)),"",INDEX(YieldCalcs[SalePrice],MATCH(G9,YieldCalcs[Code],0),1)) ->  | R9: =IF(ISERROR(INDEX(YieldCalcs[CutValue],MATCH(G9,YieldCalcs[Code],0),1)),"",INDEX(YieldCalcs[CutValue],MATCH(G9,YieldCalcs[Code],0),1)) ->  | S9: =IF(ISERROR(INDEX(YieldCalcs[GM$],MATCH(G9,YieldCalcs[Code],0),1)),"",INDEX(YieldCalcs[GM$],MATCH(G9,YieldCalcs[Code],0),1)) ->  | T9: =IF(ISERROR(INDEX(YieldCalcs[GM%],MATCH(G9,YieldCalcs[Code],0),1)),"",INDEX(YieldCalcs[GM%],MATCH(G9,YieldCalcs[Code],0),1)) ->  | U9: =IF(ISERROR(INDEX(YieldCalcs[TGM%],MATCH(G9,YieldCalcs[Code],0),1)),"",INDEX(YieldCalcs[TGM%],MATCH(G9,YieldCalcs[Code],0),1)) ->  | V9: =IF(ISERROR(INDEX(YieldCalcs[TSalePrice],MATCH(G9,YieldCalcs[Code],0),1)),"",INDEX(YieldCalcs[TSalePrice],MATCH(G9,YieldCalcs[Code],0),1)) ->  | W9: =IF(ISNUMBER(INDEX(YieldCalcs[TotCostsPerKg],MATCH(G9,YieldCalcs[Code],0),1)),INDEX(YieldCalcs[TotCostsPerKg],MATCH(G9,YieldCalcs[Code],0),1),"") ->  | X9: =IF(ISERROR(INDEX(YieldCalcs[PreBoneCperkg],MATCH(G9,YieldCalcs[Code],0),1)),"",INDEX(YieldCalcs[PreBoneCperkg],MATCH(G9,YieldCalcs[Code],0),1)) ->  | Y9: =IF(ISERROR(INDEX(YieldCalcs[FixBoneCostperkg],MATCH(G9,YieldCalcs[Code],0),1)),"",INDEX(YieldCalcs[FixBoneCostperkg],MATCH(G9,YieldCalcs[Code],0),1)) ->  | Z9: =IF(ISERROR(INDEX(YieldCalcs[BoningCost],MATCH(G9,YieldCalcs[Code],0),1)),"",INDEX(YieldCalcs[BoningCost],MATCH(G9,YieldCalcs[Code],0),1)) ->  | AA9: =IF(ISNUMBER(INDEX(YieldCalcs[TotCosts],MATCH(G9,YieldCalcs[Code],0),1)),INDEX(YieldCalcs[TotCosts],MATCH(G9,YieldCalcs[Code],0),1),"") ->  | AB9: =IF(ISERROR(INDEX(YieldCalcs[BuyInPrice],MATCH(G9,YieldCalcs[Code],0),1)),"",INDEX(YieldCalcs[BuyInPrice],MATCH(G9,YieldCalcs[Code],0),1)) -> 
B11: ForeShank | E11: Fore Shank Tipped | F11: =IF(E17<>"",7,IF(E16<>"",6,IF(E15<>"",5,IF(E14<>"",4,IF(E13<>"",3,IF(E12<>"",2,IF(E11<>"",1,0))))))) -> 1 | G11: =IF(ISERROR(INDEX(YieldCalcs[Code],MATCH(E11,YieldCalcs[CutName],0),1)),"",INDEX(YieldCalcs[Code],MATCH(E11,YieldCalcs[CutName],0),1)) -> FQ02.2 | H11: =IF(ISNA(MATCH(E11,YieldCalcs[CutName],0)),"",MATCH(E11,YieldCalcs[CutName],0)) -> 118 | I11: =IF(ISERROR(INDEX(YieldCalcs[PredWts],MATCH(G11,YieldCalcs[Code],0),1)),"",INDEX(YieldCalcs[PredWts],MATCH(G11,YieldCalcs[Code],0),1)) -> 0.944 | J11: =IF(ISERROR(INDEX(YieldCalcs[PredWts],MATCH(CONCATENATE(G11,"LT"),YieldCalcs[Code],0),1)),"",INDEX(YieldCalcs[PredWts],MATCH(CONCATENATE(G11,"LT"),YieldCalcs[Code],0),1)) ->  | K11: =IF(ISERROR(INDEX(YieldCalcs[PredWts],MATCH(CONCATENATE(G11,"F"),YieldCalcs[Code],0),1)),"",INDEX(YieldCalcs[PredWts],MATCH(CONCATENATE(G11,"F"),YieldCalcs[Code],0),1)) ->  | L11: =IF(ISERROR(INDEX(YieldCalcs[PredWts],MATCH(CONCATENATE(G11,"B"),YieldCalcs[Code],0),1)),"",INDEX(YieldCalcs[PredWts],MATCH(CONCATENATE(G11,"B"),YieldCalcs[Code],0),1)) -> 0.137 | M11: =IF(ISERROR(INDEX(YieldCalcs[PredWts],MATCH(CONCATENATE(G11,"W"),YieldCalcs[Code],0),1)),"",INDEX(YieldCalcs[PredWts],MATCH(CONCATENATE(G11,"W"),YieldCalcs[Code],0),1)) ->  | N11: =IF(ISERROR(INDEX(YieldCalcs[PredWts],MATCH(CONCATENATE(G11,"Pad"),YieldCalcs[Code],0),1)),"",INDEX(YieldCalcs[PredWts],MATCH(CONCATENATE(G11,"Pad"),YieldCalcs[Code],0),1)) ->  | O11: =IF(ISERROR(INDEX(YieldCalcs[PredWts],MATCH(CONCATENATE(G11,"Int"),YieldCalcs[Code],0),1)),"",INDEX(YieldCalcs[PredWts],MATCH(CONCATENATE(G11,"Int"),YieldCalcs[Code],0),1)) ->  | P11: =IF(ISERROR(INDEX(YieldCalcs[PredWts],MATCH(CONCATENATE(G11,"Skirt"),YieldCalcs[Code],0),1)),"",INDEX(YieldCalcs[PredWts],MATCH(CONCATENATE(G11,"Skirt"),YieldCalcs[Code],0),1)) ->  | Q11: =IF(ISERROR(INDEX(YieldCalcs[SalePrice],MATCH(G11,YieldCalcs[Code],0),1)),"",INDEX(YieldCalcs[SalePrice],MATCH(G11,YieldCalcs[Code],0),1)) -> 7 | R11: =IF(ISERROR(INDEX(YieldCalcs[CutValue],MATCH(G11,YieldCalcs[Code],0),1)),"",INDEX(YieldCalcs[CutValue],MATCH(G11,YieldCalcs[Code],0),1)) -> 6.608 | S11: =IF(ISERROR(INDEX(YieldCalcs[GM$],MATCH(G11,YieldCalcs[Code],0),1)),"",INDEX(YieldCalcs[GM$],MATCH(G11,YieldCalcs[Code],0),1)) -> -20.99440012 | T11: =IF(ISERROR(INDEX(YieldCalcs[GM%],MATCH(G11,YieldCalcs[Code],0),1)),"",INDEX(YieldCalcs[GM%],MATCH(G11,YieldCalcs[Code],0),1)) -> -3.177118662 | U11: =IF(ISERROR(INDEX(YieldCalcs[TGM%],MATCH(G11,YieldCalcs[Code],0),1)),"",INDEX(YieldCalcs[TGM%],MATCH(G11,YieldCalcs[Code],0),1)) ->  | V11: =IF(ISERROR(INDEX(YieldCalcs[TSalePrice],MATCH(G11,YieldCalcs[Code],0),1)),"",INDEX(YieldCalcs[TSalePrice],MATCH(G11,YieldCalcs[Code],0),1)) ->  | W11: =IF(ISNUMBER(INDEX(YieldCalcs[TotCostsPerKg],MATCH(G11,YieldCalcs[Code],0),1)),INDEX(YieldCalcs[TotCostsPerKg],MATCH(G11,YieldCalcs[Code],0),1),"") -> 29.23983064 | X11: =IF(ISERROR(INDEX(YieldCalcs[PreBoneCperkg],MATCH(G11,YieldCalcs[Code],0),1)),"",INDEX(YieldCalcs[PreBoneCperkg],MATCH(G11,YieldCalcs[Code],0),1)) -> 29.23983051 | Y11: =IF(ISERROR(INDEX(YieldCalcs[FixBoneCostperkg],MATCH(G11,YieldCalcs[Code],0),1)),"",INDEX(YieldCalcs[FixBoneCostperkg],MATCH(G11,YieldCalcs[Code],0),1)) -> 1.271186441e-07 | Z11: =IF(ISERROR(INDEX(YieldCalcs[BoningCost],MATCH(G11,YieldCalcs[Code],0),1)),"",INDEX(YieldCalcs[BoningCost],MATCH(G11,YieldCalcs[Code],0),1)) -> 0 | AA11: =IF(ISNUMBER(INDEX(YieldCalcs[TotCosts],MATCH(G11,YieldCalcs[Code],0),1)),INDEX(YieldCalcs[TotCosts],MATCH(G11,YieldCalcs[Code],0),1),"") -> 27.60240012 | AB11: =IF(ISERROR(INDEX(YieldCalcs[BuyInPrice],MATCH(G11,YieldCalcs[Code],0),1)),"",INDEX(YieldCalcs[BuyInPrice],MATCH(G11,YieldCalcs[Code],0),1)) -> 0
C12: ForeShank | G12: =IF(ISERROR(INDEX(YieldCalcs[Code],MATCH(E12,YieldCalcs[CutName],0),1)),"",INDEX(YieldCalcs[Code],MATCH(E12,YieldCalcs[CutName],0),1)) ->  | H12: =IF(ISNA(MATCH(E12,YieldCalcs[CutName],0)),"",MATCH(E12,YieldCalcs[CutName],0)) ->  | I12: =IF(ISERROR(INDEX(YieldCalcs[PredWts],MATCH(G12,YieldCalcs[Code],0),1)),"",INDEX(YieldCalcs[PredWts],MATCH(G12,YieldCalcs[Code],0),1)) ->  | J12: =IF(ISERROR(INDEX(YieldCalcs[PredWts],MATCH(CONCATENATE(G12,"LT"),YieldCalcs[Code],0),1)),"",INDEX(YieldCalcs[PredWts],MATCH(CONCATENATE(G12,"LT"),YieldCalcs[Code],0),1)) ->  | K12: =IF(ISERROR(INDEX(YieldCalcs[PredWts],MATCH(CONCATENATE(G12,"F"),YieldCalcs[Code],0),1)),"",INDEX(YieldCalcs[PredWts],MATCH(CONCATENATE(G12,"F"),YieldCalcs[Code],0),1)) ->  | L12: =IF(ISERROR(INDEX(YieldCalcs[PredWts],MATCH(CONCATENATE(G12,"B"),YieldCalcs[Code],0),1)),"",INDEX(YieldCalcs[PredWts],MATCH(CONCATENATE(G12,"B"),YieldCalcs[Code],0),1)) ->  | M12: =IF(ISERROR(INDEX(YieldCalcs[PredWts],MATCH(CONCATENATE(G12,"W"),YieldCalcs[Code],0),1)),"",INDEX(YieldCalcs[PredWts],MATCH(CONCATENATE(G12,"W"),YieldCalcs[Code],0),1)) ->  | N12: =IF(ISERROR(INDEX(YieldCalcs[PredWts],MATCH(CONCATENATE(G12,"Pad"),YieldCalcs[Code],0),1)),"",INDEX(YieldCalcs[PredWts],MATCH(CONCATENATE(G12,"Pad"),YieldCalcs[Code],0),1)) ->  | O12: =IF(ISERROR(INDEX(YieldCalcs[PredWts],MATCH(CONCATENATE(G12,"Int"),YieldCalcs[Code],0),1)),"",INDEX(YieldCalcs[PredWts],MATCH(CONCATENATE(G12,"Int"),YieldCalcs[Code],0),1)) ->  | P12: =IF(ISERROR(INDEX(YieldCalcs[PredWts],MATCH(CONCATENATE(G12,"Skirt"),YieldCalcs[Code],0),1)),"",INDEX(YieldCalcs[PredWts],MATCH(CONCATENATE(G12,"Skirt"),YieldCalcs[Code],0),1)) ->  | Q12: =IF(ISERROR(INDEX(YieldCalcs[SalePrice],MATCH(G12,YieldCalcs[Code],0),1)),"",INDEX(YieldCalcs[SalePrice],MATCH(G12,YieldCalcs[Code],0),1)) ->  | R12: =IF(ISERROR(INDEX(YieldCalcs[CutValue],MATCH(G12,YieldCalcs[Code],0),1)),"",INDEX(YieldCalcs[CutValue],MATCH(G12,YieldCalcs[Code],0),1)) ->  | S12: =IF(ISERROR(INDEX(YieldCalcs[GM$],MATCH(G12,YieldCalcs[Code],0),1)),"",INDEX(YieldCalcs[GM$],MATCH(G12,YieldCalcs[Code],0),1)) ->  | T12: =IF(ISERROR(INDEX(YieldCalcs[GM%],MATCH(G12,YieldCalcs[Code],0),1)),"",INDEX(YieldCalcs[GM%],MATCH(G12,YieldCalcs[Code],0),1)) ->  | U12: =IF(ISERROR(INDEX(YieldCalcs[TGM%],MATCH(G12,YieldCalcs[Code],0),1)),"",INDEX(YieldCalcs[TGM%],MATCH(G12,YieldCalcs[Code],0),1)) ->  | V12: =IF(ISERROR(INDEX(YieldCalcs[TSalePrice],MATCH(G12,YieldCalcs[Code],0),1)),"",INDEX(YieldCalcs[TSalePrice],MATCH(G12,YieldCalcs[Code],0),1)) ->  | W12: =IF(ISNUMBER(INDEX(YieldCalcs[TotCostsPerKg],MATCH(G12,YieldCalcs[Code],0),1)),INDEX(YieldCalcs[TotCostsPerKg],MATCH(G12,YieldCalcs[Code],0),1),"") ->  | X12: =IF(ISERROR(INDEX(YieldCalcs[PreBoneCperkg],MATCH(G12,YieldCalcs[Code],0),1)),"",INDEX(YieldCalcs[PreBoneCperkg],MATCH(G12,YieldCalcs[Code],0),1)) ->  | Y12: =IF(ISERROR(INDEX(YieldCalcs[FixBoneCostperkg],MATCH(G12,YieldCalcs[Code],0),1)),"",INDEX(YieldCalcs[FixBoneCostperkg],MATCH(G12,YieldCalcs[Code],0),1)) ->  | Z12: =IF(ISERROR(INDEX(YieldCalcs[BoningCost],MATCH(G12,YieldCalcs[Code],0),1)),"",INDEX(YieldCalcs[BoningCost],MATCH(G12,YieldCalcs[Code],0),1)) ->  | AA12: =IF(ISNUMBER(INDEX(YieldCalcs[TotCosts],MATCH(G12,YieldCalcs[Code],0),1)),INDEX(YieldCalcs[TotCosts],MATCH(G12,YieldCalcs[Code],0),1),"") ->  | AB12: =IF(ISERROR(INDEX(YieldCalcs[BuyInPrice],MATCH(G12,YieldCalcs[Code],0),1)),"",INDEX(YieldCalcs[BuyInPrice],MATCH(G12,YieldCalcs[Code],0),1)) -> 
G13: =IF(ISERROR(INDEX(YieldCalcs[Code],MATCH(E13,YieldCalcs[CutName],0),1)),"",INDEX(YieldCalcs[Code],MATCH(E13,YieldCalcs[CutName],0),1)) ->  | H13: =IF(ISNA(MATCH(E13,YieldCalcs[CutName],0)),"",MATCH(E13,YieldCalcs[CutName],0)) ->  | I13: =IF(ISERROR(INDEX(YieldCalcs[PredWts],MATCH(G13,YieldCalcs[Code],0),1)),"",INDEX(YieldCalcs[PredWts],MATCH(G13,YieldCalcs[Code],0),1)) ->  | J13: =IF(ISERROR(INDEX(YieldCalcs[PredWts],MATCH(CONCATENATE(G13,"LT"),YieldCalcs[Code],0),1)),"",INDEX(YieldCalcs[PredWts],MATCH(CONCATENATE(G13,"LT"),YieldCalcs[Code],0),1)) ->  | K13: =IF(ISERROR(INDEX(YieldCalcs[PredWts],MATCH(CONCATENATE(G13,"F"),YieldCalcs[Code],0),1)),"",INDEX(YieldCalcs[PredWts],MATCH(CONCATENATE(G13,"F"),YieldCalcs[Code],0),1)) ->  | L13: =IF(ISERROR(INDEX(YieldCalcs[PredWts],MATCH(CONCATENATE(G13,"B"),YieldCalcs[Code],0),1)),"",INDEX(YieldCalcs[PredWts],MATCH(CONCATENATE(G13,"B"),YieldCalcs[Code],0),1)) ->  | M13: =IF(ISERROR(INDEX(YieldCalcs[PredWts],MATCH(CONCATENATE(G13,"W"),YieldCalcs[Code],0),1)),"",INDEX(YieldCalcs[PredWts],MATCH(CONCATENATE(G13,"W"),YieldCalcs[Code],0),1)) ->  | N13: =IF(ISERROR(INDEX(YieldCalcs[PredWts],MATCH(CONCATENATE(G13,"Pad"),YieldCalcs[Code],0),1)),"",INDEX(YieldCalcs[PredWts],MATCH(CONCATENATE(G13,"Pad"),YieldCalcs[Code],0),1)) ->  | O13: =IF(ISERROR(INDEX(YieldCalcs[PredWts],MATCH(CONCATENATE(G13,"Int"),YieldCalcs[Code],0),1)),"",INDEX(YieldCalcs[PredWts],MATCH(CONCATENATE(G13,"Int"),YieldCalcs[Code],0),1)) ->  | P13: =IF(ISERROR(INDEX(YieldCalcs[PredWts],MATCH(CONCATENATE(G13,"Skirt"),YieldCalcs[Code],0),1)),"",INDEX(YieldCalcs[PredWts],MATCH(CONCATENATE(G13,"Skirt"),YieldCalcs[Code],0),1)) ->  | Q13: =IF(ISERROR(INDEX(YieldCalcs[SalePrice],MATCH(G13,YieldCalcs[Code],0),1)),"",INDEX(YieldCalcs[SalePrice],MATCH(G13,YieldCalcs[Code],0),1)) ->  | R13: =IF(ISERROR(INDEX(YieldCalcs[CutValue],MATCH(G13,YieldCalcs[Code],0),1)),"",INDEX(YieldCalcs[CutValue],MATCH(G13,YieldCalcs[Code],0),1)) ->  | S13: =IF(ISERROR(INDEX(YieldCalcs[GM$],MATCH(G13,YieldCalcs[Code],0),1)),"",INDEX(YieldCalcs[GM$],MATCH(G13,YieldCalcs[Code],0),1)) ->  | T13: =IF(ISERROR(INDEX(YieldCalcs[GM%],MATCH(G13,YieldCalcs[Code],0),1)),"",INDEX(YieldCalcs[GM%],MATCH(G13,YieldCalcs[Code],0),1)) ->  | U13: =IF(ISERROR(INDEX(YieldCalcs[TGM%],MATCH(G13,YieldCalcs[Code],0),1)),"",INDEX(YieldCalcs[TGM%],MATCH(G13,YieldCalcs[Code],0),1)) ->  | V13: =IF(ISERROR(INDEX(YieldCalcs[TSalePrice],MATCH(G13,YieldCalcs[Code],0),1)),"",INDEX(YieldCalcs[TSalePrice],MATCH(G13,YieldCalcs[Code],0),1)) ->  | W13: =IF(ISNUMBER(INDEX(YieldCalcs[TotCostsPerKg],MATCH(G13,YieldCalcs[Code],0),1)),INDEX(YieldCalcs[TotCostsPerKg],MATCH(G13,YieldCalcs[Code],0),1),"") ->  | X13: =IF(ISERROR(INDEX(YieldCalcs[PreBoneCperkg],MATCH(G13,YieldCalcs[Code],0),1)),"",INDEX(YieldCalcs[PreBoneCperkg],MATCH(G13,YieldCalcs[Code],0),1)) ->  | Y13: =IF(ISERROR(INDEX(YieldCalcs[FixBoneCostperkg],MATCH(G13,YieldCalcs[Code],0),1)),"",INDEX(YieldCalcs[FixBoneCostperkg],MATCH(G13,YieldCalcs[Code],0),1)) ->  | Z13: =IF(ISERROR(INDEX(YieldCalcs[BoningCost],MATCH(G13,YieldCalcs[Code],0),1)),"",INDEX(YieldCalcs[BoningCost],MATCH(G13,YieldCalcs[Code],0),1)) ->  | AA13: =IF(ISNUMBER(INDEX(YieldCalcs[TotCosts],MATCH(G13,YieldCalcs[Code],0),1)),INDEX(YieldCalcs[TotCosts],MATCH(G13,YieldCalcs[Code],0),1),"") ->  | AB13: =IF(ISERROR(INDEX(YieldCalcs[BuyInPrice],MATCH(G13,YieldCalcs[Code],0),1)),"",INDEX(YieldCalcs[BuyInPrice],MATCH(G13,YieldCalcs[Code],0),1)) -> 
G14: =IF(ISERROR(INDEX(YieldCalcs[Code],MATCH(E14,YieldCalcs[CutName],0),1)),"",INDEX(YieldCalcs[Code],MATCH(E14,YieldCalcs[CutName],0),1)) ->  | H14: =IF(ISNA(MATCH(E14,YieldCalcs[CutName],0)),"",MATCH(E14,YieldCalcs[CutName],0)) ->  | I14: =IF(ISERROR(INDEX(YieldCalcs[PredWts],MATCH(G14,YieldCalcs[Code],0),1)),"",INDEX(YieldCalcs[PredWts],MATCH(G14,YieldCalcs[Code],0),1)) ->  | J14: =IF(ISERROR(INDEX(YieldCalcs[PredWts],MATCH(CONCATENATE(G14,"LT"),YieldCalcs[Code],0),1)),"",INDEX(YieldCalcs[PredWts],MATCH(CONCATENATE(G14,"LT"),YieldCalcs[Code],0),1)) ->  | K14: =IF(ISERROR(INDEX(YieldCalcs[PredWts],MATCH(CONCATENATE(G14,"F"),YieldCalcs[Code],0),1)),"",INDEX(YieldCalcs[PredWts],MATCH(CONCATENATE(G14,"F"),YieldCalcs[Code],0),1)) ->  | L14: =IF(ISERROR(INDEX(YieldCalcs[PredWts],MATCH(CONCATENATE(G14,"B"),YieldCalcs[Code],0),1)),"",INDEX(YieldCalcs[PredWts],MATCH(CONCATENATE(G14,"B"),YieldCalcs[Code],0),1)) ->  | M14: =IF(ISERROR(INDEX(YieldCalcs[PredWts],MATCH(CONCATENATE(G14,"W"),YieldCalcs[Code],0),1)),"",INDEX(YieldCalcs[PredWts],MATCH(CONCATENATE(G14,"W"),YieldCalcs[Code],0),1)) ->  | N14: =IF(ISERROR(INDEX(YieldCalcs[PredWts],MATCH(CONCATENATE(G14,"Pad"),YieldCalcs[Code],0),1)),"",INDEX(YieldCalcs[PredWts],MATCH(CONCATENATE(G14,"Pad"),YieldCalcs[Code],0),1)) ->  | O14: =IF(ISERROR(INDEX(YieldCalcs[PredWts],MATCH(CONCATENATE(G14,"Int"),YieldCalcs[Code],0),1)),"",INDEX(YieldCalcs[PredWts],MATCH(CONCATENATE(G14,"Int"),YieldCalcs[Code],0),1)) ->  | P14: =IF(ISERROR(INDEX(YieldCalcs[PredWts],MATCH(CONCATENATE(G14,"Skirt"),YieldCalcs[Code],0),1)),"",INDEX(YieldCalcs[PredWts],MATCH(CONCATENATE(G14,"Skirt"),YieldCalcs[Code],0),1)) ->  | Q14: =IF(ISERROR(INDEX(YieldCalcs[SalePrice],MATCH(G14,YieldCalcs[Code],0),1)),"",INDEX(YieldCalcs[SalePrice],MATCH(G14,YieldCalcs[Code],0),1)) ->  | R14: =IF(ISERROR(INDEX(YieldCalcs[CutValue],MATCH(G14,YieldCalcs[Code],0),1)),"",INDEX(YieldCalcs[CutValue],MATCH(G14,YieldCalcs[Code],0),1)) ->  | S14: =IF(ISERROR(INDEX(YieldCalcs[GM$],MATCH(G14,YieldCalcs[Code],0),1)),"",INDEX(YieldCalcs[GM$],MATCH(G14,YieldCalcs[Code],0),1)) ->  | T14: =IF(ISERROR(INDEX(YieldCalcs[GM%],MATCH(G14,YieldCalcs[Code],0),1)),"",INDEX(YieldCalcs[GM%],MATCH(G14,YieldCalcs[Code],0),1)) ->  | U14: =IF(ISERROR(INDEX(YieldCalcs[TGM%],MATCH(G14,YieldCalcs[Code],0),1)),"",INDEX(YieldCalcs[TGM%],MATCH(G14,YieldCalcs[Code],0),1)) ->  | V14: =IF(ISERROR(INDEX(YieldCalcs[TSalePrice],MATCH(G14,YieldCalcs[Code],0),1)),"",INDEX(YieldCalcs[TSalePrice],MATCH(G14,YieldCalcs[Code],0),1)) ->  | W14: =IF(ISNUMBER(INDEX(YieldCalcs[TotCostsPerKg],MATCH(G14,YieldCalcs[Code],0),1)),INDEX(YieldCalcs[TotCostsPerKg],MATCH(G14,YieldCalcs[Code],0),1),"") ->  | X14: =IF(ISERROR(INDEX(YieldCalcs[PreBoneCperkg],MATCH(G14,YieldCalcs[Code],0),1)),"",INDEX(YieldCalcs[PreBoneCperkg],MATCH(G14,YieldCalcs[Code],0),1)) ->  | Y14: =IF(ISERROR(INDEX(YieldCalcs[FixBoneCostperkg],MATCH(G14,YieldCalcs[Code],0),1)),"",INDEX(YieldCalcs[FixBoneCostperkg],MATCH(G14,YieldCalcs[Code],0),1)) ->  | Z14: =IF(ISERROR(INDEX(YieldCalcs[BoningCost],MATCH(G14,YieldCalcs[Code],0),1)),"",INDEX(YieldCalcs[BoningCost],MATCH(G14,YieldCalcs[Code],0),1)) ->  | AA14: =IF(ISNUMBER(INDEX(YieldCalcs[TotCosts],MATCH(G14,YieldCalcs[Code],0),1)),INDEX(YieldCalcs[TotCosts],MATCH(G14,YieldCalcs[Code],0),1),"") ->  | AB14: =IF(ISERROR(INDEX(YieldCalcs[BuyInPrice],MATCH(G14,YieldCalcs[Code],0),1)),"",INDEX(YieldCalcs[BuyInPrice],MATCH(G14,YieldCalcs[Code],0),1)) -> 
G15: =IF(ISERROR(INDEX(YieldCalcs[Code],MATCH(E15,YieldCalcs[CutName],0),1)),"",INDEX(YieldCalcs[Code],MATCH(E15,YieldCalcs[CutName],0),1)) ->  | H15: =IF(ISNA(MATCH(E15,YieldCalcs[CutName],0)),"",MATCH(E15,YieldCalcs[CutName],0)) ->  | I15: =IF(ISERROR(INDEX(YieldCalcs[PredWts],MATCH(G15,YieldCalcs[Code],0),1)),"",INDEX(YieldCalcs[PredWts],MATCH(G15,YieldCalcs[Code],0),1)) ->  | J15: =IF(ISERROR(INDEX(YieldCalcs[PredWts],MATCH(CONCATENATE(G15,"LT"),YieldCalcs[Code],0),1)),"",INDEX(YieldCalcs[PredWts],MATCH(CONCATENATE(G15,"LT"),YieldCalcs[Code],0),1)) ->  | K15: =IF(ISERROR(INDEX(YieldCalcs[PredWts],MATCH(CONCATENATE(G15,"F"),YieldCalcs[Code],0),1)),"",INDEX(YieldCalcs[PredWts],MATCH(CONCATENATE(G15,"F"),YieldCalcs[Code],0),1)) ->  | L15: =IF(ISERROR(INDEX(YieldCalcs[PredWts],MATCH(CONCATENATE(G15,"B"),YieldCalcs[Code],0),1)),"",INDEX(YieldCalcs[PredWts],MATCH(CONCATENATE(G15,"B"),YieldCalcs[Code],0),1)) ->  | M15: =IF(ISERROR(INDEX(YieldCalcs[PredWts],MATCH(CONCATENATE(G15,"W"),YieldCalcs[Code],0),1)),"",INDEX(YieldCalcs[PredWts],MATCH(CONCATENATE(G15,"W"),YieldCalcs[Code],0),1)) ->  | N15: =IF(ISERROR(INDEX(YieldCalcs[PredWts],MATCH(CONCATENATE(G15,"Pad"),YieldCalcs[Code],0),1)),"",INDEX(YieldCalcs[PredWts],MATCH(CONCATENATE(G15,"Pad"),YieldCalcs[Code],0),1)) ->  | O15: =IF(ISERROR(INDEX(YieldCalcs[PredWts],MATCH(CONCATENATE(G15,"Int"),YieldCalcs[Code],0),1)),"",INDEX(YieldCalcs[PredWts],MATCH(CONCATENATE(G15,"Int"),YieldCalcs[Code],0),1)) ->  | P15: =IF(ISERROR(INDEX(YieldCalcs[PredWts],MATCH(CONCATENATE(G15,"Skirt"),YieldCalcs[Code],0),1)),"",INDEX(YieldCalcs[PredWts],MATCH(CONCATENATE(G15,"Skirt"),YieldCalcs[Code],0),1)) ->  | Q15: =IF(ISERROR(INDEX(YieldCalcs[SalePrice],MATCH(G15,YieldCalcs[Code],0),1)),"",INDEX(YieldCalcs[SalePrice],MATCH(G15,YieldCalcs[Code],0),1)) ->  | R15: =IF(ISERROR(INDEX(YieldCalcs[CutValue],MATCH(G15,YieldCalcs[Code],0),1)),"",INDEX(YieldCalcs[CutValue],MATCH(G15,YieldCalcs[Code],0),1)) ->  | S15: =IF(ISERROR(INDEX(YieldCalcs[GM$],MATCH(G15,YieldCalcs[Code],0),1)),"",INDEX(YieldCalcs[GM$],MATCH(G15,YieldCalcs[Code],0),1)) ->  | T15: =IF(ISERROR(INDEX(YieldCalcs[GM%],MATCH(G15,YieldCalcs[Code],0),1)),"",INDEX(YieldCalcs[GM%],MATCH(G15,YieldCalcs[Code],0),1)) ->  | U15: =IF(ISERROR(INDEX(YieldCalcs[TGM%],MATCH(G15,YieldCalcs[Code],0),1)),"",INDEX(YieldCalcs[TGM%],MATCH(G15,YieldCalcs[Code],0),1)) ->  | V15: =IF(ISERROR(INDEX(YieldCalcs[TSalePrice],MATCH(G15,YieldCalcs[Code],0),1)),"",INDEX(YieldCalcs[TSalePrice],MATCH(G15,YieldCalcs[Code],0),1)) ->  | W15: =IF(ISNUMBER(INDEX(YieldCalcs[TotCostsPerKg],MATCH(G15,YieldCalcs[Code],0),1)),INDEX(YieldCalcs[TotCostsPerKg],MATCH(G15,YieldCalcs[Code],0),1),"") ->  | X15: =IF(ISERROR(INDEX(YieldCalcs[PreBoneCperkg],MATCH(G15,YieldCalcs[Code],0),1)),"",INDEX(YieldCalcs[PreBoneCperkg],MATCH(G15,YieldCalcs[Code],0),1)) ->  | Y15: =IF(ISERROR(INDEX(YieldCalcs[FixBoneCostperkg],MATCH(G15,YieldCalcs[Code],0),1)),"",INDEX(YieldCalcs[FixBoneCostperkg],MATCH(G15,YieldCalcs[Code],0),1)) ->  | Z15: =IF(ISERROR(INDEX(YieldCalcs[BoningCost],MATCH(G15,YieldCalcs[Code],0),1)),"",INDEX(YieldCalcs[BoningCost],MATCH(G15,YieldCalcs[Code],0),1)) ->  | AA15: =IF(ISNUMBER(INDEX(YieldCalcs[TotCosts],MATCH(G15,YieldCalcs[Code],0),1)),INDEX(YieldCalcs[TotCosts],MATCH(G15,YieldCalcs[Code],0),1),"") ->  | AB15: =IF(ISERROR(INDEX(YieldCalcs[BuyInPrice],MATCH(G15,YieldCalcs[Code],0),1)),"",INDEX(YieldCalcs[BuyInPrice],MATCH(G15,YieldCalcs[Code],0),1)) -> 
G16: =IF(ISERROR(INDEX(YieldCalcs[Code],MATCH(E16,YieldCalcs[CutName],0),1)),"",INDEX(YieldCalcs[Code],MATCH(E16,YieldCalcs[CutName],0),1)) ->  | H16: =IF(ISNA(MATCH(E16,YieldCalcs[CutName],0)),"",MATCH(E16,YieldCalcs[CutName],0)) ->  | I16: =IF(ISERROR(INDEX(YieldCalcs[PredWts],MATCH(G16,YieldCalcs[Code],0),1)),"",INDEX(YieldCalcs[PredWts],MATCH(G16,YieldCalcs[Code],0),1)) ->  | J16: =IF(ISERROR(INDEX(YieldCalcs[PredWts],MATCH(CONCATENATE(G16,"LT"),YieldCalcs[Code],0),1)),"",INDEX(YieldCalcs[PredWts],MATCH(CONCATENATE(G16,"LT"),YieldCalcs[Code],0),1)) ->  | K16: =IF(ISERROR(INDEX(YieldCalcs[PredWts],MATCH(CONCATENATE(G16,"F"),YieldCalcs[Code],0),1)),"",INDEX(YieldCalcs[PredWts],MATCH(CONCATENATE(G16,"F"),YieldCalcs[Code],0),1)) ->  | L16: =IF(ISERROR(INDEX(YieldCalcs[PredWts],MATCH(CONCATENATE(G16,"B"),YieldCalcs[Code],0),1)),"",INDEX(YieldCalcs[PredWts],MATCH(CONCATENATE(G16,"B"),YieldCalcs[Code],0),1)) ->  | M16: =IF(ISERROR(INDEX(YieldCalcs[PredWts],MATCH(CONCATENATE(G16,"W"),YieldCalcs[Code],0),1)),"",INDEX(YieldCalcs[PredWts],MATCH(CONCATENATE(G16,"W"),YieldCalcs[Code],0),1)) ->  | N16: =IF(ISERROR(INDEX(YieldCalcs[PredWts],MATCH(CONCATENATE(G16,"Pad"),YieldCalcs[Code],0),1)),"",INDEX(YieldCalcs[PredWts],MATCH(CONCATENATE(G16,"Pad"),YieldCalcs[Code],0),1)) ->  | O16: =IF(ISERROR(INDEX(YieldCalcs[PredWts],MATCH(CONCATENATE(G16,"Int"),YieldCalcs[Code],0),1)),"",INDEX(YieldCalcs[PredWts],MATCH(CONCATENATE(G16,"Int"),YieldCalcs[Code],0),1)) ->  | P16: =IF(ISERROR(INDEX(YieldCalcs[PredWts],MATCH(CONCATENATE(G16,"Skirt"),YieldCalcs[Code],0),1)),"",INDEX(YieldCalcs[PredWts],MATCH(CONCATENATE(G16,"Skirt"),YieldCalcs[Code],0),1)) ->  | Q16: =IF(ISERROR(INDEX(YieldCalcs[SalePrice],MATCH(G16,YieldCalcs[Code],0),1)),"",INDEX(YieldCalcs[SalePrice],MATCH(G16,YieldCalcs[Code],0),1)) ->  | R16: =IF(ISERROR(INDEX(YieldCalcs[CutValue],MATCH(G16,YieldCalcs[Code],0),1)),"",INDEX(YieldCalcs[CutValue],MATCH(G16,YieldCalcs[Code],0),1)) ->  | S16: =IF(ISERROR(INDEX(YieldCalcs[GM$],MATCH(G16,YieldCalcs[Code],0),1)),"",INDEX(YieldCalcs[GM$],MATCH(G16,YieldCalcs[Code],0),1)) ->  | T16: =IF(ISERROR(INDEX(YieldCalcs[GM%],MATCH(G16,YieldCalcs[Code],0),1)),"",INDEX(YieldCalcs[GM%],MATCH(G16,YieldCalcs[Code],0),1)) ->  | U16: =IF(ISERROR(INDEX(YieldCalcs[TGM%],MATCH(G16,YieldCalcs[Code],0),1)),"",INDEX(YieldCalcs[TGM%],MATCH(G16,YieldCalcs[Code],0),1)) ->  | V16: =IF(ISERROR(INDEX(YieldCalcs[TSalePrice],MATCH(G16,YieldCalcs[Code],0),1)),"",INDEX(YieldCalcs[TSalePrice],MATCH(G16,YieldCalcs[Code],0),1)) ->  | W16: =IF(ISNUMBER(INDEX(YieldCalcs[TotCostsPerKg],MATCH(G16,YieldCalcs[Code],0),1)),INDEX(YieldCalcs[TotCostsPerKg],MATCH(G16,YieldCalcs[Code],0),1),"") ->  | X16: =IF(ISERROR(INDEX(YieldCalcs[PreBoneCperkg],MATCH(G16,YieldCalcs[Code],0),1)),"",INDEX(YieldCalcs[PreBoneCperkg],MATCH(G16,YieldCalcs[Code],0),1)) ->  | Y16: =IF(ISERROR(INDEX(YieldCalcs[FixBoneCostperkg],MATCH(G16,YieldCalcs[Code],0),1)),"",INDEX(YieldCalcs[FixBoneCostperkg],MATCH(G16,YieldCalcs[Code],0),1)) ->  | Z16: =IF(ISERROR(INDEX(YieldCalcs[BoningCost],MATCH(G16,YieldCalcs[Code],0),1)),"",INDEX(YieldCalcs[BoningCost],MATCH(G16,YieldCalcs[Code],0),1)) ->  | AA16: =IF(ISNUMBER(INDEX(YieldCalcs[TotCosts],MATCH(G16,YieldCalcs[Code],0),1)),INDEX(YieldCalcs[TotCosts],MATCH(G16,YieldCalcs[Code],0),1),"") ->  | AB16: =IF(ISERROR(INDEX(YieldCalcs[BuyInPrice],MATCH(G16,YieldCalcs[Code],0),1)),"",INDEX(YieldCalcs[BuyInPrice],MATCH(G16,YieldCalcs[Code],0),1)) -> 
G17: =IF(ISERROR(INDEX(YieldCalcs[Code],MATCH(E17,YieldCalcs[CutName],0),1)),"",INDEX(YieldCalcs[Code],MATCH(E17,YieldCalcs[CutName],0),1)) ->  | H17: =IF(ISNA(MATCH(E17,YieldCalcs[CutName],0)),"",MATCH(E17,YieldCalcs[CutName],0)) ->  | I17: =IF(ISERROR(INDEX(YieldCalcs[PredWts],MATCH(G17,YieldCalcs[Code],0),1)),"",INDEX(YieldCalcs[PredWts],MATCH(G17,YieldCalcs[Code],0),1)) ->  | J17: =IF(ISERROR(INDEX(YieldCalcs[PredWts],MATCH(CONCATENATE(G17,"LT"),YieldCalcs[Code],0),1)),"",INDEX(YieldCalcs[PredWts],MATCH(CONCATENATE(G17,"LT"),YieldCalcs[Code],0),1)) ->  | K17: =IF(ISERROR(INDEX(YieldCalcs[PredWts],MATCH(CONCATENATE(G17,"F"),YieldCalcs[Code],0),1)),"",INDEX(YieldCalcs[PredWts],MATCH(CONCATENATE(G17,"F"),YieldCalcs[Code],0),1)) ->  | L17: =IF(ISERROR(INDEX(YieldCalcs[PredWts],MATCH(CONCATENATE(G17,"B"),YieldCalcs[Code],0),1)),"",INDEX(YieldCalcs[PredWts],MATCH(CONCATENATE(G17,"B"),YieldCalcs[Code],0),1)) ->  | M17: =IF(ISERROR(INDEX(YieldCalcs[PredWts],MATCH(CONCATENATE(G17,"W"),YieldCalcs[Code],0),1)),"",INDEX(YieldCalcs[PredWts],MATCH(CONCATENATE(G17,"W"),YieldCalcs[Code],0),1)) ->  | N17: =IF(ISERROR(INDEX(YieldCalcs[PredWts],MATCH(CONCATENATE(G17,"Pad"),YieldCalcs[Code],0),1)),"",INDEX(YieldCalcs[PredWts],MATCH(CONCATENATE(G17,"Pad"),YieldCalcs[Code],0),1)) ->  | O17: =IF(ISERROR(INDEX(YieldCalcs[PredWts],MATCH(CONCATENATE(G17,"Int"),YieldCalcs[Code],0),1)),"",INDEX(YieldCalcs[PredWts],MATCH(CONCATENATE(G17,"Int"),YieldCalcs[Code],0),1)) ->  | P17: =IF(ISERROR(INDEX(YieldCalcs[PredWts],MATCH(CONCATENATE(G17,"Skirt"),YieldCalcs[Code],0),1)),"",INDEX(YieldCalcs[PredWts],MATCH(CONCATENATE(G17,"Skirt"),YieldCalcs[Code],0),1)) ->  | Q17: =IF(ISERROR(INDEX(YieldCalcs[SalePrice],MATCH(G17,YieldCalcs[Code],0),1)),"",INDEX(YieldCalcs[SalePrice],MATCH(G17,YieldCalcs[Code],0),1)) ->  | R17: =IF(ISERROR(INDEX(YieldCalcs[CutValue],MATCH(G17,YieldCalcs[Code],0),1)),"",INDEX(YieldCalcs[CutValue],MATCH(G17,YieldCalcs[Code],0),1)) ->  | S17: =IF(ISERROR(INDEX(YieldCalcs[GM$],MATCH(G17,YieldCalcs[Code],0),1)),"",INDEX(YieldCalcs[GM$],MATCH(G17,YieldCalcs[Code],0),1)) ->  | T17: =IF(ISERROR(INDEX(YieldCalcs[GM%],MATCH(G17,YieldCalcs[Code],0),1)),"",INDEX(YieldCalcs[GM%],MATCH(G17,YieldCalcs[Code],0),1)) ->  | U17: =IF(ISERROR(INDEX(YieldCalcs[TGM%],MATCH(G17,YieldCalcs[Code],0),1)),"",INDEX(YieldCalcs[TGM%],MATCH(G17,YieldCalcs[Code],0),1)) ->  | V17: =IF(ISERROR(INDEX(YieldCalcs[TSalePrice],MATCH(G17,YieldCalcs[Code],0),1)),"",INDEX(YieldCalcs[TSalePrice],MATCH(G17,YieldCalcs[Code],0),1)) ->  | W17: =IF(ISNUMBER(INDEX(YieldCalcs[TotCostsPerKg],MATCH(G17,YieldCalcs[Code],0),1)),INDEX(YieldCalcs[TotCostsPerKg],MATCH(G17,YieldCalcs[Code],0),1),"") ->  | X17: =IF(ISERROR(INDEX(YieldCalcs[PreBoneCperkg],MATCH(G17,YieldCalcs[Code],0),1)),"",INDEX(YieldCalcs[PreBoneCperkg],MATCH(G17,YieldCalcs[Code],0),1)) ->  | Y17: =IF(ISERROR(INDEX(YieldCalcs[FixBoneCostperkg],MATCH(G17,YieldCalcs[Code],0),1)),"",INDEX(YieldCalcs[FixBoneCostperkg],MATCH(G17,YieldCalcs[Code],0),1)) ->  | Z17: =IF(ISERROR(INDEX(YieldCalcs[BoningCost],MATCH(G17,YieldCalcs[Code],0),1)),"",INDEX(YieldCalcs[BoningCost],MATCH(G17,YieldCalcs[Code],0),1)) ->  | AA17: =IF(ISNUMBER(INDEX(YieldCalcs[TotCosts],MATCH(G17,YieldCalcs[Code],0),1)),INDEX(YieldCalcs[TotCosts],MATCH(G17,YieldCalcs[Code],0),1),"") ->  | AB17: =IF(ISERROR(INDEX(YieldCalcs[BuyInPrice],MATCH(G17,YieldCalcs[Code],0),1)),"",INDEX(YieldCalcs[BuyInPrice],MATCH(G17,YieldCalcs[Code],0),1)) -> 
B19: Breast | E19: Breast | F19: =IF(E25<>"",7,IF(E24<>"",6,IF(E23<>"",5,IF(E22<>"",4,IF(E21<>"",3,IF(E20<>"",2,IF(E19<>"",1,0))))))) -> 1 | G19: =IF(ISERROR(INDEX(YieldCalcs[Code],MATCH(E19,YieldCalcs[CutName],0),1)),"",INDEX(YieldCalcs[Code],MATCH(E19,YieldCalcs[CutName],0),1)) -> FQ02.3 | H19: =IF(ISNA(MATCH(E19,YieldCalcs[CutName],0)),"",MATCH(E19,YieldCalcs[CutName],0)) -> 123 | I19: =IF(ISERROR(INDEX(YieldCalcs[PredWts],MATCH(G19,YieldCalcs[Code],0),1)),"",INDEX(YieldCalcs[PredWts],MATCH(G19,YieldCalcs[Code],0),1)) -> 0.574 | J19: =IF(ISERROR(INDEX(YieldCalcs[PredWts],MATCH(CONCATENATE(G19,"LT"),YieldCalcs[Code],0),1)),"",INDEX(YieldCalcs[PredWts],MATCH(CONCATENATE(G19,"LT"),YieldCalcs[Code],0),1)) ->  | K19: =IF(ISERROR(INDEX(YieldCalcs[PredWts],MATCH(CONCATENATE(G19,"F"),YieldCalcs[Code],0),1)),"",INDEX(YieldCalcs[PredWts],MATCH(CONCATENATE(G19,"F"),YieldCalcs[Code],0),1)) ->  | L19: =IF(ISERROR(INDEX(YieldCalcs[PredWts],MATCH(CONCATENATE(G19,"B"),YieldCalcs[Code],0),1)),"",INDEX(YieldCalcs[PredWts],MATCH(CONCATENATE(G19,"B"),YieldCalcs[Code],0),1)) ->  | M19: =IF(ISERROR(INDEX(YieldCalcs[PredWts],MATCH(CONCATENATE(G19,"W"),YieldCalcs[Code],0),1)),"",INDEX(YieldCalcs[PredWts],MATCH(CONCATENATE(G19,"W"),YieldCalcs[Code],0),1)) ->  | N19: =IF(ISERROR(INDEX(YieldCalcs[PredWts],MATCH(CONCATENATE(G19,"Pad"),YieldCalcs[Code],0),1)),"",INDEX(YieldCalcs[PredWts],MATCH(CONCATENATE(G19,"Pad"),YieldCalcs[Code],0),1)) ->  | O19: =IF(ISERROR(INDEX(YieldCalcs[PredWts],MATCH(CONCATENATE(G19,"Int"),YieldCalcs[Code],0),1)),"",INDEX(YieldCalcs[PredWts],MATCH(CONCATENATE(G19,"Int"),YieldCalcs[Code],0),1)) ->  | P19: =IF(ISERROR(INDEX(YieldCalcs[PredWts],MATCH(CONCATENATE(G19,"Skirt"),YieldCalcs[Code],0),1)),"",INDEX(YieldCalcs[PredWts],MATCH(CONCATENATE(G19,"Skirt"),YieldCalcs[Code],0),1)) ->  | Q19: =IF(ISERROR(INDEX(YieldCalcs[SalePrice],MATCH(G19,YieldCalcs[Code],0),1)),"",INDEX(YieldCalcs[SalePrice],MATCH(G19,YieldCalcs[Code],0),1)) -> 1.85 | R19: =IF(ISERROR(INDEX(YieldCalcs[CutValue],MATCH(G19,YieldCalcs[Code],0),1)),"",INDEX(YieldCalcs[CutValue],MATCH(G19,YieldCalcs[Code],0),1)) -> 1.0619 | S19: =IF(ISERROR(INDEX(YieldCalcs[GM$],MATCH(G19,YieldCalcs[Code],0),1)),"",INDEX(YieldCalcs[GM$],MATCH(G19,YieldCalcs[Code],0),1)) -> -1.23830001 | T19: =IF(ISERROR(INDEX(YieldCalcs[GM%],MATCH(G19,YieldCalcs[Code],0),1)),"",INDEX(YieldCalcs[GM%],MATCH(G19,YieldCalcs[Code],0),1)) -> -1.166117346 | U19: =IF(ISERROR(INDEX(YieldCalcs[TGM%],MATCH(G19,YieldCalcs[Code],0),1)),"",INDEX(YieldCalcs[TGM%],MATCH(G19,YieldCalcs[Code],0),1)) ->  | V19: =IF(ISERROR(INDEX(YieldCalcs[TSalePrice],MATCH(G19,YieldCalcs[Code],0),1)),"",INDEX(YieldCalcs[TSalePrice],MATCH(G19,YieldCalcs[Code],0),1)) ->  | W19: =IF(ISNUMBER(INDEX(YieldCalcs[TotCostsPerKg],MATCH(G19,YieldCalcs[Code],0),1)),INDEX(YieldCalcs[TotCostsPerKg],MATCH(G19,YieldCalcs[Code],0),1),"") -> 4.007317091 | X19: =IF(ISERROR(INDEX(YieldCalcs[PreBoneCperkg],MATCH(G19,YieldCalcs[Code],0),1)),"",INDEX(YieldCalcs[PreBoneCperkg],MATCH(G19,YieldCalcs[Code],0),1)) -> 4.007317073 | Y19: =IF(ISERROR(INDEX(YieldCalcs[FixBoneCostperkg],MATCH(G19,YieldCalcs[Code],0),1)),"",INDEX(YieldCalcs[FixBoneCostperkg],MATCH(G19,YieldCalcs[Code],0),1)) -> 1.742160279e-08 | Z19: =IF(ISERROR(INDEX(YieldCalcs[BoningCost],MATCH(G19,YieldCalcs[Code],0),1)),"",INDEX(YieldCalcs[BoningCost],MATCH(G19,YieldCalcs[Code],0),1)) -> 0 | AA19: =IF(ISNUMBER(INDEX(YieldCalcs[TotCosts],MATCH(G19,YieldCalcs[Code],0),1)),INDEX(YieldCalcs[TotCosts],MATCH(G19,YieldCalcs[Code],0),1),"") -> 2.30020001 | AB19: =IF(ISERROR(INDEX(YieldCalcs[BuyInPrice],MATCH(G19,YieldCalcs[Code],0),1)),"",INDEX(YieldCalcs[BuyInPrice],MATCH(G19,YieldCalcs[Code],0),1)) -> 0
C20: Breast | G20: =IF(ISERROR(INDEX(YieldCalcs[Code],MATCH(E20,YieldCalcs[CutName],0),1)),"",INDEX(YieldCalcs[Code],MATCH(E20,YieldCalcs[CutName],0),1)) ->  | H20: =IF(ISNA(MATCH(E20,YieldCalcs[CutName],0)),"",MATCH(E20,YieldCalcs[CutName],0)) ->  | I20: =IF(ISERROR(INDEX(YieldCalcs[PredWts],MATCH(G20,YieldCalcs[Code],0),1)),"",INDEX(YieldCalcs[PredWts],MATCH(G20,YieldCalcs[Code],0),1)) ->  | J20: =IF(ISERROR(INDEX(YieldCalcs[PredWts],MATCH(CONCATENATE(G20,"LT"),YieldCalcs[Code],0),1)),"",INDEX(YieldCalcs[PredWts],MATCH(CONCATENATE(G20,"LT"),YieldCalcs[Code],0),1)) ->  | K20: =IF(ISERROR(INDEX(YieldCalcs[PredWts],MATCH(CONCATENATE(G20,"F"),YieldCalcs[Code],0),1)),"",INDEX(YieldCalcs[PredWts],MATCH(CONCATENATE(G20,"F"),YieldCalcs[Code],0),1)) ->  | L20: =IF(ISERROR(INDEX(YieldCalcs[PredWts],MATCH(CONCATENATE(G20,"B"),YieldCalcs[Code],0),1)),"",INDEX(YieldCalcs[PredWts],MATCH(CONCATENATE(G20,"B"),YieldCalcs[Code],0),1)) ->  | M20: =IF(ISERROR(INDEX(YieldCalcs[PredWts],MATCH(CONCATENATE(G20,"W"),YieldCalcs[Code],0),1)),"",INDEX(YieldCalcs[PredWts],MATCH(CONCATENATE(G20,"W"),YieldCalcs[Code],0),1)) ->  | N20: =IF(ISERROR(INDEX(YieldCalcs[PredWts],MATCH(CONCATENATE(G20,"Pad"),YieldCalcs[Code],0),1)),"",INDEX(YieldCalcs[PredWts],MATCH(CONCATENATE(G20,"Pad"),YieldCalcs[Code],0),1)) ->  | O20: =IF(ISERROR(INDEX(YieldCalcs[PredWts],MATCH(CONCATENATE(G20,"Int"),YieldCalcs[Code],0),1)),"",INDEX(YieldCalcs[PredWts],MATCH(CONCATENATE(G20,"Int"),YieldCalcs[Code],0),1)) ->  | P20: =IF(ISERROR(INDEX(YieldCalcs[PredWts],MATCH(CONCATENATE(G20,"Skirt"),YieldCalcs[Code],0),1)),"",INDEX(YieldCalcs[PredWts],MATCH(CONCATENATE(G20,"Skirt"),YieldCalcs[Code],0),1)) ->  | Q20: =IF(ISERROR(INDEX(YieldCalcs[SalePrice],MATCH(G20,YieldCalcs[Code],0),1)),"",INDEX(YieldCalcs[SalePrice],MATCH(G20,YieldCalcs[Code],0),1)) ->  | R20: =IF(ISERROR(INDEX(YieldCalcs[CutValue],MATCH(G20,YieldCalcs[Code],0),1)),"",INDEX(YieldCalcs[CutValue],MATCH(G20,YieldCalcs[Code],0),1)) ->  | S20: =IF(ISERROR(INDEX(YieldCalcs[GM$],MATCH(G20,YieldCalcs[Code],0),1)),"",INDEX(YieldCalcs[GM$],MATCH(G20,YieldCalcs[Code],0),1)) ->  | T20: =IF(ISERROR(INDEX(YieldCalcs[GM%],MATCH(G20,YieldCalcs[Code],0),1)),"",INDEX(YieldCalcs[GM%],MATCH(G20,YieldCalcs[Code],0),1)) ->  | U20: =IF(ISERROR(INDEX(YieldCalcs[TGM%],MATCH(G20,YieldCalcs[Code],0),1)),"",INDEX(YieldCalcs[TGM%],MATCH(G20,YieldCalcs[Code],0),1)) ->  | V20: =IF(ISERROR(INDEX(YieldCalcs[TSalePrice],MATCH(G20,YieldCalcs[Code],0),1)),"",INDEX(YieldCalcs[TSalePrice],MATCH(G20,YieldCalcs[Code],0),1)) ->  | W20: =IF(ISNUMBER(INDEX(YieldCalcs[TotCostsPerKg],MATCH(G20,YieldCalcs[Code],0),1)),INDEX(YieldCalcs[TotCostsPerKg],MATCH(G20,YieldCalcs[Code],0),1),"") ->  | X20: =IF(ISERROR(INDEX(YieldCalcs[PreBoneCperkg],MATCH(G20,YieldCalcs[Code],0),1)),"",INDEX(YieldCalcs[PreBoneCperkg],MATCH(G20,YieldCalcs[Code],0),1)) ->  | Y20: =IF(ISERROR(INDEX(YieldCalcs[FixBoneCostperkg],MATCH(G20,YieldCalcs[Code],0),1)),"",INDEX(YieldCalcs[FixBoneCostperkg],MATCH(G20,YieldCalcs[Code],0),1)) ->  | Z20: =IF(ISERROR(INDEX(YieldCalcs[BoningCost],MATCH(G20,YieldCalcs[Code],0),1)),"",INDEX(YieldCalcs[BoningCost],MATCH(G20,YieldCalcs[Code],0),1)) ->  | AA20: =IF(ISNUMBER(INDEX(YieldCalcs[TotCosts],MATCH(G20,YieldCalcs[Code],0),1)),INDEX(YieldCalcs[TotCosts],MATCH(G20,YieldCalcs[Code],0),1),"") ->  | AB20: =IF(ISERROR(INDEX(YieldCalcs[BuyInPrice],MATCH(G20,YieldCalcs[Code],0),1)),"",INDEX(YieldCalcs[BuyInPrice],MATCH(G20,YieldCalcs[Code],0),1)) -> 
G21: =IF(ISERROR(INDEX(YieldCalcs[Code],MATCH(E21,YieldCalcs[CutName],0),1)),"",INDEX(YieldCalcs[Code],MATCH(E21,YieldCalcs[CutName],0),1)) ->  | H21: =IF(ISNA(MATCH(E21,YieldCalcs[CutName],0)),"",MATCH(E21,YieldCalcs[CutName],0)) ->  | I21: =IF(ISERROR(INDEX(YieldCalcs[PredWts],MATCH(G21,YieldCalcs[Code],0),1)),"",INDEX(YieldCalcs[PredWts],MATCH(G21,YieldCalcs[Code],0),1)) ->  | J21: =IF(ISERROR(INDEX(YieldCalcs[PredWts],MATCH(CONCATENATE(G21,"LT"),YieldCalcs[Code],0),1)),"",INDEX(YieldCalcs[PredWts],MATCH(CONCATENATE(G21,"LT"),YieldCalcs[Code],0),1)) ->  | K21: =IF(ISERROR(INDEX(YieldCalcs[PredWts],MATCH(CONCATENATE(G21,"F"),YieldCalcs[Code],0),1)),"",INDEX(YieldCalcs[PredWts],MATCH(CONCATENATE(G21,"F"),YieldCalcs[Code],0),1)) ->  | L21: =IF(ISERROR(INDEX(YieldCalcs[PredWts],MATCH(CONCATENATE(G21,"B"),YieldCalcs[Code],0),1)),"",INDEX(YieldCalcs[PredWts],MATCH(CONCATENATE(G21,"B"),YieldCalcs[Code],0),1)) ->  | M21: =IF(ISERROR(INDEX(YieldCalcs[PredWts],MATCH(CONCATENATE(G21,"W"),YieldCalcs[Code],0),1)),"",INDEX(YieldCalcs[PredWts],MATCH(CONCATENATE(G21,"W"),YieldCalcs[Code],0),1)) ->  | N21: =IF(ISERROR(INDEX(YieldCalcs[PredWts],MATCH(CONCATENATE(G21,"Pad"),YieldCalcs[Code],0),1)),"",INDEX(YieldCalcs[PredWts],MATCH(CONCATENATE(G21,"Pad"),YieldCalcs[Code],0),1)) ->  | O21: =IF(ISERROR(INDEX(YieldCalcs[PredWts],MATCH(CONCATENATE(G21,"Int"),YieldCalcs[Code],0),1)),"",INDEX(YieldCalcs[PredWts],MATCH(CONCATENATE(G21,"Int"),YieldCalcs[Code],0),1)) ->  | P21: =IF(ISERROR(INDEX(YieldCalcs[PredWts],MATCH(CONCATENATE(G21,"Skirt"),YieldCalcs[Code],0),1)),"",INDEX(YieldCalcs[PredWts],MATCH(CONCATENATE(G21,"Skirt"),YieldCalcs[Code],0),1)) ->  | Q21: =IF(ISERROR(INDEX(YieldCalcs[SalePrice],MATCH(G21,YieldCalcs[Code],0),1)),"",INDEX(YieldCalcs[SalePrice],MATCH(G21,YieldCalcs[Code],0),1)) ->  | R21: =IF(ISERROR(INDEX(YieldCalcs[CutValue],MATCH(G21,YieldCalcs[Code],0),1)),"",INDEX(YieldCalcs[CutValue],MATCH(G21,YieldCalcs[Code],0),1)) ->  | S21: =IF(ISERROR(INDEX(YieldCalcs[GM$],MATCH(G21,YieldCalcs[Code],0),1)),"",INDEX(YieldCalcs[GM$],MATCH(G21,YieldCalcs[Code],0),1)) ->  | T21: =IF(ISERROR(INDEX(YieldCalcs[GM%],MATCH(G21,YieldCalcs[Code],0),1)),"",INDEX(YieldCalcs[GM%],MATCH(G21,YieldCalcs[Code],0),1)) ->  | U21: =IF(ISERROR(INDEX(YieldCalcs[TGM%],MATCH(G21,YieldCalcs[Code],0),1)),"",INDEX(YieldCalcs[TGM%],MATCH(G21,YieldCalcs[Code],0),1)) ->  | V21: =IF(ISERROR(INDEX(YieldCalcs[TSalePrice],MATCH(G21,YieldCalcs[Code],0),1)),"",INDEX(YieldCalcs[TSalePrice],MATCH(G21,YieldCalcs[Code],0),1)) ->  | W21: =IF(ISNUMBER(INDEX(YieldCalcs[TotCostsPerKg],MATCH(G21,YieldCalcs[Code],0),1)),INDEX(YieldCalcs[TotCostsPerKg],MATCH(G21,YieldCalcs[Code],0),1),"") ->  | X21: =IF(ISERROR(INDEX(YieldCalcs[PreBoneCperkg],MATCH(G21,YieldCalcs[Code],0),1)),"",INDEX(YieldCalcs[PreBoneCperkg],MATCH(G21,YieldCalcs[Code],0),1)) ->  | Y21: =IF(ISERROR(INDEX(YieldCalcs[FixBoneCostperkg],MATCH(G21,YieldCalcs[Code],0),1)),"",INDEX(YieldCalcs[FixBoneCostperkg],MATCH(G21,YieldCalcs[Code],0),1)) ->  | Z21: =IF(ISERROR(INDEX(YieldCalcs[BoningCost],MATCH(G21,YieldCalcs[Code],0),1)),"",INDEX(YieldCalcs[BoningCost],MATCH(G21,YieldCalcs[Code],0),1)) ->  | AA21: =IF(ISNUMBER(INDEX(YieldCalcs[TotCosts],MATCH(G21,YieldCalcs[Code],0),1)),INDEX(YieldCalcs[TotCosts],MATCH(G21,YieldCalcs[Code],0),1),"") ->  | AB21: =IF(ISERROR(INDEX(YieldCalcs[BuyInPrice],MATCH(G21,YieldCalcs[Code],0),1)),"",INDEX(YieldCalcs[BuyInPrice],MATCH(G21,YieldCalcs[Code],0),1)) -> 
G22: =IF(ISERROR(INDEX(YieldCalcs[Code],MATCH(E22,YieldCalcs[CutName],0),1)),"",INDEX(YieldCalcs[Code],MATCH(E22,YieldCalcs[CutName],0),1)) ->  | H22: =IF(ISNA(MATCH(E22,YieldCalcs[CutName],0)),"",MATCH(E22,YieldCalcs[CutName],0)) ->  | I22: =IF(ISERROR(INDEX(YieldCalcs[PredWts],MATCH(G22,YieldCalcs[Code],0),1)),"",INDEX(YieldCalcs[PredWts],MATCH(G22,YieldCalcs[Code],0),1)) ->  | J22: =IF(ISERROR(INDEX(YieldCalcs[PredWts],MATCH(CONCATENATE(G22,"LT"),YieldCalcs[Code],0),1)),"",INDEX(YieldCalcs[PredWts],MATCH(CONCATENATE(G22,"LT"),YieldCalcs[Code],0),1)) ->  | K22: =IF(ISERROR(INDEX(YieldCalcs[PredWts],MATCH(CONCATENATE(G22,"F"),YieldCalcs[Code],0),1)),"",INDEX(YieldCalcs[PredWts],MATCH(CONCATENATE(G22,"F"),YieldCalcs[Code],0),1)) ->  | L22: =IF(ISERROR(INDEX(YieldCalcs[PredWts],MATCH(CONCATENATE(G22,"B"),YieldCalcs[Code],0),1)),"",INDEX(YieldCalcs[PredWts],MATCH(CONCATENATE(G22,"B"),YieldCalcs[Code],0),1)) ->  | M22: =IF(ISERROR(INDEX(YieldCalcs[PredWts],MATCH(CONCATENATE(G22,"W"),YieldCalcs[Code],0),1)),"",INDEX(YieldCalcs[PredWts],MATCH(CONCATENATE(G22,"W"),YieldCalcs[Code],0),1)) ->  | N22: =IF(ISERROR(INDEX(YieldCalcs[PredWts],MATCH(CONCATENATE(G22,"Pad"),YieldCalcs[Code],0),1)),"",INDEX(YieldCalcs[PredWts],MATCH(CONCATENATE(G22,"Pad"),YieldCalcs[Code],0),1)) ->  | O22: =IF(ISERROR(INDEX(YieldCalcs[PredWts],MATCH(CONCATENATE(G22,"Int"),YieldCalcs[Code],0),1)),"",INDEX(YieldCalcs[PredWts],MATCH(CONCATENATE(G22,"Int"),YieldCalcs[Code],0),1)) ->  | P22: =IF(ISERROR(INDEX(YieldCalcs[PredWts],MATCH(CONCATENATE(G22,"Skirt"),YieldCalcs[Code],0),1)),"",INDEX(YieldCalcs[PredWts],MATCH(CONCATENATE(G22,"Skirt"),YieldCalcs[Code],0),1)) ->  | Q22: =IF(ISERROR(INDEX(YieldCalcs[SalePrice],MATCH(G22,YieldCalcs[Code],0),1)),"",INDEX(YieldCalcs[SalePrice],MATCH(G22,YieldCalcs[Code],0),1)) ->  | R22: =IF(ISERROR(INDEX(YieldCalcs[CutValue],MATCH(G22,YieldCalcs[Code],0),1)),"",INDEX(YieldCalcs[CutValue],MATCH(G22,YieldCalcs[Code],0),1)) ->  | S22: =IF(ISERROR(INDEX(YieldCalcs[GM$],MATCH(G22,YieldCalcs[Code],0),1)),"",INDEX(YieldCalcs[GM$],MATCH(G22,YieldCalcs[Code],0),1)) ->  | T22: =IF(ISERROR(INDEX(YieldCalcs[GM%],MATCH(G22,YieldCalcs[Code],0),1)),"",INDEX(YieldCalcs[GM%],MATCH(G22,YieldCalcs[Code],0),1)) ->  | U22: =IF(ISERROR(INDEX(YieldCalcs[TGM%],MATCH(G22,YieldCalcs[Code],0),1)),"",INDEX(YieldCalcs[TGM%],MATCH(G22,YieldCalcs[Code],0),1)) ->  | V22: =IF(ISERROR(INDEX(YieldCalcs[TSalePrice],MATCH(G22,YieldCalcs[Code],0),1)),"",INDEX(YieldCalcs[TSalePrice],MATCH(G22,YieldCalcs[Code],0),1)) ->  | W22: =IF(ISNUMBER(INDEX(YieldCalcs[TotCostsPerKg],MATCH(G22,YieldCalcs[Code],0),1)),INDEX(YieldCalcs[TotCostsPerKg],MATCH(G22,YieldCalcs[Code],0),1),"") ->  | X22: =IF(ISERROR(INDEX(YieldCalcs[PreBoneCperkg],MATCH(G22,YieldCalcs[Code],0),1)),"",INDEX(YieldCalcs[PreBoneCperkg],MATCH(G22,YieldCalcs[Code],0),1)) ->  | Y22: =IF(ISERROR(INDEX(YieldCalcs[FixBoneCostperkg],MATCH(G22,YieldCalcs[Code],0),1)),"",INDEX(YieldCalcs[FixBoneCostperkg],MATCH(G22,YieldCalcs[Code],0),1)) ->  | Z22: =IF(ISERROR(INDEX(YieldCalcs[BoningCost],MATCH(G22,YieldCalcs[Code],0),1)),"",INDEX(YieldCalcs[BoningCost],MATCH(G22,YieldCalcs[Code],0),1)) ->  | AA22: =IF(ISNUMBER(INDEX(YieldCalcs[TotCosts],MATCH(G22,YieldCalcs[Code],0),1)),INDEX(YieldCalcs[TotCosts],MATCH(G22,YieldCalcs[Code],0),1),"") ->  | AB22: =IF(ISERROR(INDEX(YieldCalcs[BuyInPrice],MATCH(G22,YieldCalcs[Code],0),1)),"",INDEX(YieldCalcs[BuyInPrice],MATCH(G22,YieldCalcs[Code],0),1)) -> 
G23: =IF(ISERROR(INDEX(YieldCalcs[Code],MATCH(E23,YieldCalcs[CutName],0),1)),"",INDEX(YieldCalcs[Code],MATCH(E23,YieldCalcs[CutName],0),1)) ->  | H23: =IF(ISNA(MATCH(E23,YieldCalcs[CutName],0)),"",MATCH(E23,YieldCalcs[CutName],0)) ->  | I23: =IF(ISERROR(INDEX(YieldCalcs[PredWts],MATCH(G23,YieldCalcs[Code],0),1)),"",INDEX(YieldCalcs[PredWts],MATCH(G23,YieldCalcs[Code],0),1)) ->  | J23: =IF(ISERROR(INDEX(YieldCalcs[PredWts],MATCH(CONCATENATE(G23,"LT"),YieldCalcs[Code],0),1)),"",INDEX(YieldCalcs[PredWts],MATCH(CONCATENATE(G23,"LT"),YieldCalcs[Code],0),1)) ->  | K23: =IF(ISERROR(INDEX(YieldCalcs[PredWts],MATCH(CONCATENATE(G23,"F"),YieldCalcs[Code],0),1)),"",INDEX(YieldCalcs[PredWts],MATCH(CONCATENATE(G23,"F"),YieldCalcs[Code],0),1)) ->  | L23: =IF(ISERROR(INDEX(YieldCalcs[PredWts],MATCH(CONCATENATE(G23,"B"),YieldCalcs[Code],0),1)),"",INDEX(YieldCalcs[PredWts],MATCH(CONCATENATE(G23,"B"),YieldCalcs[Code],0),1)) ->  | M23: =IF(ISERROR(INDEX(YieldCalcs[PredWts],MATCH(CONCATENATE(G23,"W"),YieldCalcs[Code],0),1)),"",INDEX(YieldCalcs[PredWts],MATCH(CONCATENATE(G23,"W"),YieldCalcs[Code],0),1)) ->  | N23: =IF(ISERROR(INDEX(YieldCalcs[PredWts],MATCH(CONCATENATE(G23,"Pad"),YieldCalcs[Code],0),1)),"",INDEX(YieldCalcs[PredWts],MATCH(CONCATENATE(G23,"Pad"),YieldCalcs[Code],0),1)) ->  | O23: =IF(ISERROR(INDEX(YieldCalcs[PredWts],MATCH(CONCATENATE(G23,"Int"),YieldCalcs[Code],0),1)),"",INDEX(YieldCalcs[PredWts],MATCH(CONCATENATE(G23,"Int"),YieldCalcs[Code],0),1)) ->  | P23: =IF(ISERROR(INDEX(YieldCalcs[PredWts],MATCH(CONCATENATE(G23,"Skirt"),YieldCalcs[Code],0),1)),"",INDEX(YieldCalcs[PredWts],MATCH(CONCATENATE(G23,"Skirt"),YieldCalcs[Code],0),1)) ->  | Q23: =IF(ISERROR(INDEX(YieldCalcs[SalePrice],MATCH(G23,YieldCalcs[Code],0),1)),"",INDEX(YieldCalcs[SalePrice],MATCH(G23,YieldCalcs[Code],0),1)) ->  | R23: =IF(ISERROR(INDEX(YieldCalcs[CutValue],MATCH(G23,YieldCalcs[Code],0),1)),"",INDEX(YieldCalcs[CutValue],MATCH(G23,YieldCalcs[Code],0),1)) ->  | S23: =IF(ISERROR(INDEX(YieldCalcs[GM$],MATCH(G23,YieldCalcs[Code],0),1)),"",INDEX(YieldCalcs[GM$],MATCH(G23,YieldCalcs[Code],0),1)) ->  | T23: =IF(ISERROR(INDEX(YieldCalcs[GM%],MATCH(G23,YieldCalcs[Code],0),1)),"",INDEX(YieldCalcs[GM%],MATCH(G23,YieldCalcs[Code],0),1)) ->  | U23: =IF(ISERROR(INDEX(YieldCalcs[TGM%],MATCH(G23,YieldCalcs[Code],0),1)),"",INDEX(YieldCalcs[TGM%],MATCH(G23,YieldCalcs[Code],0),1)) ->  | V23: =IF(ISERROR(INDEX(YieldCalcs[TSalePrice],MATCH(G23,YieldCalcs[Code],0),1)),"",INDEX(YieldCalcs[TSalePrice],MATCH(G23,YieldCalcs[Code],0),1)) ->  | W23: =IF(ISNUMBER(INDEX(YieldCalcs[TotCostsPerKg],MATCH(G23,YieldCalcs[Code],0),1)),INDEX(YieldCalcs[TotCostsPerKg],MATCH(G23,YieldCalcs[Code],0),1),"") ->  | X23: =IF(ISERROR(INDEX(YieldCalcs[PreBoneCperkg],MATCH(G23,YieldCalcs[Code],0),1)),"",INDEX(YieldCalcs[PreBoneCperkg],MATCH(G23,YieldCalcs[Code],0),1)) ->  | Y23: =IF(ISERROR(INDEX(YieldCalcs[FixBoneCostperkg],MATCH(G23,YieldCalcs[Code],0),1)),"",INDEX(YieldCalcs[FixBoneCostperkg],MATCH(G23,YieldCalcs[Code],0),1)) ->  | Z23: =IF(ISERROR(INDEX(YieldCalcs[BoningCost],MATCH(G23,YieldCalcs[Code],0),1)),"",INDEX(YieldCalcs[BoningCost],MATCH(G23,YieldCalcs[Code],0),1)) ->  | AA23: =IF(ISNUMBER(INDEX(YieldCalcs[TotCosts],MATCH(G23,YieldCalcs[Code],0),1)),INDEX(YieldCalcs[TotCosts],MATCH(G23,YieldCalcs[Code],0),1),"") ->  | AB23: =IF(ISERROR(INDEX(YieldCalcs[BuyInPrice],MATCH(G23,YieldCalcs[Code],0),1)),"",INDEX(YieldCalcs[BuyInPrice],MATCH(G23,YieldCalcs[Code],0),1)) -> 
G24: =IF(ISERROR(INDEX(YieldCalcs[Code],MATCH(E24,YieldCalcs[CutName],0),1)),"",INDEX(YieldCalcs[Code],MATCH(E24,YieldCalcs[CutName],0),1)) ->  | H24: =IF(ISNA(MATCH(E24,YieldCalcs[CutName],0)),"",MATCH(E24,YieldCalcs[CutName],0)) ->  | I24: =IF(ISERROR(INDEX(YieldCalcs[PredWts],MATCH(G24,YieldCalcs[Code],0),1)),"",INDEX(YieldCalcs[PredWts],MATCH(G24,YieldCalcs[Code],0),1)) ->  | J24: =IF(ISERROR(INDEX(YieldCalcs[PredWts],MATCH(CONCATENATE(G24,"LT"),YieldCalcs[Code],0),1)),"",INDEX(YieldCalcs[PredWts],MATCH(CONCATENATE(G24,"LT"),YieldCalcs[Code],0),1)) ->  | K24: =IF(ISERROR(INDEX(YieldCalcs[PredWts],MATCH(CONCATENATE(G24,"F"),YieldCalcs[Code],0),1)),"",INDEX(YieldCalcs[PredWts],MATCH(CONCATENATE(G24,"F"),YieldCalcs[Code],0),1)) ->  | L24: =IF(ISERROR(INDEX(YieldCalcs[PredWts],MATCH(CONCATENATE(G24,"B"),YieldCalcs[Code],0),1)),"",INDEX(YieldCalcs[PredWts],MATCH(CONCATENATE(G24,"B"),YieldCalcs[Code],0),1)) ->  | M24: =IF(ISERROR(INDEX(YieldCalcs[PredWts],MATCH(CONCATENATE(G24,"W"),YieldCalcs[Code],0),1)),"",INDEX(YieldCalcs[PredWts],MATCH(CONCATENATE(G24,"W"),YieldCalcs[Code],0),1)) ->  | N24: =IF(ISERROR(INDEX(YieldCalcs[PredWts],MATCH(CONCATENATE(G24,"Pad"),YieldCalcs[Code],0),1)),"",INDEX(YieldCalcs[PredWts],MATCH(CONCATENATE(G24,"Pad"),YieldCalcs[Code],0),1)) ->  | O24: =IF(ISERROR(INDEX(YieldCalcs[PredWts],MATCH(CONCATENATE(G24,"Int"),YieldCalcs[Code],0),1)),"",INDEX(YieldCalcs[PredWts],MATCH(CONCATENATE(G24,"Int"),YieldCalcs[Code],0),1)) ->  | P24: =IF(ISERROR(INDEX(YieldCalcs[PredWts],MATCH(CONCATENATE(G24,"Skirt"),YieldCalcs[Code],0),1)),"",INDEX(YieldCalcs[PredWts],MATCH(CONCATENATE(G24,"Skirt"),YieldCalcs[Code],0),1)) ->  | Q24: =IF(ISERROR(INDEX(YieldCalcs[SalePrice],MATCH(G24,YieldCalcs[Code],0),1)),"",INDEX(YieldCalcs[SalePrice],MATCH(G24,YieldCalcs[Code],0),1)) ->  | R24: =IF(ISERROR(INDEX(YieldCalcs[CutValue],MATCH(G24,YieldCalcs[Code],0),1)),"",INDEX(YieldCalcs[CutValue],MATCH(G24,YieldCalcs[Code],0),1)) ->  | S24: =IF(ISERROR(INDEX(YieldCalcs[GM$],MATCH(G24,YieldCalcs[Code],0),1)),"",INDEX(YieldCalcs[GM$],MATCH(G24,YieldCalcs[Code],0),1)) ->  | T24: =IF(ISERROR(INDEX(YieldCalcs[GM%],MATCH(G24,YieldCalcs[Code],0),1)),"",INDEX(YieldCalcs[GM%],MATCH(G24,YieldCalcs[Code],0),1)) ->  | U24: =IF(ISERROR(INDEX(YieldCalcs[TGM%],MATCH(G24,YieldCalcs[Code],0),1)),"",INDEX(YieldCalcs[TGM%],MATCH(G24,YieldCalcs[Code],0),1)) ->  | V24: =IF(ISERROR(INDEX(YieldCalcs[TSalePrice],MATCH(G24,YieldCalcs[Code],0),1)),"",INDEX(YieldCalcs[TSalePrice],MATCH(G24,YieldCalcs[Code],0),1)) ->  | W24: =IF(ISNUMBER(INDEX(YieldCalcs[TotCostsPerKg],MATCH(G24,YieldCalcs[Code],0),1)),INDEX(YieldCalcs[TotCostsPerKg],MATCH(G24,YieldCalcs[Code],0),1),"") ->  | X24: =IF(ISERROR(INDEX(YieldCalcs[PreBoneCperkg],MATCH(G24,YieldCalcs[Code],0),1)),"",INDEX(YieldCalcs[PreBoneCperkg],MATCH(G24,YieldCalcs[Code],0),1)) ->  | Y24: =IF(ISERROR(INDEX(YieldCalcs[FixBoneCostperkg],MATCH(G24,YieldCalcs[Code],0),1)),"",INDEX(YieldCalcs[FixBoneCostperkg],MATCH(G24,YieldCalcs[Code],0),1)) ->  | Z24: =IF(ISERROR(INDEX(YieldCalcs[BoningCost],MATCH(G24,YieldCalcs[Code],0),1)),"",INDEX(YieldCalcs[BoningCost],MATCH(G24,YieldCalcs[Code],0),1)) ->  | AA24: =IF(ISNUMBER(INDEX(YieldCalcs[TotCosts],MATCH(G24,YieldCalcs[Code],0),1)),INDEX(YieldCalcs[TotCosts],MATCH(G24,YieldCalcs[Code],0),1),"") ->  | AB24: =IF(ISERROR(INDEX(YieldCalcs[BuyInPrice],MATCH(G24,YieldCalcs[Code],0),1)),"",INDEX(YieldCalcs[BuyInPrice],MATCH(G24,YieldCalcs[Code],0),1)) -> 
G25: =IF(ISERROR(INDEX(YieldCalcs[Code],MATCH(E25,YieldCalcs[CutName],0),1)),"",INDEX(YieldCalcs[Code],MATCH(E25,YieldCalcs[CutName],0),1)) ->  | H25: =IF(ISNA(MATCH(E25,YieldCalcs[CutName],0)),"",MATCH(E25,YieldCalcs[CutName],0)) ->  | I25: =IF(ISERROR(INDEX(YieldCalcs[PredWts],MATCH(G25,YieldCalcs[Code],0),1)),"",INDEX(YieldCalcs[PredWts],MATCH(G25,YieldCalcs[Code],0),1)) ->  | J25: =IF(ISERROR(INDEX(YieldCalcs[PredWts],MATCH(CONCATENATE(G25,"LT"),YieldCalcs[Code],0),1)),"",INDEX(YieldCalcs[PredWts],MATCH(CONCATENATE(G25,"LT"),YieldCalcs[Code],0),1)) ->  | K25: =IF(ISERROR(INDEX(YieldCalcs[PredWts],MATCH(CONCATENATE(G25,"F"),YieldCalcs[Code],0),1)),"",INDEX(YieldCalcs[PredWts],MATCH(CONCATENATE(G25,"F"),YieldCalcs[Code],0),1)) ->  | L25: =IF(ISERROR(INDEX(YieldCalcs[PredWts],MATCH(CONCATENATE(G25,"B"),YieldCalcs[Code],0),1)),"",INDEX(YieldCalcs[PredWts],MATCH(CONCATENATE(G25,"B"),YieldCalcs[Code],0),1)) ->  | M25: =IF(ISERROR(INDEX(YieldCalcs[PredWts],MATCH(CONCATENATE(G25,"W"),YieldCalcs[Code],0),1)),"",INDEX(YieldCalcs[PredWts],MATCH(CONCATENATE(G25,"W"),YieldCalcs[Code],0),1)) ->  | N25: =IF(ISERROR(INDEX(YieldCalcs[PredWts],MATCH(CONCATENATE(G25,"Pad"),YieldCalcs[Code],0),1)),"",INDEX(YieldCalcs[PredWts],MATCH(CONCATENATE(G25,"Pad"),YieldCalcs[Code],0),1)) ->  | O25: =IF(ISERROR(INDEX(YieldCalcs[PredWts],MATCH(CONCATENATE(G25,"Int"),YieldCalcs[Code],0),1)),"",INDEX(YieldCalcs[PredWts],MATCH(CONCATENATE(G25,"Int"),YieldCalcs[Code],0),1)) ->  | P25: =IF(ISERROR(INDEX(YieldCalcs[PredWts],MATCH(CONCATENATE(G25,"Skirt"),YieldCalcs[Code],0),1)),"",INDEX(YieldCalcs[PredWts],MATCH(CONCATENATE(G25,"Skirt"),YieldCalcs[Code],0),1)) ->  | Q25: =IF(ISERROR(INDEX(YieldCalcs[SalePrice],MATCH(G25,YieldCalcs[Code],0),1)),"",INDEX(YieldCalcs[SalePrice],MATCH(G25,YieldCalcs[Code],0),1)) ->  | R25: =IF(ISERROR(INDEX(YieldCalcs[CutValue],MATCH(G25,YieldCalcs[Code],0),1)),"",INDEX(YieldCalcs[CutValue],MATCH(G25,YieldCalcs[Code],0),1)) ->  | S25: =IF(ISERROR(INDEX(YieldCalcs[GM$],MATCH(G25,YieldCalcs[Code],0),1)),"",INDEX(YieldCalcs[GM$],MATCH(G25,YieldCalcs[Code],0),1)) ->  | T25: =IF(ISERROR(INDEX(YieldCalcs[GM%],MATCH(G25,YieldCalcs[Code],0),1)),"",INDEX(YieldCalcs[GM%],MATCH(G25,YieldCalcs[Code],0),1)) ->  | U25: =IF(ISERROR(INDEX(YieldCalcs[TGM%],MATCH(G25,YieldCalcs[Code],0),1)),"",INDEX(YieldCalcs[TGM%],MATCH(G25,YieldCalcs[Code],0),1)) ->  | V25: =IF(ISERROR(INDEX(YieldCalcs[TSalePrice],MATCH(G25,YieldCalcs[Code],0),1)),"",INDEX(YieldCalcs[TSalePrice],MATCH(G25,YieldCalcs[Code],0),1)) ->  | W25: =IF(ISNUMBER(INDEX(YieldCalcs[TotCostsPerKg],MATCH(G25,YieldCalcs[Code],0),1)),INDEX(YieldCalcs[TotCostsPerKg],MATCH(G25,YieldCalcs[Code],0),1),"") ->  | X25: =IF(ISERROR(INDEX(YieldCalcs[PreBoneCperkg],MATCH(G25,YieldCalcs[Code],0),1)),"",INDEX(YieldCalcs[PreBoneCperkg],MATCH(G25,YieldCalcs[Code],0),1)) ->  | Y25: =IF(ISERROR(INDEX(YieldCalcs[FixBoneCostperkg],MATCH(G25,YieldCalcs[Code],0),1)),"",INDEX(YieldCalcs[FixBoneCostperkg],MATCH(G25,YieldCalcs[Code],0),1)) ->  | Z25: =IF(ISERROR(INDEX(YieldCalcs[BoningCost],MATCH(G25,YieldCalcs[Code],0),1)),"",INDEX(YieldCalcs[BoningCost],MATCH(G25,YieldCalcs[Code],0),1)) ->  | AA25: =IF(ISNUMBER(INDEX(YieldCalcs[TotCosts],MATCH(G25,YieldCalcs[Code],0),1)),INDEX(YieldCalcs[TotCosts],MATCH(G25,YieldCalcs[Code],0),1),"") ->  | AB25: =IF(ISERROR(INDEX(YieldCalcs[BuyInPrice],MATCH(G25,YieldCalcs[Code],0),1)),"",INDEX(YieldCalcs[BuyInPrice],MATCH(G25,YieldCalcs[Code],0),1)) -> 
B27: Neck | E27: Neck Straight Cut | F27: =IF(E33<>"",7,IF(E32<>"",6,IF(E31<>"",5,IF(E30<>"",4,IF(E29<>"",3,IF(E28<>"",2,IF(E27<>"",1,0))))))) -> 1 | G27: =IF(ISERROR(INDEX(YieldCalcs[Code],MATCH(E27,YieldCalcs[CutName],0),1)),"",INDEX(YieldCalcs[Code],MATCH(E27,YieldCalcs[CutName],0),1)) -> FQ02.4 | H27: =IF(ISNA(MATCH(E27,YieldCalcs[CutName],0)),"",MATCH(E27,YieldCalcs[CutName],0)) -> 131 | I27: =IF(ISERROR(INDEX(YieldCalcs[PredWts],MATCH(G27,YieldCalcs[Code],0),1)),"",INDEX(YieldCalcs[PredWts],MATCH(G27,YieldCalcs[Code],0),1)) -> 0.59 | J27: =IF(ISERROR(INDEX(YieldCalcs[PredWts],MATCH(CONCATENATE(G27,"LT"),YieldCalcs[Code],0),1)),"",INDEX(YieldCalcs[PredWts],MATCH(CONCATENATE(G27,"LT"),YieldCalcs[Code],0),1)) ->  | K27: =IF(ISERROR(INDEX(YieldCalcs[PredWts],MATCH(CONCATENATE(G27,"F"),YieldCalcs[Code],0),1)),"",INDEX(YieldCalcs[PredWts],MATCH(CONCATENATE(G27,"F"),YieldCalcs[Code],0),1)) ->  | L27: =IF(ISERROR(INDEX(YieldCalcs[PredWts],MATCH(CONCATENATE(G27,"B"),YieldCalcs[Code],0),1)),"",INDEX(YieldCalcs[PredWts],MATCH(CONCATENATE(G27,"B"),YieldCalcs[Code],0),1)) ->  | M27: =IF(ISERROR(INDEX(YieldCalcs[PredWts],MATCH(CONCATENATE(G27,"W"),YieldCalcs[Code],0),1)),"",INDEX(YieldCalcs[PredWts],MATCH(CONCATENATE(G27,"W"),YieldCalcs[Code],0),1)) ->  | N27: =IF(ISERROR(INDEX(YieldCalcs[PredWts],MATCH(CONCATENATE(G27,"Pad"),YieldCalcs[Code],0),1)),"",INDEX(YieldCalcs[PredWts],MATCH(CONCATENATE(G27,"Pad"),YieldCalcs[Code],0),1)) ->  | O27: =IF(ISERROR(INDEX(YieldCalcs[PredWts],MATCH(CONCATENATE(G27,"Int"),YieldCalcs[Code],0),1)),"",INDEX(YieldCalcs[PredWts],MATCH(CONCATENATE(G27,"Int"),YieldCalcs[Code],0),1)) ->  | P27: =IF(ISERROR(INDEX(YieldCalcs[PredWts],MATCH(CONCATENATE(G27,"Skirt"),YieldCalcs[Code],0),1)),"",INDEX(YieldCalcs[PredWts],MATCH(CONCATENATE(G27,"Skirt"),YieldCalcs[Code],0),1)) ->  | Q27: =IF(ISERROR(INDEX(YieldCalcs[SalePrice],MATCH(G27,YieldCalcs[Code],0),1)),"",INDEX(YieldCalcs[SalePrice],MATCH(G27,YieldCalcs[Code],0),1)) -> 4 | R27: =IF(ISERROR(INDEX(YieldCalcs[CutValue],MATCH(G27,YieldCalcs[Code],0),1)),"",INDEX(YieldCalcs[CutValue],MATCH(G27,YieldCalcs[Code],0),1)) -> 2.36 | S27: =IF(ISERROR(INDEX(YieldCalcs[GM$],MATCH(G27,YieldCalcs[Code],0),1)),"",INDEX(YieldCalcs[GM$],MATCH(G27,YieldCalcs[Code],0),1)) -> -9.32980005 | T27: =IF(ISERROR(INDEX(YieldCalcs[GM%],MATCH(G27,YieldCalcs[Code],0),1)),"",INDEX(YieldCalcs[GM%],MATCH(G27,YieldCalcs[Code],0),1)) -> -3.953305106 | U27: =IF(ISERROR(INDEX(YieldCalcs[TGM%],MATCH(G27,YieldCalcs[Code],0),1)),"",INDEX(YieldCalcs[TGM%],MATCH(G27,YieldCalcs[Code],0),1)) ->  | V27: =IF(ISERROR(INDEX(YieldCalcs[TSalePrice],MATCH(G27,YieldCalcs[Code],0),1)),"",INDEX(YieldCalcs[TSalePrice],MATCH(G27,YieldCalcs[Code],0),1)) ->  | W27: =IF(ISNUMBER(INDEX(YieldCalcs[TotCostsPerKg],MATCH(G27,YieldCalcs[Code],0),1)),INDEX(YieldCalcs[TotCostsPerKg],MATCH(G27,YieldCalcs[Code],0),1),"") -> 19.81322042 | X27: =IF(ISERROR(INDEX(YieldCalcs[PreBoneCperkg],MATCH(G27,YieldCalcs[Code],0),1)),"",INDEX(YieldCalcs[PreBoneCperkg],MATCH(G27,YieldCalcs[Code],0),1)) -> 19.49322034 | Y27: =IF(ISERROR(INDEX(YieldCalcs[FixBoneCostperkg],MATCH(G27,YieldCalcs[Code],0),1)),"",INDEX(YieldCalcs[FixBoneCostperkg],MATCH(G27,YieldCalcs[Code],0),1)) -> 8.474576271e-08 | Z27: =IF(ISERROR(INDEX(YieldCalcs[BoningCost],MATCH(G27,YieldCalcs[Code],0),1)),"",INDEX(YieldCalcs[BoningCost],MATCH(G27,YieldCalcs[Code],0),1)) -> 0.32 | AA27: =IF(ISNUMBER(INDEX(YieldCalcs[TotCosts],MATCH(G27,YieldCalcs[Code],0),1)),INDEX(YieldCalcs[TotCosts],MATCH(G27,YieldCalcs[Code],0),1),"") -> 11.68980005 | AB27: =IF(ISERROR(INDEX(YieldCalcs[BuyInPrice],MATCH(G27,YieldCalcs[Code],0),1)),"",INDEX(YieldCalcs[BuyInPrice],MATCH(G27,YieldCalcs[Code],0),1)) -> 0
C28: Neck | G28: =IF(ISERROR(INDEX(YieldCalcs[Code],MATCH(E28,YieldCalcs[CutName],0),1)),"",INDEX(YieldCalcs[Code],MATCH(E28,YieldCalcs[CutName],0),1)) ->  | H28: =IF(ISNA(MATCH(E28,YieldCalcs[CutName],0)),"",MATCH(E28,YieldCalcs[CutName],0)) ->  | I28: =IF(ISERROR(INDEX(YieldCalcs[PredWts],MATCH(G28,YieldCalcs[Code],0),1)),"",INDEX(YieldCalcs[PredWts],MATCH(G28,YieldCalcs[Code],0),1)) ->  | J28: =IF(ISERROR(INDEX(YieldCalcs[PredWts],MATCH(CONCATENATE(G28,"LT"),YieldCalcs[Code],0),1)),"",INDEX(YieldCalcs[PredWts],MATCH(CONCATENATE(G28,"LT"),YieldCalcs[Code],0),1)) ->  | K28: =IF(ISERROR(INDEX(YieldCalcs[PredWts],MATCH(CONCATENATE(G28,"F"),YieldCalcs[Code],0),1)),"",INDEX(YieldCalcs[PredWts],MATCH(CONCATENATE(G28,"F"),YieldCalcs[Code],0),1)) ->  | L28: =IF(ISERROR(INDEX(YieldCalcs[PredWts],MATCH(CONCATENATE(G28,"B"),YieldCalcs[Code],0),1)),"",INDEX(YieldCalcs[PredWts],MATCH(CONCATENATE(G28,"B"),YieldCalcs[Code],0),1)) ->  | M28: =IF(ISERROR(INDEX(YieldCalcs[PredWts],MATCH(CONCATENATE(G28,"W"),YieldCalcs[Code],0),1)),"",INDEX(YieldCalcs[PredWts],MATCH(CONCATENATE(G28,"W"),YieldCalcs[Code],0),1)) ->  | N28: =IF(ISERROR(INDEX(YieldCalcs[PredWts],MATCH(CONCATENATE(G28,"Pad"),YieldCalcs[Code],0),1)),"",INDEX(YieldCalcs[PredWts],MATCH(CONCATENATE(G28,"Pad"),YieldCalcs[Code],0),1)) ->  | O28: =IF(ISERROR(INDEX(YieldCalcs[PredWts],MATCH(CONCATENATE(G28,"Int"),YieldCalcs[Code],0),1)),"",INDEX(YieldCalcs[PredWts],MATCH(CONCATENATE(G28,"Int"),YieldCalcs[Code],0),1)) ->  | P28: =IF(ISERROR(INDEX(YieldCalcs[PredWts],MATCH(CONCATENATE(G28,"Skirt"),YieldCalcs[Code],0),1)),"",INDEX(YieldCalcs[PredWts],MATCH(CONCATENATE(G28,"Skirt"),YieldCalcs[Code],0),1)) ->  | Q28: =IF(ISERROR(INDEX(YieldCalcs[SalePrice],MATCH(G28,YieldCalcs[Code],0),1)),"",INDEX(YieldCalcs[SalePrice],MATCH(G28,YieldCalcs[Code],0),1)) ->  | R28: =IF(ISERROR(INDEX(YieldCalcs[CutValue],MATCH(G28,YieldCalcs[Code],0),1)),"",INDEX(YieldCalcs[CutValue],MATCH(G28,YieldCalcs[Code],0),1)) ->  | S28: =IF(ISERROR(INDEX(YieldCalcs[GM$],MATCH(G28,YieldCalcs[Code],0),1)),"",INDEX(YieldCalcs[GM$],MATCH(G28,YieldCalcs[Code],0),1)) ->  | T28: =IF(ISERROR(INDEX(YieldCalcs[GM%],MATCH(G28,YieldCalcs[Code],0),1)),"",INDEX(YieldCalcs[GM%],MATCH(G28,YieldCalcs[Code],0),1)) ->  | U28: =IF(ISERROR(INDEX(YieldCalcs[TGM%],MATCH(G28,YieldCalcs[Code],0),1)),"",INDEX(YieldCalcs[TGM%],MATCH(G28,YieldCalcs[Code],0),1)) ->  | V28: =IF(ISERROR(INDEX(YieldCalcs[TSalePrice],MATCH(G28,YieldCalcs[Code],0),1)),"",INDEX(YieldCalcs[TSalePrice],MATCH(G28,YieldCalcs[Code],0),1)) ->  | W28: =IF(ISNUMBER(INDEX(YieldCalcs[TotCostsPerKg],MATCH(G28,YieldCalcs[Code],0),1)),INDEX(YieldCalcs[TotCostsPerKg],MATCH(G28,YieldCalcs[Code],0),1),"") ->  | X28: =IF(ISERROR(INDEX(YieldCalcs[PreBoneCperkg],MATCH(G28,YieldCalcs[Code],0),1)),"",INDEX(YieldCalcs[PreBoneCperkg],MATCH(G28,YieldCalcs[Code],0),1)) ->  | Y28: =IF(ISERROR(INDEX(YieldCalcs[FixBoneCostperkg],MATCH(G28,YieldCalcs[Code],0),1)),"",INDEX(YieldCalcs[FixBoneCostperkg],MATCH(G28,YieldCalcs[Code],0),1)) ->  | Z28: =IF(ISERROR(INDEX(YieldCalcs[BoningCost],MATCH(G28,YieldCalcs[Code],0),1)),"",INDEX(YieldCalcs[BoningCost],MATCH(G28,YieldCalcs[Code],0),1)) ->  | AA28: =IF(ISNUMBER(INDEX(YieldCalcs[TotCosts],MATCH(G28,YieldCalcs[Code],0),1)),INDEX(YieldCalcs[TotCosts],MATCH(G28,YieldCalcs[Code],0),1),"") ->  | AB28: =IF(ISERROR(INDEX(YieldCalcs[BuyInPrice],MATCH(G28,YieldCalcs[Code],0),1)),"",INDEX(YieldCalcs[BuyInPrice],MATCH(G28,YieldCalcs[Code],0),1)) -> 
G29: =IF(ISERROR(INDEX(YieldCalcs[Code],MATCH(E29,YieldCalcs[CutName],0),1)),"",INDEX(YieldCalcs[Code],MATCH(E29,YieldCalcs[CutName],0),1)) ->  | H29: =IF(ISNA(MATCH(E29,YieldCalcs[CutName],0)),"",MATCH(E29,YieldCalcs[CutName],0)) ->  | I29: =IF(ISERROR(INDEX(YieldCalcs[PredWts],MATCH(G29,YieldCalcs[Code],0),1)),"",INDEX(YieldCalcs[PredWts],MATCH(G29,YieldCalcs[Code],0),1)) ->  | J29: =IF(ISERROR(INDEX(YieldCalcs[PredWts],MATCH(CONCATENATE(G29,"LT"),YieldCalcs[Code],0),1)),"",INDEX(YieldCalcs[PredWts],MATCH(CONCATENATE(G29,"LT"),YieldCalcs[Code],0),1)) ->  | K29: =IF(ISERROR(INDEX(YieldCalcs[PredWts],MATCH(CONCATENATE(G29,"F"),YieldCalcs[Code],0),1)),"",INDEX(YieldCalcs[PredWts],MATCH(CONCATENATE(G29,"F"),YieldCalcs[Code],0),1)) ->  | L29: =IF(ISERROR(INDEX(YieldCalcs[PredWts],MATCH(CONCATENATE(G29,"B"),YieldCalcs[Code],0),1)),"",INDEX(YieldCalcs[PredWts],MATCH(CONCATENATE(G29,"B"),YieldCalcs[Code],0),1)) ->  | M29: =IF(ISERROR(INDEX(YieldCalcs[PredWts],MATCH(CONCATENATE(G29,"W"),YieldCalcs[Code],0),1)),"",INDEX(YieldCalcs[PredWts],MATCH(CONCATENATE(G29,"W"),YieldCalcs[Code],0),1)) ->  | N29: =IF(ISERROR(INDEX(YieldCalcs[PredWts],MATCH(CONCATENATE(G29,"Pad"),YieldCalcs[Code],0),1)),"",INDEX(YieldCalcs[PredWts],MATCH(CONCATENATE(G29,"Pad"),YieldCalcs[Code],0),1)) ->  | O29: =IF(ISERROR(INDEX(YieldCalcs[PredWts],MATCH(CONCATENATE(G29,"Int"),YieldCalcs[Code],0),1)),"",INDEX(YieldCalcs[PredWts],MATCH(CONCATENATE(G29,"Int"),YieldCalcs[Code],0),1)) ->  | P29: =IF(ISERROR(INDEX(YieldCalcs[PredWts],MATCH(CONCATENATE(G29,"Skirt"),YieldCalcs[Code],0),1)),"",INDEX(YieldCalcs[PredWts],MATCH(CONCATENATE(G29,"Skirt"),YieldCalcs[Code],0),1)) ->  | Q29: =IF(ISERROR(INDEX(YieldCalcs[SalePrice],MATCH(G29,YieldCalcs[Code],0),1)),"",INDEX(YieldCalcs[SalePrice],MATCH(G29,YieldCalcs[Code],0),1)) ->  | R29: =IF(ISERROR(INDEX(YieldCalcs[CutValue],MATCH(G29,YieldCalcs[Code],0),1)),"",INDEX(YieldCalcs[CutValue],MATCH(G29,YieldCalcs[Code],0),1)) ->  | S29: =IF(ISERROR(INDEX(YieldCalcs[GM$],MATCH(G29,YieldCalcs[Code],0),1)),"",INDEX(YieldCalcs[GM$],MATCH(G29,YieldCalcs[Code],0),1)) ->  | T29: =IF(ISERROR(INDEX(YieldCalcs[GM%],MATCH(G29,YieldCalcs[Code],0),1)),"",INDEX(YieldCalcs[GM%],MATCH(G29,YieldCalcs[Code],0),1)) ->  | U29: =IF(ISERROR(INDEX(YieldCalcs[TGM%],MATCH(G29,YieldCalcs[Code],0),1)),"",INDEX(YieldCalcs[TGM%],MATCH(G29,YieldCalcs[Code],0),1)) ->  | V29: =IF(ISERROR(INDEX(YieldCalcs[TSalePrice],MATCH(G29,YieldCalcs[Code],0),1)),"",INDEX(YieldCalcs[TSalePrice],MATCH(G29,YieldCalcs[Code],0),1)) ->  | W29: =IF(ISNUMBER(INDEX(YieldCalcs[TotCostsPerKg],MATCH(G29,YieldCalcs[Code],0),1)),INDEX(YieldCalcs[TotCostsPerKg],MATCH(G29,YieldCalcs[Code],0),1),"") ->  | X29: =IF(ISERROR(INDEX(YieldCalcs[PreBoneCperkg],MATCH(G29,YieldCalcs[Code],0),1)),"",INDEX(YieldCalcs[PreBoneCperkg],MATCH(G29,YieldCalcs[Code],0),1)) ->  | Y29: =IF(ISERROR(INDEX(YieldCalcs[FixBoneCostperkg],MATCH(G29,YieldCalcs[Code],0),1)),"",INDEX(YieldCalcs[FixBoneCostperkg],MATCH(G29,YieldCalcs[Code],0),1)) ->  | Z29: =IF(ISERROR(INDEX(YieldCalcs[BoningCost],MATCH(G29,YieldCalcs[Code],0),1)),"",INDEX(YieldCalcs[BoningCost],MATCH(G29,YieldCalcs[Code],0),1)) ->  | AA29: =IF(ISNUMBER(INDEX(YieldCalcs[TotCosts],MATCH(G29,YieldCalcs[Code],0),1)),INDEX(YieldCalcs[TotCosts],MATCH(G29,YieldCalcs[Code],0),1),"") ->  | AB29: =IF(ISERROR(INDEX(YieldCalcs[BuyInPrice],MATCH(G29,YieldCalcs[Code],0),1)),"",INDEX(YieldCalcs[BuyInPrice],MATCH(G29,YieldCalcs[Code],0),1)) -> 
G30: =IF(ISERROR(INDEX(YieldCalcs[Code],MATCH(E30,YieldCalcs[CutName],0),1)),"",INDEX(YieldCalcs[Code],MATCH(E30,YieldCalcs[CutName],0),1)) ->  | H30: =IF(ISNA(MATCH(E30,YieldCalcs[CutName],0)),"",MATCH(E30,YieldCalcs[CutName],0)) ->  | I30: =IF(ISERROR(INDEX(YieldCalcs[PredWts],MATCH(G30,YieldCalcs[Code],0),1)),"",INDEX(YieldCalcs[PredWts],MATCH(G30,YieldCalcs[Code],0),1)) ->  | J30: =IF(ISERROR(INDEX(YieldCalcs[PredWts],MATCH(CONCATENATE(G30,"LT"),YieldCalcs[Code],0),1)),"",INDEX(YieldCalcs[PredWts],MATCH(CONCATENATE(G30,"LT"),YieldCalcs[Code],0),1)) ->  | K30: =IF(ISERROR(INDEX(YieldCalcs[PredWts],MATCH(CONCATENATE(G30,"F"),YieldCalcs[Code],0),1)),"",INDEX(YieldCalcs[PredWts],MATCH(CONCATENATE(G30,"F"),YieldCalcs[Code],0),1)) ->  | L30: =IF(ISERROR(INDEX(YieldCalcs[PredWts],MATCH(CONCATENATE(G30,"B"),YieldCalcs[Code],0),1)),"",INDEX(YieldCalcs[PredWts],MATCH(CONCATENATE(G30,"B"),YieldCalcs[Code],0),1)) ->  | M30: =IF(ISERROR(INDEX(YieldCalcs[PredWts],MATCH(CONCATENATE(G30,"W"),YieldCalcs[Code],0),1)),"",INDEX(YieldCalcs[PredWts],MATCH(CONCATENATE(G30,"W"),YieldCalcs[Code],0),1)) ->  | N30: =IF(ISERROR(INDEX(YieldCalcs[PredWts],MATCH(CONCATENATE(G30,"Pad"),YieldCalcs[Code],0),1)),"",INDEX(YieldCalcs[PredWts],MATCH(CONCATENATE(G30,"Pad"),YieldCalcs[Code],0),1)) ->  | O30: =IF(ISERROR(INDEX(YieldCalcs[PredWts],MATCH(CONCATENATE(G30,"Int"),YieldCalcs[Code],0),1)),"",INDEX(YieldCalcs[PredWts],MATCH(CONCATENATE(G30,"Int"),YieldCalcs[Code],0),1)) ->  | P30: =IF(ISERROR(INDEX(YieldCalcs[PredWts],MATCH(CONCATENATE(G30,"Skirt"),YieldCalcs[Code],0),1)),"",INDEX(YieldCalcs[PredWts],MATCH(CONCATENATE(G30,"Skirt"),YieldCalcs[Code],0),1)) ->  | Q30: =IF(ISERROR(INDEX(YieldCalcs[SalePrice],MATCH(G30,YieldCalcs[Code],0),1)),"",INDEX(YieldCalcs[SalePrice],MATCH(G30,YieldCalcs[Code],0),1)) ->  | R30: =IF(ISERROR(INDEX(YieldCalcs[CutValue],MATCH(G30,YieldCalcs[Code],0),1)),"",INDEX(YieldCalcs[CutValue],MATCH(G30,YieldCalcs[Code],0),1)) ->  | S30: =IF(ISERROR(INDEX(YieldCalcs[GM$],MATCH(G30,YieldCalcs[Code],0),1)),"",INDEX(YieldCalcs[GM$],MATCH(G30,YieldCalcs[Code],0),1)) ->  | T30: =IF(ISERROR(INDEX(YieldCalcs[GM%],MATCH(G30,YieldCalcs[Code],0),1)),"",INDEX(YieldCalcs[GM%],MATCH(G30,YieldCalcs[Code],0),1)) ->  | U30: =IF(ISERROR(INDEX(YieldCalcs[TGM%],MATCH(G30,YieldCalcs[Code],0),1)),"",INDEX(YieldCalcs[TGM%],MATCH(G30,YieldCalcs[Code],0),1)) ->  | V30: =IF(ISERROR(INDEX(YieldCalcs[TSalePrice],MATCH(G30,YieldCalcs[Code],0),1)),"",INDEX(YieldCalcs[TSalePrice],MATCH(G30,YieldCalcs[Code],0),1)) ->  | W30: =IF(ISNUMBER(INDEX(YieldCalcs[TotCostsPerKg],MATCH(G30,YieldCalcs[Code],0),1)),INDEX(YieldCalcs[TotCostsPerKg],MATCH(G30,YieldCalcs[Code],0),1),"") ->  | X30: =IF(ISERROR(INDEX(YieldCalcs[PreBoneCperkg],MATCH(G30,YieldCalcs[Code],0),1)),"",INDEX(YieldCalcs[PreBoneCperkg],MATCH(G30,YieldCalcs[Code],0),1)) ->  | Y30: =IF(ISERROR(INDEX(YieldCalcs[FixBoneCostperkg],MATCH(G30,YieldCalcs[Code],0),1)),"",INDEX(YieldCalcs[FixBoneCostperkg],MATCH(G30,YieldCalcs[Code],0),1)) ->  | Z30: =IF(ISERROR(INDEX(YieldCalcs[BoningCost],MATCH(G30,YieldCalcs[Code],0),1)),"",INDEX(YieldCalcs[BoningCost],MATCH(G30,YieldCalcs[Code],0),1)) ->  | AA30: =IF(ISNUMBER(INDEX(YieldCalcs[TotCosts],MATCH(G30,YieldCalcs[Code],0),1)),INDEX(YieldCalcs[TotCosts],MATCH(G30,YieldCalcs[Code],0),1),"") ->  | AB30: =IF(ISERROR(INDEX(YieldCalcs[BuyInPrice],MATCH(G30,YieldCalcs[Code],0),1)),"",INDEX(YieldCalcs[BuyInPrice],MATCH(G30,YieldCalcs[Code],0),1)) -> 
G31: =IF(ISERROR(INDEX(YieldCalcs[Code],MATCH(E31,YieldCalcs[CutName],0),1)),"",INDEX(YieldCalcs[Code],MATCH(E31,YieldCalcs[CutName],0),1)) ->  | H31: =IF(ISNA(MATCH(E31,YieldCalcs[CutName],0)),"",MATCH(E31,YieldCalcs[CutName],0)) ->  | I31: =IF(ISERROR(INDEX(YieldCalcs[PredWts],MATCH(G31,YieldCalcs[Code],0),1)),"",INDEX(YieldCalcs[PredWts],MATCH(G31,YieldCalcs[Code],0),1)) ->  | J31: =IF(ISERROR(INDEX(YieldCalcs[PredWts],MATCH(CONCATENATE(G31,"LT"),YieldCalcs[Code],0),1)),"",INDEX(YieldCalcs[PredWts],MATCH(CONCATENATE(G31,"LT"),YieldCalcs[Code],0),1)) ->  | K31: =IF(ISERROR(INDEX(YieldCalcs[PredWts],MATCH(CONCATENATE(G31,"F"),YieldCalcs[Code],0),1)),"",INDEX(YieldCalcs[PredWts],MATCH(CONCATENATE(G31,"F"),YieldCalcs[Code],0),1)) ->  | L31: =IF(ISERROR(INDEX(YieldCalcs[PredWts],MATCH(CONCATENATE(G31,"B"),YieldCalcs[Code],0),1)),"",INDEX(YieldCalcs[PredWts],MATCH(CONCATENATE(G31,"B"),YieldCalcs[Code],0),1)) ->  | M31: =IF(ISERROR(INDEX(YieldCalcs[PredWts],MATCH(CONCATENATE(G31,"W"),YieldCalcs[Code],0),1)),"",INDEX(YieldCalcs[PredWts],MATCH(CONCATENATE(G31,"W"),YieldCalcs[Code],0),1)) ->  | N31: =IF(ISERROR(INDEX(YieldCalcs[PredWts],MATCH(CONCATENATE(G31,"Pad"),YieldCalcs[Code],0),1)),"",INDEX(YieldCalcs[PredWts],MATCH(CONCATENATE(G31,"Pad"),YieldCalcs[Code],0),1)) ->  | O31: =IF(ISERROR(INDEX(YieldCalcs[PredWts],MATCH(CONCATENATE(G31,"Int"),YieldCalcs[Code],0),1)),"",INDEX(YieldCalcs[PredWts],MATCH(CONCATENATE(G31,"Int"),YieldCalcs[Code],0),1)) ->  | P31: =IF(ISERROR(INDEX(YieldCalcs[PredWts],MATCH(CONCATENATE(G31,"Skirt"),YieldCalcs[Code],0),1)),"",INDEX(YieldCalcs[PredWts],MATCH(CONCATENATE(G31,"Skirt"),YieldCalcs[Code],0),1)) ->  | Q31: =IF(ISERROR(INDEX(YieldCalcs[SalePrice],MATCH(G31,YieldCalcs[Code],0),1)),"",INDEX(YieldCalcs[SalePrice],MATCH(G31,YieldCalcs[Code],0),1)) ->  | R31: =IF(ISERROR(INDEX(YieldCalcs[CutValue],MATCH(G31,YieldCalcs[Code],0),1)),"",INDEX(YieldCalcs[CutValue],MATCH(G31,YieldCalcs[Code],0),1)) ->  | S31: =IF(ISERROR(INDEX(YieldCalcs[GM$],MATCH(G31,YieldCalcs[Code],0),1)),"",INDEX(YieldCalcs[GM$],MATCH(G31,YieldCalcs[Code],0),1)) ->  | T31: =IF(ISERROR(INDEX(YieldCalcs[GM%],MATCH(G31,YieldCalcs[Code],0),1)),"",INDEX(YieldCalcs[GM%],MATCH(G31,YieldCalcs[Code],0),1)) ->  | U31: =IF(ISERROR(INDEX(YieldCalcs[TGM%],MATCH(G31,YieldCalcs[Code],0),1)),"",INDEX(YieldCalcs[TGM%],MATCH(G31,YieldCalcs[Code],0),1)) ->  | V31: =IF(ISERROR(INDEX(YieldCalcs[TSalePrice],MATCH(G31,YieldCalcs[Code],0),1)),"",INDEX(YieldCalcs[TSalePrice],MATCH(G31,YieldCalcs[Code],0),1)) ->  | W31: =IF(ISNUMBER(INDEX(YieldCalcs[TotCostsPerKg],MATCH(G31,YieldCalcs[Code],0),1)),INDEX(YieldCalcs[TotCostsPerKg],MATCH(G31,YieldCalcs[Code],0),1),"") ->  | X31: =IF(ISERROR(INDEX(YieldCalcs[PreBoneCperkg],MATCH(G31,YieldCalcs[Code],0),1)),"",INDEX(YieldCalcs[PreBoneCperkg],MATCH(G31,YieldCalcs[Code],0),1)) ->  | Y31: =IF(ISERROR(INDEX(YieldCalcs[FixBoneCostperkg],MATCH(G31,YieldCalcs[Code],0),1)),"",INDEX(YieldCalcs[FixBoneCostperkg],MATCH(G31,YieldCalcs[Code],0),1)) ->  | Z31: =IF(ISERROR(INDEX(YieldCalcs[BoningCost],MATCH(G31,YieldCalcs[Code],0),1)),"",INDEX(YieldCalcs[BoningCost],MATCH(G31,YieldCalcs[Code],0),1)) ->  | AA31: =IF(ISNUMBER(INDEX(YieldCalcs[TotCosts],MATCH(G31,YieldCalcs[Code],0),1)),INDEX(YieldCalcs[TotCosts],MATCH(G31,YieldCalcs[Code],0),1),"") ->  | AB31: =IF(ISERROR(INDEX(YieldCalcs[BuyInPrice],MATCH(G31,YieldCalcs[Code],0),1)),"",INDEX(YieldCalcs[BuyInPrice],MATCH(G31,YieldCalcs[Code],0),1)) -> 
G32: =IF(ISERROR(INDEX(YieldCalcs[Code],MATCH(E32,YieldCalcs[CutName],0),1)),"",INDEX(YieldCalcs[Code],MATCH(E32,YieldCalcs[CutName],0),1)) ->  | H32: =IF(ISNA(MATCH(E32,YieldCalcs[CutName],0)),"",MATCH(E32,YieldCalcs[CutName],0)) ->  | I32: =IF(ISERROR(INDEX(YieldCalcs[PredWts],MATCH(G32,YieldCalcs[Code],0),1)),"",INDEX(YieldCalcs[PredWts],MATCH(G32,YieldCalcs[Code],0),1)) ->  | J32: =IF(ISERROR(INDEX(YieldCalcs[PredWts],MATCH(CONCATENATE(G32,"LT"),YieldCalcs[Code],0),1)),"",INDEX(YieldCalcs[PredWts],MATCH(CONCATENATE(G32,"LT"),YieldCalcs[Code],0),1)) ->  | K32: =IF(ISERROR(INDEX(YieldCalcs[PredWts],MATCH(CONCATENATE(G32,"F"),YieldCalcs[Code],0),1)),"",INDEX(YieldCalcs[PredWts],MATCH(CONCATENATE(G32,"F"),YieldCalcs[Code],0),1)) ->  | L32: =IF(ISERROR(INDEX(YieldCalcs[PredWts],MATCH(CONCATENATE(G32,"B"),YieldCalcs[Code],0),1)),"",INDEX(YieldCalcs[PredWts],MATCH(CONCATENATE(G32,"B"),YieldCalcs[Code],0),1)) ->  | M32: =IF(ISERROR(INDEX(YieldCalcs[PredWts],MATCH(CONCATENATE(G32,"W"),YieldCalcs[Code],0),1)),"",INDEX(YieldCalcs[PredWts],MATCH(CONCATENATE(G32,"W"),YieldCalcs[Code],0),1)) ->  | N32: =IF(ISERROR(INDEX(YieldCalcs[PredWts],MATCH(CONCATENATE(G32,"Pad"),YieldCalcs[Code],0),1)),"",INDEX(YieldCalcs[PredWts],MATCH(CONCATENATE(G32,"Pad"),YieldCalcs[Code],0),1)) ->  | O32: =IF(ISERROR(INDEX(YieldCalcs[PredWts],MATCH(CONCATENATE(G32,"Int"),YieldCalcs[Code],0),1)),"",INDEX(YieldCalcs[PredWts],MATCH(CONCATENATE(G32,"Int"),YieldCalcs[Code],0),1)) ->  | P32: =IF(ISERROR(INDEX(YieldCalcs[PredWts],MATCH(CONCATENATE(G32,"Skirt"),YieldCalcs[Code],0),1)),"",INDEX(YieldCalcs[PredWts],MATCH(CONCATENATE(G32,"Skirt"),YieldCalcs[Code],0),1)) ->  | Q32: =IF(ISERROR(INDEX(YieldCalcs[SalePrice],MATCH(G32,YieldCalcs[Code],0),1)),"",INDEX(YieldCalcs[SalePrice],MATCH(G32,YieldCalcs[Code],0),1)) ->  | R32: =IF(ISERROR(INDEX(YieldCalcs[CutValue],MATCH(G32,YieldCalcs[Code],0),1)),"",INDEX(YieldCalcs[CutValue],MATCH(G32,YieldCalcs[Code],0),1)) ->  | S32: =IF(ISERROR(INDEX(YieldCalcs[GM$],MATCH(G32,YieldCalcs[Code],0),1)),"",INDEX(YieldCalcs[GM$],MATCH(G32,YieldCalcs[Code],0),1)) ->  | T32: =IF(ISERROR(INDEX(YieldCalcs[GM%],MATCH(G32,YieldCalcs[Code],0),1)),"",INDEX(YieldCalcs[GM%],MATCH(G32,YieldCalcs[Code],0),1)) ->  | U32: =IF(ISERROR(INDEX(YieldCalcs[TGM%],MATCH(G32,YieldCalcs[Code],0),1)),"",INDEX(YieldCalcs[TGM%],MATCH(G32,YieldCalcs[Code],0),1)) ->  | V32: =IF(ISERROR(INDEX(YieldCalcs[TSalePrice],MATCH(G32,YieldCalcs[Code],0),1)),"",INDEX(YieldCalcs[TSalePrice],MATCH(G32,YieldCalcs[Code],0),1)) ->  | W32: =IF(ISNUMBER(INDEX(YieldCalcs[TotCostsPerKg],MATCH(G32,YieldCalcs[Code],0),1)),INDEX(YieldCalcs[TotCostsPerKg],MATCH(G32,YieldCalcs[Code],0),1),"") ->  | X32: =IF(ISERROR(INDEX(YieldCalcs[PreBoneCperkg],MATCH(G32,YieldCalcs[Code],0),1)),"",INDEX(YieldCalcs[PreBoneCperkg],MATCH(G32,YieldCalcs[Code],0),1)) ->  | Y32: =IF(ISERROR(INDEX(YieldCalcs[FixBoneCostperkg],MATCH(G32,YieldCalcs[Code],0),1)),"",INDEX(YieldCalcs[FixBoneCostperkg],MATCH(G32,YieldCalcs[Code],0),1)) ->  | Z32: =IF(ISERROR(INDEX(YieldCalcs[BoningCost],MATCH(G32,YieldCalcs[Code],0),1)),"",INDEX(YieldCalcs[BoningCost],MATCH(G32,YieldCalcs[Code],0),1)) ->  | AA32: =IF(ISNUMBER(INDEX(YieldCalcs[TotCosts],MATCH(G32,YieldCalcs[Code],0),1)),INDEX(YieldCalcs[TotCosts],MATCH(G32,YieldCalcs[Code],0),1),"") ->  | AB32: =IF(ISERROR(INDEX(YieldCalcs[BuyInPrice],MATCH(G32,YieldCalcs[Code],0),1)),"",INDEX(YieldCalcs[BuyInPrice],MATCH(G32,YieldCalcs[Code],0),1)) -> 
G33: =IF(ISERROR(INDEX(YieldCalcs[Code],MATCH(E33,YieldCalcs[CutName],0),1)),"",INDEX(YieldCalcs[Code],MATCH(E33,YieldCalcs[CutName],0),1)) ->  | H33: =IF(ISNA(MATCH(E33,YieldCalcs[CutName],0)),"",MATCH(E33,YieldCalcs[CutName],0)) ->  | I33: =IF(ISERROR(INDEX(YieldCalcs[PredWts],MATCH(G33,YieldCalcs[Code],0),1)),"",INDEX(YieldCalcs[PredWts],MATCH(G33,YieldCalcs[Code],0),1)) ->  | J33: =IF(ISERROR(INDEX(YieldCalcs[PredWts],MATCH(CONCATENATE(G33,"LT"),YieldCalcs[Code],0),1)),"",INDEX(YieldCalcs[PredWts],MATCH(CONCATENATE(G33,"LT"),YieldCalcs[Code],0),1)) ->  | K33: =IF(ISERROR(INDEX(YieldCalcs[PredWts],MATCH(CONCATENATE(G33,"F"),YieldCalcs[Code],0),1)),"",INDEX(YieldCalcs[PredWts],MATCH(CONCATENATE(G33,"F"),YieldCalcs[Code],0),1)) ->  | L33: =IF(ISERROR(INDEX(YieldCalcs[PredWts],MATCH(CONCATENATE(G33,"B"),YieldCalcs[Code],0),1)),"",INDEX(YieldCalcs[PredWts],MATCH(CONCATENATE(G33,"B"),YieldCalcs[Code],0),1)) ->  | M33: =IF(ISERROR(INDEX(YieldCalcs[PredWts],MATCH(CONCATENATE(G33,"W"),YieldCalcs[Code],0),1)),"",INDEX(YieldCalcs[PredWts],MATCH(CONCATENATE(G33,"W"),YieldCalcs[Code],0),1)) ->  | N33: =IF(ISERROR(INDEX(YieldCalcs[PredWts],MATCH(CONCATENATE(G33,"Pad"),YieldCalcs[Code],0),1)),"",INDEX(YieldCalcs[PredWts],MATCH(CONCATENATE(G33,"Pad"),YieldCalcs[Code],0),1)) ->  | O33: =IF(ISERROR(INDEX(YieldCalcs[PredWts],MATCH(CONCATENATE(G33,"Int"),YieldCalcs[Code],0),1)),"",INDEX(YieldCalcs[PredWts],MATCH(CONCATENATE(G33,"Int"),YieldCalcs[Code],0),1)) ->  | P33: =IF(ISERROR(INDEX(YieldCalcs[PredWts],MATCH(CONCATENATE(G33,"Skirt"),YieldCalcs[Code],0),1)),"",INDEX(YieldCalcs[PredWts],MATCH(CONCATENATE(G33,"Skirt"),YieldCalcs[Code],0),1)) ->  | Q33: =IF(ISERROR(INDEX(YieldCalcs[SalePrice],MATCH(G33,YieldCalcs[Code],0),1)),"",INDEX(YieldCalcs[SalePrice],MATCH(G33,YieldCalcs[Code],0),1)) ->  | R33: =IF(ISERROR(INDEX(YieldCalcs[CutValue],MATCH(G33,YieldCalcs[Code],0),1)),"",INDEX(YieldCalcs[CutValue],MATCH(G33,YieldCalcs[Code],0),1)) ->  | S33: =IF(ISERROR(INDEX(YieldCalcs[GM$],MATCH(G33,YieldCalcs[Code],0),1)),"",INDEX(YieldCalcs[GM$],MATCH(G33,YieldCalcs[Code],0),1)) ->  | T33: =IF(ISERROR(INDEX(YieldCalcs[GM%],MATCH(G33,YieldCalcs[Code],0),1)),"",INDEX(YieldCalcs[GM%],MATCH(G33,YieldCalcs[Code],0),1)) ->  | U33: =IF(ISERROR(INDEX(YieldCalcs[TGM%],MATCH(G33,YieldCalcs[Code],0),1)),"",INDEX(YieldCalcs[TGM%],MATCH(G33,YieldCalcs[Code],0),1)) ->  | V33: =IF(ISERROR(INDEX(YieldCalcs[TSalePrice],MATCH(G33,YieldCalcs[Code],0),1)),"",INDEX(YieldCalcs[TSalePrice],MATCH(G33,YieldCalcs[Code],0),1)) ->  | W33: =IF(ISNUMBER(INDEX(YieldCalcs[TotCostsPerKg],MATCH(G33,YieldCalcs[Code],0),1)),INDEX(YieldCalcs[TotCostsPerKg],MATCH(G33,YieldCalcs[Code],0),1),"") ->  | X33: =IF(ISERROR(INDEX(YieldCalcs[PreBoneCperkg],MATCH(G33,YieldCalcs[Code],0),1)),"",INDEX(YieldCalcs[PreBoneCperkg],MATCH(G33,YieldCalcs[Code],0),1)) ->  | Y33: =IF(ISERROR(INDEX(YieldCalcs[FixBoneCostperkg],MATCH(G33,YieldCalcs[Code],0),1)),"",INDEX(YieldCalcs[FixBoneCostperkg],MATCH(G33,YieldCalcs[Code],0),1)) ->  | Z33: =IF(ISERROR(INDEX(YieldCalcs[BoningCost],MATCH(G33,YieldCalcs[Code],0),1)),"",INDEX(YieldCalcs[BoningCost],MATCH(G33,YieldCalcs[Code],0),1)) ->  | AA33: =IF(ISNUMBER(INDEX(YieldCalcs[TotCosts],MATCH(G33,YieldCalcs[Code],0),1)),INDEX(YieldCalcs[TotCosts],MATCH(G33,YieldCalcs[Code],0),1),"") ->  | AB33: =IF(ISERROR(INDEX(YieldCalcs[BuyInPrice],MATCH(G33,YieldCalcs[Code],0),1)),"",INDEX(YieldCalcs[BuyInPrice],MATCH(G33,YieldCalcs[Code],0),1)) -> 
E34: FQ Saleable Meat Totals: | I34: =SUBTOTAL(9,I3:I33) -> 8.826 | J34: 0 | K34: 0.153 | L34: 0.137 | M34: 0.366 | N34: 0.043 | O34: =SUBTOTAL(9,O3:O33) -> 0 | P34: =SUBTOTAL(9,P3:P33) -> 0 | R34: =SUBTOTAL(9,R3:R33) -> 65.18468 | S34: =SUBTOTAL(9,S3:S33) -> -23.75532038 | T34: =IFERROR(S34/R34,0) -> -0.3644310347 | X34: =SUMPRODUCT($I$3:$I$33,X3:X33) -> 87.4076 | Y34: =SUMPRODUCT($I$3:$I$33,Y3:Y33) -> 3.8e-07 | Z34: =SUMPRODUCT($I$3:$I$33,Z3:Z33) -> 1.5324 | AA34: =SUBTOTAL(9,AA3:AA33) -> 88.94000038
G35: =IF(ISERROR(INDEX(YieldCalcs[Code],MATCH(E35,YieldCalcs[CutName],0),1)),"",INDEX(YieldCalcs[Code],MATCH(E35,YieldCalcs[CutName],0),1)) ->  | J35: =IF(ISERROR(INDEX(YieldCalcs[PredWts],MATCH(CONCATENATE(G35,"LT"),YieldCalcs[Code],0),1)),"",INDEX(YieldCalcs[PredWts],MATCH(CONCATENATE(G35,"LT"),YieldCalcs[Code],0),1)) ->  | K35: =IF(ISERROR(INDEX(YieldCalcs[PredWts],MATCH(CONCATENATE(G35,"F"),YieldCalcs[Code],0),1)),"",INDEX(YieldCalcs[PredWts],MATCH(CONCATENATE(G35,"F"),YieldCalcs[Code],0),1)) ->  | L35: =IF(ISERROR(INDEX(YieldCalcs[PredWts],MATCH(CONCATENATE(G35,"B"),YieldCalcs[Code],0),1)),"",INDEX(YieldCalcs[PredWts],MATCH(CONCATENATE(G35,"B"),YieldCalcs[Code],0),1)) ->  | M35: =IF(ISERROR(INDEX(YieldCalcs[PredWts],MATCH(CONCATENATE(G35,"W"),YieldCalcs[Code],0),1)),"",INDEX(YieldCalcs[PredWts],MATCH(CONCATENATE(G35,"W"),YieldCalcs[Code],0),1)) ->  | N35: =IF(ISERROR(INDEX(YieldCalcs[PredWts],MATCH(CONCATENATE(G35,"Pad"),YieldCalcs[Code],0),1)),"",INDEX(YieldCalcs[PredWts],MATCH(CONCATENATE(G35,"Pad"),YieldCalcs[Code],0),1)) ->  | O35: =IF(ISERROR(INDEX(YieldCalcs[PredWts],MATCH(CONCATENATE(G35,"Int"),YieldCalcs[Code],0),1)),"",INDEX(YieldCalcs[PredWts],MATCH(CONCATENATE(G35,"Int"),YieldCalcs[Code],0),1)) ->  | P35: =IF(ISERROR(INDEX(YieldCalcs[PredWts],MATCH(CONCATENATE(G35,"Skirt"),YieldCalcs[Code],0),1)),"",INDEX(YieldCalcs[PredWts],MATCH(CONCATENATE(G35,"Skirt"),YieldCalcs[Code],0),1)) ->  | Q35: =IF(ISERROR(INDEX(YieldCalcs[SalePrice],MATCH(G35,YieldCalcs[Code],0),1)),"",INDEX(YieldCalcs[SalePrice],MATCH(G35,YieldCalcs[Code],0),1)) ->  | R35: =IF(ISERROR(CELL("address",INDEX(YieldCalcs[SalePrice],MATCH(G35,YieldCalcs[Code],0),1))),"",CELL("address",INDEX(YieldCalcs[SalePrice],MATCH(G35,YieldCalcs[Code],0),1))) ->  | AB35: =IF(ISERROR(INDEX(YieldCalcs[SalePrice],MATCH(Q35,YieldCalcs[Code],0),1)),"",INDEX(YieldCalcs[SalePrice],MATCH(Q35,YieldCalcs[Code],0),1)) -> 
A36: Region | B36: Cut Type | C36: Options | E36: Cut Selection | F36: HAM # | G36: Code | I36: Primal Wt (kg) | J36: Trim | K36: Fat | L36: Bone | M36: Waste | N36: Loin Cap | O36: Intercostals | P36: Skirt | Q36: Sale Price ($/kg) | R36: Cut Value ($) | S36: GM ($) | T36: GM (%) | U36: Target GM (%) | V36: Target Sale Price ($/kg) | W36: Total Costs ($/kg) | X36: PreBone Costs ($/kg) | Y36: Fixed Bone Cost ($/kg) | Z36: Boning Costs ($/kg) | AA36: Total Costs ($) | AB36: Carton Buy-In Price ($/kg)
A37: LOIN | B37: Shortloin | E37: Shortloin Cap 25mm tail, 6mm Fat Cap | F37: =IF(E43<>"",7,IF(E42<>"",6,IF(E41<>"",5,IF(E40<>"",4,IF(E39<>"",3,IF(E38<>"",2,IF(E37<>"",1,0))))))) -> 1 | G37: =IF(ISERROR(INDEX(YieldCalcs[Code],MATCH(E37,YieldCalcs[CutName],0),1)),"",INDEX(YieldCalcs[Code],MATCH(E37,YieldCalcs[CutName],0),1)) -> SL05.1 | H37: =IF(ISNA(MATCH(E37,YieldCalcs[CutName],0)),"",MATCH(E37,YieldCalcs[CutName],0)) -> 154 | I37: =IF(ISERROR(INDEX(YieldCalcs[PredWts],MATCH(G37,YieldCalcs[Code],0),1)),"",INDEX(YieldCalcs[PredWts],MATCH(G37,YieldCalcs[Code],0),1)) -> 2.226 | J37: =IF(ISERROR(INDEX(YieldCalcs[PredWts],MATCH(CONCATENATE(G37,"LT"),YieldCalcs[Code],0),1)),"",INDEX(YieldCalcs[PredWts],MATCH(CONCATENATE(G37,"LT"),YieldCalcs[Code],0),1)) -> 0.275 | K37: =IF(ISERROR(INDEX(YieldCalcs[PredWts],MATCH(CONCATENATE(G37,"F"),YieldCalcs[Code],0),1)),"",INDEX(YieldCalcs[PredWts],MATCH(CONCATENATE(G37,"F"),YieldCalcs[Code],0),1)) -> 0.678 | L37: =IF(ISERROR(INDEX(YieldCalcs[PredWts],MATCH(CONCATENATE(G37,"B"),YieldCalcs[Code],0),1)),"",INDEX(YieldCalcs[PredWts],MATCH(CONCATENATE(G37,"B"),YieldCalcs[Code],0),1)) -> 0.038 | M37: =IF(ISERROR(INDEX(YieldCalcs[PredWts],MATCH(CONCATENATE(G37,"W"),YieldCalcs[Code],0),1)),"",INDEX(YieldCalcs[PredWts],MATCH(CONCATENATE(G37,"W"),YieldCalcs[Code],0),1)) ->  | N37: =IF(ISERROR(INDEX(YieldCalcs[PredWts],MATCH(CONCATENATE(G37,"Pad"),YieldCalcs[Code],0),1)),"",INDEX(YieldCalcs[PredWts],MATCH(CONCATENATE(G37,"Pad"),YieldCalcs[Code],0),1)) ->  | O37: =IF(ISERROR(INDEX(YieldCalcs[PredWts],MATCH(CONCATENATE(G37,"Int"),YieldCalcs[Code],0),1)),"",INDEX(YieldCalcs[PredWts],MATCH(CONCATENATE(G37,"Int"),YieldCalcs[Code],0),1)) ->  | P37: =IF(ISERROR(INDEX(YieldCalcs[PredWts],MATCH(CONCATENATE(G37,"Skirt"),YieldCalcs[Code],0),1)),"",INDEX(YieldCalcs[PredWts],MATCH(CONCATENATE(G37,"Skirt"),YieldCalcs[Code],0),1)) ->  | Q37: =IF(ISERROR(INDEX(YieldCalcs[SalePrice],MATCH(G37,YieldCalcs[Code],0),1)),"",INDEX(YieldCalcs[SalePrice],MATCH(G37,YieldCalcs[Code],0),1)) -> 12.63 | R37: =IF(ISERROR(INDEX(YieldCalcs[CutValue],MATCH(G37,YieldCalcs[Code],0),1)),"",INDEX(YieldCalcs[CutValue],MATCH(G37,YieldCalcs[Code],0),1)) -> 28.11438 | S37: =IF(ISERROR(INDEX(YieldCalcs[GM$],MATCH(G37,YieldCalcs[Code],0),1)),"",INDEX(YieldCalcs[GM$],MATCH(G37,YieldCalcs[Code],0),1)) -> -1.78822013 | T37: =IF(ISERROR(INDEX(YieldCalcs[GM%],MATCH(G37,YieldCalcs[Code],0),1)),"",INDEX(YieldCalcs[GM%],MATCH(G37,YieldCalcs[Code],0),1)) -> -0.06360517749 | U37: =IF(ISERROR(INDEX(YieldCalcs[TGM%],MATCH(G37,YieldCalcs[Code],0),1)),"",INDEX(YieldCalcs[TGM%],MATCH(G37,YieldCalcs[Code],0),1)) ->  | V37: =IF(ISERROR(INDEX(YieldCalcs[TSalePrice],MATCH(G37,YieldCalcs[Code],0),1)),"",INDEX(YieldCalcs[TSalePrice],MATCH(G37,YieldCalcs[Code],0),1)) ->  | W37: =IF(ISNUMBER(INDEX(YieldCalcs[TotCostsPerKg],MATCH(G37,YieldCalcs[Code],0),1)),INDEX(YieldCalcs[TotCostsPerKg],MATCH(G37,YieldCalcs[Code],0),1),"") -> 13.43333339 | X37: =IF(ISERROR(INDEX(YieldCalcs[PreBoneCperkg],MATCH(G37,YieldCalcs[Code],0),1)),"",INDEX(YieldCalcs[PreBoneCperkg],MATCH(G37,YieldCalcs[Code],0),1)) -> 13.43333333 | Y37: =IF(ISERROR(INDEX(YieldCalcs[FixBoneCostperkg],MATCH(G37,YieldCalcs[Code],0),1)),"",INDEX(YieldCalcs[FixBoneCostperkg],MATCH(G37,YieldCalcs[Code],0),1)) -> 5.840071878e-08 | Z37: =IF(ISERROR(INDEX(YieldCalcs[BoningCost],MATCH(G37,YieldCalcs[Code],0),1)),"",INDEX(YieldCalcs[BoningCost],MATCH(G37,YieldCalcs[Code],0),1)) -> 0 | AA37: =IF(ISNUMBER(INDEX(YieldCalcs[TotCosts],MATCH(G37,YieldCalcs[Code],0),1)),INDEX(YieldCalcs[TotCosts],MATCH(G37,YieldCalcs[Code],0),1),"") -> 29.90260013 | AB37: =IF(ISERROR(INDEX(YieldCalcs[BuyInPrice],MATCH(G37,YieldCalcs[Code],0),1)),"",INDEX(YieldCalcs[BuyInPrice],MATCH(G37,YieldCalcs[Code],0),1)) -> 0
C38: Shortloin | G38: =IF(ISERROR(INDEX(YieldCalcs[Code],MATCH(E38,YieldCalcs[CutName],0),1)),"",INDEX(YieldCalcs[Code],MATCH(E38,YieldCalcs[CutName],0),1)) ->  | H38: =IF(ISNA(MATCH(E38,YieldCalcs[CutName],0)),"",MATCH(E38,YieldCalcs[CutName],0)) ->  | I38: =IF(ISERROR(INDEX(YieldCalcs[PredWts],MATCH(G38,YieldCalcs[Code],0),1)),"",INDEX(YieldCalcs[PredWts],MATCH(G38,YieldCalcs[Code],0),1)) ->  | J38: =IF(ISERROR(INDEX(YieldCalcs[PredWts],MATCH(CONCATENATE(G38,"LT"),YieldCalcs[Code],0),1)),"",INDEX(YieldCalcs[PredWts],MATCH(CONCATENATE(G38,"LT"),YieldCalcs[Code],0),1)) ->  | K38: =IF(ISERROR(INDEX(YieldCalcs[PredWts],MATCH(CONCATENATE(G38,"F"),YieldCalcs[Code],0),1)),"",INDEX(YieldCalcs[PredWts],MATCH(CONCATENATE(G38,"F"),YieldCalcs[Code],0),1)) ->  | L38: =IF(ISERROR(INDEX(YieldCalcs[PredWts],MATCH(CONCATENATE(G38,"B"),YieldCalcs[Code],0),1)),"",INDEX(YieldCalcs[PredWts],MATCH(CONCATENATE(G38,"B"),YieldCalcs[Code],0),1)) ->  | M38: =IF(ISERROR(INDEX(YieldCalcs[PredWts],MATCH(CONCATENATE(G38,"W"),YieldCalcs[Code],0),1)),"",INDEX(YieldCalcs[PredWts],MATCH(CONCATENATE(G38,"W"),YieldCalcs[Code],0),1)) ->  | N38: =IF(ISERROR(INDEX(YieldCalcs[PredWts],MATCH(CONCATENATE(G38,"Pad"),YieldCalcs[Code],0),1)),"",INDEX(YieldCalcs[PredWts],MATCH(CONCATENATE(G38,"Pad"),YieldCalcs[Code],0),1)) ->  | O38: =IF(ISERROR(INDEX(YieldCalcs[PredWts],MATCH(CONCATENATE(G38,"Int"),YieldCalcs[Code],0),1)),"",INDEX(YieldCalcs[PredWts],MATCH(CONCATENATE(G38,"Int"),YieldCalcs[Code],0),1)) ->  | P38: =IF(ISERROR(INDEX(YieldCalcs[PredWts],MATCH(CONCATENATE(G38,"Skirt"),YieldCalcs[Code],0),1)),"",INDEX(YieldCalcs[PredWts],MATCH(CONCATENATE(G38,"Skirt"),YieldCalcs[Code],0),1)) ->  | Q38: =IF(ISERROR(INDEX(YieldCalcs[SalePrice],MATCH(G38,YieldCalcs[Code],0),1)),"",INDEX(YieldCalcs[SalePrice],MATCH(G38,YieldCalcs[Code],0),1)) ->  | R38: =IF(ISERROR(INDEX(YieldCalcs[CutValue],MATCH(G38,YieldCalcs[Code],0),1)),"",INDEX(YieldCalcs[CutValue],MATCH(G38,YieldCalcs[Code],0),1)) ->  | S38: =IF(ISERROR(INDEX(YieldCalcs[GM$],MATCH(G38,YieldCalcs[Code],0),1)),"",INDEX(YieldCalcs[GM$],MATCH(G38,YieldCalcs[Code],0),1)) ->  | T38: =IF(ISERROR(INDEX(YieldCalcs[GM%],MATCH(G38,YieldCalcs[Code],0),1)),"",INDEX(YieldCalcs[GM%],MATCH(G38,YieldCalcs[Code],0),1)) ->  | U38: =IF(ISERROR(INDEX(YieldCalcs[TGM%],MATCH(G38,YieldCalcs[Code],0),1)),"",INDEX(YieldCalcs[TGM%],MATCH(G38,YieldCalcs[Code],0),1)) ->  | V38: =IF(ISERROR(INDEX(YieldCalcs[TSalePrice],MATCH(G38,YieldCalcs[Code],0),1)),"",INDEX(YieldCalcs[TSalePrice],MATCH(G38,YieldCalcs[Code],0),1)) ->  | W38: =IF(ISNUMBER(INDEX(YieldCalcs[TotCostsPerKg],MATCH(G38,YieldCalcs[Code],0),1)),INDEX(YieldCalcs[TotCostsPerKg],MATCH(G38,YieldCalcs[Code],0),1),"") ->  | X38: =IF(ISERROR(INDEX(YieldCalcs[PreBoneCperkg],MATCH(G38,YieldCalcs[Code],0),1)),"",INDEX(YieldCalcs[PreBoneCperkg],MATCH(G38,YieldCalcs[Code],0),1)) ->  | Y38: =IF(ISERROR(INDEX(YieldCalcs[FixBoneCostperkg],MATCH(G38,YieldCalcs[Code],0),1)),"",INDEX(YieldCalcs[FixBoneCostperkg],MATCH(G38,YieldCalcs[Code],0),1)) ->  | Z38: =IF(ISERROR(INDEX(YieldCalcs[BoningCost],MATCH(G38,YieldCalcs[Code],0),1)),"",INDEX(YieldCalcs[BoningCost],MATCH(G38,YieldCalcs[Code],0),1)) ->  | AA38: =IF(ISNUMBER(INDEX(YieldCalcs[TotCosts],MATCH(G38,YieldCalcs[Code],0),1)),INDEX(YieldCalcs[TotCosts],MATCH(G38,YieldCalcs[Code],0),1),"") ->  | AB38: =IF(ISERROR(INDEX(YieldCalcs[BuyInPrice],MATCH(G38,YieldCalcs[Code],0),1)),"",INDEX(YieldCalcs[BuyInPrice],MATCH(G38,YieldCalcs[Code],0),1)) -> 
A39: REC% | B39: =SUM(I37:P43)/INDEX(YieldCalcs[PredWts],MATCH("SL01.1",YieldCalcs[Code],0),1) -> 0.9984481688 | G39: =IF(ISERROR(INDEX(YieldCalcs[Code],MATCH(E39,YieldCalcs[CutName],0),1)),"",INDEX(YieldCalcs[Code],MATCH(E39,YieldCalcs[CutName],0),1)) ->  | H39: =IF(ISNA(MATCH(E39,YieldCalcs[CutName],0)),"",MATCH(E39,YieldCalcs[CutName],0)) ->  | I39: =IF(ISERROR(INDEX(YieldCalcs[PredWts],MATCH(G39,YieldCalcs[Code],0),1)),"",INDEX(YieldCalcs[PredWts],MATCH(G39,YieldCalcs[Code],0),1)) ->  | J39: =IF(ISERROR(INDEX(YieldCalcs[PredWts],MATCH(CONCATENATE(G39,"LT"),YieldCalcs[Code],0),1)),"",INDEX(YieldCalcs[PredWts],MATCH(CONCATENATE(G39,"LT"),YieldCalcs[Code],0),1)) ->  | K39: =IF(ISERROR(INDEX(YieldCalcs[PredWts],MATCH(CONCATENATE(G39,"F"),YieldCalcs[Code],0),1)),"",INDEX(YieldCalcs[PredWts],MATCH(CONCATENATE(G39,"F"),YieldCalcs[Code],0),1)) ->  | L39: =IF(ISERROR(INDEX(YieldCalcs[PredWts],MATCH(CONCATENATE(G39,"B"),YieldCalcs[Code],0),1)),"",INDEX(YieldCalcs[PredWts],MATCH(CONCATENATE(G39,"B"),YieldCalcs[Code],0),1)) ->  | M39: =IF(ISERROR(INDEX(YieldCalcs[PredWts],MATCH(CONCATENATE(G39,"W"),YieldCalcs[Code],0),1)),"",INDEX(YieldCalcs[PredWts],MATCH(CONCATENATE(G39,"W"),YieldCalcs[Code],0),1)) ->  | N39: =IF(ISERROR(INDEX(YieldCalcs[PredWts],MATCH(CONCATENATE(G39,"Pad"),YieldCalcs[Code],0),1)),"",INDEX(YieldCalcs[PredWts],MATCH(CONCATENATE(G39,"Pad"),YieldCalcs[Code],0),1)) ->  | O39: =IF(ISERROR(INDEX(YieldCalcs[PredWts],MATCH(CONCATENATE(G39,"Int"),YieldCalcs[Code],0),1)),"",INDEX(YieldCalcs[PredWts],MATCH(CONCATENATE(G39,"Int"),YieldCalcs[Code],0),1)) ->  | P39: =IF(ISERROR(INDEX(YieldCalcs[PredWts],MATCH(CONCATENATE(G39,"Skirt"),YieldCalcs[Code],0),1)),"",INDEX(YieldCalcs[PredWts],MATCH(CONCATENATE(G39,"Skirt"),YieldCalcs[Code],0),1)) ->  | Q39: =IF(ISERROR(INDEX(YieldCalcs[SalePrice],MATCH(G39,YieldCalcs[Code],0),1)),"",INDEX(YieldCalcs[SalePrice],MATCH(G39,YieldCalcs[Code],0),1)) ->  | R39: =IF(ISERROR(INDEX(YieldCalcs[CutValue],MATCH(G39,YieldCalcs[Code],0),1)),"",INDEX(YieldCalcs[CutValue],MATCH(G39,YieldCalcs[Code],0),1)) ->  | S39: =IF(ISERROR(INDEX(YieldCalcs[GM$],MATCH(G39,YieldCalcs[Code],0),1)),"",INDEX(YieldCalcs[GM$],MATCH(G39,YieldCalcs[Code],0),1)) ->  | T39: =IF(ISERROR(INDEX(YieldCalcs[GM%],MATCH(G39,YieldCalcs[Code],0),1)),"",INDEX(YieldCalcs[GM%],MATCH(G39,YieldCalcs[Code],0),1)) ->  | U39: =IF(ISERROR(INDEX(YieldCalcs[TGM%],MATCH(G39,YieldCalcs[Code],0),1)),"",INDEX(YieldCalcs[TGM%],MATCH(G39,YieldCalcs[Code],0),1)) ->  | V39: =IF(ISERROR(INDEX(YieldCalcs[TSalePrice],MATCH(G39,YieldCalcs[Code],0),1)),"",INDEX(YieldCalcs[TSalePrice],MATCH(G39,YieldCalcs[Code],0),1)) ->  | W39: =IF(ISNUMBER(INDEX(YieldCalcs[TotCostsPerKg],MATCH(G39,YieldCalcs[Code],0),1)),INDEX(YieldCalcs[TotCostsPerKg],MATCH(G39,YieldCalcs[Code],0),1),"") ->  | X39: =IF(ISERROR(INDEX(YieldCalcs[PreBoneCperkg],MATCH(G39,YieldCalcs[Code],0),1)),"",INDEX(YieldCalcs[PreBoneCperkg],MATCH(G39,YieldCalcs[Code],0),1)) ->  | Y39: =IF(ISERROR(INDEX(YieldCalcs[FixBoneCostperkg],MATCH(G39,YieldCalcs[Code],0),1)),"",INDEX(YieldCalcs[FixBoneCostperkg],MATCH(G39,YieldCalcs[Code],0),1)) ->  | Z39: =IF(ISERROR(INDEX(YieldCalcs[BoningCost],MATCH(G39,YieldCalcs[Code],0),1)),"",INDEX(YieldCalcs[BoningCost],MATCH(G39,YieldCalcs[Code],0),1)) ->  | AA39: =IF(ISNUMBER(INDEX(YieldCalcs[TotCosts],MATCH(G39,YieldCalcs[Code],0),1)),INDEX(YieldCalcs[TotCosts],MATCH(G39,YieldCalcs[Code],0),1),"") ->  | AB39: =IF(ISERROR(INDEX(YieldCalcs[BuyInPrice],MATCH(G39,YieldCalcs[Code],0),1)),"",INDEX(YieldCalcs[BuyInPrice],MATCH(G39,YieldCalcs[Code],0),1)) -> 
A40: =IF(Lists!F182=1,"WARNING: Check Recovery","") ->  | G40: =IF(ISERROR(INDEX(YieldCalcs[Code],MATCH(E40,YieldCalcs[CutName],0),1)),"",INDEX(YieldCalcs[Code],MATCH(E40,YieldCalcs[CutName],0),1)) ->  | H40: =IF(ISNA(MATCH(E40,YieldCalcs[CutName],0)),"",MATCH(E40,YieldCalcs[CutName],0)) ->  | I40: =IF(ISERROR(INDEX(YieldCalcs[PredWts],MATCH(G40,YieldCalcs[Code],0),1)),"",INDEX(YieldCalcs[PredWts],MATCH(G40,YieldCalcs[Code],0),1)) ->  | J40: =IF(ISERROR(INDEX(YieldCalcs[PredWts],MATCH(CONCATENATE(G40,"LT"),YieldCalcs[Code],0),1)),"",INDEX(YieldCalcs[PredWts],MATCH(CONCATENATE(G40,"LT"),YieldCalcs[Code],0),1)) ->  | K40: =IF(ISERROR(INDEX(YieldCalcs[PredWts],MATCH(CONCATENATE(G40,"F"),YieldCalcs[Code],0),1)),"",INDEX(YieldCalcs[PredWts],MATCH(CONCATENATE(G40,"F"),YieldCalcs[Code],0),1)) ->  | L40: =IF(ISERROR(INDEX(YieldCalcs[PredWts],MATCH(CONCATENATE(G40,"B"),YieldCalcs[Code],0),1)),"",INDEX(YieldCalcs[PredWts],MATCH(CONCATENATE(G40,"B"),YieldCalcs[Code],0),1)) ->  | M40: =IF(ISERROR(INDEX(YieldCalcs[PredWts],MATCH(CONCATENATE(G40,"W"),YieldCalcs[Code],0),1)),"",INDEX(YieldCalcs[PredWts],MATCH(CONCATENATE(G40,"W"),YieldCalcs[Code],0),1)) ->  | N40: =IF(ISERROR(INDEX(YieldCalcs[PredWts],MATCH(CONCATENATE(G40,"Pad"),YieldCalcs[Code],0),1)),"",INDEX(YieldCalcs[PredWts],MATCH(CONCATENATE(G40,"Pad"),YieldCalcs[Code],0),1)) ->  | O40: =IF(ISERROR(INDEX(YieldCalcs[PredWts],MATCH(CONCATENATE(G40,"Int"),YieldCalcs[Code],0),1)),"",INDEX(YieldCalcs[PredWts],MATCH(CONCATENATE(G40,"Int"),YieldCalcs[Code],0),1)) ->  | P40: =IF(ISERROR(INDEX(YieldCalcs[PredWts],MATCH(CONCATENATE(G40,"Skirt"),YieldCalcs[Code],0),1)),"",INDEX(YieldCalcs[PredWts],MATCH(CONCATENATE(G40,"Skirt"),YieldCalcs[Code],0),1)) ->  | Q40: =IF(ISERROR(INDEX(YieldCalcs[SalePrice],MATCH(G40,YieldCalcs[Code],0),1)),"",INDEX(YieldCalcs[SalePrice],MATCH(G40,YieldCalcs[Code],0),1)) ->  | R40: =IF(ISERROR(INDEX(YieldCalcs[CutValue],MATCH(G40,YieldCalcs[Code],0),1)),"",INDEX(YieldCalcs[CutValue],MATCH(G40,YieldCalcs[Code],0),1)) ->  | S40: =IF(ISERROR(INDEX(YieldCalcs[GM$],MATCH(G40,YieldCalcs[Code],0),1)),"",INDEX(YieldCalcs[GM$],MATCH(G40,YieldCalcs[Code],0),1)) ->  | T40: =IF(ISERROR(INDEX(YieldCalcs[GM%],MATCH(G40,YieldCalcs[Code],0),1)),"",INDEX(YieldCalcs[GM%],MATCH(G40,YieldCalcs[Code],0),1)) ->  | U40: =IF(ISERROR(INDEX(YieldCalcs[TGM%],MATCH(G40,YieldCalcs[Code],0),1)),"",INDEX(YieldCalcs[TGM%],MATCH(G40,YieldCalcs[Code],0),1)) ->  | V40: =IF(ISERROR(INDEX(YieldCalcs[TSalePrice],MATCH(G40,YieldCalcs[Code],0),1)),"",INDEX(YieldCalcs[TSalePrice],MATCH(G40,YieldCalcs[Code],0),1)) ->  | W40: =IF(ISNUMBER(INDEX(YieldCalcs[TotCostsPerKg],MATCH(G40,YieldCalcs[Code],0),1)),INDEX(YieldCalcs[TotCostsPerKg],MATCH(G40,YieldCalcs[Code],0),1),"") ->  | X40: =IF(ISERROR(INDEX(YieldCalcs[PreBoneCperkg],MATCH(G40,YieldCalcs[Code],0),1)),"",INDEX(YieldCalcs[PreBoneCperkg],MATCH(G40,YieldCalcs[Code],0),1)) ->  | Y40: =IF(ISERROR(INDEX(YieldCalcs[FixBoneCostperkg],MATCH(G40,YieldCalcs[Code],0),1)),"",INDEX(YieldCalcs[FixBoneCostperkg],MATCH(G40,YieldCalcs[Code],0),1)) ->  | Z40: =IF(ISERROR(INDEX(YieldCalcs[BoningCost],MATCH(G40,YieldCalcs[Code],0),1)),"",INDEX(YieldCalcs[BoningCost],MATCH(G40,YieldCalcs[Code],0),1)) ->  | AA40: =IF(ISNUMBER(INDEX(YieldCalcs[TotCosts],MATCH(G40,YieldCalcs[Code],0),1)),INDEX(YieldCalcs[TotCosts],MATCH(G40,YieldCalcs[Code],0),1),"") ->  | AB40: =IF(ISERROR(INDEX(YieldCalcs[BuyInPrice],MATCH(G40,YieldCalcs[Code],0),1)),"",INDEX(YieldCalcs[BuyInPrice],MATCH(G40,YieldCalcs[Code],0),1)) -> 
G41: =IF(ISERROR(INDEX(YieldCalcs[Code],MATCH(E41,YieldCalcs[CutName],0),1)),"",INDEX(YieldCalcs[Code],MATCH(E41,YieldCalcs[CutName],0),1)) ->  | H41: =IF(ISNA(MATCH(E41,YieldCalcs[CutName],0)),"",MATCH(E41,YieldCalcs[CutName],0)) ->  | I41: =IF(ISERROR(INDEX(YieldCalcs[PredWts],MATCH(G41,YieldCalcs[Code],0),1)),"",INDEX(YieldCalcs[PredWts],MATCH(G41,YieldCalcs[Code],0),1)) ->  | J41: =IF(ISERROR(INDEX(YieldCalcs[PredWts],MATCH(CONCATENATE(G41,"LT"),YieldCalcs[Code],0),1)),"",INDEX(YieldCalcs[PredWts],MATCH(CONCATENATE(G41,"LT"),YieldCalcs[Code],0),1)) ->  | K41: =IF(ISERROR(INDEX(YieldCalcs[PredWts],MATCH(CONCATENATE(G41,"F"),YieldCalcs[Code],0),1)),"",INDEX(YieldCalcs[PredWts],MATCH(CONCATENATE(G41,"F"),YieldCalcs[Code],0),1)) ->  | L41: =IF(ISERROR(INDEX(YieldCalcs[PredWts],MATCH(CONCATENATE(G41,"B"),YieldCalcs[Code],0),1)),"",INDEX(YieldCalcs[PredWts],MATCH(CONCATENATE(G41,"B"),YieldCalcs[Code],0),1)) ->  | M41: =IF(ISERROR(INDEX(YieldCalcs[PredWts],MATCH(CONCATENATE(G41,"W"),YieldCalcs[Code],0),1)),"",INDEX(YieldCalcs[PredWts],MATCH(CONCATENATE(G41,"W"),YieldCalcs[Code],0),1)) ->  | N41: =IF(ISERROR(INDEX(YieldCalcs[PredWts],MATCH(CONCATENATE(G41,"Pad"),YieldCalcs[Code],0),1)),"",INDEX(YieldCalcs[PredWts],MATCH(CONCATENATE(G41,"Pad"),YieldCalcs[Code],0),1)) ->  | O41: =IF(ISERROR(INDEX(YieldCalcs[PredWts],MATCH(CONCATENATE(G41,"Int"),YieldCalcs[Code],0),1)),"",INDEX(YieldCalcs[PredWts],MATCH(CONCATENATE(G41,"Int"),YieldCalcs[Code],0),1)) ->  | P41: =IF(ISERROR(INDEX(YieldCalcs[PredWts],MATCH(CONCATENATE(G41,"Skirt"),YieldCalcs[Code],0),1)),"",INDEX(YieldCalcs[PredWts],MATCH(CONCATENATE(G41,"Skirt"),YieldCalcs[Code],0),1)) ->  | Q41: =IF(ISERROR(INDEX(YieldCalcs[SalePrice],MATCH(G41,YieldCalcs[Code],0),1)),"",INDEX(YieldCalcs[SalePrice],MATCH(G41,YieldCalcs[Code],0),1)) ->  | R41: =IF(ISERROR(INDEX(YieldCalcs[CutValue],MATCH(G41,YieldCalcs[Code],0),1)),"",INDEX(YieldCalcs[CutValue],MATCH(G41,YieldCalcs[Code],0),1)) ->  | S41: =IF(ISERROR(INDEX(YieldCalcs[GM$],MATCH(G41,YieldCalcs[Code],0),1)),"",INDEX(YieldCalcs[GM$],MATCH(G41,YieldCalcs[Code],0),1)) ->  | T41: =IF(ISERROR(INDEX(YieldCalcs[GM%],MATCH(G41,YieldCalcs[Code],0),1)),"",INDEX(YieldCalcs[GM%],MATCH(G41,YieldCalcs[Code],0),1)) ->  | U41: =IF(ISERROR(INDEX(YieldCalcs[TGM%],MATCH(G41,YieldCalcs[Code],0),1)),"",INDEX(YieldCalcs[TGM%],MATCH(G41,YieldCalcs[Code],0),1)) ->  | V41: =IF(ISERROR(INDEX(YieldCalcs[TSalePrice],MATCH(G41,YieldCalcs[Code],0),1)),"",INDEX(YieldCalcs[TSalePrice],MATCH(G41,YieldCalcs[Code],0),1)) ->  | W41: =IF(ISNUMBER(INDEX(YieldCalcs[TotCostsPerKg],MATCH(G41,YieldCalcs[Code],0),1)),INDEX(YieldCalcs[TotCostsPerKg],MATCH(G41,YieldCalcs[Code],0),1),"") ->  | X41: =IF(ISERROR(INDEX(YieldCalcs[PreBoneCperkg],MATCH(G41,YieldCalcs[Code],0),1)),"",INDEX(YieldCalcs[PreBoneCperkg],MATCH(G41,YieldCalcs[Code],0),1)) ->  | Y41: =IF(ISERROR(INDEX(YieldCalcs[FixBoneCostperkg],MATCH(G41,YieldCalcs[Code],0),1)),"",INDEX(YieldCalcs[FixBoneCostperkg],MATCH(G41,YieldCalcs[Code],0),1)) ->  | Z41: =IF(ISERROR(INDEX(YieldCalcs[BoningCost],MATCH(G41,YieldCalcs[Code],0),1)),"",INDEX(YieldCalcs[BoningCost],MATCH(G41,YieldCalcs[Code],0),1)) ->  | AA41: =IF(ISNUMBER(INDEX(YieldCalcs[TotCosts],MATCH(G41,YieldCalcs[Code],0),1)),INDEX(YieldCalcs[TotCosts],MATCH(G41,YieldCalcs[Code],0),1),"") ->  | AB41: =IF(ISERROR(INDEX(YieldCalcs[BuyInPrice],MATCH(G41,YieldCalcs[Code],0),1)),"",INDEX(YieldCalcs[BuyInPrice],MATCH(G41,YieldCalcs[Code],0),1)) -> 
G42: =IF(ISERROR(INDEX(YieldCalcs[Code],MATCH(E42,YieldCalcs[CutName],0),1)),"",INDEX(YieldCalcs[Code],MATCH(E42,YieldCalcs[CutName],0),1)) ->  | H42: =IF(ISNA(MATCH(E42,YieldCalcs[CutName],0)),"",MATCH(E42,YieldCalcs[CutName],0)) ->  | I42: =IF(ISERROR(INDEX(YieldCalcs[PredWts],MATCH(G42,YieldCalcs[Code],0),1)),"",INDEX(YieldCalcs[PredWts],MATCH(G42,YieldCalcs[Code],0),1)) ->  | J42: =IF(ISERROR(INDEX(YieldCalcs[PredWts],MATCH(CONCATENATE(G42,"LT"),YieldCalcs[Code],0),1)),"",INDEX(YieldCalcs[PredWts],MATCH(CONCATENATE(G42,"LT"),YieldCalcs[Code],0),1)) ->  | K42: =IF(ISERROR(INDEX(YieldCalcs[PredWts],MATCH(CONCATENATE(G42,"F"),YieldCalcs[Code],0),1)),"",INDEX(YieldCalcs[PredWts],MATCH(CONCATENATE(G42,"F"),YieldCalcs[Code],0),1)) ->  | L42: =IF(ISERROR(INDEX(YieldCalcs[PredWts],MATCH(CONCATENATE(G42,"B"),YieldCalcs[Code],0),1)),"",INDEX(YieldCalcs[PredWts],MATCH(CONCATENATE(G42,"B"),YieldCalcs[Code],0),1)) ->  | M42: =IF(ISERROR(INDEX(YieldCalcs[PredWts],MATCH(CONCATENATE(G42,"W"),YieldCalcs[Code],0),1)),"",INDEX(YieldCalcs[PredWts],MATCH(CONCATENATE(G42,"W"),YieldCalcs[Code],0),1)) ->  | N42: =IF(ISERROR(INDEX(YieldCalcs[PredWts],MATCH(CONCATENATE(G42,"Pad"),YieldCalcs[Code],0),1)),"",INDEX(YieldCalcs[PredWts],MATCH(CONCATENATE(G42,"Pad"),YieldCalcs[Code],0),1)) ->  | O42: =IF(ISERROR(INDEX(YieldCalcs[PredWts],MATCH(CONCATENATE(G42,"Int"),YieldCalcs[Code],0),1)),"",INDEX(YieldCalcs[PredWts],MATCH(CONCATENATE(G42,"Int"),YieldCalcs[Code],0),1)) ->  | P42: =IF(ISERROR(INDEX(YieldCalcs[PredWts],MATCH(CONCATENATE(G42,"Skirt"),YieldCalcs[Code],0),1)),"",INDEX(YieldCalcs[PredWts],MATCH(CONCATENATE(G42,"Skirt"),YieldCalcs[Code],0),1)) ->  | Q42: =IF(ISERROR(INDEX(YieldCalcs[SalePrice],MATCH(G42,YieldCalcs[Code],0),1)),"",INDEX(YieldCalcs[SalePrice],MATCH(G42,YieldCalcs[Code],0),1)) ->  | R42: =IF(ISERROR(INDEX(YieldCalcs[CutValue],MATCH(G42,YieldCalcs[Code],0),1)),"",INDEX(YieldCalcs[CutValue],MATCH(G42,YieldCalcs[Code],0),1)) ->  | S42: =IF(ISERROR(INDEX(YieldCalcs[GM$],MATCH(G42,YieldCalcs[Code],0),1)),"",INDEX(YieldCalcs[GM$],MATCH(G42,YieldCalcs[Code],0),1)) ->  | T42: =IF(ISERROR(INDEX(YieldCalcs[GM%],MATCH(G42,YieldCalcs[Code],0),1)),"",INDEX(YieldCalcs[GM%],MATCH(G42,YieldCalcs[Code],0),1)) ->  | U42: =IF(ISERROR(INDEX(YieldCalcs[TGM%],MATCH(G42,YieldCalcs[Code],0),1)),"",INDEX(YieldCalcs[TGM%],MATCH(G42,YieldCalcs[Code],0),1)) ->  | V42: =IF(ISERROR(INDEX(YieldCalcs[TSalePrice],MATCH(G42,YieldCalcs[Code],0),1)),"",INDEX(YieldCalcs[TSalePrice],MATCH(G42,YieldCalcs[Code],0),1)) ->  | W42: =IF(ISNUMBER(INDEX(YieldCalcs[TotCostsPerKg],MATCH(G42,YieldCalcs[Code],0),1)),INDEX(YieldCalcs[TotCostsPerKg],MATCH(G42,YieldCalcs[Code],0),1),"") ->  | X42: =IF(ISERROR(INDEX(YieldCalcs[PreBoneCperkg],MATCH(G42,YieldCalcs[Code],0),1)),"",INDEX(YieldCalcs[PreBoneCperkg],MATCH(G42,YieldCalcs[Code],0),1)) ->  | Y42: =IF(ISERROR(INDEX(YieldCalcs[FixBoneCostperkg],MATCH(G42,YieldCalcs[Code],0),1)),"",INDEX(YieldCalcs[FixBoneCostperkg],MATCH(G42,YieldCalcs[Code],0),1)) ->  | Z42: =IF(ISERROR(INDEX(YieldCalcs[BoningCost],MATCH(G42,YieldCalcs[Code],0),1)),"",INDEX(YieldCalcs[BoningCost],MATCH(G42,YieldCalcs[Code],0),1)) ->  | AA42: =IF(ISNUMBER(INDEX(YieldCalcs[TotCosts],MATCH(G42,YieldCalcs[Code],0),1)),INDEX(YieldCalcs[TotCosts],MATCH(G42,YieldCalcs[Code],0),1),"") ->  | AB42: =IF(ISERROR(INDEX(YieldCalcs[BuyInPrice],MATCH(G42,YieldCalcs[Code],0),1)),"",INDEX(YieldCalcs[BuyInPrice],MATCH(G42,YieldCalcs[Code],0),1)) -> 
G43: =IF(ISERROR(INDEX(YieldCalcs[Code],MATCH(E43,YieldCalcs[CutName],0),1)),"",INDEX(YieldCalcs[Code],MATCH(E43,YieldCalcs[CutName],0),1)) ->  | H43: =IF(ISNA(MATCH(E43,YieldCalcs[CutName],0)),"",MATCH(E43,YieldCalcs[CutName],0)) ->  | I43: =IF(ISERROR(INDEX(YieldCalcs[PredWts],MATCH(G43,YieldCalcs[Code],0),1)),"",INDEX(YieldCalcs[PredWts],MATCH(G43,YieldCalcs[Code],0),1)) ->  | J43: =IF(ISERROR(INDEX(YieldCalcs[PredWts],MATCH(CONCATENATE(G43,"LT"),YieldCalcs[Code],0),1)),"",INDEX(YieldCalcs[PredWts],MATCH(CONCATENATE(G43,"LT"),YieldCalcs[Code],0),1)) ->  | K43: =IF(ISERROR(INDEX(YieldCalcs[PredWts],MATCH(CONCATENATE(G43,"F"),YieldCalcs[Code],0),1)),"",INDEX(YieldCalcs[PredWts],MATCH(CONCATENATE(G43,"F"),YieldCalcs[Code],0),1)) ->  | L43: =IF(ISERROR(INDEX(YieldCalcs[PredWts],MATCH(CONCATENATE(G43,"B"),YieldCalcs[Code],0),1)),"",INDEX(YieldCalcs[PredWts],MATCH(CONCATENATE(G43,"B"),YieldCalcs[Code],0),1)) ->  | M43: =IF(ISERROR(INDEX(YieldCalcs[PredWts],MATCH(CONCATENATE(G43,"W"),YieldCalcs[Code],0),1)),"",INDEX(YieldCalcs[PredWts],MATCH(CONCATENATE(G43,"W"),YieldCalcs[Code],0),1)) ->  | N43: =IF(ISERROR(INDEX(YieldCalcs[PredWts],MATCH(CONCATENATE(G43,"Pad"),YieldCalcs[Code],0),1)),"",INDEX(YieldCalcs[PredWts],MATCH(CONCATENATE(G43,"Pad"),YieldCalcs[Code],0),1)) ->  | O43: =IF(ISERROR(INDEX(YieldCalcs[PredWts],MATCH(CONCATENATE(G43,"Int"),YieldCalcs[Code],0),1)),"",INDEX(YieldCalcs[PredWts],MATCH(CONCATENATE(G43,"Int"),YieldCalcs[Code],0),1)) ->  | P43: =IF(ISERROR(INDEX(YieldCalcs[PredWts],MATCH(CONCATENATE(G43,"Skirt"),YieldCalcs[Code],0),1)),"",INDEX(YieldCalcs[PredWts],MATCH(CONCATENATE(G43,"Skirt"),YieldCalcs[Code],0),1)) ->  | Q43: =IF(ISERROR(INDEX(YieldCalcs[SalePrice],MATCH(G43,YieldCalcs[Code],0),1)),"",INDEX(YieldCalcs[SalePrice],MATCH(G43,YieldCalcs[Code],0),1)) ->  | R43: =IF(ISERROR(INDEX(YieldCalcs[CutValue],MATCH(G43,YieldCalcs[Code],0),1)),"",INDEX(YieldCalcs[CutValue],MATCH(G43,YieldCalcs[Code],0),1)) ->  | X43: =IF(ISERROR(INDEX(YieldCalcs[PreBoneCperkg],MATCH(G43,YieldCalcs[Code],0),1)),"",INDEX(YieldCalcs[PreBoneCperkg],MATCH(G43,YieldCalcs[Code],0),1)) ->  | Y43: =IF(ISERROR(INDEX(YieldCalcs[FixBoneCostperkg],MATCH(G43,YieldCalcs[Code],0),1)),"",INDEX(YieldCalcs[FixBoneCostperkg],MATCH(G43,YieldCalcs[Code],0),1)) ->  | Z43: =IF(ISERROR(INDEX(YieldCalcs[BoningCost],MATCH(G43,YieldCalcs[Code],0),1)),"",INDEX(YieldCalcs[BoningCost],MATCH(G43,YieldCalcs[Code],0),1)) ->  | AA43: =IF(ISNUMBER(INDEX(YieldCalcs[TotCosts],MATCH(G43,YieldCalcs[Code],0),1)),INDEX(YieldCalcs[TotCosts],MATCH(G43,YieldCalcs[Code],0),1),"") ->  | AB43: =IF(ISERROR(INDEX(YieldCalcs[BuyInPrice],MATCH(G43,YieldCalcs[Code],0),1)),"",INDEX(YieldCalcs[BuyInPrice],MATCH(G43,YieldCalcs[Code],0),1)) -> 
B45: Rack | C45: Cap On or Off | E45: French Rack, 8 x 75mm Rib, 50mm Fr., Capoff, False Cap off | F45: =IF(E51<>"",7,IF(E50<>"",6,IF(E49<>"",5,IF(E48<>"",4,IF(E47<>"",3,IF(E46<>"",2,IF(E45<>"",1,0))))))) -> 1 | G45: =IF(ISERROR(INDEX(YieldCalcs[Code],MATCH(E45,YieldCalcs[CutName],0),1)),"",INDEX(YieldCalcs[Code],MATCH(E45,YieldCalcs[CutName],0),1)) -> Rk06.1 | H45: =IF(ISNA(MATCH(E45,YieldCalcs[CutName],0)),"",MATCH(E45,YieldCalcs[CutName],0)) -> 226 | I45: =IF(ISERROR(INDEX(YieldCalcs[PredWts],MATCH(G45,YieldCalcs[Code],0),1)),"",INDEX(YieldCalcs[PredWts],MATCH(G45,YieldCalcs[Code],0),1)) -> 1.212 | J45: =IF(ISERROR(INDEX(YieldCalcs[PredWts],MATCH(CONCATENATE(G45,"LT"),YieldCalcs[Code],0),1)),"",INDEX(YieldCalcs[PredWts],MATCH(CONCATENATE(G45,"LT"),YieldCalcs[Code],0),1)) -> 0.433 | K45: =IF(ISERROR(INDEX(YieldCalcs[PredWts],MATCH(CONCATENATE(G45,"F"),YieldCalcs[Code],0),1)),"",INDEX(YieldCalcs[PredWts],MATCH(CONCATENATE(G45,"F"),YieldCalcs[Code],0),1)) -> 0.925 | L45: =IF(ISERROR(INDEX(YieldCalcs[PredWts],MATCH(CONCATENATE(G45,"B"),YieldCalcs[Code],0),1)),"",INDEX(YieldCalcs[PredWts],MATCH(CONCATENATE(G45,"B"),YieldCalcs[Code],0),1)) -> 0.463 | M45: =IF(ISERROR(INDEX(YieldCalcs[PredWts],MATCH(CONCATENATE(G45,"W"),YieldCalcs[Code],0),1)),"",INDEX(YieldCalcs[PredWts],MATCH(CONCATENATE(G45,"W"),YieldCalcs[Code],0),1)) -> 0.03 | N45: =IF(ISERROR(INDEX(YieldCalcs[PredWts],MATCH(CONCATENATE(G45,"Pad"),YieldCalcs[Code],0),1)),"",INDEX(YieldCalcs[PredWts],MATCH(CONCATENATE(G45,"Pad"),YieldCalcs[Code],0),1)) ->  | O45: =IF(ISERROR(INDEX(YieldCalcs[PredWts],MATCH(CONCATENATE(G45,"Int"),YieldCalcs[Code],0),1)),"",INDEX(YieldCalcs[PredWts],MATCH(CONCATENATE(G45,"Int"),YieldCalcs[Code],0),1)) -> 0.112 | P45: =IF(ISERROR(INDEX(YieldCalcs[PredWts],MATCH(CONCATENATE(G45,"Skirt"),YieldCalcs[Code],0),1)),"",INDEX(YieldCalcs[PredWts],MATCH(CONCATENATE(G45,"Skirt"),YieldCalcs[Code],0),1)) ->  | Q45: =IF(ISERROR(INDEX(YieldCalcs[SalePrice],MATCH(G45,YieldCalcs[Code],0),1)),"",INDEX(YieldCalcs[SalePrice],MATCH(G45,YieldCalcs[Code],0),1)) -> 20 | R45: =IF(ISERROR(INDEX(YieldCalcs[CutValue],MATCH(G45,YieldCalcs[Code],0),1)),"",INDEX(YieldCalcs[CutValue],MATCH(G45,YieldCalcs[Code],0),1)) -> 24.24 | S45: =IF(ISERROR(INDEX(YieldCalcs[GM$],MATCH(G45,YieldCalcs[Code],0),1)),"",INDEX(YieldCalcs[GM$],MATCH(G45,YieldCalcs[Code],0),1)) -> -67.7680004 | T45: =IF(ISERROR(INDEX(YieldCalcs[GM%],MATCH(G45,YieldCalcs[Code],0),1)),"",INDEX(YieldCalcs[GM%],MATCH(G45,YieldCalcs[Code],0),1)) -> -2.795709587 | U45: =IF(ISERROR(INDEX(YieldCalcs[TGM%],MATCH(G45,YieldCalcs[Code],0),1)),"",INDEX(YieldCalcs[TGM%],MATCH(G45,YieldCalcs[Code],0),1)) -> 0.01 | V45: =IF(ISERROR(INDEX(YieldCalcs[TSalePrice],MATCH(G45,YieldCalcs[Code],0),1)),"",INDEX(YieldCalcs[TSalePrice],MATCH(G45,YieldCalcs[Code],0),1)) -> 76.68100177 | W45: =IF(ISNUMBER(INDEX(YieldCalcs[TotCostsPerKg],MATCH(G45,YieldCalcs[Code],0),1)),INDEX(YieldCalcs[TotCostsPerKg],MATCH(G45,YieldCalcs[Code],0),1),"") -> 75.91419175 | X45: =IF(ISERROR(INDEX(YieldCalcs[PreBoneCperkg],MATCH(G45,YieldCalcs[Code],0),1)),"",INDEX(YieldCalcs[PreBoneCperkg],MATCH(G45,YieldCalcs[Code],0),1)) -> 75.91419142 | Y45: =IF(ISERROR(INDEX(YieldCalcs[FixBoneCostperkg],MATCH(G45,YieldCalcs[Code],0),1)),"",INDEX(YieldCalcs[FixBoneCostperkg],MATCH(G45,YieldCalcs[Code],0),1)) -> 3.300330033e-07 | Z45: =IF(ISERROR(INDEX(YieldCalcs[BoningCost],MATCH(G45,YieldCalcs[Code],0),1)),"",INDEX(YieldCalcs[BoningCost],MATCH(G45,YieldCalcs[Code],0),1)) -> 0 | AA45: =IF(ISNUMBER(INDEX(YieldCalcs[TotCosts],MATCH(G45,YieldCalcs[Code],0),1)),INDEX(YieldCalcs[TotCosts],MATCH(G45,YieldCalcs[Code],0),1),"") -> 92.0080004 | AB45: =IF(ISERROR(INDEX(YieldCalcs[BuyInPrice],MATCH(G45,YieldCalcs[Code],0),1)),"",INDEX(YieldCalcs[BuyInPrice],MATCH(G45,YieldCalcs[Code],0),1)) -> 0
C46: CapOff | G46: =IF(ISERROR(INDEX(YieldCalcs[Code],MATCH(E46,YieldCalcs[CutName],0),1)),"",INDEX(YieldCalcs[Code],MATCH(E46,YieldCalcs[CutName],0),1)) ->  | H46: =IF(ISNA(MATCH(E46,YieldCalcs[CutName],0)),"",MATCH(E46,YieldCalcs[CutName],0)) ->  | I46: =IF(ISERROR(INDEX(YieldCalcs[PredWts],MATCH(G46,YieldCalcs[Code],0),1)),"",INDEX(YieldCalcs[PredWts],MATCH(G46,YieldCalcs[Code],0),1)) ->  | J46: =IF(ISERROR(INDEX(YieldCalcs[PredWts],MATCH(CONCATENATE(G46,"LT"),YieldCalcs[Code],0),1)),"",INDEX(YieldCalcs[PredWts],MATCH(CONCATENATE(G46,"LT"),YieldCalcs[Code],0),1)) ->  | K46: =IF(ISERROR(INDEX(YieldCalcs[PredWts],MATCH(CONCATENATE(G46,"F"),YieldCalcs[Code],0),1)),"",INDEX(YieldCalcs[PredWts],MATCH(CONCATENATE(G46,"F"),YieldCalcs[Code],0),1)) ->  | L46: =IF(ISERROR(INDEX(YieldCalcs[PredWts],MATCH(CONCATENATE(G46,"B"),YieldCalcs[Code],0),1)),"",INDEX(YieldCalcs[PredWts],MATCH(CONCATENATE(G46,"B"),YieldCalcs[Code],0),1)) ->  | M46: =IF(ISERROR(INDEX(YieldCalcs[PredWts],MATCH(CONCATENATE(G46,"W"),YieldCalcs[Code],0),1)),"",INDEX(YieldCalcs[PredWts],MATCH(CONCATENATE(G46,"W"),YieldCalcs[Code],0),1)) ->  | N46: =IF(ISERROR(INDEX(YieldCalcs[PredWts],MATCH(CONCATENATE(G46,"Pad"),YieldCalcs[Code],0),1)),"",INDEX(YieldCalcs[PredWts],MATCH(CONCATENATE(G46,"Pad"),YieldCalcs[Code],0),1)) ->  | O46: =IF(ISERROR(INDEX(YieldCalcs[PredWts],MATCH(CONCATENATE(G46,"Int"),YieldCalcs[Code],0),1)),"",INDEX(YieldCalcs[PredWts],MATCH(CONCATENATE(G46,"Int"),YieldCalcs[Code],0),1)) ->  | P46: =IF(ISERROR(INDEX(YieldCalcs[PredWts],MATCH(CONCATENATE(G46,"Skirt"),YieldCalcs[Code],0),1)),"",INDEX(YieldCalcs[PredWts],MATCH(CONCATENATE(G46,"Skirt"),YieldCalcs[Code],0),1)) ->  | Q46: =IF(ISERROR(INDEX(YieldCalcs[SalePrice],MATCH(G46,YieldCalcs[Code],0),1)),"",INDEX(YieldCalcs[SalePrice],MATCH(G46,YieldCalcs[Code],0),1)) ->  | R46: =IF(ISERROR(INDEX(YieldCalcs[CutValue],MATCH(G46,YieldCalcs[Code],0),1)),"",INDEX(YieldCalcs[CutValue],MATCH(G46,YieldCalcs[Code],0),1)) ->  | S46: =IF(ISERROR(INDEX(YieldCalcs[GM$],MATCH(G46,YieldCalcs[Code],0),1)),"",INDEX(YieldCalcs[GM$],MATCH(G46,YieldCalcs[Code],0),1)) ->  | T46: =IF(ISERROR(INDEX(YieldCalcs[GM%],MATCH(G46,YieldCalcs[Code],0),1)),"",INDEX(YieldCalcs[GM%],MATCH(G46,YieldCalcs[Code],0),1)) ->  | U46: =IF(ISERROR(INDEX(YieldCalcs[TGM%],MATCH(G46,YieldCalcs[Code],0),1)),"",INDEX(YieldCalcs[TGM%],MATCH(G46,YieldCalcs[Code],0),1)) ->  | V46: =IF(ISERROR(INDEX(YieldCalcs[TSalePrice],MATCH(G46,YieldCalcs[Code],0),1)),"",INDEX(YieldCalcs[TSalePrice],MATCH(G46,YieldCalcs[Code],0),1)) ->  | W46: =IF(ISNUMBER(INDEX(YieldCalcs[TotCostsPerKg],MATCH(G46,YieldCalcs[Code],0),1)),INDEX(YieldCalcs[TotCostsPerKg],MATCH(G46,YieldCalcs[Code],0),1),"") ->  | X46: =IF(ISERROR(INDEX(YieldCalcs[PreBoneCperkg],MATCH(G46,YieldCalcs[Code],0),1)),"",INDEX(YieldCalcs[PreBoneCperkg],MATCH(G46,YieldCalcs[Code],0),1)) ->  | Y46: =IF(ISERROR(INDEX(YieldCalcs[FixBoneCostperkg],MATCH(G46,YieldCalcs[Code],0),1)),"",INDEX(YieldCalcs[FixBoneCostperkg],MATCH(G46,YieldCalcs[Code],0),1)) ->  | Z46: =IF(ISERROR(INDEX(YieldCalcs[BoningCost],MATCH(G46,YieldCalcs[Code],0),1)),"",INDEX(YieldCalcs[BoningCost],MATCH(G46,YieldCalcs[Code],0),1)) ->  | AA46: =IF(ISNUMBER(INDEX(YieldCalcs[TotCosts],MATCH(G46,YieldCalcs[Code],0),1)),INDEX(YieldCalcs[TotCosts],MATCH(G46,YieldCalcs[Code],0),1),"") ->  | AB46: =IF(ISERROR(INDEX(YieldCalcs[BuyInPrice],MATCH(G46,YieldCalcs[Code],0),1)),"",INDEX(YieldCalcs[BuyInPrice],MATCH(G46,YieldCalcs[Code],0),1)) -> 
A47: REC% | B47: =SUM(I45:P51)/INDEX(YieldCalcs[PredWts],MATCH("Rk01.1",YieldCalcs[Code],0),1) -> 0.9968602826 | G47: =IF(ISERROR(INDEX(YieldCalcs[Code],MATCH(E47,YieldCalcs[CutName],0),1)),"",INDEX(YieldCalcs[Code],MATCH(E47,YieldCalcs[CutName],0),1)) ->  | H47: =IF(ISNA(MATCH(E47,YieldCalcs[CutName],0)),"",MATCH(E47,YieldCalcs[CutName],0)) ->  | I47: =IF(ISERROR(INDEX(YieldCalcs[PredWts],MATCH(G47,YieldCalcs[Code],0),1)),"",INDEX(YieldCalcs[PredWts],MATCH(G47,YieldCalcs[Code],0),1)) ->  | J47: =IF(ISERROR(INDEX(YieldCalcs[PredWts],MATCH(CONCATENATE(G47,"LT"),YieldCalcs[Code],0),1)),"",INDEX(YieldCalcs[PredWts],MATCH(CONCATENATE(G47,"LT"),YieldCalcs[Code],0),1)) ->  | K47: =IF(ISERROR(INDEX(YieldCalcs[PredWts],MATCH(CONCATENATE(G47,"F"),YieldCalcs[Code],0),1)),"",INDEX(YieldCalcs[PredWts],MATCH(CONCATENATE(G47,"F"),YieldCalcs[Code],0),1)) ->  | L47: =IF(ISERROR(INDEX(YieldCalcs[PredWts],MATCH(CONCATENATE(G47,"B"),YieldCalcs[Code],0),1)),"",INDEX(YieldCalcs[PredWts],MATCH(CONCATENATE(G47,"B"),YieldCalcs[Code],0),1)) ->  | M47: =IF(ISERROR(INDEX(YieldCalcs[PredWts],MATCH(CONCATENATE(G47,"W"),YieldCalcs[Code],0),1)),"",INDEX(YieldCalcs[PredWts],MATCH(CONCATENATE(G47,"W"),YieldCalcs[Code],0),1)) ->  | N47: =IF(ISERROR(INDEX(YieldCalcs[PredWts],MATCH(CONCATENATE(G47,"Pad"),YieldCalcs[Code],0),1)),"",INDEX(YieldCalcs[PredWts],MATCH(CONCATENATE(G47,"Pad"),YieldCalcs[Code],0),1)) ->  | O47: =IF(ISERROR(INDEX(YieldCalcs[PredWts],MATCH(CONCATENATE(G47,"Int"),YieldCalcs[Code],0),1)),"",INDEX(YieldCalcs[PredWts],MATCH(CONCATENATE(G47,"Int"),YieldCalcs[Code],0),1)) ->  | P47: =IF(ISERROR(INDEX(YieldCalcs[PredWts],MATCH(CONCATENATE(G47,"Skirt"),YieldCalcs[Code],0),1)),"",INDEX(YieldCalcs[PredWts],MATCH(CONCATENATE(G47,"Skirt"),YieldCalcs[Code],0),1)) ->  | Q47: =IF(ISERROR(INDEX(YieldCalcs[SalePrice],MATCH(G47,YieldCalcs[Code],0),1)),"",INDEX(YieldCalcs[SalePrice],MATCH(G47,YieldCalcs[Code],0),1)) ->  | R47: =IF(ISERROR(INDEX(YieldCalcs[CutValue],MATCH(G47,YieldCalcs[Code],0),1)),"",INDEX(YieldCalcs[CutValue],MATCH(G47,YieldCalcs[Code],0),1)) ->  | S47: =IF(ISERROR(INDEX(YieldCalcs[GM$],MATCH(G47,YieldCalcs[Code],0),1)),"",INDEX(YieldCalcs[GM$],MATCH(G47,YieldCalcs[Code],0),1)) ->  | T47: =IF(ISERROR(INDEX(YieldCalcs[GM%],MATCH(G47,YieldCalcs[Code],0),1)),"",INDEX(YieldCalcs[GM%],MATCH(G47,YieldCalcs[Code],0),1)) ->  | U47: =IF(ISERROR(INDEX(YieldCalcs[TGM%],MATCH(G47,YieldCalcs[Code],0),1)),"",INDEX(YieldCalcs[TGM%],MATCH(G47,YieldCalcs[Code],0),1)) ->  | V47: =IF(ISERROR(INDEX(YieldCalcs[TSalePrice],MATCH(G47,YieldCalcs[Code],0),1)),"",INDEX(YieldCalcs[TSalePrice],MATCH(G47,YieldCalcs[Code],0),1)) ->  | W47: =IF(ISNUMBER(INDEX(YieldCalcs[TotCostsPerKg],MATCH(G47,YieldCalcs[Code],0),1)),INDEX(YieldCalcs[TotCostsPerKg],MATCH(G47,YieldCalcs[Code],0),1),"") ->  | X47: =IF(ISERROR(INDEX(YieldCalcs[PreBoneCperkg],MATCH(G47,YieldCalcs[Code],0),1)),"",INDEX(YieldCalcs[PreBoneCperkg],MATCH(G47,YieldCalcs[Code],0),1)) ->  | Y47: =IF(ISERROR(INDEX(YieldCalcs[FixBoneCostperkg],MATCH(G47,YieldCalcs[Code],0),1)),"",INDEX(YieldCalcs[FixBoneCostperkg],MATCH(G47,YieldCalcs[Code],0),1)) ->  | Z47: =IF(ISERROR(INDEX(YieldCalcs[BoningCost],MATCH(G47,YieldCalcs[Code],0),1)),"",INDEX(YieldCalcs[BoningCost],MATCH(G47,YieldCalcs[Code],0),1)) ->  | AA47: =IF(ISNUMBER(INDEX(YieldCalcs[TotCosts],MATCH(G47,YieldCalcs[Code],0),1)),INDEX(YieldCalcs[TotCosts],MATCH(G47,YieldCalcs[Code],0),1),"") ->  | AB47: =IF(ISERROR(INDEX(YieldCalcs[BuyInPrice],MATCH(G47,YieldCalcs[Code],0),1)),"",INDEX(YieldCalcs[BuyInPrice],MATCH(G47,YieldCalcs[Code],0),1)) -> 
A48: =IF(Lists!F183=1,"WARNING: Check Recovery","") ->  | G48: =IF(ISERROR(INDEX(YieldCalcs[Code],MATCH(E48,YieldCalcs[CutName],0),1)),"",INDEX(YieldCalcs[Code],MATCH(E48,YieldCalcs[CutName],0),1)) ->  | H48: =IF(ISNA(MATCH(E48,YieldCalcs[CutName],0)),"",MATCH(E48,YieldCalcs[CutName],0)) ->  | I48: =IF(ISERROR(INDEX(YieldCalcs[PredWts],MATCH(G48,YieldCalcs[Code],0),1)),"",INDEX(YieldCalcs[PredWts],MATCH(G48,YieldCalcs[Code],0),1)) ->  | J48: =IF(ISERROR(INDEX(YieldCalcs[PredWts],MATCH(CONCATENATE(G48,"LT"),YieldCalcs[Code],0),1)),"",INDEX(YieldCalcs[PredWts],MATCH(CONCATENATE(G48,"LT"),YieldCalcs[Code],0),1)) ->  | K48: =IF(ISERROR(INDEX(YieldCalcs[PredWts],MATCH(CONCATENATE(G48,"F"),YieldCalcs[Code],0),1)),"",INDEX(YieldCalcs[PredWts],MATCH(CONCATENATE(G48,"F"),YieldCalcs[Code],0),1)) ->  | L48: =IF(ISERROR(INDEX(YieldCalcs[PredWts],MATCH(CONCATENATE(G48,"B"),YieldCalcs[Code],0),1)),"",INDEX(YieldCalcs[PredWts],MATCH(CONCATENATE(G48,"B"),YieldCalcs[Code],0),1)) ->  | M48: =IF(ISERROR(INDEX(YieldCalcs[PredWts],MATCH(CONCATENATE(G48,"W"),YieldCalcs[Code],0),1)),"",INDEX(YieldCalcs[PredWts],MATCH(CONCATENATE(G48,"W"),YieldCalcs[Code],0),1)) ->  | N48: =IF(ISERROR(INDEX(YieldCalcs[PredWts],MATCH(CONCATENATE(G48,"Pad"),YieldCalcs[Code],0),1)),"",INDEX(YieldCalcs[PredWts],MATCH(CONCATENATE(G48,"Pad"),YieldCalcs[Code],0),1)) ->  | O48: =IF(ISERROR(INDEX(YieldCalcs[PredWts],MATCH(CONCATENATE(G48,"Int"),YieldCalcs[Code],0),1)),"",INDEX(YieldCalcs[PredWts],MATCH(CONCATENATE(G48,"Int"),YieldCalcs[Code],0),1)) ->  | P48: =IF(ISERROR(INDEX(YieldCalcs[PredWts],MATCH(CONCATENATE(G48,"Skirt"),YieldCalcs[Code],0),1)),"",INDEX(YieldCalcs[PredWts],MATCH(CONCATENATE(G48,"Skirt"),YieldCalcs[Code],0),1)) ->  | Q48: =IF(ISERROR(INDEX(YieldCalcs[SalePrice],MATCH(G48,YieldCalcs[Code],0),1)),"",INDEX(YieldCalcs[SalePrice],MATCH(G48,YieldCalcs[Code],0),1)) ->  | R48: =IF(ISERROR(INDEX(YieldCalcs[CutValue],MATCH(G48,YieldCalcs[Code],0),1)),"",INDEX(YieldCalcs[CutValue],MATCH(G48,YieldCalcs[Code],0),1)) ->  | S48: =IF(ISERROR(INDEX(YieldCalcs[GM$],MATCH(G48,YieldCalcs[Code],0),1)),"",INDEX(YieldCalcs[GM$],MATCH(G48,YieldCalcs[Code],0),1)) ->  | T48: =IF(ISERROR(INDEX(YieldCalcs[GM%],MATCH(G48,YieldCalcs[Code],0),1)),"",INDEX(YieldCalcs[GM%],MATCH(G48,YieldCalcs[Code],0),1)) ->  | U48: =IF(ISERROR(INDEX(YieldCalcs[TGM%],MATCH(G48,YieldCalcs[Code],0),1)),"",INDEX(YieldCalcs[TGM%],MATCH(G48,YieldCalcs[Code],0),1)) ->  | V48: =IF(ISERROR(INDEX(YieldCalcs[TSalePrice],MATCH(G48,YieldCalcs[Code],0),1)),"",INDEX(YieldCalcs[TSalePrice],MATCH(G48,YieldCalcs[Code],0),1)) ->  | W48: =IF(ISNUMBER(INDEX(YieldCalcs[TotCostsPerKg],MATCH(G48,YieldCalcs[Code],0),1)),INDEX(YieldCalcs[TotCostsPerKg],MATCH(G48,YieldCalcs[Code],0),1),"") ->  | X48: =IF(ISERROR(INDEX(YieldCalcs[PreBoneCperkg],MATCH(G48,YieldCalcs[Code],0),1)),"",INDEX(YieldCalcs[PreBoneCperkg],MATCH(G48,YieldCalcs[Code],0),1)) ->  | Y48: =IF(ISERROR(INDEX(YieldCalcs[FixBoneCostperkg],MATCH(G48,YieldCalcs[Code],0),1)),"",INDEX(YieldCalcs[FixBoneCostperkg],MATCH(G48,YieldCalcs[Code],0),1)) ->  | Z48: =IF(ISERROR(INDEX(YieldCalcs[BoningCost],MATCH(G48,YieldCalcs[Code],0),1)),"",INDEX(YieldCalcs[BoningCost],MATCH(G48,YieldCalcs[Code],0),1)) ->  | AA48: =IF(ISNUMBER(INDEX(YieldCalcs[TotCosts],MATCH(G48,YieldCalcs[Code],0),1)),INDEX(YieldCalcs[TotCosts],MATCH(G48,YieldCalcs[Code],0),1),"") ->  | AB48: =IF(ISERROR(INDEX(YieldCalcs[BuyInPrice],MATCH(G48,YieldCalcs[Code],0),1)),"",INDEX(YieldCalcs[BuyInPrice],MATCH(G48,YieldCalcs[Code],0),1)) -> 
G49: =IF(ISERROR(INDEX(YieldCalcs[Code],MATCH(E49,YieldCalcs[CutName],0),1)),"",INDEX(YieldCalcs[Code],MATCH(E49,YieldCalcs[CutName],0),1)) ->  | H49: =IF(ISNA(MATCH(E49,YieldCalcs[CutName],0)),"",MATCH(E49,YieldCalcs[CutName],0)) ->  | I49: =IF(ISERROR(INDEX(YieldCalcs[PredWts],MATCH(G49,YieldCalcs[Code],0),1)),"",INDEX(YieldCalcs[PredWts],MATCH(G49,YieldCalcs[Code],0),1)) ->  | J49: =IF(ISERROR(INDEX(YieldCalcs[PredWts],MATCH(CONCATENATE(G49,"LT"),YieldCalcs[Code],0),1)),"",INDEX(YieldCalcs[PredWts],MATCH(CONCATENATE(G49,"LT"),YieldCalcs[Code],0),1)) ->  | K49: =IF(ISERROR(INDEX(YieldCalcs[PredWts],MATCH(CONCATENATE(G49,"F"),YieldCalcs[Code],0),1)),"",INDEX(YieldCalcs[PredWts],MATCH(CONCATENATE(G49,"F"),YieldCalcs[Code],0),1)) ->  | L49: =IF(ISERROR(INDEX(YieldCalcs[PredWts],MATCH(CONCATENATE(G49,"B"),YieldCalcs[Code],0),1)),"",INDEX(YieldCalcs[PredWts],MATCH(CONCATENATE(G49,"B"),YieldCalcs[Code],0),1)) ->  | M49: =IF(ISERROR(INDEX(YieldCalcs[PredWts],MATCH(CONCATENATE(G49,"W"),YieldCalcs[Code],0),1)),"",INDEX(YieldCalcs[PredWts],MATCH(CONCATENATE(G49,"W"),YieldCalcs[Code],0),1)) ->  | N49: =IF(ISERROR(INDEX(YieldCalcs[PredWts],MATCH(CONCATENATE(G49,"Pad"),YieldCalcs[Code],0),1)),"",INDEX(YieldCalcs[PredWts],MATCH(CONCATENATE(G49,"Pad"),YieldCalcs[Code],0),1)) ->  | O49: =IF(ISERROR(INDEX(YieldCalcs[PredWts],MATCH(CONCATENATE(G49,"Int"),YieldCalcs[Code],0),1)),"",INDEX(YieldCalcs[PredWts],MATCH(CONCATENATE(G49,"Int"),YieldCalcs[Code],0),1)) ->  | P49: =IF(ISERROR(INDEX(YieldCalcs[PredWts],MATCH(CONCATENATE(G49,"Skirt"),YieldCalcs[Code],0),1)),"",INDEX(YieldCalcs[PredWts],MATCH(CONCATENATE(G49,"Skirt"),YieldCalcs[Code],0),1)) ->  | Q49: =IF(ISERROR(INDEX(YieldCalcs[SalePrice],MATCH(G49,YieldCalcs[Code],0),1)),"",INDEX(YieldCalcs[SalePrice],MATCH(G49,YieldCalcs[Code],0),1)) ->  | R49: =IF(ISERROR(INDEX(YieldCalcs[CutValue],MATCH(G49,YieldCalcs[Code],0),1)),"",INDEX(YieldCalcs[CutValue],MATCH(G49,YieldCalcs[Code],0),1)) ->  | S49: =IF(ISERROR(INDEX(YieldCalcs[GM$],MATCH(G49,YieldCalcs[Code],0),1)),"",INDEX(YieldCalcs[GM$],MATCH(G49,YieldCalcs[Code],0),1)) ->  | T49: =IF(ISERROR(INDEX(YieldCalcs[GM%],MATCH(G49,YieldCalcs[Code],0),1)),"",INDEX(YieldCalcs[GM%],MATCH(G49,YieldCalcs[Code],0),1)) ->  | U49: =IF(ISERROR(INDEX(YieldCalcs[TGM%],MATCH(G49,YieldCalcs[Code],0),1)),"",INDEX(YieldCalcs[TGM%],MATCH(G49,YieldCalcs[Code],0),1)) ->  | V49: =IF(ISERROR(INDEX(YieldCalcs[TSalePrice],MATCH(G49,YieldCalcs[Code],0),1)),"",INDEX(YieldCalcs[TSalePrice],MATCH(G49,YieldCalcs[Code],0),1)) ->  | W49: =IF(ISNUMBER(INDEX(YieldCalcs[TotCostsPerKg],MATCH(G49,YieldCalcs[Code],0),1)),INDEX(YieldCalcs[TotCostsPerKg],MATCH(G49,YieldCalcs[Code],0),1),"") ->  | X49: =IF(ISERROR(INDEX(YieldCalcs[PreBoneCperkg],MATCH(G49,YieldCalcs[Code],0),1)),"",INDEX(YieldCalcs[PreBoneCperkg],MATCH(G49,YieldCalcs[Code],0),1)) ->  | Y49: =IF(ISERROR(INDEX(YieldCalcs[FixBoneCostperkg],MATCH(G49,YieldCalcs[Code],0),1)),"",INDEX(YieldCalcs[FixBoneCostperkg],MATCH(G49,YieldCalcs[Code],0),1)) ->  | Z49: =IF(ISERROR(INDEX(YieldCalcs[BoningCost],MATCH(G49,YieldCalcs[Code],0),1)),"",INDEX(YieldCalcs[BoningCost],MATCH(G49,YieldCalcs[Code],0),1)) ->  | AA49: =IF(ISNUMBER(INDEX(YieldCalcs[TotCosts],MATCH(G49,YieldCalcs[Code],0),1)),INDEX(YieldCalcs[TotCosts],MATCH(G49,YieldCalcs[Code],0),1),"") ->  | AB49: =IF(ISERROR(INDEX(YieldCalcs[BuyInPrice],MATCH(G49,YieldCalcs[Code],0),1)),"",INDEX(YieldCalcs[BuyInPrice],MATCH(G49,YieldCalcs[Code],0),1)) -> 
G50: =IF(ISERROR(INDEX(YieldCalcs[Code],MATCH(E50,YieldCalcs[CutName],0),1)),"",INDEX(YieldCalcs[Code],MATCH(E50,YieldCalcs[CutName],0),1)) ->  | H50: =IF(ISNA(MATCH(E50,YieldCalcs[CutName],0)),"",MATCH(E50,YieldCalcs[CutName],0)) ->  | I50: =IF(ISERROR(INDEX(YieldCalcs[PredWts],MATCH(G50,YieldCalcs[Code],0),1)),"",INDEX(YieldCalcs[PredWts],MATCH(G50,YieldCalcs[Code],0),1)) ->  | J50: =IF(ISERROR(INDEX(YieldCalcs[PredWts],MATCH(CONCATENATE(G50,"LT"),YieldCalcs[Code],0),1)),"",INDEX(YieldCalcs[PredWts],MATCH(CONCATENATE(G50,"LT"),YieldCalcs[Code],0),1)) ->  | K50: =IF(ISERROR(INDEX(YieldCalcs[PredWts],MATCH(CONCATENATE(G50,"F"),YieldCalcs[Code],0),1)),"",INDEX(YieldCalcs[PredWts],MATCH(CONCATENATE(G50,"F"),YieldCalcs[Code],0),1)) ->  | L50: =IF(ISERROR(INDEX(YieldCalcs[PredWts],MATCH(CONCATENATE(G50,"B"),YieldCalcs[Code],0),1)),"",INDEX(YieldCalcs[PredWts],MATCH(CONCATENATE(G50,"B"),YieldCalcs[Code],0),1)) ->  | M50: =IF(ISERROR(INDEX(YieldCalcs[PredWts],MATCH(CONCATENATE(G50,"W"),YieldCalcs[Code],0),1)),"",INDEX(YieldCalcs[PredWts],MATCH(CONCATENATE(G50,"W"),YieldCalcs[Code],0),1)) ->  | N50: =IF(ISERROR(INDEX(YieldCalcs[PredWts],MATCH(CONCATENATE(G50,"Pad"),YieldCalcs[Code],0),1)),"",INDEX(YieldCalcs[PredWts],MATCH(CONCATENATE(G50,"Pad"),YieldCalcs[Code],0),1)) ->  | O50: =IF(ISERROR(INDEX(YieldCalcs[PredWts],MATCH(CONCATENATE(G50,"Int"),YieldCalcs[Code],0),1)),"",INDEX(YieldCalcs[PredWts],MATCH(CONCATENATE(G50,"Int"),YieldCalcs[Code],0),1)) ->  | P50: =IF(ISERROR(INDEX(YieldCalcs[PredWts],MATCH(CONCATENATE(G50,"Skirt"),YieldCalcs[Code],0),1)),"",INDEX(YieldCalcs[PredWts],MATCH(CONCATENATE(G50,"Skirt"),YieldCalcs[Code],0),1)) ->  | Q50: =IF(ISERROR(INDEX(YieldCalcs[SalePrice],MATCH(G50,YieldCalcs[Code],0),1)),"",INDEX(YieldCalcs[SalePrice],MATCH(G50,YieldCalcs[Code],0),1)) ->  | R50: =IF(ISERROR(INDEX(YieldCalcs[CutValue],MATCH(G50,YieldCalcs[Code],0),1)),"",INDEX(YieldCalcs[CutValue],MATCH(G50,YieldCalcs[Code],0),1)) ->  | S50: =IF(ISERROR(INDEX(YieldCalcs[GM$],MATCH(G50,YieldCalcs[Code],0),1)),"",INDEX(YieldCalcs[GM$],MATCH(G50,YieldCalcs[Code],0),1)) ->  | T50: =IF(ISERROR(INDEX(YieldCalcs[GM%],MATCH(G50,YieldCalcs[Code],0),1)),"",INDEX(YieldCalcs[GM%],MATCH(G50,YieldCalcs[Code],0),1)) ->  | U50: =IF(ISERROR(INDEX(YieldCalcs[TGM%],MATCH(G50,YieldCalcs[Code],0),1)),"",INDEX(YieldCalcs[TGM%],MATCH(G50,YieldCalcs[Code],0),1)) ->  | V50: =IF(ISERROR(INDEX(YieldCalcs[TSalePrice],MATCH(G50,YieldCalcs[Code],0),1)),"",INDEX(YieldCalcs[TSalePrice],MATCH(G50,YieldCalcs[Code],0),1)) ->  | W50: =IF(ISNUMBER(INDEX(YieldCalcs[TotCostsPerKg],MATCH(G50,YieldCalcs[Code],0),1)),INDEX(YieldCalcs[TotCostsPerKg],MATCH(G50,YieldCalcs[Code],0),1),"") ->  | X50: =IF(ISERROR(INDEX(YieldCalcs[PreBoneCperkg],MATCH(G50,YieldCalcs[Code],0),1)),"",INDEX(YieldCalcs[PreBoneCperkg],MATCH(G50,YieldCalcs[Code],0),1)) ->  | Y50: =IF(ISERROR(INDEX(YieldCalcs[FixBoneCostperkg],MATCH(G50,YieldCalcs[Code],0),1)),"",INDEX(YieldCalcs[FixBoneCostperkg],MATCH(G50,YieldCalcs[Code],0),1)) ->  | Z50: =IF(ISERROR(INDEX(YieldCalcs[BoningCost],MATCH(G50,YieldCalcs[Code],0),1)),"",INDEX(YieldCalcs[BoningCost],MATCH(G50,YieldCalcs[Code],0),1)) ->  | AA50: =IF(ISNUMBER(INDEX(YieldCalcs[TotCosts],MATCH(G50,YieldCalcs[Code],0),1)),INDEX(YieldCalcs[TotCosts],MATCH(G50,YieldCalcs[Code],0),1),"") ->  | AB50: =IF(ISERROR(INDEX(YieldCalcs[BuyInPrice],MATCH(G50,YieldCalcs[Code],0),1)),"",INDEX(YieldCalcs[BuyInPrice],MATCH(G50,YieldCalcs[Code],0),1)) -> 
G51: =IF(ISERROR(INDEX(YieldCalcs[Code],MATCH(E51,YieldCalcs[CutName],0),1)),"",INDEX(YieldCalcs[Code],MATCH(E51,YieldCalcs[CutName],0),1)) ->  | H51: =IF(ISNA(MATCH(E51,YieldCalcs[CutName],0)),"",MATCH(E51,YieldCalcs[CutName],0)) ->  | I51: =IF(ISERROR(INDEX(YieldCalcs[PredWts],MATCH(G51,YieldCalcs[Code],0),1)),"",INDEX(YieldCalcs[PredWts],MATCH(G51,YieldCalcs[Code],0),1)) ->  | J51: =IF(ISERROR(INDEX(YieldCalcs[PredWts],MATCH(CONCATENATE(G51,"LT"),YieldCalcs[Code],0),1)),"",INDEX(YieldCalcs[PredWts],MATCH(CONCATENATE(G51,"LT"),YieldCalcs[Code],0),1)) ->  | K51: =IF(ISERROR(INDEX(YieldCalcs[PredWts],MATCH(CONCATENATE(G51,"F"),YieldCalcs[Code],0),1)),"",INDEX(YieldCalcs[PredWts],MATCH(CONCATENATE(G51,"F"),YieldCalcs[Code],0),1)) ->  | L51: =IF(ISERROR(INDEX(YieldCalcs[PredWts],MATCH(CONCATENATE(G51,"B"),YieldCalcs[Code],0),1)),"",INDEX(YieldCalcs[PredWts],MATCH(CONCATENATE(G51,"B"),YieldCalcs[Code],0),1)) ->  | M51: =IF(ISERROR(INDEX(YieldCalcs[PredWts],MATCH(CONCATENATE(G51,"W"),YieldCalcs[Code],0),1)),"",INDEX(YieldCalcs[PredWts],MATCH(CONCATENATE(G51,"W"),YieldCalcs[Code],0),1)) ->  | N51: =IF(ISERROR(INDEX(YieldCalcs[PredWts],MATCH(CONCATENATE(G51,"Pad"),YieldCalcs[Code],0),1)),"",INDEX(YieldCalcs[PredWts],MATCH(CONCATENATE(G51,"Pad"),YieldCalcs[Code],0),1)) ->  | O51: =IF(ISERROR(INDEX(YieldCalcs[PredWts],MATCH(CONCATENATE(G51,"Int"),YieldCalcs[Code],0),1)),"",INDEX(YieldCalcs[PredWts],MATCH(CONCATENATE(G51,"Int"),YieldCalcs[Code],0),1)) ->  | P51: =IF(ISERROR(INDEX(YieldCalcs[PredWts],MATCH(CONCATENATE(G51,"Skirt"),YieldCalcs[Code],0),1)),"",INDEX(YieldCalcs[PredWts],MATCH(CONCATENATE(G51,"Skirt"),YieldCalcs[Code],0),1)) ->  | Q51: =IF(ISERROR(INDEX(YieldCalcs[SalePrice],MATCH(G51,YieldCalcs[Code],0),1)),"",INDEX(YieldCalcs[SalePrice],MATCH(G51,YieldCalcs[Code],0),1)) ->  | R51: =IF(ISERROR(INDEX(YieldCalcs[CutValue],MATCH(G51,YieldCalcs[Code],0),1)),"",INDEX(YieldCalcs[CutValue],MATCH(G51,YieldCalcs[Code],0),1)) ->  | X51: =IF(ISERROR(INDEX(YieldCalcs[PreBoneCperkg],MATCH(G51,YieldCalcs[Code],0),1)),"",INDEX(YieldCalcs[PreBoneCperkg],MATCH(G51,YieldCalcs[Code],0),1)) ->  | Y51: =IF(ISERROR(INDEX(YieldCalcs[FixBoneCostperkg],MATCH(G51,YieldCalcs[Code],0),1)),"",INDEX(YieldCalcs[FixBoneCostperkg],MATCH(G51,YieldCalcs[Code],0),1)) ->  | Z51: =IF(ISERROR(INDEX(YieldCalcs[BoningCost],MATCH(G51,YieldCalcs[Code],0),1)),"",INDEX(YieldCalcs[BoningCost],MATCH(G51,YieldCalcs[Code],0),1)) ->  | AA51: =IF(ISNUMBER(INDEX(YieldCalcs[TotCosts],MATCH(G51,YieldCalcs[Code],0),1)),INDEX(YieldCalcs[TotCosts],MATCH(G51,YieldCalcs[Code],0),1),"") ->  | AB51: =IF(ISERROR(INDEX(YieldCalcs[BuyInPrice],MATCH(G51,YieldCalcs[Code],0),1)),"",INDEX(YieldCalcs[BuyInPrice],MATCH(G51,YieldCalcs[Code],0),1)) -> 
B53: Flap | E53: Ribset 8 rib (Bark, Abs Flap,Skirt,Brst off) | F53: =IF(E59<>"",7,IF(E58<>"",6,IF(E57<>"",5,IF(E56<>"",4,IF(E55<>"",3,IF(E54<>"",2,IF(E53<>"",1,0))))))) -> 3 | G53: =IF(ISERROR(INDEX(YieldCalcs[Code],MATCH(E53,YieldCalcs[CutName],0),1)),"",INDEX(YieldCalcs[Code],MATCH(E53,YieldCalcs[CutName],0),1)) -> Fp01.2cc | H53: =IF(ISNA(MATCH(E53,YieldCalcs[CutName],0)),"",MATCH(E53,YieldCalcs[CutName],0)) -> 245 | I53: =IF(ISERROR(INDEX(YieldCalcs[PredWts],MATCH(G53,YieldCalcs[Code],0),1)),"",INDEX(YieldCalcs[PredWts],MATCH(G53,YieldCalcs[Code],0),1)) -> 1.135 | J53: =IF(ISERROR(INDEX(YieldCalcs[PredWts],MATCH(CONCATENATE(G53,"LT"),YieldCalcs[Code],0),1)),"",INDEX(YieldCalcs[PredWts],MATCH(CONCATENATE(G53,"LT"),YieldCalcs[Code],0),1)) -> 0.255 | K53: =IF(ISERROR(INDEX(YieldCalcs[PredWts],MATCH(CONCATENATE(G53,"F"),YieldCalcs[Code],0),1)),"",INDEX(YieldCalcs[PredWts],MATCH(CONCATENATE(G53,"F"),YieldCalcs[Code],0),1)) -> 0.39 | L53: =IF(ISERROR(INDEX(YieldCalcs[PredWts],MATCH(CONCATENATE(G53,"B"),YieldCalcs[Code],0),1)),"",INDEX(YieldCalcs[PredWts],MATCH(CONCATENATE(G53,"B"),YieldCalcs[Code],0),1)) ->  | M53: =IF(ISERROR(INDEX(YieldCalcs[PredWts],MATCH(CONCATENATE(G53,"W"),YieldCalcs[Code],0),1)),"",INDEX(YieldCalcs[PredWts],MATCH(CONCATENATE(G53,"W"),YieldCalcs[Code],0),1)) ->  | N53: =IF(ISERROR(INDEX(YieldCalcs[PredWts],MATCH(CONCATENATE(G53,"Pad"),YieldCalcs[Code],0),1)),"",INDEX(YieldCalcs[PredWts],MATCH(CONCATENATE(G53,"Pad"),YieldCalcs[Code],0),1)) ->  | O53: =IF(ISERROR(INDEX(YieldCalcs[PredWts],MATCH(CONCATENATE(G53,"Int"),YieldCalcs[Code],0),1)),"",INDEX(YieldCalcs[PredWts],MATCH(CONCATENATE(G53,"Int"),YieldCalcs[Code],0),1)) ->  | P53: =IF(ISERROR(INDEX(YieldCalcs[PredWts],MATCH(CONCATENATE(G53,"Skirt"),YieldCalcs[Code],0),1)),"",INDEX(YieldCalcs[PredWts],MATCH(CONCATENATE(G53,"Skirt"),YieldCalcs[Code],0),1)) -> 0.152 | Q53: =IF(ISERROR(INDEX(YieldCalcs[SalePrice],MATCH(G53,YieldCalcs[Code],0),1)),"",INDEX(YieldCalcs[SalePrice],MATCH(G53,YieldCalcs[Code],0),1)) -> 3.25 | R53: =IF(ISERROR(INDEX(YieldCalcs[CutValue],MATCH(G53,YieldCalcs[Code],0),1)),"",INDEX(YieldCalcs[CutValue],MATCH(G53,YieldCalcs[Code],0),1)) -> 3.68875 | S53: =IF(ISERROR(INDEX(YieldCalcs[GM$],MATCH(G53,YieldCalcs[Code],0),1)),"",INDEX(YieldCalcs[GM$],MATCH(G53,YieldCalcs[Code],0),1)) -> 1.565988537 | T53: =IF(ISERROR(INDEX(YieldCalcs[GM%],MATCH(G53,YieldCalcs[Code],0),1)),"",INDEX(YieldCalcs[GM%],MATCH(G53,YieldCalcs[Code],0),1)) -> 0.4245309486 | U53: =IF(ISERROR(INDEX(YieldCalcs[TGM%],MATCH(G53,YieldCalcs[Code],0),1)),"",INDEX(YieldCalcs[TGM%],MATCH(G53,YieldCalcs[Code],0),1)) -> 0 | V53: =IF(ISERROR(INDEX(YieldCalcs[TSalePrice],MATCH(G53,YieldCalcs[Code],0),1)),"",INDEX(YieldCalcs[TSalePrice],MATCH(G53,YieldCalcs[Code],0),1)) -> 1.870274417 | W53: =IF(ISNUMBER(INDEX(YieldCalcs[TotCostsPerKg],MATCH(G53,YieldCalcs[Code],0),1)),INDEX(YieldCalcs[TotCostsPerKg],MATCH(G53,YieldCalcs[Code],0),1),"") -> 1.870274417 | X53: =IF(ISERROR(INDEX(YieldCalcs[PreBoneCperkg],MATCH(G53,YieldCalcs[Code],0),1)),"",INDEX(YieldCalcs[PreBoneCperkg],MATCH(G53,YieldCalcs[Code],0),1)) -> 1.070274412 | Y53: =IF(ISERROR(INDEX(YieldCalcs[FixBoneCostperkg],MATCH(G53,YieldCalcs[Code],0),1)),"",INDEX(YieldCalcs[FixBoneCostperkg],MATCH(G53,YieldCalcs[Code],0),1)) -> 4.652962405e-09 | Z53: =IF(ISERROR(INDEX(YieldCalcs[BoningCost],MATCH(G53,YieldCalcs[Code],0),1)),"",INDEX(YieldCalcs[BoningCost],MATCH(G53,YieldCalcs[Code],0),1)) -> 0.8 | AA53: =IF(ISNUMBER(INDEX(YieldCalcs[TotCosts],MATCH(G53,YieldCalcs[Code],0),1)),INDEX(YieldCalcs[TotCosts],MATCH(G53,YieldCalcs[Code],0),1),"") -> 2.122761463 | AB53: =IF(ISERROR(INDEX(YieldCalcs[BuyInPrice],MATCH(G53,YieldCalcs[Code],0),1)),"",INDEX(YieldCalcs[BuyInPrice],MATCH(G53,YieldCalcs[Code],0),1)) -> 0
C54: Flap | E54: Abdominal Flap | G54: =IF(ISERROR(INDEX(YieldCalcs[Code],MATCH(E54,YieldCalcs[CutName],0),1)),"",INDEX(YieldCalcs[Code],MATCH(E54,YieldCalcs[CutName],0),1)) -> FpAb1.1 | H54: =IF(ISNA(MATCH(E54,YieldCalcs[CutName],0)),"",MATCH(E54,YieldCalcs[CutName],0)) -> 250 | I54: =IF(ISERROR(INDEX(YieldCalcs[PredWts],MATCH(G54,YieldCalcs[Code],0),1)),"",INDEX(YieldCalcs[PredWts],MATCH(G54,YieldCalcs[Code],0),1)) -> 0.661 | J54: =IF(ISERROR(INDEX(YieldCalcs[PredWts],MATCH(CONCATENATE(G54,"LT"),YieldCalcs[Code],0),1)),"",INDEX(YieldCalcs[PredWts],MATCH(CONCATENATE(G54,"LT"),YieldCalcs[Code],0),1)) ->  | K54: =IF(ISERROR(INDEX(YieldCalcs[PredWts],MATCH(CONCATENATE(G54,"F"),YieldCalcs[Code],0),1)),"",INDEX(YieldCalcs[PredWts],MATCH(CONCATENATE(G54,"F"),YieldCalcs[Code],0),1)) ->  | L54: =IF(ISERROR(INDEX(YieldCalcs[PredWts],MATCH(CONCATENATE(G54,"B"),YieldCalcs[Code],0),1)),"",INDEX(YieldCalcs[PredWts],MATCH(CONCATENATE(G54,"B"),YieldCalcs[Code],0),1)) ->  | M54: =IF(ISERROR(INDEX(YieldCalcs[PredWts],MATCH(CONCATENATE(G54,"W"),YieldCalcs[Code],0),1)),"",INDEX(YieldCalcs[PredWts],MATCH(CONCATENATE(G54,"W"),YieldCalcs[Code],0),1)) ->  | N54: =IF(ISERROR(INDEX(YieldCalcs[PredWts],MATCH(CONCATENATE(G54,"Pad"),YieldCalcs[Code],0),1)),"",INDEX(YieldCalcs[PredWts],MATCH(CONCATENATE(G54,"Pad"),YieldCalcs[Code],0),1)) ->  | O54: =IF(ISERROR(INDEX(YieldCalcs[PredWts],MATCH(CONCATENATE(G54,"Int"),YieldCalcs[Code],0),1)),"",INDEX(YieldCalcs[PredWts],MATCH(CONCATENATE(G54,"Int"),YieldCalcs[Code],0),1)) ->  | P54: =IF(ISERROR(INDEX(YieldCalcs[PredWts],MATCH(CONCATENATE(G54,"Skirt"),YieldCalcs[Code],0),1)),"",INDEX(YieldCalcs[PredWts],MATCH(CONCATENATE(G54,"Skirt"),YieldCalcs[Code],0),1)) ->  | Q54: =IF(ISERROR(INDEX(YieldCalcs[SalePrice],MATCH(G54,YieldCalcs[Code],0),1)),"",INDEX(YieldCalcs[SalePrice],MATCH(G54,YieldCalcs[Code],0),1)) -> 5.8 | R54: =IF(ISERROR(INDEX(YieldCalcs[CutValue],MATCH(G54,YieldCalcs[Code],0),1)),"",INDEX(YieldCalcs[CutValue],MATCH(G54,YieldCalcs[Code],0),1)) -> 3.8338 | S54: =IF(ISERROR(INDEX(YieldCalcs[GM$],MATCH(G54,YieldCalcs[Code],0),1)),"",INDEX(YieldCalcs[GM$],MATCH(G54,YieldCalcs[Code],0),1)) -> 3.356277322 | T54: =IF(ISERROR(INDEX(YieldCalcs[GM%],MATCH(G54,YieldCalcs[Code],0),1)),"",INDEX(YieldCalcs[GM%],MATCH(G54,YieldCalcs[Code],0),1)) -> 0.87544403 | U54: =IF(ISERROR(INDEX(YieldCalcs[TGM%],MATCH(G54,YieldCalcs[Code],0),1)),"",INDEX(YieldCalcs[TGM%],MATCH(G54,YieldCalcs[Code],0),1)) -> 0.08 | V54: =IF(ISERROR(INDEX(YieldCalcs[TSalePrice],MATCH(G54,YieldCalcs[Code],0),1)),"",INDEX(YieldCalcs[TSalePrice],MATCH(G54,YieldCalcs[Code],0),1)) -> 0.785244159 | W54: =IF(ISNUMBER(INDEX(YieldCalcs[TotCostsPerKg],MATCH(G54,YieldCalcs[Code],0),1)),INDEX(YieldCalcs[TotCostsPerKg],MATCH(G54,YieldCalcs[Code],0),1),"") -> 0.7224246263 | X54: =IF(ISERROR(INDEX(YieldCalcs[PreBoneCperkg],MATCH(G54,YieldCalcs[Code],0),1)),"",INDEX(YieldCalcs[PreBoneCperkg],MATCH(G54,YieldCalcs[Code],0),1)) -> 0.7224246231 | Y54: =IF(ISERROR(INDEX(YieldCalcs[FixBoneCostperkg],MATCH(G54,YieldCalcs[Code],0),1)),"",INDEX(YieldCalcs[FixBoneCostperkg],MATCH(G54,YieldCalcs[Code],0),1)) -> 3.140703518e-09 | Z54: =IF(ISERROR(INDEX(YieldCalcs[BoningCost],MATCH(G54,YieldCalcs[Code],0),1)),"",INDEX(YieldCalcs[BoningCost],MATCH(G54,YieldCalcs[Code],0),1)) -> 0 | AA54: =IF(ISNUMBER(INDEX(YieldCalcs[TotCosts],MATCH(G54,YieldCalcs[Code],0),1)),INDEX(YieldCalcs[TotCosts],MATCH(G54,YieldCalcs[Code],0),1),"") -> 0.477522678 | AB54: =IF(ISERROR(INDEX(YieldCalcs[BuyInPrice],MATCH(G54,YieldCalcs[Code],0),1)),"",INDEX(YieldCalcs[BuyInPrice],MATCH(G54,YieldCalcs[Code],0),1)) -> 0
A55: REC% | B55: =SUM(I53:P59)/(INDEX(YieldCalcs[PredWts],MATCH("Fp01.1cc",YieldCalcs[Code],0),1)) -> 0.9943378421 | E55: Breast Piece (via Ribset cut) | G55: =IF(ISERROR(INDEX(YieldCalcs[Code],MATCH(E55,YieldCalcs[CutName],0),1)),"",INDEX(YieldCalcs[Code],MATCH(E55,YieldCalcs[CutName],0),1)) -> Fp01.3cc | H55: =IF(ISNA(MATCH(E55,YieldCalcs[CutName],0)),"",MATCH(E55,YieldCalcs[CutName],0)) -> 249 | I55: =IF(ISERROR(INDEX(YieldCalcs[PredWts],MATCH(G55,YieldCalcs[Code],0),1)),"",INDEX(YieldCalcs[PredWts],MATCH(G55,YieldCalcs[Code],0),1)) -> 0.568 | J55: =IF(ISERROR(INDEX(YieldCalcs[PredWts],MATCH(CONCATENATE(G55,"LT"),YieldCalcs[Code],0),1)),"",INDEX(YieldCalcs[PredWts],MATCH(CONCATENATE(G55,"LT"),YieldCalcs[Code],0),1)) ->  | K55: =IF(ISERROR(INDEX(YieldCalcs[PredWts],MATCH(CONCATENATE(G55,"F"),YieldCalcs[Code],0),1)),"",INDEX(YieldCalcs[PredWts],MATCH(CONCATENATE(G55,"F"),YieldCalcs[Code],0),1)) ->  | L55: =IF(ISERROR(INDEX(YieldCalcs[PredWts],MATCH(CONCATENATE(G55,"B"),YieldCalcs[Code],0),1)),"",INDEX(YieldCalcs[PredWts],MATCH(CONCATENATE(G55,"B"),YieldCalcs[Code],0),1)) ->  | M55: =IF(ISERROR(INDEX(YieldCalcs[PredWts],MATCH(CONCATENATE(G55,"W"),YieldCalcs[Code],0),1)),"",INDEX(YieldCalcs[PredWts],MATCH(CONCATENATE(G55,"W"),YieldCalcs[Code],0),1)) ->  | N55: =IF(ISERROR(INDEX(YieldCalcs[PredWts],MATCH(CONCATENATE(G55,"Pad"),YieldCalcs[Code],0),1)),"",INDEX(YieldCalcs[PredWts],MATCH(CONCATENATE(G55,"Pad"),YieldCalcs[Code],0),1)) ->  | O55: =IF(ISERROR(INDEX(YieldCalcs[PredWts],MATCH(CONCATENATE(G55,"Int"),YieldCalcs[Code],0),1)),"",INDEX(YieldCalcs[PredWts],MATCH(CONCATENATE(G55,"Int"),YieldCalcs[Code],0),1)) ->  | P55: =IF(ISERROR(INDEX(YieldCalcs[PredWts],MATCH(CONCATENATE(G55,"Skirt"),YieldCalcs[Code],0),1)),"",INDEX(YieldCalcs[PredWts],MATCH(CONCATENATE(G55,"Skirt"),YieldCalcs[Code],0),1)) ->  | Q55: =IF(ISERROR(INDEX(YieldCalcs[SalePrice],MATCH(G55,YieldCalcs[Code],0),1)),"",INDEX(YieldCalcs[SalePrice],MATCH(G55,YieldCalcs[Code],0),1)) -> 3.25 | R55: =IF(ISERROR(INDEX(YieldCalcs[CutValue],MATCH(G55,YieldCalcs[Code],0),1)),"",INDEX(YieldCalcs[CutValue],MATCH(G55,YieldCalcs[Code],0),1)) -> 1.846 | S55: =IF(ISERROR(INDEX(YieldCalcs[GM$],MATCH(G55,YieldCalcs[Code],0),1)),"",INDEX(YieldCalcs[GM$],MATCH(G55,YieldCalcs[Code],0),1)) -> 0.7836841312 | T55: =IF(ISERROR(INDEX(YieldCalcs[GM%],MATCH(G55,YieldCalcs[Code],0),1)),"",INDEX(YieldCalcs[GM%],MATCH(G55,YieldCalcs[Code],0),1)) -> 0.4245309486 | U55: =IF(ISERROR(INDEX(YieldCalcs[TGM%],MATCH(G55,YieldCalcs[Code],0),1)),"",INDEX(YieldCalcs[TGM%],MATCH(G55,YieldCalcs[Code],0),1)) -> 0 | V55: =IF(ISERROR(INDEX(YieldCalcs[TSalePrice],MATCH(G55,YieldCalcs[Code],0),1)),"",INDEX(YieldCalcs[TSalePrice],MATCH(G55,YieldCalcs[Code],0),1)) -> 1.870274417 | W55: =IF(ISNUMBER(INDEX(YieldCalcs[TotCostsPerKg],MATCH(G55,YieldCalcs[Code],0),1)),INDEX(YieldCalcs[TotCostsPerKg],MATCH(G55,YieldCalcs[Code],0),1),"") -> 1.870274417 | X55: =IF(ISERROR(INDEX(YieldCalcs[PreBoneCperkg],MATCH(G55,YieldCalcs[Code],0),1)),"",INDEX(YieldCalcs[PreBoneCperkg],MATCH(G55,YieldCalcs[Code],0),1)) -> 1.070274412 | Y55: =IF(ISERROR(INDEX(YieldCalcs[FixBoneCostperkg],MATCH(G55,YieldCalcs[Code],0),1)),"",INDEX(YieldCalcs[FixBoneCostperkg],MATCH(G55,YieldCalcs[Code],0),1)) -> 4.652962405e-09 | Z55: =IF(ISERROR(INDEX(YieldCalcs[BoningCost],MATCH(G55,YieldCalcs[Code],0),1)),"",INDEX(YieldCalcs[BoningCost],MATCH(G55,YieldCalcs[Code],0),1)) -> 0.8 | AA55: =IF(ISNUMBER(INDEX(YieldCalcs[TotCosts],MATCH(G55,YieldCalcs[Code],0),1)),INDEX(YieldCalcs[TotCosts],MATCH(G55,YieldCalcs[Code],0),1),"") -> 1.062315869 | AB55: =IF(ISERROR(INDEX(YieldCalcs[BuyInPrice],MATCH(G55,YieldCalcs[Code],0),1)),"",INDEX(YieldCalcs[BuyInPrice],MATCH(G55,YieldCalcs[Code],0),1)) -> 0
G56: =IF(ISERROR(INDEX(YieldCalcs[Code],MATCH(E56,YieldCalcs[CutName],0),1)),"",INDEX(YieldCalcs[Code],MATCH(E56,YieldCalcs[CutName],0),1)) ->  | I56: =IF(ISERROR(INDEX(YieldCalcs[PredWts],MATCH(G56,YieldCalcs[Code],0),1)),"",INDEX(YieldCalcs[PredWts],MATCH(G56,YieldCalcs[Code],0),1)) ->  | J56: =IF(ISERROR(INDEX(YieldCalcs[PredWts],MATCH(CONCATENATE(G56,"LT"),YieldCalcs[Code],0),1)),"",INDEX(YieldCalcs[PredWts],MATCH(CONCATENATE(G56,"LT"),YieldCalcs[Code],0),1)) ->  | K56: =IF(ISERROR(INDEX(YieldCalcs[PredWts],MATCH(CONCATENATE(G56,"F"),YieldCalcs[Code],0),1)),"",INDEX(YieldCalcs[PredWts],MATCH(CONCATENATE(G56,"F"),YieldCalcs[Code],0),1)) ->  | L56: =IF(ISERROR(INDEX(YieldCalcs[PredWts],MATCH(CONCATENATE(G56,"B"),YieldCalcs[Code],0),1)),"",INDEX(YieldCalcs[PredWts],MATCH(CONCATENATE(G56,"B"),YieldCalcs[Code],0),1)) ->  | M56: =IF(ISERROR(INDEX(YieldCalcs[PredWts],MATCH(CONCATENATE(G56,"W"),YieldCalcs[Code],0),1)),"",INDEX(YieldCalcs[PredWts],MATCH(CONCATENATE(G56,"W"),YieldCalcs[Code],0),1)) ->  | N56: =IF(ISERROR(INDEX(YieldCalcs[PredWts],MATCH(CONCATENATE(G56,"Pad"),YieldCalcs[Code],0),1)),"",INDEX(YieldCalcs[PredWts],MATCH(CONCATENATE(G56,"Pad"),YieldCalcs[Code],0),1)) ->  | O56: =IF(ISERROR(INDEX(YieldCalcs[PredWts],MATCH(CONCATENATE(G56,"Int"),YieldCalcs[Code],0),1)),"",INDEX(YieldCalcs[PredWts],MATCH(CONCATENATE(G56,"Int"),YieldCalcs[Code],0),1)) ->  | P56: =IF(ISERROR(INDEX(YieldCalcs[PredWts],MATCH(CONCATENATE(G56,"Skirt"),YieldCalcs[Code],0),1)),"",INDEX(YieldCalcs[PredWts],MATCH(CONCATENATE(G56,"Skirt"),YieldCalcs[Code],0),1)) ->  | Q56: =IF(ISERROR(INDEX(YieldCalcs[SalePrice],MATCH(G56,YieldCalcs[Code],0),1)),"",INDEX(YieldCalcs[SalePrice],MATCH(G56,YieldCalcs[Code],0),1)) ->  | R56: =IF(ISERROR(INDEX(YieldCalcs[CutValue],MATCH(G56,YieldCalcs[Code],0),1)),"",INDEX(YieldCalcs[CutValue],MATCH(G56,YieldCalcs[Code],0),1)) ->  | S56: =IF(ISERROR(INDEX(YieldCalcs[GM$],MATCH(G56,YieldCalcs[Code],0),1)),"",INDEX(YieldCalcs[GM$],MATCH(G56,YieldCalcs[Code],0),1)) ->  | T56: =IF(ISERROR(INDEX(YieldCalcs[GM%],MATCH(G56,YieldCalcs[Code],0),1)),"",INDEX(YieldCalcs[GM%],MATCH(G56,YieldCalcs[Code],0),1)) ->  | U56: =IF(ISERROR(INDEX(YieldCalcs[TGM%],MATCH(G56,YieldCalcs[Code],0),1)),"",INDEX(YieldCalcs[TGM%],MATCH(G56,YieldCalcs[Code],0),1)) ->  | V56: =IF(ISERROR(INDEX(YieldCalcs[TSalePrice],MATCH(G56,YieldCalcs[Code],0),1)),"",INDEX(YieldCalcs[TSalePrice],MATCH(G56,YieldCalcs[Code],0),1)) ->  | W56: =IF(ISNUMBER(INDEX(YieldCalcs[TotCostsPerKg],MATCH(G56,YieldCalcs[Code],0),1)),INDEX(YieldCalcs[TotCostsPerKg],MATCH(G56,YieldCalcs[Code],0),1),"") ->  | X56: =IF(ISERROR(INDEX(YieldCalcs[PreBoneCperkg],MATCH(G56,YieldCalcs[Code],0),1)),"",INDEX(YieldCalcs[PreBoneCperkg],MATCH(G56,YieldCalcs[Code],0),1)) ->  | Y56: =IF(ISERROR(INDEX(YieldCalcs[FixBoneCostperkg],MATCH(G56,YieldCalcs[Code],0),1)),"",INDEX(YieldCalcs[FixBoneCostperkg],MATCH(G56,YieldCalcs[Code],0),1)) ->  | Z56: =IF(ISERROR(INDEX(YieldCalcs[BoningCost],MATCH(G56,YieldCalcs[Code],0),1)),"",INDEX(YieldCalcs[BoningCost],MATCH(G56,YieldCalcs[Code],0),1)) ->  | AA56: =IF(ISNUMBER(INDEX(YieldCalcs[TotCosts],MATCH(G56,YieldCalcs[Code],0),1)),INDEX(YieldCalcs[TotCosts],MATCH(G56,YieldCalcs[Code],0),1),"") ->  | AB56: =IF(ISERROR(INDEX(YieldCalcs[BuyInPrice],MATCH(G56,YieldCalcs[Code],0),1)),"",INDEX(YieldCalcs[BuyInPrice],MATCH(G56,YieldCalcs[Code],0),1)) -> 
G57: =IF(ISERROR(INDEX(YieldCalcs[Code],MATCH(E57,YieldCalcs[CutName],0),1)),"",INDEX(YieldCalcs[Code],MATCH(E57,YieldCalcs[CutName],0),1)) ->  | I57: =IF(ISERROR(INDEX(YieldCalcs[PredWts],MATCH(G57,YieldCalcs[Code],0),1)),"",INDEX(YieldCalcs[PredWts],MATCH(G57,YieldCalcs[Code],0),1)) ->  | J57: =IF(ISERROR(INDEX(YieldCalcs[PredWts],MATCH(CONCATENATE(G57,"LT"),YieldCalcs[Code],0),1)),"",INDEX(YieldCalcs[PredWts],MATCH(CONCATENATE(G57,"LT"),YieldCalcs[Code],0),1)) ->  | K57: =IF(ISERROR(INDEX(YieldCalcs[PredWts],MATCH(CONCATENATE(G57,"F"),YieldCalcs[Code],0),1)),"",INDEX(YieldCalcs[PredWts],MATCH(CONCATENATE(G57,"F"),YieldCalcs[Code],0),1)) ->  | L57: =IF(ISERROR(INDEX(YieldCalcs[PredWts],MATCH(CONCATENATE(G57,"B"),YieldCalcs[Code],0),1)),"",INDEX(YieldCalcs[PredWts],MATCH(CONCATENATE(G57,"B"),YieldCalcs[Code],0),1)) ->  | M57: =IF(ISERROR(INDEX(YieldCalcs[PredWts],MATCH(CONCATENATE(G57,"W"),YieldCalcs[Code],0),1)),"",INDEX(YieldCalcs[PredWts],MATCH(CONCATENATE(G57,"W"),YieldCalcs[Code],0),1)) ->  | N57: =IF(ISERROR(INDEX(YieldCalcs[PredWts],MATCH(CONCATENATE(G57,"Pad"),YieldCalcs[Code],0),1)),"",INDEX(YieldCalcs[PredWts],MATCH(CONCATENATE(G57,"Pad"),YieldCalcs[Code],0),1)) ->  | O57: =IF(ISERROR(INDEX(YieldCalcs[PredWts],MATCH(CONCATENATE(G57,"Int"),YieldCalcs[Code],0),1)),"",INDEX(YieldCalcs[PredWts],MATCH(CONCATENATE(G57,"Int"),YieldCalcs[Code],0),1)) ->  | P57: =IF(ISERROR(INDEX(YieldCalcs[PredWts],MATCH(CONCATENATE(G57,"Skirt"),YieldCalcs[Code],0),1)),"",INDEX(YieldCalcs[PredWts],MATCH(CONCATENATE(G57,"Skirt"),YieldCalcs[Code],0),1)) ->  | Q57: =IF(ISERROR(INDEX(YieldCalcs[SalePrice],MATCH(G57,YieldCalcs[Code],0),1)),"",INDEX(YieldCalcs[SalePrice],MATCH(G57,YieldCalcs[Code],0),1)) ->  | R57: =IF(ISERROR(INDEX(YieldCalcs[CutValue],MATCH(G57,YieldCalcs[Code],0),1)),"",INDEX(YieldCalcs[CutValue],MATCH(G57,YieldCalcs[Code],0),1)) ->  | S57: =IF(ISERROR(INDEX(YieldCalcs[GM$],MATCH(G57,YieldCalcs[Code],0),1)),"",INDEX(YieldCalcs[GM$],MATCH(G57,YieldCalcs[Code],0),1)) ->  | T57: =IF(ISERROR(INDEX(YieldCalcs[GM%],MATCH(G57,YieldCalcs[Code],0),1)),"",INDEX(YieldCalcs[GM%],MATCH(G57,YieldCalcs[Code],0),1)) ->  | U57: =IF(ISERROR(INDEX(YieldCalcs[TGM%],MATCH(G57,YieldCalcs[Code],0),1)),"",INDEX(YieldCalcs[TGM%],MATCH(G57,YieldCalcs[Code],0),1)) ->  | V57: =IF(ISERROR(INDEX(YieldCalcs[TSalePrice],MATCH(G57,YieldCalcs[Code],0),1)),"",INDEX(YieldCalcs[TSalePrice],MATCH(G57,YieldCalcs[Code],0),1)) ->  | W57: =IF(ISNUMBER(INDEX(YieldCalcs[TotCostsPerKg],MATCH(G57,YieldCalcs[Code],0),1)),INDEX(YieldCalcs[TotCostsPerKg],MATCH(G57,YieldCalcs[Code],0),1),"") ->  | X57: =IF(ISERROR(INDEX(YieldCalcs[PreBoneCperkg],MATCH(G57,YieldCalcs[Code],0),1)),"",INDEX(YieldCalcs[PreBoneCperkg],MATCH(G57,YieldCalcs[Code],0),1)) ->  | Y57: =IF(ISERROR(INDEX(YieldCalcs[FixBoneCostperkg],MATCH(G57,YieldCalcs[Code],0),1)),"",INDEX(YieldCalcs[FixBoneCostperkg],MATCH(G57,YieldCalcs[Code],0),1)) ->  | Z57: =IF(ISERROR(INDEX(YieldCalcs[BoningCost],MATCH(G57,YieldCalcs[Code],0),1)),"",INDEX(YieldCalcs[BoningCost],MATCH(G57,YieldCalcs[Code],0),1)) ->  | AA57: =IF(ISNUMBER(INDEX(YieldCalcs[TotCosts],MATCH(G57,YieldCalcs[Code],0),1)),INDEX(YieldCalcs[TotCosts],MATCH(G57,YieldCalcs[Code],0),1),"") ->  | AB57: =IF(ISERROR(INDEX(YieldCalcs[BuyInPrice],MATCH(G57,YieldCalcs[Code],0),1)),"",INDEX(YieldCalcs[BuyInPrice],MATCH(G57,YieldCalcs[Code],0),1)) -> 
G58: =IF(ISERROR(INDEX(YieldCalcs[Code],MATCH(E58,YieldCalcs[CutName],0),1)),"",INDEX(YieldCalcs[Code],MATCH(E58,YieldCalcs[CutName],0),1)) ->  | I58: =IF(ISERROR(INDEX(YieldCalcs[PredWts],MATCH(G58,YieldCalcs[Code],0),1)),"",INDEX(YieldCalcs[PredWts],MATCH(G58,YieldCalcs[Code],0),1)) ->  | J58: =IF(ISERROR(INDEX(YieldCalcs[PredWts],MATCH(CONCATENATE(G58,"LT"),YieldCalcs[Code],0),1)),"",INDEX(YieldCalcs[PredWts],MATCH(CONCATENATE(G58,"LT"),YieldCalcs[Code],0),1)) ->  | K58: =IF(ISERROR(INDEX(YieldCalcs[PredWts],MATCH(CONCATENATE(G58,"F"),YieldCalcs[Code],0),1)),"",INDEX(YieldCalcs[PredWts],MATCH(CONCATENATE(G58,"F"),YieldCalcs[Code],0),1)) ->  | L58: =IF(ISERROR(INDEX(YieldCalcs[PredWts],MATCH(CONCATENATE(G58,"B"),YieldCalcs[Code],0),1)),"",INDEX(YieldCalcs[PredWts],MATCH(CONCATENATE(G58,"B"),YieldCalcs[Code],0),1)) ->  | M58: =IF(ISERROR(INDEX(YieldCalcs[PredWts],MATCH(CONCATENATE(G58,"W"),YieldCalcs[Code],0),1)),"",INDEX(YieldCalcs[PredWts],MATCH(CONCATENATE(G58,"W"),YieldCalcs[Code],0),1)) ->  | N58: =IF(ISERROR(INDEX(YieldCalcs[PredWts],MATCH(CONCATENATE(G58,"Pad"),YieldCalcs[Code],0),1)),"",INDEX(YieldCalcs[PredWts],MATCH(CONCATENATE(G58,"Pad"),YieldCalcs[Code],0),1)) ->  | O58: =IF(ISERROR(INDEX(YieldCalcs[PredWts],MATCH(CONCATENATE(G58,"Int"),YieldCalcs[Code],0),1)),"",INDEX(YieldCalcs[PredWts],MATCH(CONCATENATE(G58,"Int"),YieldCalcs[Code],0),1)) ->  | P58: =IF(ISERROR(INDEX(YieldCalcs[PredWts],MATCH(CONCATENATE(G58,"Skirt"),YieldCalcs[Code],0),1)),"",INDEX(YieldCalcs[PredWts],MATCH(CONCATENATE(G58,"Skirt"),YieldCalcs[Code],0),1)) ->  | Q58: =IF(ISERROR(INDEX(YieldCalcs[SalePrice],MATCH(G58,YieldCalcs[Code],0),1)),"",INDEX(YieldCalcs[SalePrice],MATCH(G58,YieldCalcs[Code],0),1)) ->  | R58: =IF(ISERROR(INDEX(YieldCalcs[CutValue],MATCH(G58,YieldCalcs[Code],0),1)),"",INDEX(YieldCalcs[CutValue],MATCH(G58,YieldCalcs[Code],0),1)) ->  | S58: =IF(ISERROR(INDEX(YieldCalcs[GM$],MATCH(G58,YieldCalcs[Code],0),1)),"",INDEX(YieldCalcs[GM$],MATCH(G58,YieldCalcs[Code],0),1)) ->  | T58: =IF(ISERROR(INDEX(YieldCalcs[GM%],MATCH(G58,YieldCalcs[Code],0),1)),"",INDEX(YieldCalcs[GM%],MATCH(G58,YieldCalcs[Code],0),1)) ->  | U58: =IF(ISERROR(INDEX(YieldCalcs[TGM%],MATCH(G58,YieldCalcs[Code],0),1)),"",INDEX(YieldCalcs[TGM%],MATCH(G58,YieldCalcs[Code],0),1)) ->  | V58: =IF(ISERROR(INDEX(YieldCalcs[TSalePrice],MATCH(G58,YieldCalcs[Code],0),1)),"",INDEX(YieldCalcs[TSalePrice],MATCH(G58,YieldCalcs[Code],0),1)) ->  | W58: =IF(ISNUMBER(INDEX(YieldCalcs[TotCostsPerKg],MATCH(G58,YieldCalcs[Code],0),1)),INDEX(YieldCalcs[TotCostsPerKg],MATCH(G58,YieldCalcs[Code],0),1),"") ->  | X58: =IF(ISERROR(INDEX(YieldCalcs[PreBoneCperkg],MATCH(G58,YieldCalcs[Code],0),1)),"",INDEX(YieldCalcs[PreBoneCperkg],MATCH(G58,YieldCalcs[Code],0),1)) ->  | Y58: =IF(ISERROR(INDEX(YieldCalcs[FixBoneCostperkg],MATCH(G58,YieldCalcs[Code],0),1)),"",INDEX(YieldCalcs[FixBoneCostperkg],MATCH(G58,YieldCalcs[Code],0),1)) ->  | Z58: =IF(ISERROR(INDEX(YieldCalcs[BoningCost],MATCH(G58,YieldCalcs[Code],0),1)),"",INDEX(YieldCalcs[BoningCost],MATCH(G58,YieldCalcs[Code],0),1)) ->  | AA58: =IF(ISNUMBER(INDEX(YieldCalcs[TotCosts],MATCH(G58,YieldCalcs[Code],0),1)),INDEX(YieldCalcs[TotCosts],MATCH(G58,YieldCalcs[Code],0),1),"") ->  | AB58: =IF(ISERROR(INDEX(YieldCalcs[BuyInPrice],MATCH(G58,YieldCalcs[Code],0),1)),"",INDEX(YieldCalcs[BuyInPrice],MATCH(G58,YieldCalcs[Code],0),1)) -> 
A59: REC% | B59: =B55 -> 0.9943378421 | G59: =IF(ISERROR(INDEX(YieldCalcs[Code],MATCH(E59,YieldCalcs[CutName],0),1)),"",INDEX(YieldCalcs[Code],MATCH(E59,YieldCalcs[CutName],0),1)) ->  | I59: =IF(ISERROR(INDEX(YieldCalcs[PredWts],MATCH(G59,YieldCalcs[Code],0),1)),"",INDEX(YieldCalcs[PredWts],MATCH(G59,YieldCalcs[Code],0),1)) ->  | J59: =IF(ISERROR(INDEX(YieldCalcs[PredWts],MATCH(CONCATENATE(G59,"LT"),YieldCalcs[Code],0),1)),"",INDEX(YieldCalcs[PredWts],MATCH(CONCATENATE(G59,"LT"),YieldCalcs[Code],0),1)) ->  | K59: =IF(ISERROR(INDEX(YieldCalcs[PredWts],MATCH(CONCATENATE(G59,"F"),YieldCalcs[Code],0),1)),"",INDEX(YieldCalcs[PredWts],MATCH(CONCATENATE(G59,"F"),YieldCalcs[Code],0),1)) ->  | L59: =IF(ISERROR(INDEX(YieldCalcs[PredWts],MATCH(CONCATENATE(G59,"B"),YieldCalcs[Code],0),1)),"",INDEX(YieldCalcs[PredWts],MATCH(CONCATENATE(G59,"B"),YieldCalcs[Code],0),1)) ->  | M59: =IF(ISERROR(INDEX(YieldCalcs[PredWts],MATCH(CONCATENATE(G59,"W"),YieldCalcs[Code],0),1)),"",INDEX(YieldCalcs[PredWts],MATCH(CONCATENATE(G59,"W"),YieldCalcs[Code],0),1)) ->  | N59: =IF(ISERROR(INDEX(YieldCalcs[PredWts],MATCH(CONCATENATE(G59,"Pad"),YieldCalcs[Code],0),1)),"",INDEX(YieldCalcs[PredWts],MATCH(CONCATENATE(G59,"Pad"),YieldCalcs[Code],0),1)) ->  | O59: =IF(ISERROR(INDEX(YieldCalcs[PredWts],MATCH(CONCATENATE(G59,"Int"),YieldCalcs[Code],0),1)),"",INDEX(YieldCalcs[PredWts],MATCH(CONCATENATE(G59,"Int"),YieldCalcs[Code],0),1)) ->  | P59: =IF(ISERROR(INDEX(YieldCalcs[PredWts],MATCH(CONCATENATE(G59,"Skirt"),YieldCalcs[Code],0),1)),"",INDEX(YieldCalcs[PredWts],MATCH(CONCATENATE(G59,"Skirt"),YieldCalcs[Code],0),1)) ->  | Q59: =IF(ISERROR(INDEX(YieldCalcs[SalePrice],MATCH(G59,YieldCalcs[Code],0),1)),"",INDEX(YieldCalcs[SalePrice],MATCH(G59,YieldCalcs[Code],0),1)) ->  | R59: =IF(ISERROR(INDEX(YieldCalcs[CutValue],MATCH(G59,YieldCalcs[Code],0),1)),"",INDEX(YieldCalcs[CutValue],MATCH(G59,YieldCalcs[Code],0),1)) ->  | X59: =IF(ISERROR(INDEX(YieldCalcs[PreBoneCperkg],MATCH(G59,YieldCalcs[Code],0),1)),"",INDEX(YieldCalcs[PreBoneCperkg],MATCH(G59,YieldCalcs[Code],0),1)) ->  | Y59: =IF(ISERROR(INDEX(YieldCalcs[FixBoneCostperkg],MATCH(G59,YieldCalcs[Code],0),1)),"",INDEX(YieldCalcs[FixBoneCostperkg],MATCH(G59,YieldCalcs[Code],0),1)) ->  | Z59: =IF(ISERROR(INDEX(YieldCalcs[BoningCost],MATCH(G59,YieldCalcs[Code],0),1)),"",INDEX(YieldCalcs[BoningCost],MATCH(G59,YieldCalcs[Code],0),1)) ->  | AA59: =IF(ISNUMBER(INDEX(YieldCalcs[TotCosts],MATCH(G59,YieldCalcs[Code],0),1)),INDEX(YieldCalcs[TotCosts],MATCH(G59,YieldCalcs[Code],0),1),"") ->  | AB59: =IF(ISERROR(INDEX(YieldCalcs[BuyInPrice],MATCH(G59,YieldCalcs[Code],0),1)),"",INDEX(YieldCalcs[BuyInPrice],MATCH(G59,YieldCalcs[Code],0),1)) -> 
A60: =IF(Lists!F184=1,"WARNING: Check Recovery","") ->  | E60: Saddle Saleable Meat Totals: | I60: =SUBTOTAL(9,I37:I55) -> 5.802 | J60: 0.963 | K60: 1.993 | L60: 0.501 | M60: 0.03 | N60: 0 | O60: 0.112 | P60: 0.152 | R60: =SUBTOTAL(9,R37:R55) -> 61.72293 | S60: =SUBTOTAL(9,S37:S55) -> -63.85027054 | T60: =IFERROR(S60/R60,0) -> -1.034465968 | X60: =SUMPRODUCT($I$37:$I$59,X37:X59) -> 124.2108 | Y60: =SUMPRODUCT($I$37:$I$59,Y37:Y59) -> 5.4e-07 | Z60: =SUMPRODUCT($I$37:$I$59,Z37:Z59) -> 1.3624 | AA60: =SUBTOTAL(9,AA37:AA55) -> 125.5732005
G61: =IF(ISERROR(INDEX(YieldCalcs[Code],MATCH(E61,YieldCalcs[CutName],0),1)),"",INDEX(YieldCalcs[Code],MATCH(E61,YieldCalcs[CutName],0),1)) ->  | I61: =IF(ISERROR(INDEX(YieldCalcs[PredWts],MATCH(G61,YieldCalcs[Code],0),1)),"",INDEX(YieldCalcs[PredWts],MATCH(G61,YieldCalcs[Code],0),1)) ->  | J61: =IF(ISERROR(INDEX(YieldCalcs[PredWts],MATCH(CONCATENATE(G61,"LT"),YieldCalcs[Code],0),1)),"",INDEX(YieldCalcs[PredWts],MATCH(CONCATENATE(G61,"LT"),YieldCalcs[Code],0),1)) ->  | K61: =IF(ISERROR(INDEX(YieldCalcs[PredWts],MATCH(CONCATENATE(G61,"F"),YieldCalcs[Code],0),1)),"",INDEX(YieldCalcs[PredWts],MATCH(CONCATENATE(G61,"F"),YieldCalcs[Code],0),1)) ->  | L61: =IF(ISERROR(INDEX(YieldCalcs[PredWts],MATCH(CONCATENATE(G61,"B"),YieldCalcs[Code],0),1)),"",INDEX(YieldCalcs[PredWts],MATCH(CONCATENATE(G61,"B"),YieldCalcs[Code],0),1)) ->  | M61: =IF(ISERROR(INDEX(YieldCalcs[PredWts],MATCH(CONCATENATE(G61,"W"),YieldCalcs[Code],0),1)),"",INDEX(YieldCalcs[PredWts],MATCH(CONCATENATE(G61,"W"),YieldCalcs[Code],0),1)) ->  | N61: =IF(ISERROR(INDEX(YieldCalcs[PredWts],MATCH(CONCATENATE(G61,"Pad"),YieldCalcs[Code],0),1)),"",INDEX(YieldCalcs[PredWts],MATCH(CONCATENATE(G61,"Pad"),YieldCalcs[Code],0),1)) ->  | O61: =IF(ISERROR(INDEX(YieldCalcs[PredWts],MATCH(CONCATENATE(G61,"Int"),YieldCalcs[Code],0),1)),"",INDEX(YieldCalcs[PredWts],MATCH(CONCATENATE(G61,"Int"),YieldCalcs[Code],0),1)) ->  | P61: =IF(ISERROR(INDEX(YieldCalcs[PredWts],MATCH(CONCATENATE(G61,"Skirt"),YieldCalcs[Code],0),1)),"",INDEX(YieldCalcs[PredWts],MATCH(CONCATENATE(G61,"Skirt"),YieldCalcs[Code],0),1)) ->  | Q61: =IF(ISERROR(INDEX(YieldCalcs[SalePrice],MATCH(G61,YieldCalcs[Code],0),1)),"",INDEX(YieldCalcs[SalePrice],MATCH(G61,YieldCalcs[Code],0),1)) ->  | R61: =IF(ISERROR(CELL("address",INDEX(YieldCalcs[SalePrice],MATCH(G61,YieldCalcs[Code],0),1))),"",CELL("address",INDEX(YieldCalcs[SalePrice],MATCH(G61,YieldCalcs[Code],0),1))) ->  | AB61: =IF(ISERROR(INDEX(YieldCalcs[SalePrice],MATCH(Q61,YieldCalcs[Code],0),1)),"",INDEX(YieldCalcs[SalePrice],MATCH(Q61,YieldCalcs[Code],0),1)) -> 
A62: Region | B62: Cut Type | C62: Options | E62: Cut Selection | F62: HAM # | G62: Code | I62: Primal Wt (kg) | J62: Trim | K62: Fat | L62: Bone | M62: Waste | Q62: Sale Price ($/kg) | R62: Cut Value ($) | S62: GM ($) | T62: GM (%) | U62: Target GM (%) | V62: Target Sale Price ($/kg) | W62: Total Costs ($/kg) | X62: PreBone Costs ($/kg) | Y62: Fixed Bone Cost ($/kg) | Z62: Boning Costs ($/kg) | AA62: Total Costs ($) | AB62: Carton Buy-In Price ($/kg)
A63: HQ | B63: Leg | C63: B/I or B/O | E63: Round | F63: =IF(E69<>"",7,IF(E68<>"",6,IF(E67<>"",5,IF(E66<>"",4,IF(E65<>"",3,IF(E64<>"",2,IF(E63<>"",1,0))))))) -> 7 | G63: =IF(ISERROR(INDEX(YieldCalcs[Code],MATCH(E63,YieldCalcs[CutName],0),1)),"",INDEX(YieldCalcs[Code],MATCH(E63,YieldCalcs[CutName],0),1)) -> HQ06.2FINAL | H63: =IF(ISNA(MATCH(E63,YieldCalcs[CutName],0)),"",MATCH(E63,YieldCalcs[CutName],0)) -> 347 | I63: =IF(ISERROR(INDEX(YieldCalcs[PredWts],MATCH(G63,YieldCalcs[Code],0),1)),"",INDEX(YieldCalcs[PredWts],MATCH(G63,YieldCalcs[Code],0),1)) -> 1.158 | J63: =IF(ISERROR(INDEX(YieldCalcs[PredWts],MATCH(CONCATENATE(G63,"LT"),YieldCalcs[Code],0),1)),"",INDEX(YieldCalcs[PredWts],MATCH(CONCATENATE(G63,"LT"),YieldCalcs[Code],0),1)) ->  | K63: =IF(ISERROR(INDEX(YieldCalcs[PredWts],MATCH(CONCATENATE(G63,"F"),YieldCalcs[Code],0),1)),"",INDEX(YieldCalcs[PredWts],MATCH(CONCATENATE(G63,"F"),YieldCalcs[Code],0),1)) -> 0.286 | L63: =IF(ISERROR(INDEX(YieldCalcs[PredWts],MATCH(CONCATENATE(G63,"B"),YieldCalcs[Code],0),1)),"",INDEX(YieldCalcs[PredWts],MATCH(CONCATENATE(G63,"B"),YieldCalcs[Code],0),1)) -> 0.528 | M63: =IF(ISERROR(INDEX(YieldCalcs[PredWts],MATCH(CONCATENATE(G63,"W"),YieldCalcs[Code],0),1)),"",INDEX(YieldCalcs[PredWts],MATCH(CONCATENATE(G63,"W"),YieldCalcs[Code],0),1)) ->  | N63: =IF(ISERROR(INDEX(YieldCalcs[PredWts],MATCH(CONCATENATE(G63,"Pad"),YieldCalcs[Code],0),1)),"",INDEX(YieldCalcs[PredWts],MATCH(CONCATENATE(G63,"Pad"),YieldCalcs[Code],0),1)) ->  | O63: =IF(ISERROR(INDEX(YieldCalcs[PredWts],MATCH(CONCATENATE(G63,"Int"),YieldCalcs[Code],0),1)),"",INDEX(YieldCalcs[PredWts],MATCH(CONCATENATE(G63,"Int"),YieldCalcs[Code],0),1)) ->  | P63: =IF(ISERROR(INDEX(YieldCalcs[PredWts],MATCH(CONCATENATE(G63,"Skirt"),YieldCalcs[Code],0),1)),"",INDEX(YieldCalcs[PredWts],MATCH(CONCATENATE(G63,"Skirt"),YieldCalcs[Code],0),1)) ->  | Q63: =IF(ISERROR(INDEX(YieldCalcs[SalePrice],MATCH(G63,YieldCalcs[Code],0),1)),"",INDEX(YieldCalcs[SalePrice],MATCH(G63,YieldCalcs[Code],0),1)) -> 26.99 | R63: =IF(ISERROR(INDEX(YieldCalcs[CutValue],MATCH(G63,YieldCalcs[Code],0),1)),"",INDEX(YieldCalcs[CutValue],MATCH(G63,YieldCalcs[Code],0),1)) -> 31.25442 | S63: =IF(ISERROR(INDEX(YieldCalcs[GM$],MATCH(G63,YieldCalcs[Code],0),1)),"",INDEX(YieldCalcs[GM$],MATCH(G63,YieldCalcs[Code],0),1)) -> 25.88242919 | T63: =IF(ISERROR(INDEX(YieldCalcs[GM%],MATCH(G63,YieldCalcs[Code],0),1)),"",INDEX(YieldCalcs[GM%],MATCH(G63,YieldCalcs[Code],0),1)) -> 0.8281206047 | U63: =IF(ISERROR(INDEX(YieldCalcs[TGM%],MATCH(G63,YieldCalcs[Code],0),1)),"",INDEX(YieldCalcs[TGM%],MATCH(G63,YieldCalcs[Code],0),1)) -> 0 | V63: =IF(ISERROR(INDEX(YieldCalcs[TSalePrice],MATCH(G63,YieldCalcs[Code],0),1)),"",INDEX(YieldCalcs[TSalePrice],MATCH(G63,YieldCalcs[Code],0),1)) -> 4.63902488 | W63: =IF(ISNUMBER(INDEX(YieldCalcs[TotCostsPerKg],MATCH(G63,YieldCalcs[Code],0),1)),INDEX(YieldCalcs[TotCostsPerKg],MATCH(G63,YieldCalcs[Code],0),1),"") -> 4.63902488 | X63: =IF(ISERROR(INDEX(YieldCalcs[PreBoneCperkg],MATCH(G63,YieldCalcs[Code],0),1)),"",INDEX(YieldCalcs[PreBoneCperkg],MATCH(G63,YieldCalcs[Code],0),1)) -> 3.170976521 | Y63: =IF(ISERROR(INDEX(YieldCalcs[FixBoneCostperkg],MATCH(G63,YieldCalcs[Code],0),1)),"",INDEX(YieldCalcs[FixBoneCostperkg],MATCH(G63,YieldCalcs[Code],0),1)) -> 1.378565568e-08 | Z63: =IF(ISERROR(INDEX(YieldCalcs[BoningCost],MATCH(G63,YieldCalcs[Code],0),1)),"",INDEX(YieldCalcs[BoningCost],MATCH(G63,YieldCalcs[Code],0),1)) -> 0.85 | AA63: =IF(ISNUMBER(INDEX(YieldCalcs[TotCosts],MATCH(G63,YieldCalcs[Code],0),1)),INDEX(YieldCalcs[TotCosts],MATCH(G63,YieldCalcs[Code],0),1),"") -> 5.371990811 | AB63: =IF(ISERROR(INDEX(YieldCalcs[BuyInPrice],MATCH(G63,YieldCalcs[Code],0),1)),"",INDEX(YieldCalcs[BuyInPrice],MATCH(G63,YieldCalcs[Code],0),1)) -> 0
C64: Primal | E64: Topside Fat Cap off | G64: =IF(ISERROR(INDEX(YieldCalcs[Code],MATCH(E64,YieldCalcs[CutName],0),1)),"",INDEX(YieldCalcs[Code],MATCH(E64,YieldCalcs[CutName],0),1)) -> HQ07.1FINAL | H64: =IF(ISNA(MATCH(E64,YieldCalcs[CutName],0)),"",MATCH(E64,YieldCalcs[CutName],0)) -> 359 | I64: =IF(ISERROR(INDEX(YieldCalcs[PredWts],MATCH(G64,YieldCalcs[Code],0),1)),"",INDEX(YieldCalcs[PredWts],MATCH(G64,YieldCalcs[Code],0),1)) -> 1.492 | J64: =IF(ISERROR(INDEX(YieldCalcs[PredWts],MATCH(CONCATENATE(G64,"LT"),YieldCalcs[Code],0),1)),"",INDEX(YieldCalcs[PredWts],MATCH(CONCATENATE(G64,"LT"),YieldCalcs[Code],0),1)) ->  | K64: =IF(ISERROR(INDEX(YieldCalcs[PredWts],MATCH(CONCATENATE(G64,"F"),YieldCalcs[Code],0),1)),"",INDEX(YieldCalcs[PredWts],MATCH(CONCATENATE(G64,"F"),YieldCalcs[Code],0),1)) -> 0.114 | L64: =IF(ISERROR(INDEX(YieldCalcs[PredWts],MATCH(CONCATENATE(G64,"B"),YieldCalcs[Code],0),1)),"",INDEX(YieldCalcs[PredWts],MATCH(CONCATENATE(G64,"B"),YieldCalcs[Code],0),1)) ->  | M64: =IF(ISERROR(INDEX(YieldCalcs[PredWts],MATCH(CONCATENATE(G64,"W"),YieldCalcs[Code],0),1)),"",INDEX(YieldCalcs[PredWts],MATCH(CONCATENATE(G64,"W"),YieldCalcs[Code],0),1)) ->  | N64: =IF(ISERROR(INDEX(YieldCalcs[PredWts],MATCH(CONCATENATE(G64,"Pad"),YieldCalcs[Code],0),1)),"",INDEX(YieldCalcs[PredWts],MATCH(CONCATENATE(G64,"Pad"),YieldCalcs[Code],0),1)) ->  | O64: =IF(ISERROR(INDEX(YieldCalcs[PredWts],MATCH(CONCATENATE(G64,"Int"),YieldCalcs[Code],0),1)),"",INDEX(YieldCalcs[PredWts],MATCH(CONCATENATE(G64,"Int"),YieldCalcs[Code],0),1)) ->  | P64: =IF(ISERROR(INDEX(YieldCalcs[PredWts],MATCH(CONCATENATE(G64,"Skirt"),YieldCalcs[Code],0),1)),"",INDEX(YieldCalcs[PredWts],MATCH(CONCATENATE(G64,"Skirt"),YieldCalcs[Code],0),1)) ->  | Q64: =IF(ISERROR(INDEX(YieldCalcs[SalePrice],MATCH(G64,YieldCalcs[Code],0),1)),"",INDEX(YieldCalcs[SalePrice],MATCH(G64,YieldCalcs[Code],0),1)) -> 26.99 | R64: =IF(ISERROR(INDEX(YieldCalcs[CutValue],MATCH(G64,YieldCalcs[Code],0),1)),"",INDEX(YieldCalcs[CutValue],MATCH(G64,YieldCalcs[Code],0),1)) -> 40.26908 | S64: =IF(ISERROR(INDEX(YieldCalcs[GM$],MATCH(G64,YieldCalcs[Code],0),1)),"",INDEX(YieldCalcs[GM$],MATCH(G64,YieldCalcs[Code],0),1)) -> 33.37649171 | T64: =IF(ISERROR(INDEX(YieldCalcs[GM%],MATCH(G64,YieldCalcs[Code],0),1)),"",INDEX(YieldCalcs[GM%],MATCH(G64,YieldCalcs[Code],0),1)) -> 0.8288367082 | U64: =IF(ISERROR(INDEX(YieldCalcs[TGM%],MATCH(G64,YieldCalcs[Code],0),1)),"",INDEX(YieldCalcs[TGM%],MATCH(G64,YieldCalcs[Code],0),1)) -> 0 | V64: =IF(ISERROR(INDEX(YieldCalcs[TSalePrice],MATCH(G64,YieldCalcs[Code],0),1)),"",INDEX(YieldCalcs[TSalePrice],MATCH(G64,YieldCalcs[Code],0),1)) -> 4.619697247 | W64: =IF(ISNUMBER(INDEX(YieldCalcs[TotCostsPerKg],MATCH(G64,YieldCalcs[Code],0),1)),INDEX(YieldCalcs[TotCostsPerKg],MATCH(G64,YieldCalcs[Code],0),1),"") -> 4.619697247 | X64: =IF(ISERROR(INDEX(YieldCalcs[PreBoneCperkg],MATCH(G64,YieldCalcs[Code],0),1)),"",INDEX(YieldCalcs[PreBoneCperkg],MATCH(G64,YieldCalcs[Code],0),1)) -> 3.41326293 | Y64: =IF(ISERROR(INDEX(YieldCalcs[FixBoneCostperkg],MATCH(G64,YieldCalcs[Code],0),1)),"",INDEX(YieldCalcs[FixBoneCostperkg],MATCH(G64,YieldCalcs[Code],0),1)) -> 1.483898326e-08 | Z64: =IF(ISERROR(INDEX(YieldCalcs[BoningCost],MATCH(G64,YieldCalcs[Code],0),1)),"",INDEX(YieldCalcs[BoningCost],MATCH(G64,YieldCalcs[Code],0),1)) -> 0.9 | AA64: =IF(ISNUMBER(INDEX(YieldCalcs[TotCosts],MATCH(G64,YieldCalcs[Code],0),1)),INDEX(YieldCalcs[TotCosts],MATCH(G64,YieldCalcs[Code],0),1),"") -> 6.892588292 | AB64: =IF(ISERROR(INDEX(YieldCalcs[BuyInPrice],MATCH(G64,YieldCalcs[Code],0),1)),"",INDEX(YieldCalcs[BuyInPrice],MATCH(G64,YieldCalcs[Code],0),1)) -> 0
A65: REC% | B65: =SUM(I63:P69)/INDEX(YieldCalcs[PredWts],MATCH("HQ01.1",YieldCalcs[Code],0),1) -> 0.9485916247 | E65: Silverside Fat Cap off | G65: =IF(ISERROR(INDEX(YieldCalcs[Code],MATCH(E65,YieldCalcs[CutName],0),1)),"",INDEX(YieldCalcs[Code],MATCH(E65,YieldCalcs[CutName],0),1)) -> HQ08.1FINAL | H65: =IF(ISNA(MATCH(E65,YieldCalcs[CutName],0)),"",MATCH(E65,YieldCalcs[CutName],0)) -> 355 | I65: =IF(ISERROR(INDEX(YieldCalcs[PredWts],MATCH(G65,YieldCalcs[Code],0),1)),"",INDEX(YieldCalcs[PredWts],MATCH(G65,YieldCalcs[Code],0),1)) -> 1.071 | J65: =IF(ISERROR(INDEX(YieldCalcs[PredWts],MATCH(CONCATENATE(G65,"LT"),YieldCalcs[Code],0),1)),"",INDEX(YieldCalcs[PredWts],MATCH(CONCATENATE(G65,"LT"),YieldCalcs[Code],0),1)) ->  | K65: =IF(ISERROR(INDEX(YieldCalcs[PredWts],MATCH(CONCATENATE(G65,"F"),YieldCalcs[Code],0),1)),"",INDEX(YieldCalcs[PredWts],MATCH(CONCATENATE(G65,"F"),YieldCalcs[Code],0),1)) -> 0.165 | L65: =IF(ISERROR(INDEX(YieldCalcs[PredWts],MATCH(CONCATENATE(G65,"B"),YieldCalcs[Code],0),1)),"",INDEX(YieldCalcs[PredWts],MATCH(CONCATENATE(G65,"B"),YieldCalcs[Code],0),1)) ->  | M65: =IF(ISERROR(INDEX(YieldCalcs[PredWts],MATCH(CONCATENATE(G65,"W"),YieldCalcs[Code],0),1)),"",INDEX(YieldCalcs[PredWts],MATCH(CONCATENATE(G65,"W"),YieldCalcs[Code],0),1)) ->  | N65: =IF(ISERROR(INDEX(YieldCalcs[PredWts],MATCH(CONCATENATE(G65,"Pad"),YieldCalcs[Code],0),1)),"",INDEX(YieldCalcs[PredWts],MATCH(CONCATENATE(G65,"Pad"),YieldCalcs[Code],0),1)) ->  | O65: =IF(ISERROR(INDEX(YieldCalcs[PredWts],MATCH(CONCATENATE(G65,"Int"),YieldCalcs[Code],0),1)),"",INDEX(YieldCalcs[PredWts],MATCH(CONCATENATE(G65,"Int"),YieldCalcs[Code],0),1)) ->  | P65: =IF(ISERROR(INDEX(YieldCalcs[PredWts],MATCH(CONCATENATE(G65,"Skirt"),YieldCalcs[Code],0),1)),"",INDEX(YieldCalcs[PredWts],MATCH(CONCATENATE(G65,"Skirt"),YieldCalcs[Code],0),1)) ->  | Q65: =IF(ISERROR(INDEX(YieldCalcs[SalePrice],MATCH(G65,YieldCalcs[Code],0),1)),"",INDEX(YieldCalcs[SalePrice],MATCH(G65,YieldCalcs[Code],0),1)) -> 8 | R65: =IF(ISERROR(INDEX(YieldCalcs[CutValue],MATCH(G65,YieldCalcs[Code],0),1)),"",INDEX(YieldCalcs[CutValue],MATCH(G65,YieldCalcs[Code],0),1)) -> 8.568 | S65: =IF(ISERROR(INDEX(YieldCalcs[GM$],MATCH(G65,YieldCalcs[Code],0),1)),"",INDEX(YieldCalcs[GM$],MATCH(G65,YieldCalcs[Code],0),1)) -> 2.945502044 | T65: =IF(ISERROR(INDEX(YieldCalcs[GM%],MATCH(G65,YieldCalcs[Code],0),1)),"",INDEX(YieldCalcs[GM%],MATCH(G65,YieldCalcs[Code],0),1)) -> 0.3437794169 | U65: =IF(ISERROR(INDEX(YieldCalcs[TGM%],MATCH(G65,YieldCalcs[Code],0),1)),"",INDEX(YieldCalcs[TGM%],MATCH(G65,YieldCalcs[Code],0),1)) -> 0 | V65: =IF(ISERROR(INDEX(YieldCalcs[TSalePrice],MATCH(G65,YieldCalcs[Code],0),1)),"",INDEX(YieldCalcs[TSalePrice],MATCH(G65,YieldCalcs[Code],0),1)) -> 5.249764665 | W65: =IF(ISNUMBER(INDEX(YieldCalcs[TotCostsPerKg],MATCH(G65,YieldCalcs[Code],0),1)),INDEX(YieldCalcs[TotCostsPerKg],MATCH(G65,YieldCalcs[Code],0),1),"") -> 5.249764665 | X65: =IF(ISERROR(INDEX(YieldCalcs[PreBoneCperkg],MATCH(G65,YieldCalcs[Code],0),1)),"",INDEX(YieldCalcs[PreBoneCperkg],MATCH(G65,YieldCalcs[Code],0),1)) -> 3.662463077 | Y65: =IF(ISERROR(INDEX(YieldCalcs[FixBoneCostperkg],MATCH(G65,YieldCalcs[Code],0),1)),"",INDEX(YieldCalcs[FixBoneCostperkg],MATCH(G65,YieldCalcs[Code],0),1)) -> 1.592236796e-08 | Z65: =IF(ISERROR(INDEX(YieldCalcs[BoningCost],MATCH(G65,YieldCalcs[Code],0),1)),"",INDEX(YieldCalcs[BoningCost],MATCH(G65,YieldCalcs[Code],0),1)) -> 0.85 | AA65: =IF(ISNUMBER(INDEX(YieldCalcs[TotCosts],MATCH(G65,YieldCalcs[Code],0),1)),INDEX(YieldCalcs[TotCosts],MATCH(G65,YieldCalcs[Code],0),1),"") -> 5.622497956 | AB65: =IF(ISERROR(INDEX(YieldCalcs[BuyInPrice],MATCH(G65,YieldCalcs[Code],0),1)),"",INDEX(YieldCalcs[BuyInPrice],MATCH(G65,YieldCalcs[Code],0),1)) -> 0
A66: =IF(Lists!F185=1,"WARNING: Check Recovery","") ->  | E66: Butt Tender loin | G66: =IF(ISERROR(INDEX(YieldCalcs[Code],MATCH(E66,YieldCalcs[CutName],0),1)),"",INDEX(YieldCalcs[Code],MATCH(E66,YieldCalcs[CutName],0),1)) -> HQ06.5FINAL | H66: =IF(ISNA(MATCH(E66,YieldCalcs[CutName],0)),"",MATCH(E66,YieldCalcs[CutName],0)) -> 357 | I66: =IF(ISERROR(INDEX(YieldCalcs[PredWts],MATCH(G66,YieldCalcs[Code],0),1)),"",INDEX(YieldCalcs[PredWts],MATCH(G66,YieldCalcs[Code],0),1)) -> 0.167 | J66: =IF(ISERROR(INDEX(YieldCalcs[PredWts],MATCH(CONCATENATE(G66,"LT"),YieldCalcs[Code],0),1)),"",INDEX(YieldCalcs[PredWts],MATCH(CONCATENATE(G66,"LT"),YieldCalcs[Code],0),1)) ->  | K66: =IF(ISERROR(INDEX(YieldCalcs[PredWts],MATCH(CONCATENATE(G66,"F"),YieldCalcs[Code],0),1)),"",INDEX(YieldCalcs[PredWts],MATCH(CONCATENATE(G66,"F"),YieldCalcs[Code],0),1)) ->  | L66: =IF(ISERROR(INDEX(YieldCalcs[PredWts],MATCH(CONCATENATE(G66,"B"),YieldCalcs[Code],0),1)),"",INDEX(YieldCalcs[PredWts],MATCH(CONCATENATE(G66,"B"),YieldCalcs[Code],0),1)) ->  | M66: =IF(ISERROR(INDEX(YieldCalcs[PredWts],MATCH(CONCATENATE(G66,"W"),YieldCalcs[Code],0),1)),"",INDEX(YieldCalcs[PredWts],MATCH(CONCATENATE(G66,"W"),YieldCalcs[Code],0),1)) ->  | N66: =IF(ISERROR(INDEX(YieldCalcs[PredWts],MATCH(CONCATENATE(G66,"Pad"),YieldCalcs[Code],0),1)),"",INDEX(YieldCalcs[PredWts],MATCH(CONCATENATE(G66,"Pad"),YieldCalcs[Code],0),1)) ->  | O66: =IF(ISERROR(INDEX(YieldCalcs[PredWts],MATCH(CONCATENATE(G66,"Int"),YieldCalcs[Code],0),1)),"",INDEX(YieldCalcs[PredWts],MATCH(CONCATENATE(G66,"Int"),YieldCalcs[Code],0),1)) ->  | P66: =IF(ISERROR(INDEX(YieldCalcs[PredWts],MATCH(CONCATENATE(G66,"Skirt"),YieldCalcs[Code],0),1)),"",INDEX(YieldCalcs[PredWts],MATCH(CONCATENATE(G66,"Skirt"),YieldCalcs[Code],0),1)) ->  | Q66: =IF(ISERROR(INDEX(YieldCalcs[SalePrice],MATCH(G66,YieldCalcs[Code],0),1)),"",INDEX(YieldCalcs[SalePrice],MATCH(G66,YieldCalcs[Code],0),1)) -> 15 | R66: =IF(ISERROR(INDEX(YieldCalcs[CutValue],MATCH(G66,YieldCalcs[Code],0),1)),"",INDEX(YieldCalcs[CutValue],MATCH(G66,YieldCalcs[Code],0),1)) -> 2.505 | S66: =IF(ISERROR(INDEX(YieldCalcs[GM$],MATCH(G66,YieldCalcs[Code],0),1)),"",INDEX(YieldCalcs[GM$],MATCH(G66,YieldCalcs[Code],0),1)) -> 1.475446921 | T66: =IF(ISERROR(INDEX(YieldCalcs[GM%],MATCH(G66,YieldCalcs[Code],0),1)),"",INDEX(YieldCalcs[GM%],MATCH(G66,YieldCalcs[Code],0),1)) -> 0.5890007669 | U66: =IF(ISERROR(INDEX(YieldCalcs[TGM%],MATCH(G66,YieldCalcs[Code],0),1)),"",INDEX(YieldCalcs[TGM%],MATCH(G66,YieldCalcs[Code],0),1)) -> 0 | V66: =IF(ISERROR(INDEX(YieldCalcs[TSalePrice],MATCH(G66,YieldCalcs[Code],0),1)),"",INDEX(YieldCalcs[TSalePrice],MATCH(G66,YieldCalcs[Code],0),1)) -> 6.164988497 | W66: =IF(ISNUMBER(INDEX(YieldCalcs[TotCostsPerKg],MATCH(G66,YieldCalcs[Code],0),1)),INDEX(YieldCalcs[TotCostsPerKg],MATCH(G66,YieldCalcs[Code],0),1),"") -> 6.164988497 | X66: =IF(ISERROR(INDEX(YieldCalcs[PreBoneCperkg],MATCH(G66,YieldCalcs[Code],0),1)),"",INDEX(YieldCalcs[PreBoneCperkg],MATCH(G66,YieldCalcs[Code],0),1)) -> 3.170976521 | Y66: =IF(ISERROR(INDEX(YieldCalcs[FixBoneCostperkg],MATCH(G66,YieldCalcs[Code],0),1)),"",INDEX(YieldCalcs[FixBoneCostperkg],MATCH(G66,YieldCalcs[Code],0),1)) -> 1.378565568e-08 | Z66: =IF(ISERROR(INDEX(YieldCalcs[BoningCost],MATCH(G66,YieldCalcs[Code],0),1)),"",INDEX(YieldCalcs[BoningCost],MATCH(G66,YieldCalcs[Code],0),1)) -> 0.25 | AA66: =IF(ISNUMBER(INDEX(YieldCalcs[TotCosts],MATCH(G66,YieldCalcs[Code],0),1)),INDEX(YieldCalcs[TotCosts],MATCH(G66,YieldCalcs[Code],0),1),"") -> 1.029553079 | AB66: =IF(ISERROR(INDEX(YieldCalcs[BuyInPrice],MATCH(G66,YieldCalcs[Code],0),1)),"",INDEX(YieldCalcs[BuyInPrice],MATCH(G66,YieldCalcs[Code],0),1)) -> 0
E67: Shank BO, Heel off | G67: =IF(ISERROR(INDEX(YieldCalcs[Code],MATCH(E67,YieldCalcs[CutName],0),1)),"",INDEX(YieldCalcs[Code],MATCH(E67,YieldCalcs[CutName],0),1)) -> HQ04.2FINAL | H67: =IF(ISNA(MATCH(E67,YieldCalcs[CutName],0)),"",MATCH(E67,YieldCalcs[CutName],0)) -> 274 | I67: =IF(ISERROR(INDEX(YieldCalcs[PredWts],MATCH(G67,YieldCalcs[Code],0),1)),"",INDEX(YieldCalcs[PredWts],MATCH(G67,YieldCalcs[Code],0),1)) -> 0.762 | J67: =IF(ISERROR(INDEX(YieldCalcs[PredWts],MATCH(CONCATENATE(G67,"LT"),YieldCalcs[Code],0),1)),"",INDEX(YieldCalcs[PredWts],MATCH(CONCATENATE(G67,"LT"),YieldCalcs[Code],0),1)) ->  | K67: =IF(ISERROR(INDEX(YieldCalcs[PredWts],MATCH(CONCATENATE(G67,"F"),YieldCalcs[Code],0),1)),"",INDEX(YieldCalcs[PredWts],MATCH(CONCATENATE(G67,"F"),YieldCalcs[Code],0),1)) ->  | L67: =IF(ISERROR(INDEX(YieldCalcs[PredWts],MATCH(CONCATENATE(G67,"B"),YieldCalcs[Code],0),1)),"",INDEX(YieldCalcs[PredWts],MATCH(CONCATENATE(G67,"B"),YieldCalcs[Code],0),1)) -> 0.57 | M67: =IF(ISERROR(INDEX(YieldCalcs[PredWts],MATCH(CONCATENATE(G67,"W"),YieldCalcs[Code],0),1)),"",INDEX(YieldCalcs[PredWts],MATCH(CONCATENATE(G67,"W"),YieldCalcs[Code],0),1)) ->  | N67: =IF(ISERROR(INDEX(YieldCalcs[PredWts],MATCH(CONCATENATE(G67,"Pad"),YieldCalcs[Code],0),1)),"",INDEX(YieldCalcs[PredWts],MATCH(CONCATENATE(G67,"Pad"),YieldCalcs[Code],0),1)) ->  | O67: =IF(ISERROR(INDEX(YieldCalcs[PredWts],MATCH(CONCATENATE(G67,"Int"),YieldCalcs[Code],0),1)),"",INDEX(YieldCalcs[PredWts],MATCH(CONCATENATE(G67,"Int"),YieldCalcs[Code],0),1)) ->  | P67: =IF(ISERROR(INDEX(YieldCalcs[PredWts],MATCH(CONCATENATE(G67,"Skirt"),YieldCalcs[Code],0),1)),"",INDEX(YieldCalcs[PredWts],MATCH(CONCATENATE(G67,"Skirt"),YieldCalcs[Code],0),1)) ->  | Q67: =IF(ISERROR(INDEX(YieldCalcs[SalePrice],MATCH(G67,YieldCalcs[Code],0),1)),"",INDEX(YieldCalcs[SalePrice],MATCH(G67,YieldCalcs[Code],0),1)) -> 10.75 | R67: =IF(ISERROR(INDEX(YieldCalcs[CutValue],MATCH(G67,YieldCalcs[Code],0),1)),"",INDEX(YieldCalcs[CutValue],MATCH(G67,YieldCalcs[Code],0),1)) -> 8.1915 | S67: =IF(ISERROR(INDEX(YieldCalcs[GM$],MATCH(G67,YieldCalcs[Code],0),1)),"",INDEX(YieldCalcs[GM$],MATCH(G67,YieldCalcs[Code],0),1)) -> 4.804117308 | T67: =IF(ISERROR(INDEX(YieldCalcs[GM%],MATCH(G67,YieldCalcs[Code],0),1)),"",INDEX(YieldCalcs[GM%],MATCH(G67,YieldCalcs[Code],0),1)) -> 0.5864758968 | U67: =IF(ISERROR(INDEX(YieldCalcs[TGM%],MATCH(G67,YieldCalcs[Code],0),1)),"",INDEX(YieldCalcs[TGM%],MATCH(G67,YieldCalcs[Code],0),1)) ->  | V67: =IF(ISERROR(INDEX(YieldCalcs[TSalePrice],MATCH(G67,YieldCalcs[Code],0),1)),"",INDEX(YieldCalcs[TSalePrice],MATCH(G67,YieldCalcs[Code],0),1)) ->  | W67: =IF(ISNUMBER(INDEX(YieldCalcs[TotCostsPerKg],MATCH(G67,YieldCalcs[Code],0),1)),INDEX(YieldCalcs[TotCostsPerKg],MATCH(G67,YieldCalcs[Code],0),1),"") -> 4.44538411 | X67: =IF(ISERROR(INDEX(YieldCalcs[PreBoneCperkg],MATCH(G67,YieldCalcs[Code],0),1)),"",INDEX(YieldCalcs[PreBoneCperkg],MATCH(G67,YieldCalcs[Code],0),1)) -> 3.145384096 | Y67: =IF(ISERROR(INDEX(YieldCalcs[FixBoneCostperkg],MATCH(G67,YieldCalcs[Code],0),1)),"",INDEX(YieldCalcs[FixBoneCostperkg],MATCH(G67,YieldCalcs[Code],0),1)) -> 1.367439395e-08 | Z67: =IF(ISERROR(INDEX(YieldCalcs[BoningCost],MATCH(G67,YieldCalcs[Code],0),1)),"",INDEX(YieldCalcs[BoningCost],MATCH(G67,YieldCalcs[Code],0),1)) -> 1.3 | AA67: =IF(ISNUMBER(INDEX(YieldCalcs[TotCosts],MATCH(G67,YieldCalcs[Code],0),1)),INDEX(YieldCalcs[TotCosts],MATCH(G67,YieldCalcs[Code],0),1),"") -> 3.387382692 | AB67: =IF(ISERROR(INDEX(YieldCalcs[BuyInPrice],MATCH(G67,YieldCalcs[Code],0),1)),"",INDEX(YieldCalcs[BuyInPrice],MATCH(G67,YieldCalcs[Code],0),1)) -> 0
E68: Heel Muscle | G68: =IF(ISERROR(INDEX(YieldCalcs[Code],MATCH(E68,YieldCalcs[CutName],0),1)),"",INDEX(YieldCalcs[Code],MATCH(E68,YieldCalcs[CutName],0),1)) -> HQ04.3FINAL | H68: =IF(ISNA(MATCH(E68,YieldCalcs[CutName],0)),"",MATCH(E68,YieldCalcs[CutName],0)) -> 279 | I68: =IF(ISERROR(INDEX(YieldCalcs[PredWts],MATCH(G68,YieldCalcs[Code],0),1)),"",INDEX(YieldCalcs[PredWts],MATCH(G68,YieldCalcs[Code],0),1)) -> 0.201 | J68: =IF(ISERROR(INDEX(YieldCalcs[PredWts],MATCH(CONCATENATE(G68,"LT"),YieldCalcs[Code],0),1)),"",INDEX(YieldCalcs[PredWts],MATCH(CONCATENATE(G68,"LT"),YieldCalcs[Code],0),1)) ->  | K68: =IF(ISERROR(INDEX(YieldCalcs[PredWts],MATCH(CONCATENATE(G68,"F"),YieldCalcs[Code],0),1)),"",INDEX(YieldCalcs[PredWts],MATCH(CONCATENATE(G68,"F"),YieldCalcs[Code],0),1)) ->  | L68: =IF(ISERROR(INDEX(YieldCalcs[PredWts],MATCH(CONCATENATE(G68,"B"),YieldCalcs[Code],0),1)),"",INDEX(YieldCalcs[PredWts],MATCH(CONCATENATE(G68,"B"),YieldCalcs[Code],0),1)) ->  | M68: =IF(ISERROR(INDEX(YieldCalcs[PredWts],MATCH(CONCATENATE(G68,"W"),YieldCalcs[Code],0),1)),"",INDEX(YieldCalcs[PredWts],MATCH(CONCATENATE(G68,"W"),YieldCalcs[Code],0),1)) ->  | N68: =IF(ISERROR(INDEX(YieldCalcs[PredWts],MATCH(CONCATENATE(G68,"Pad"),YieldCalcs[Code],0),1)),"",INDEX(YieldCalcs[PredWts],MATCH(CONCATENATE(G68,"Pad"),YieldCalcs[Code],0),1)) ->  | O68: =IF(ISERROR(INDEX(YieldCalcs[PredWts],MATCH(CONCATENATE(G68,"Int"),YieldCalcs[Code],0),1)),"",INDEX(YieldCalcs[PredWts],MATCH(CONCATENATE(G68,"Int"),YieldCalcs[Code],0),1)) ->  | P68: =IF(ISERROR(INDEX(YieldCalcs[PredWts],MATCH(CONCATENATE(G68,"Skirt"),YieldCalcs[Code],0),1)),"",INDEX(YieldCalcs[PredWts],MATCH(CONCATENATE(G68,"Skirt"),YieldCalcs[Code],0),1)) ->  | Q68: =IF(ISERROR(INDEX(YieldCalcs[SalePrice],MATCH(G68,YieldCalcs[Code],0),1)),"",INDEX(YieldCalcs[SalePrice],MATCH(G68,YieldCalcs[Code],0),1)) -> 8 | R68: =IF(ISERROR(INDEX(YieldCalcs[CutValue],MATCH(G68,YieldCalcs[Code],0),1)),"",INDEX(YieldCalcs[CutValue],MATCH(G68,YieldCalcs[Code],0),1)) -> 1.608 | S68: =IF(ISERROR(INDEX(YieldCalcs[GM$],MATCH(G68,YieldCalcs[Code],0),1)),"",INDEX(YieldCalcs[GM$],MATCH(G68,YieldCalcs[Code],0),1)) -> 1.035251264 | T68: =IF(ISERROR(INDEX(YieldCalcs[GM%],MATCH(G68,YieldCalcs[Code],0),1)),"",INDEX(YieldCalcs[GM%],MATCH(G68,YieldCalcs[Code],0),1)) -> 0.6438129748 | U68: =IF(ISERROR(INDEX(YieldCalcs[TGM%],MATCH(G68,YieldCalcs[Code],0),1)),"",INDEX(YieldCalcs[TGM%],MATCH(G68,YieldCalcs[Code],0),1)) ->  | V68: =IF(ISERROR(INDEX(YieldCalcs[TSalePrice],MATCH(G68,YieldCalcs[Code],0),1)),"",INDEX(YieldCalcs[TSalePrice],MATCH(G68,YieldCalcs[Code],0),1)) ->  | W68: =IF(ISNUMBER(INDEX(YieldCalcs[TotCostsPerKg],MATCH(G68,YieldCalcs[Code],0),1)),INDEX(YieldCalcs[TotCostsPerKg],MATCH(G68,YieldCalcs[Code],0),1),"") -> 2.849496201 | X68: =IF(ISERROR(INDEX(YieldCalcs[PreBoneCperkg],MATCH(G68,YieldCalcs[Code],0),1)),"",INDEX(YieldCalcs[PreBoneCperkg],MATCH(G68,YieldCalcs[Code],0),1)) -> 2.749496189 | Y68: =IF(ISERROR(INDEX(YieldCalcs[FixBoneCostperkg],MATCH(G68,YieldCalcs[Code],0),1)),"",INDEX(YieldCalcs[FixBoneCostperkg],MATCH(G68,YieldCalcs[Code],0),1)) -> 1.195329184e-08 | Z68: =IF(ISERROR(INDEX(YieldCalcs[BoningCost],MATCH(G68,YieldCalcs[Code],0),1)),"",INDEX(YieldCalcs[BoningCost],MATCH(G68,YieldCalcs[Code],0),1)) -> 0.1 | AA68: =IF(ISNUMBER(INDEX(YieldCalcs[TotCosts],MATCH(G68,YieldCalcs[Code],0),1)),INDEX(YieldCalcs[TotCosts],MATCH(G68,YieldCalcs[Code],0),1),"") -> 0.5727487365 | AB68: =IF(ISERROR(INDEX(YieldCalcs[BuyInPrice],MATCH(G68,YieldCalcs[Code],0),1)),"",INDEX(YieldCalcs[BuyInPrice],MATCH(G68,YieldCalcs[Code],0),1)) -> 0
E69: Rump | G69: =IF(ISERROR(INDEX(YieldCalcs[Code],MATCH(E69,YieldCalcs[CutName],0),1)),"",INDEX(YieldCalcs[Code],MATCH(E69,YieldCalcs[CutName],0),1)) -> HQ06.3FINAL | H69: =IF(ISNA(MATCH(E69,YieldCalcs[CutName],0)),"",MATCH(E69,YieldCalcs[CutName],0)) -> 350 | I69: =IF(ISERROR(INDEX(YieldCalcs[PredWts],MATCH(G69,YieldCalcs[Code],0),1)),"",INDEX(YieldCalcs[PredWts],MATCH(G69,YieldCalcs[Code],0),1)) -> 0.705 | J69: =IF(ISERROR(INDEX(YieldCalcs[PredWts],MATCH(CONCATENATE(G69,"LT"),YieldCalcs[Code],0),1)),"",INDEX(YieldCalcs[PredWts],MATCH(CONCATENATE(G69,"LT"),YieldCalcs[Code],0),1)) -> 0.327 | K69: =IF(ISERROR(INDEX(YieldCalcs[PredWts],MATCH(CONCATENATE(G69,"F"),YieldCalcs[Code],0),1)),"",INDEX(YieldCalcs[PredWts],MATCH(CONCATENATE(G69,"F"),YieldCalcs[Code],0),1)) -> 0.89 | L69: =IF(ISERROR(INDEX(YieldCalcs[PredWts],MATCH(CONCATENATE(G69,"B"),YieldCalcs[Code],0),1)),"",INDEX(YieldCalcs[PredWts],MATCH(CONCATENATE(G69,"B"),YieldCalcs[Code],0),1)) -> 0.421 | M69: =IF(ISERROR(INDEX(YieldCalcs[PredWts],MATCH(CONCATENATE(G69,"W"),YieldCalcs[Code],0),1)),"",INDEX(YieldCalcs[PredWts],MATCH(CONCATENATE(G69,"W"),YieldCalcs[Code],0),1)) ->  | N69: =IF(ISERROR(INDEX(YieldCalcs[PredWts],MATCH(CONCATENATE(G69,"Pad"),YieldCalcs[Code],0),1)),"",INDEX(YieldCalcs[PredWts],MATCH(CONCATENATE(G69,"Pad"),YieldCalcs[Code],0),1)) ->  | O69: =IF(ISERROR(INDEX(YieldCalcs[PredWts],MATCH(CONCATENATE(G69,"Int"),YieldCalcs[Code],0),1)),"",INDEX(YieldCalcs[PredWts],MATCH(CONCATENATE(G69,"Int"),YieldCalcs[Code],0),1)) ->  | P69: =IF(ISERROR(INDEX(YieldCalcs[PredWts],MATCH(CONCATENATE(G69,"Skirt"),YieldCalcs[Code],0),1)),"",INDEX(YieldCalcs[PredWts],MATCH(CONCATENATE(G69,"Skirt"),YieldCalcs[Code],0),1)) ->  | Q69: =IF(ISERROR(INDEX(YieldCalcs[SalePrice],MATCH(G69,YieldCalcs[Code],0),1)),"",INDEX(YieldCalcs[SalePrice],MATCH(G69,YieldCalcs[Code],0),1)) -> 15 | R69: =IF(ISERROR(INDEX(YieldCalcs[CutValue],MATCH(G69,YieldCalcs[Code],0),1)),"",INDEX(YieldCalcs[CutValue],MATCH(G69,YieldCalcs[Code],0),1)) -> 10.575 | S69: =IF(ISERROR(INDEX(YieldCalcs[GM$],MATCH(G69,YieldCalcs[Code],0),1)),"",INDEX(YieldCalcs[GM$],MATCH(G69,YieldCalcs[Code],0),1)) -> 6.739461553 | T69: =IF(ISERROR(INDEX(YieldCalcs[GM%],MATCH(G69,YieldCalcs[Code],0),1)),"",INDEX(YieldCalcs[GM%],MATCH(G69,YieldCalcs[Code],0),1)) -> 0.6373013289 | U69: =IF(ISERROR(INDEX(YieldCalcs[TGM%],MATCH(G69,YieldCalcs[Code],0),1)),"",INDEX(YieldCalcs[TGM%],MATCH(G69,YieldCalcs[Code],0),1)) -> 0 | V69: =IF(ISERROR(INDEX(YieldCalcs[TSalePrice],MATCH(G69,YieldCalcs[Code],0),1)),"",INDEX(YieldCalcs[TSalePrice],MATCH(G69,YieldCalcs[Code],0),1)) -> 5.440480067 | W69: =IF(ISNUMBER(INDEX(YieldCalcs[TotCostsPerKg],MATCH(G69,YieldCalcs[Code],0),1)),INDEX(YieldCalcs[TotCostsPerKg],MATCH(G69,YieldCalcs[Code],0),1),"") -> 5.440480067 | X69: =IF(ISERROR(INDEX(YieldCalcs[PreBoneCperkg],MATCH(G69,YieldCalcs[Code],0),1)),"",INDEX(YieldCalcs[PreBoneCperkg],MATCH(G69,YieldCalcs[Code],0),1)) -> 3.170976521 | Y69: =IF(ISERROR(INDEX(YieldCalcs[FixBoneCostperkg],MATCH(G69,YieldCalcs[Code],0),1)),"",INDEX(YieldCalcs[FixBoneCostperkg],MATCH(G69,YieldCalcs[Code],0),1)) -> 1.378565568e-08 | Z69: =IF(ISERROR(INDEX(YieldCalcs[BoningCost],MATCH(G69,YieldCalcs[Code],0),1)),"",INDEX(YieldCalcs[BoningCost],MATCH(G69,YieldCalcs[Code],0),1)) -> 0.8 | AA69: =IF(ISNUMBER(INDEX(YieldCalcs[TotCosts],MATCH(G69,YieldCalcs[Code],0),1)),INDEX(YieldCalcs[TotCosts],MATCH(G69,YieldCalcs[Code],0),1),"") -> 3.835538447 | AB69: =IF(ISERROR(INDEX(YieldCalcs[BuyInPrice],MATCH(G69,YieldCalcs[Code],0),1)),"",INDEX(YieldCalcs[BuyInPrice],MATCH(G69,YieldCalcs[Code],0),1)) -> 0
E70: HQ Saleable Meat Totals: | I70: =SUBTOTAL(9,I63:I69) -> 5.556 | J70: 0.327 | K70: 1.455 | L70: 1.519 | M70: 0 | N70: 0 | O70: 0 | P70: 0 | R70: =SUBTOTAL(9,R63:R69) -> 102.971 | S70: =SUBTOTAL(9,S63:S69) -> 76.25869999 | T70: =IFERROR(S70/R70,0) -> 0.740584242 | X70: =SUMPRODUCT($I$63:$I$69,X63:X69) -> 18.4016 | Y70: =SUMPRODUCT($I$63:$I$69,Y63:Y69) -> 8e-08 | Z70: =SUMPRODUCT($I$63:$I$69,Z63:Z69) -> 4.8539 | AA70: =SUBTOTAL(9,AA63:AA69) -> 26.71230001
E71: Saleable Meat Total: | I71: =SUBTOTAL(9,I3:I70) -> 20.184 | J71: 1.29 | K71: 3.601 | L71: 2.157 | M71: 0.396 | N71: 0.043 | O71: 0.112 | P71: 0.152 | R71: =SUBTOTAL(9,R3:R70) -> 229.87861 | S71: =SUBTOTAL(9,S3:S70) -> -11.34689093 | T71: =IFERROR(S71/R71,0) -> -0.04936035994 | X71: =SUM(X70,X60,X34) -> 230.02 | Y71: =SUM(Y70,Y60,Y34) -> 1e-06 | Z71: =SUM(Z70,Z60,Z34) -> 7.7487 | AA71: =SUBTOTAL(9,AA3:AA70) -> 241.2255009
B73: =Lists!E179 -> 
E74: Secondary Products | F74: HAM # | G74: Column2 | H74: Column3 | I74: Weight (kg) | J74: Trim | K74: Fat | L74: Bone | M74: Waste | N74: Paddywack / LoinCap | O74: Intercostals | P74: Skirt | Q74: Sale Price ($/kg) | R74: Cut Value ($) | S74: Fabrication Cost ($/kg) | T74: GM ($) | U74: GM (%)
E75: Total Trim | I75: =J71 -> 1.29 | Q75: 7 | R75: =I75*Q75 -> 9.03 | S75: 0 | T75: =IF(SecProdWtsTable[[#This Row],[Weight (kg)]]>0,SecProdWtsTable[[#This Row],[Weight (kg)]]*SecProdWtsTable[[#This Row],[Sale Price ($/kg)]]-SecProdWtsTable[[#This Row],[Weight (kg)]]*SecProdWtsTable[[#This Row],[Fabrication Cost ($/kg)]],0) -> 9.03
E76: Fat | I76: =K71 -> 3.601 | Q76: 1 | R76: 3.601 | S76: 0 | T76: =IF(SecProdWtsTable[[#This Row],[Weight (kg)]]>0,SecProdWtsTable[[#This Row],[Weight (kg)]]*SecProdWtsTable[[#This Row],[Sale Price ($/kg)]]-SecProdWtsTable[[#This Row],[Weight (kg)]]*SecProdWtsTable[[#This Row],[Fabrication Cost ($/kg)]],0) -> 3.601
E77: Bone | I77: =L71 -> 2.157 | Q77: 3.5 | R77: 7.5495 | S77: 0 | T77: =IF(SecProdWtsTable[[#This Row],[Weight (kg)]]>0,SecProdWtsTable[[#This Row],[Weight (kg)]]*SecProdWtsTable[[#This Row],[Sale Price ($/kg)]]-SecProdWtsTable[[#This Row],[Weight (kg)]]*SecProdWtsTable[[#This Row],[Fabrication Cost ($/kg)]],0) -> 7.5495
E78: Wastage | I78: =M71 -> 0.396 | Q78: 1 | R78: 0.396 | S78: 0 | T78: =IF(SecProdWtsTable[[#This Row],[Weight (kg)]]>0,SecProdWtsTable[[#This Row],[Weight (kg)]]*SecProdWtsTable[[#This Row],[Sale Price ($/kg)]]-SecProdWtsTable[[#This Row],[Weight (kg)]]*SecProdWtsTable[[#This Row],[Fabrication Cost ($/kg)]],0) -> 0.396
E79: Paddywack | I79: =N34 -> 0.043 | Q79: 0 | R79: 0 | S79: 0 | T79: =IF(SecProdWtsTable[[#This Row],[Weight (kg)]]>0,SecProdWtsTable[[#This Row],[Weight (kg)]]*SecProdWtsTable[[#This Row],[Sale Price ($/kg)]]-SecProdWtsTable[[#This Row],[Weight (kg)]]*SecProdWtsTable[[#This Row],[Fabrication Cost ($/kg)]],0) -> 0
E80: Loin Cap | I80: =N60 -> 0 | Q80: 0 | R80: 0 | S80: 0 | T80: =IF(SecProdWtsTable[[#This Row],[Weight (kg)]]>0,SecProdWtsTable[[#This Row],[Weight (kg)]]*SecProdWtsTable[[#This Row],[Sale Price ($/kg)]]-SecProdWtsTable[[#This Row],[Weight (kg)]]*SecProdWtsTable[[#This Row],[Fabrication Cost ($/kg)]],0) -> 0
E81: Intercostals | I81: =O34+O60 -> 0.112 | Q81: 21 | R81: 2.352 | S81: 0 | T81: =IF(SecProdWtsTable[[#This Row],[Weight (kg)]]>0,SecProdWtsTable[[#This Row],[Weight (kg)]]*SecProdWtsTable[[#This Row],[Sale Price ($/kg)]]-SecProdWtsTable[[#This Row],[Weight (kg)]]*SecProdWtsTable[[#This Row],[Fabrication Cost ($/kg)]],0) -> 2.352
E82: Skirt | I82: =P60 -> 0.152 | Q82: 0 | R82: 0 | S82: 0 | T82: =IF(SecProdWtsTable[[#This Row],[Weight (kg)]]>0,SecProdWtsTable[[#This Row],[Weight (kg)]]*SecProdWtsTable[[#This Row],[Sale Price ($/kg)]]-SecProdWtsTable[[#This Row],[Weight (kg)]]*SecProdWtsTable[[#This Row],[Fabrication Cost ($/kg)]],0) -> 0
R83: 0
R84: 0
E85: Sec.Totals: | I85: =SUM(I75:I82) -> 7.751 | R85: =SUBTOTAL(9,R75:R82) -> 22.9285 | S85: =SUMPRODUCT(I75:I82,S75:S82) -> 0 | T85: =SUBTOTAL(9,T75:T82) -> 22.9285
E86: Carcase Totals: | I86: =SUBTOTAL(9,I3:I82) -> 27.935 | R86: =SUBTOTAL(9,R3:R82) -> 252.80711 | T86: =SUBTOTAL(9,S3:S71)+T85 -> 11.58160907 | U86: =T86/R86 -> 0.04581203854
E87: Recovery (%) | I87: =I86/Lists!E9 -> 0.978774246

Sheet Cut List (hidden)
A1: R1
D2: CutTotal | E2: =COUNTIF(YieldCalcs[PrimalinRegion],'Cut List'!E5) -> 6 | H2: ='Cut Selection'!E3 -> Sq Cut Shldr 6mm Fat Cap, St. Cut (4 Rib) | N2: CountMatch | O2: =COUNTIF(CutFilterR1[Column1],'Cut List'!N5) -> 0
B3: SHLDR | D3: Index Count | E3: =COUNTIF(YieldCalcs[PrimalinRegion],'Cut List'!E5)+ROW(E3)+1 -> 10 | M3: =LEN(M5)-2 ->  | N3: Index | O3: =COUNTIF(CutFilterR1[Column1],'Cut List'!N5)+ROW(E3)+1 -> 4
B4: R1_CutType | D4: CutRegion | E4: Primal | F4: Code | G4: BoneOrder | H4: R1_Cut | I4: BoneOrderSorted | J4: R1_CutSorted | K4: R1_CodeSorted | L4: CostingCode | M4: CostCodeSel | N4: TruncCostCode | O4: Column1 | P4: Column2
B5: B/I | D5: FQ | E5: =CutFilterR1[[#This Row],[CutRegion]]&'Cut Selection'!$C$4 -> FQShldrRk | F5: =IF(ROW(F5:F5)>$E$3,"",INDEX(YieldCalcs[Code],SMALL(IF($E$5=YieldCalcs[PrimalinRegion],ROW(YieldCalcs[PrimalinRegion])-MIN(ROW(YieldCalcs[PrimalinRegion]))+1,""),ROW(A1)))) -> FQ09.1 | G5: =IF(ROW(G5:G5)>$E$3,"",INDEX(YieldCalcs[BoneOrder],SMALL(IF($E$5=YieldCalcs[PrimalinRegion],ROW(YieldCalcs[PrimalinRegion])-MIN(ROW(YieldCalcs[PrimalinRegion]))+1,""),ROW(A1)))) -> 84.1 | H5: =IF(ROW(H5:H5)>$E$3,"",INDEX(YieldCalcs[CutName],SMALL(IF($E$5=YieldCalcs[PrimalinRegion],ROW(YieldCalcs[PrimalinRegion])-MIN(ROW(YieldCalcs[PrimalinRegion]))+1,""),ROW(H1)))) -> Eye Shldr Rack, Rib 75mm, Fr 25mm, CFO | I5: =IF($E$2>=ROWS($I$5:I5), INDEX(BoneOrderR1, MATCH(SMALL(COUNTIF(BoneOrderR1, "<"&BoneOrderR1),ROW(I5)+16-$E$2), COUNTIF(BoneOrderR1, "<"&BoneOrderR1), 0)), "") -> 84 | J5: =IF($E$2>=ROWS($J$5:J5), INDEX(CutR1unsort, MATCH(SMALL(COUNTIF(BoneOrderR1, "<"&BoneOrderR1), ROW(J5)+16-$E$2), COUNTIF(BoneOrderR1, "<"&BoneOrderR1), 0)), "") -> Eye Shldr Rack, Rib 75mm, CFO | K5: =IF($E$2>=ROWS($J$5:J5), INDEX(CutFilterR1[Code], MATCH(SMALL(COUNTIF(BoneOrderR1, "<"&BoneOrderR1), ROW(J5)+16-$E$2), COUNTIF(BoneOrderR1, "<"&BoneOrderR1), 0)), "") -> FQ09.1cc | L5: =VLOOKUP(CutFilterR1[[#This Row],[R1_CodeSorted]],'FQ Boning Order'!$N$2:$AB$142,15,FALSE) -> 1.11.1.1 | M5: =VLOOKUP(H2,$J$5:$L$17,3,FALSE) ->  | N5: =LEFT(CutFilterR1[[#This Row],[CostCodeSel]],M3) ->  | O5: =IFERROR(LEFT(CutFilterR1[[#This Row],[CostingCode]],$M$3),"") ->  | P5: =IF(ROW(P5:P5)>$O$3,"",INDEX(CutFilterR1[R1_CutSorted],SMALL(IF($N$5=CutFilterR1[Column1],ROW(CutFilterR1[Column1])-MIN(ROW(CutFilterR1[Column1]))+1,""),ROW(A1)))) ->  | Q5: =MATCH(N5,O5:O17,0) -> 
B6: B/O | F6: =IF(ROW(F6:F6)>$E$3,"",INDEX(YieldCalcs[Code],SMALL(IF($E$5=YieldCalcs[PrimalinRegion],ROW(YieldCalcs[PrimalinRegion])-MIN(ROW(YieldCalcs[PrimalinRegion]))+1,""),ROW(A2)))) -> FQ09.2 | G6: =IF(ROW(G6:G6)>$E$3,"",INDEX(YieldCalcs[BoneOrder],SMALL(IF($E$5=YieldCalcs[PrimalinRegion],ROW(YieldCalcs[PrimalinRegion])-MIN(ROW(YieldCalcs[PrimalinRegion]))+1,""),ROW(A2)))) -> 86 | H6: =IF(ROW(H6:H6)>$E$3,"",INDEX(YieldCalcs[CutName],SMALL(IF($E$5=YieldCalcs[PrimalinRegion],ROW(YieldCalcs[PrimalinRegion])-MIN(ROW(YieldCalcs[PrimalinRegion]))+1,""),ROW(H2)))) -> Blade Bone B/I, 6mm Fat Cap | I6: =IF($E$2>=ROWS($I$5:I6), INDEX(BoneOrderR1, MATCH(SMALL(COUNTIF(BoneOrderR1, "<"&BoneOrderR1),ROW(I6)+16-$E$2), COUNTIF(BoneOrderR1, "<"&BoneOrderR1), 0)), "") -> 84.1 | J6: =IF($E$2>=ROWS($J$5:J6), INDEX(CutR1unsort, MATCH(SMALL(COUNTIF(BoneOrderR1, "<"&BoneOrderR1), ROW(J6)+16-$E$2), COUNTIF(BoneOrderR1, "<"&BoneOrderR1), 0)), "") -> Eye Shldr Rack, Rib 75mm, Fr 25mm, CFO | K6: =IF($E$2>=ROWS($J$5:J6), INDEX(CutFilterR1[Code], MATCH(SMALL(COUNTIF(BoneOrderR1, "<"&BoneOrderR1), ROW(J6)+16-$E$2), COUNTIF(BoneOrderR1, "<"&BoneOrderR1), 0)), "") -> FQ09.1 | L6: =VLOOKUP(CutFilterR1[[#This Row],[R1_CodeSorted]],'FQ Boning Order'!$N$2:$AB$142,15,FALSE) -> 1.11.1.1.1 | O6: =IFERROR(LEFT(CutFilterR1[[#This Row],[CostingCode]],$M$3),"") ->  | P6: =IF(ROW(P6:P6)>$O$3,"",INDEX(CutFilterR1[R1_CutSorted],SMALL(IF($N$5=CutFilterR1[Column1],ROW(CutFilterR1[Column1])-MIN(ROW(CutFilterR1[Column1]))+1,""),ROW(A2)))) ->  | Q6: =MATCH(N6,O6:O18,0) -> 
B7: SqCut | F7: =IF(ROW(F7:F7)>$E$3,"",INDEX(YieldCalcs[Code],SMALL(IF($E$5=YieldCalcs[PrimalinRegion],ROW(YieldCalcs[PrimalinRegion])-MIN(ROW(YieldCalcs[PrimalinRegion]))+1,""),ROW(A3)))) -> FQ09.1cc | G7: =IF(ROW(G7:G7)>$E$3,"",INDEX(YieldCalcs[BoneOrder],SMALL(IF($E$5=YieldCalcs[PrimalinRegion],ROW(YieldCalcs[PrimalinRegion])-MIN(ROW(YieldCalcs[PrimalinRegion]))+1,""),ROW(A3)))) -> 84 | H7: =IF(ROW(H7:H7)>$E$3,"",INDEX(YieldCalcs[CutName],SMALL(IF($E$5=YieldCalcs[PrimalinRegion],ROW(YieldCalcs[PrimalinRegion])-MIN(ROW(YieldCalcs[PrimalinRegion]))+1,""),ROW(H3)))) -> Eye Shldr Rack, Rib 75mm, CFO | I7: =IF($E$2>=ROWS($I$5:I7), INDEX(BoneOrderR1, MATCH(SMALL(COUNTIF(BoneOrderR1, "<"&BoneOrderR1),ROW(I7)+16-$E$2), COUNTIF(BoneOrderR1, "<"&BoneOrderR1), 0)), "") -> 85.1 | J7: =IF($E$2>=ROWS($J$5:J7), INDEX(CutR1unsort, MATCH(SMALL(COUNTIF(BoneOrderR1, "<"&BoneOrderR1), ROW(J7)+16-$E$2), COUNTIF(BoneOrderR1, "<"&BoneOrderR1), 0)), "") -> Banjo Shoulder 6mm fat, tipped | K7: =IF($E$2>=ROWS($J$5:J7), INDEX(CutFilterR1[Code], MATCH(SMALL(COUNTIF(BoneOrderR1, "<"&BoneOrderR1), ROW(J7)+16-$E$2), COUNTIF(BoneOrderR1, "<"&BoneOrderR1), 0)), "") -> FQ09.2cc | L7: =VLOOKUP(CutFilterR1[[#This Row],[R1_CodeSorted]],'FQ Boning Order'!$N$2:$AB$142,15,FALSE) -> 1.11.1.2 | O7: =IFERROR(LEFT(CutFilterR1[[#This Row],[CostingCode]],$M$3),"") ->  | P7: =IF(ROW(P7:P7)>$O$3,"",INDEX(CutFilterR1[R1_CutSorted],SMALL(IF($N$5=CutFilterR1[Column1],ROW(CutFilterR1[Column1])-MIN(ROW(CutFilterR1[Column1]))+1,""),ROW(A3)))) -> 
B8: BestEnd | F8: =IF(ROW(F8:F8)>$E$3,"",INDEX(YieldCalcs[Code],SMALL(IF($E$5=YieldCalcs[PrimalinRegion],ROW(YieldCalcs[PrimalinRegion])-MIN(ROW(YieldCalcs[PrimalinRegion]))+1,""),ROW(A4)))) -> FQ09.2cc | G8: =IF(ROW(G8:G8)>$E$3,"",INDEX(YieldCalcs[BoneOrder],SMALL(IF($E$5=YieldCalcs[PrimalinRegion],ROW(YieldCalcs[PrimalinRegion])-MIN(ROW(YieldCalcs[PrimalinRegion]))+1,""),ROW(A4)))) -> 85.1 | H8: =IF(ROW(H8:H8)>$E$3,"",INDEX(YieldCalcs[CutName],SMALL(IF($E$5=YieldCalcs[PrimalinRegion],ROW(YieldCalcs[PrimalinRegion])-MIN(ROW(YieldCalcs[PrimalinRegion]))+1,""),ROW(H4)))) -> Banjo Shoulder 6mm fat, tipped | I8: =IF($E$2>=ROWS($I$5:I8), INDEX(BoneOrderR1, MATCH(SMALL(COUNTIF(BoneOrderR1, "<"&BoneOrderR1),ROW(I8)+16-$E$2), COUNTIF(BoneOrderR1, "<"&BoneOrderR1), 0)), "") -> 85.2 | J8: =IF($E$2>=ROWS($J$5:J8), INDEX(CutR1unsort, MATCH(SMALL(COUNTIF(BoneOrderR1, "<"&BoneOrderR1), ROW(J8)+16-$E$2), COUNTIF(BoneOrderR1, "<"&BoneOrderR1), 0)), "") -> Banjo Shoulder, Scap Out, 6mm fat, tipped | K8: =IF($E$2>=ROWS($J$5:J8), INDEX(CutFilterR1[Code], MATCH(SMALL(COUNTIF(BoneOrderR1, "<"&BoneOrderR1), ROW(J8)+16-$E$2), COUNTIF(BoneOrderR1, "<"&BoneOrderR1), 0)), "") -> FQ09.3cc | L8: =VLOOKUP(CutFilterR1[[#This Row],[R1_CodeSorted]],'FQ Boning Order'!$N$2:$AB$142,15,FALSE) -> 1.11.1.2.1 | N8: =LEFT(CutFilterR1[[#This Row],[CostCodeSel]],M6) ->  | O8: =IFERROR(LEFT(CutFilterR1[[#This Row],[CostingCode]],$M$3),"") ->  | P8: =IF(ROW(P8:P8)>$O$3,"",INDEX(CutFilterR1[R1_CutSorted],SMALL(IF($N$5=CutFilterR1[Column1],ROW(CutFilterR1[Column1])-MIN(ROW(CutFilterR1[Column1]))+1,""),ROW(A4)))) -> 
B9: ShldrRk | F9: =IF(ROW(F9:F9)>$E$3,"",INDEX(YieldCalcs[Code],SMALL(IF($E$5=YieldCalcs[PrimalinRegion],ROW(YieldCalcs[PrimalinRegion])-MIN(ROW(YieldCalcs[PrimalinRegion]))+1,""),ROW(A5)))) -> FQ09.3cc | G9: =IF(ROW(G9:G9)>$E$3,"",INDEX(YieldCalcs[BoneOrder],SMALL(IF($E$5=YieldCalcs[PrimalinRegion],ROW(YieldCalcs[PrimalinRegion])-MIN(ROW(YieldCalcs[PrimalinRegion]))+1,""),ROW(A5)))) -> 85.2 | H9: =IF(ROW(H9:H9)>$E$3,"",INDEX(YieldCalcs[CutName],SMALL(IF($E$5=YieldCalcs[PrimalinRegion],ROW(YieldCalcs[PrimalinRegion])-MIN(ROW(YieldCalcs[PrimalinRegion]))+1,""),ROW(H5)))) -> Banjo Shoulder, Scap Out, 6mm fat, tipped | I9: =IF($E$2>=ROWS($I$5:I9), INDEX(BoneOrderR1, MATCH(SMALL(COUNTIF(BoneOrderR1, "<"&BoneOrderR1),ROW(I9)+16-$E$2), COUNTIF(BoneOrderR1, "<"&BoneOrderR1), 0)), "") -> 86 | J9: =IF($E$2>=ROWS($J$5:J9), INDEX(CutR1unsort, MATCH(SMALL(COUNTIF(BoneOrderR1, "<"&BoneOrderR1), ROW(J9)+16-$E$2), COUNTIF(BoneOrderR1, "<"&BoneOrderR1), 0)), "") -> Blade Bone B/I, 6mm Fat Cap | K9: =IF($E$2>=ROWS($J$5:J9), INDEX(CutFilterR1[Code], MATCH(SMALL(COUNTIF(BoneOrderR1, "<"&BoneOrderR1), ROW(J9)+16-$E$2), COUNTIF(BoneOrderR1, "<"&BoneOrderR1), 0)), "") -> FQ09.2 | L9: =VLOOKUP(CutFilterR1[[#This Row],[R1_CodeSorted]],'FQ Boning Order'!$N$2:$AB$142,15,FALSE) -> 1.11.1.2.1.1 | N9: =LEFT(CutFilterR1[[#This Row],[CostCodeSel]],M7) ->  | O9: =IFERROR(LEFT(CutFilterR1[[#This Row],[CostingCode]],$M$3),"") ->  | P9: =IF(ROW(P9:P9)>$O$3,"",INDEX(CutFilterR1[R1_CutSorted],SMALL(IF($N$5=CutFilterR1[Column1],ROW(CutFilterR1[Column1])-MIN(ROW(CutFilterR1[Column1]))+1,""),ROW(A5)))) -> 
F10: =IF(ROW(F10:F10)>$E$3,"",INDEX(YieldCalcs[Code],SMALL(IF($E$5=YieldCalcs[PrimalinRegion],ROW(YieldCalcs[PrimalinRegion])-MIN(ROW(YieldCalcs[PrimalinRegion]))+1,""),ROW(A6)))) -> FQ13.1cc | G10: =IF(ROW(G10:G10)>$E$3,"",INDEX(YieldCalcs[BoneOrder],SMALL(IF($E$5=YieldCalcs[PrimalinRegion],ROW(YieldCalcs[PrimalinRegion])-MIN(ROW(YieldCalcs[PrimalinRegion]))+1,""),ROW(A6)))) -> 87 | H10: =IF(ROW(H10:H10)>$E$3,"",INDEX(YieldCalcs[CutName],SMALL(IF($E$5=YieldCalcs[PrimalinRegion],ROW(YieldCalcs[PrimalinRegion])-MIN(ROW(YieldCalcs[PrimalinRegion]))+1,""),ROW(H6)))) -> Blade B/O, Denuded | I10: =IF($E$2>=ROWS($I$5:I10), INDEX(BoneOrderR1, MATCH(SMALL(COUNTIF(BoneOrderR1, "<"&BoneOrderR1),ROW(I10)+16-$E$2), COUNTIF(BoneOrderR1, "<"&BoneOrderR1), 0)), "") -> 87 | J10: =IF($E$2>=ROWS($J$5:J10), INDEX(CutR1unsort, MATCH(SMALL(COUNTIF(BoneOrderR1, "<"&BoneOrderR1), ROW(J10)+16-$E$2), COUNTIF(BoneOrderR1, "<"&BoneOrderR1), 0)), "") -> Blade B/O, Denuded | K10: =IF($E$2>=ROWS($J$5:J10), INDEX(CutFilterR1[Code], MATCH(SMALL(COUNTIF(BoneOrderR1, "<"&BoneOrderR1), ROW(J10)+16-$E$2), COUNTIF(BoneOrderR1, "<"&BoneOrderR1), 0)), "") -> FQ13.1cc | L10: =VLOOKUP(CutFilterR1[[#This Row],[R1_CodeSorted]],'FQ Boning Order'!$N$2:$AB$142,15,FALSE) -> 1.11.1.2.1.1.1 | N10: =LEFT(CutFilterR1[[#This Row],[CostCodeSel]],M8) ->  | O10: =IFERROR(LEFT(CutFilterR1[[#This Row],[CostingCode]],$M$3),"") ->  | P10: =IF(ROW(P10:P10)>$O$3,"",INDEX(CutFilterR1[R1_CutSorted],SMALL(IF($N$5=CutFilterR1[Column1],ROW(CutFilterR1[Column1])-MIN(ROW(CutFilterR1[Column1]))+1,""),ROW(A6)))) -> 
F11: =IF(ROW(F11:F11)>$E$3,"",INDEX(YieldCalcs[Code],SMALL(IF($E$5=YieldCalcs[PrimalinRegion],ROW(YieldCalcs[PrimalinRegion])-MIN(ROW(YieldCalcs[PrimalinRegion]))+1,""),ROW(A7)))) ->  | G11: =IF(ROW(G11:G11)>$E$3,"",INDEX(YieldCalcs[BoneOrder],SMALL(IF($E$5=YieldCalcs[PrimalinRegion],ROW(YieldCalcs[PrimalinRegion])-MIN(ROW(YieldCalcs[PrimalinRegion]))+1,""),ROW(A7)))) ->  | H11: =IF(ROW(H11:H11)>$E$3,"",INDEX(YieldCalcs[CutName],SMALL(IF($E$5=YieldCalcs[PrimalinRegion],ROW(YieldCalcs[PrimalinRegion])-MIN(ROW(YieldCalcs[PrimalinRegion]))+1,""),ROW(H7)))) ->  | I11: =IF($E$2>=ROWS($I$5:I11), INDEX(BoneOrderR1, MATCH(SMALL(COUNTIF(BoneOrderR1, "<"&BoneOrderR1),ROW(I11)+16-$E$2), COUNTIF(BoneOrderR1, "<"&BoneOrderR1), 0)), "") ->  | J11: =IF($E$2>=ROWS($J$5:J11), INDEX(CutR1unsort, MATCH(SMALL(COUNTIF(BoneOrderR1, "<"&BoneOrderR1), ROW(J11)+16-$E$2), COUNTIF(BoneOrderR1, "<"&BoneOrderR1), 0)), "") ->  | K11: =IF($E$2>=ROWS($J$5:J11), INDEX(CutFilterR1[Code], MATCH(SMALL(COUNTIF(BoneOrderR1, "<"&BoneOrderR1), ROW(J11)+16-$E$2), COUNTIF(BoneOrderR1, "<"&BoneOrderR1), 0)), "") ->  | L11: =VLOOKUP(CutFilterR1[[#This Row],[R1_CodeSorted]],'FQ Boning Order'!$N$2:$AB$142,15,FALSE) ->  | N11: =LEFT(CutFilterR1[[#This Row],[CostCodeSel]],M9) ->  | O11: =IFERROR(LEFT(CutFilterR1[[#This Row],[CostingCode]],$M$3),"") ->  | P11: =IF(ROW(P11:P11)>$O$3,"",INDEX(CutFilterR1[R1_CutSorted],SMALL(IF($N$5=CutFilterR1[Column1],ROW(CutFilterR1[Column1])-MIN(ROW(CutFilterR1[Column1]))+1,""),ROW(A7)))) -> 
F12: =IF(ROW(F12:F12)>$E$3,"",INDEX(YieldCalcs[Code],SMALL(IF($E$5=YieldCalcs[PrimalinRegion],ROW(YieldCalcs[PrimalinRegion])-MIN(ROW(YieldCalcs[PrimalinRegion]))+1,""),ROW(A8)))) ->  | G12: =IF(ROW(G12:G12)>$E$3,"",INDEX(YieldCalcs[BoneOrder],SMALL(IF($E$5=YieldCalcs[PrimalinRegion],ROW(YieldCalcs[PrimalinRegion])-MIN(ROW(YieldCalcs[PrimalinRegion]))+1,""),ROW(A8)))) ->  | H12: =IF(ROW(H12:H12)>$E$3,"",INDEX(YieldCalcs[CutName],SMALL(IF($E$5=YieldCalcs[PrimalinRegion],ROW(YieldCalcs[PrimalinRegion])-MIN(ROW(YieldCalcs[PrimalinRegion]))+1,""),ROW(H8)))) ->  | I12: =IF($E$2>=ROWS($I$5:I12), INDEX(BoneOrderR1, MATCH(SMALL(COUNTIF(BoneOrderR1, "<"&BoneOrderR1),ROW(I12)+16-$E$2), COUNTIF(BoneOrderR1, "<"&BoneOrderR1), 0)), "") ->  | J12: =IF($E$2>=ROWS($J$5:J12), INDEX(CutR1unsort, MATCH(SMALL(COUNTIF(BoneOrderR1, "<"&BoneOrderR1), ROW(J12)+16-$E$2), COUNTIF(BoneOrderR1, "<"&BoneOrderR1), 0)), "") ->  | K12: =IF($E$2>=ROWS($J$5:J12), INDEX(CutFilterR1[Code], MATCH(SMALL(COUNTIF(BoneOrderR1, "<"&BoneOrderR1), ROW(J12)+16-$E$2), COUNTIF(BoneOrderR1, "<"&BoneOrderR1), 0)), "") ->  | L12: =VLOOKUP(CutFilterR1[[#This Row],[R1_CodeSorted]],'FQ Boning Order'!$N$2:$AB$142,15,FALSE) ->  | N12: =LEFT(CutFilterR1[[#This Row],[CostCodeSel]],M10) ->  | O12: =IFERROR(LEFT(CutFilterR1[[#This Row],[CostingCode]],$M$3),"") ->  | P12: =IF(ROW(P12:P12)>$O$3,"",INDEX(CutFilterR1[R1_CutSorted],SMALL(IF($N$5=CutFilterR1[Column1],ROW(CutFilterR1[Column1])-MIN(ROW(CutFilterR1[Column1]))+1,""),ROW(A8)))) -> 
F13: =IF(ROW(F13:F13)>$E$3,"",INDEX(YieldCalcs[Code],SMALL(IF($E$5=YieldCalcs[PrimalinRegion],ROW(YieldCalcs[PrimalinRegion])-MIN(ROW(YieldCalcs[PrimalinRegion]))+1,""),ROW(A9)))) ->  | G13: =IF(ROW(G13:G13)>$E$3,"",INDEX(YieldCalcs[BoneOrder],SMALL(IF($E$5=YieldCalcs[PrimalinRegion],ROW(YieldCalcs[PrimalinRegion])-MIN(ROW(YieldCalcs[PrimalinRegion]))+1,""),ROW(A9)))) ->  | H13: =IF(ROW(H13:H13)>$E$3,"",INDEX(YieldCalcs[CutName],SMALL(IF($E$5=YieldCalcs[PrimalinRegion],ROW(YieldCalcs[PrimalinRegion])-MIN(ROW(YieldCalcs[PrimalinRegion]))+1,""),ROW(H9)))) ->  | I13: =IF($E$2>=ROWS($I$5:I13), INDEX(BoneOrderR1, MATCH(SMALL(COUNTIF(BoneOrderR1, "<"&BoneOrderR1),ROW(I13)+16-$E$2), COUNTIF(BoneOrderR1, "<"&BoneOrderR1), 0)), "") ->  | J13: =IF($E$2>=ROWS($J$5:J13), INDEX(CutR1unsort, MATCH(SMALL(COUNTIF(BoneOrderR1, "<"&BoneOrderR1), ROW(J13)+16-$E$2), COUNTIF(BoneOrderR1, "<"&BoneOrderR1), 0)), "") ->  | K13: =IF($E$2>=ROWS($J$5:J13), INDEX(CutFilterR1[Code], MATCH(SMALL(COUNTIF(BoneOrderR1, "<"&BoneOrderR1), ROW(J13)+16-$E$2), COUNTIF(BoneOrderR1, "<"&BoneOrderR1), 0)), "") ->  | L13: =VLOOKUP(CutFilterR1[[#This Row],[R1_CodeSorted]],'FQ Boning Order'!$N$2:$AB$142,15,FALSE) ->  | N13: =LEFT(CutFilterR1[[#This Row],[CostCodeSel]],M11) ->  | O13: =IFERROR(LEFT(CutFilterR1[[#This Row],[CostingCode]],$M$3),"") ->  | P13: =IF(ROW(P13:P13)>$O$3,"",INDEX(CutFilterR1[R1_CutSorted],SMALL(IF($N$5=CutFilterR1[Column1],ROW(CutFilterR1[Column1])-MIN(ROW(CutFilterR1[Column1]))+1,""),ROW(A9)))) -> 
F14: =IF(ROW(F14:F14)>$E$3,"",INDEX(YieldCalcs[Code],SMALL(IF($E$5=YieldCalcs[PrimalinRegion],ROW(YieldCalcs[PrimalinRegion])-MIN(ROW(YieldCalcs[PrimalinRegion]))+1,""),ROW(A10)))) ->  | G14: =IF(ROW(G14:G14)>$E$3,"",INDEX(YieldCalcs[BoneOrder],SMALL(IF($E$5=YieldCalcs[PrimalinRegion],ROW(YieldCalcs[PrimalinRegion])-MIN(ROW(YieldCalcs[PrimalinRegion]))+1,""),ROW(A10)))) ->  | H14: =IF(ROW(H14:H14)>$E$3,"",INDEX(YieldCalcs[CutName],SMALL(IF($E$5=YieldCalcs[PrimalinRegion],ROW(YieldCalcs[PrimalinRegion])-MIN(ROW(YieldCalcs[PrimalinRegion]))+1,""),ROW(H10)))) ->  | I14: =IF($E$2>=ROWS($I$5:I14), INDEX(BoneOrderR1, MATCH(SMALL(COUNTIF(BoneOrderR1, "<"&BoneOrderR1),ROW(I14)+16-$E$2), COUNTIF(BoneOrderR1, "<"&BoneOrderR1), 0)), "") ->  | J14: =IF($E$2>=ROWS($J$5:J14), INDEX(CutR1unsort, MATCH(SMALL(COUNTIF(BoneOrderR1, "<"&BoneOrderR1), ROW(J14)+16-$E$2), COUNTIF(BoneOrderR1, "<"&BoneOrderR1), 0)), "") ->  | K14: =IF($E$2>=ROWS($J$5:J14), INDEX(CutFilterR1[Code], MATCH(SMALL(COUNTIF(BoneOrderR1, "<"&BoneOrderR1), ROW(J14)+16-$E$2), COUNTIF(BoneOrderR1, "<"&BoneOrderR1), 0)), "") ->  | L14: =VLOOKUP(CutFilterR1[[#This Row],[R1_CodeSorted]],'FQ Boning Order'!$N$2:$AB$142,15,FALSE) ->  | N14: =LEFT(CutFilterR1[[#This Row],[CostCodeSel]],M12) ->  | O14: =IFERROR(LEFT(CutFilterR1[[#This Row],[CostingCode]],$M$3),"") ->  | P14: =IF(ROW(P14:P14)>$O$3,"",INDEX(CutFilterR1[R1_CutSorted],SMALL(IF($N$5=CutFilterR1[Column1],ROW(CutFilterR1[Column1])-MIN(ROW(CutFilterR1[Column1]))+1,""),ROW(A10)))) -> 
F15: =IF(ROW(F15:F15)>$E$3,"",INDEX(YieldCalcs[Code],SMALL(IF($E$5=YieldCalcs[PrimalinRegion],ROW(YieldCalcs[PrimalinRegion])-MIN(ROW(YieldCalcs[PrimalinRegion]))+1,""),ROW(A11)))) ->  | G15: =IF(ROW(G15:G15)>$E$3,"",INDEX(YieldCalcs[BoneOrder],SMALL(IF($E$5=YieldCalcs[PrimalinRegion],ROW(YieldCalcs[PrimalinRegion])-MIN(ROW(YieldCalcs[PrimalinRegion]))+1,""),ROW(A11)))) ->  | H15: =IF(ROW(H15:H15)>$E$3,"",INDEX(YieldCalcs[CutName],SMALL(IF($E$5=YieldCalcs[PrimalinRegion],ROW(YieldCalcs[PrimalinRegion])-MIN(ROW(YieldCalcs[PrimalinRegion]))+1,""),ROW(H11)))) ->  | I15: =IF($E$2>=ROWS($I$5:I15), INDEX(BoneOrderR1, MATCH(SMALL(COUNTIF(BoneOrderR1, "<"&BoneOrderR1),ROW(I15)+16-$E$2), COUNTIF(BoneOrderR1, "<"&BoneOrderR1), 0)), "") ->  | J15: =IF($E$2>=ROWS($J$5:J15), INDEX(CutR1unsort, MATCH(SMALL(COUNTIF(BoneOrderR1, "<"&BoneOrderR1), ROW(J15)+16-$E$2), COUNTIF(BoneOrderR1, "<"&BoneOrderR1), 0)), "") ->  | K15: =IF($E$2>=ROWS($J$5:J15), INDEX(CutFilterR1[Code], MATCH(SMALL(COUNTIF(BoneOrderR1, "<"&BoneOrderR1), ROW(J15)+16-$E$2), COUNTIF(BoneOrderR1, "<"&BoneOrderR1), 0)), "") ->  | L15: =VLOOKUP(CutFilterR1[[#This Row],[R1_CodeSorted]],'FQ Boning Order'!$N$2:$AB$142,15,FALSE) ->  | N15: =LEFT(CutFilterR1[[#This Row],[CostCodeSel]],M13) ->  | O15: =IFERROR(LEFT(CutFilterR1[[#This Row],[CostingCode]],$M$3),"") ->  | P15: =IF(ROW(P15:P15)>$O$3,"",INDEX(CutFilterR1[R1_CutSorted],SMALL(IF($N$5=CutFilterR1[Column1],ROW(CutFilterR1[Column1])-MIN(ROW(CutFilterR1[Column1]))+1,""),ROW(A11)))) -> 
F16: =IF(ROW(F16:F16)>$E$3,"",INDEX(YieldCalcs[Code],SMALL(IF($E$5=YieldCalcs[PrimalinRegion],ROW(YieldCalcs[PrimalinRegion])-MIN(ROW(YieldCalcs[PrimalinRegion]))+1,""),ROW(A12)))) ->  | G16: =IF(ROW(G16:G16)>$E$3,"",INDEX(YieldCalcs[BoneOrder],SMALL(IF($E$5=YieldCalcs[PrimalinRegion],ROW(YieldCalcs[PrimalinRegion])-MIN(ROW(YieldCalcs[PrimalinRegion]))+1,""),ROW(A12)))) ->  | H16: =IF(ROW(H16:H16)>$E$3,"",INDEX(YieldCalcs[CutName],SMALL(IF($E$5=YieldCalcs[PrimalinRegion],ROW(YieldCalcs[PrimalinRegion])-MIN(ROW(YieldCalcs[PrimalinRegion]))+1,""),ROW(H12)))) ->  | I16: =IF($E$2>=ROWS($I$5:I16), INDEX(BoneOrderR1, MATCH(SMALL(COUNTIF(BoneOrderR1, "<"&BoneOrderR1),ROW(I16)+16-$E$2), COUNTIF(BoneOrderR1, "<"&BoneOrderR1), 0)), "") ->  | J16: =IF($E$2>=ROWS($J$5:J16), INDEX(CutR1unsort, MATCH(SMALL(COUNTIF(BoneOrderR1, "<"&BoneOrderR1), ROW(J16)+16-$E$2), COUNTIF(BoneOrderR1, "<"&BoneOrderR1), 0)), "") ->  | K16: =IF($E$2>=ROWS($J$5:J16), INDEX(CutFilterR1[Code], MATCH(SMALL(COUNTIF(BoneOrderR1, "<"&BoneOrderR1), ROW(J16)+16-$E$2), COUNTIF(BoneOrderR1, "<"&BoneOrderR1), 0)), "") ->  | L16: =VLOOKUP(CutFilterR1[[#This Row],[R1_CodeSorted]],'FQ Boning Order'!$N$2:$AB$142,15,FALSE) ->  | N16: =LEFT(CutFilterR1[[#This Row],[CostCodeSel]],M14) ->  | O16: =IFERROR(LEFT(CutFilterR1[[#This Row],[CostingCode]],$M$3),"") ->  | P16: =IF(ROW(P16:P16)>$O$3,"",INDEX(CutFilterR1[R1_CutSorted],SMALL(IF($N$5=CutFilterR1[Column1],ROW(CutFilterR1[Column1])-MIN(ROW(CutFilterR1[Column1]))+1,""),ROW(A12)))) -> 
F17: =IF(ROW(F17:F17)>$E$3,"",INDEX(YieldCalcs[Code],SMALL(IF($E$5=YieldCalcs[PrimalinRegion],ROW(YieldCalcs[PrimalinRegion])-MIN(ROW(YieldCalcs[PrimalinRegion]))+1,""),ROW(A13)))) ->  | G17: =IF(ROW(G17:G17)>$E$3,"",INDEX(YieldCalcs[BoneOrder],SMALL(IF($E$5=YieldCalcs[PrimalinRegion],ROW(YieldCalcs[PrimalinRegion])-MIN(ROW(YieldCalcs[PrimalinRegion]))+1,""),ROW(A13)))) ->  | H17: =IF(ROW(H17:H17)>$E$3,"",INDEX(YieldCalcs[CutName],SMALL(IF($E$5=YieldCalcs[PrimalinRegion],ROW(YieldCalcs[PrimalinRegion])-MIN(ROW(YieldCalcs[PrimalinRegion]))+1,""),ROW(H13)))) ->  | I17: =IF($E$2>=ROWS($I$5:I17), INDEX(BoneOrderR1, MATCH(SMALL(COUNTIF(BoneOrderR1, "<"&BoneOrderR1),ROW(I17)+16-$E$2), COUNTIF(BoneOrderR1, "<"&BoneOrderR1), 0)), "") ->  | J17: =IF($E$2>=ROWS($J$5:J17), INDEX(CutR1unsort, MATCH(SMALL(COUNTIF(BoneOrderR1, "<"&BoneOrderR1), ROW(J17)+16-$E$2), COUNTIF(BoneOrderR1, "<"&BoneOrderR1), 0)), "") ->  | K17: =IF($E$2>=ROWS($J$5:J17), INDEX(CutFilterR1[Code], MATCH(SMALL(COUNTIF(BoneOrderR1, "<"&BoneOrderR1), ROW(J17)+16-$E$2), COUNTIF(BoneOrderR1, "<"&BoneOrderR1), 0)), "") ->  | L17: =VLOOKUP(CutFilterR1[[#This Row],[R1_CodeSorted]],'FQ Boning Order'!$N$2:$AB$142,15,FALSE) ->  | N17: =LEFT(CutFilterR1[[#This Row],[CostCodeSel]],M15) ->  | O17: =IFERROR(LEFT(CutFilterR1[[#This Row],[CostingCode]],$M$3),"") ->  | P17: =IF(ROW(P17:P17)>$O$3,"",INDEX(CutFilterR1[R1_CutSorted],SMALL(IF($N$5=CutFilterR1[Column1],ROW(CutFilterR1[Column1])-MIN(ROW(CutFilterR1[Column1]))+1,""),ROW(A13)))) -> 
F18: =IF(ROW(F18:F18)>$E$3,"",INDEX(YieldCalcs[Code],SMALL(IF($E$5=YieldCalcs[PrimalinRegion],ROW(YieldCalcs[PrimalinRegion])-MIN(ROW(YieldCalcs[PrimalinRegion]))+1,""),ROW(A14)))) ->  | G18: =IF(ROW(G18:G18)>$E$3,"",INDEX(YieldCalcs[BoneOrder],SMALL(IF($E$5=YieldCalcs[PrimalinRegion],ROW(YieldCalcs[PrimalinRegion])-MIN(ROW(YieldCalcs[PrimalinRegion]))+1,""),ROW(A14)))) ->  | H18: =IF(ROW(H18:H18)>$E$3,"",INDEX(YieldCalcs[CutName],SMALL(IF($E$5=YieldCalcs[PrimalinRegion],ROW(YieldCalcs[PrimalinRegion])-MIN(ROW(YieldCalcs[PrimalinRegion]))+1,""),ROW(H14)))) ->  | I18: =IF($E$2>=ROWS($I$5:I18), INDEX(BoneOrderR1, MATCH(SMALL(COUNTIF(BoneOrderR1, "<"&BoneOrderR1),ROW(I18)+16-$E$2), COUNTIF(BoneOrderR1, "<"&BoneOrderR1), 0)), "") ->  | J18: =IF($E$2>=ROWS($J$5:J18), INDEX(CutR1unsort, MATCH(SMALL(COUNTIF(BoneOrderR1, "<"&BoneOrderR1), ROW(J18)+16-$E$2), COUNTIF(BoneOrderR1, "<"&BoneOrderR1), 0)), "") ->  | K18: =IF($E$2>=ROWS($J$5:J18), INDEX(CutFilterR1[Code], MATCH(SMALL(COUNTIF(BoneOrderR1, "<"&BoneOrderR1), ROW(J18)+16-$E$2), COUNTIF(BoneOrderR1, "<"&BoneOrderR1), 0)), "") ->  | L18: =VLOOKUP(CutFilterR1[[#This Row],[R1_CodeSorted]],'FQ Boning Order'!$N$2:$AB$142,15,FALSE) ->  | N18: =LEFT(CutFilterR1[[#This Row],[CostCodeSel]],M16) ->  | O18: =IFERROR(LEFT(CutFilterR1[[#This Row],[CostingCode]],$M$3),"") ->  | P18: =IF(ROW(P18:P18)>$O$3,"",INDEX(CutFilterR1[R1_CutSorted],SMALL(IF($N$5=CutFilterR1[Column1],ROW(CutFilterR1[Column1])-MIN(ROW(CutFilterR1[Column1]))+1,""),ROW(A14)))) -> 
F19: =IF(ROW(F19:F19)>$E$3,"",INDEX(YieldCalcs[Code],SMALL(IF($E$5=YieldCalcs[PrimalinRegion],ROW(YieldCalcs[PrimalinRegion])-MIN(ROW(YieldCalcs[PrimalinRegion]))+1,""),ROW(A15)))) ->  | G19: =IF(ROW(G19:G19)>$E$3,"",INDEX(YieldCalcs[BoneOrder],SMALL(IF($E$5=YieldCalcs[PrimalinRegion],ROW(YieldCalcs[PrimalinRegion])-MIN(ROW(YieldCalcs[PrimalinRegion]))+1,""),ROW(A15)))) ->  | H19: =IF(ROW(H19:H19)>$E$3,"",INDEX(YieldCalcs[CutName],SMALL(IF($E$5=YieldCalcs[PrimalinRegion],ROW(YieldCalcs[PrimalinRegion])-MIN(ROW(YieldCalcs[PrimalinRegion]))+1,""),ROW(H15)))) ->  | I19: =IF($E$2>=ROWS($I$5:I19), INDEX(BoneOrderR1, MATCH(SMALL(COUNTIF(BoneOrderR1, "<"&BoneOrderR1),ROW(I19)+16-$E$2), COUNTIF(BoneOrderR1, "<"&BoneOrderR1), 0)), "") ->  | J19: =IF($E$2>=ROWS($J$5:J19), INDEX(CutR1unsort, MATCH(SMALL(COUNTIF(BoneOrderR1, "<"&BoneOrderR1), ROW(J19)+16-$E$2), COUNTIF(BoneOrderR1, "<"&BoneOrderR1), 0)), "") ->  | K19: =IF($E$2>=ROWS($J$5:J19), INDEX(CutFilterR1[Code], MATCH(SMALL(COUNTIF(BoneOrderR1, "<"&BoneOrderR1), ROW(J19)+16-$E$2), COUNTIF(BoneOrderR1, "<"&BoneOrderR1), 0)), "") ->  | L19: =VLOOKUP(CutFilterR1[[#This Row],[R1_CodeSorted]],'FQ Boning Order'!$N$2:$AB$142,15,FALSE) ->  | N19: =LEFT(CutFilterR1[[#This Row],[CostCodeSel]],M17) ->  | O19: =IFERROR(LEFT(CutFilterR1[[#This Row],[CostingCode]],$M$3),"") ->  | P19: =IF(ROW(P19:P19)>$O$3,"",INDEX(CutFilterR1[R1_CutSorted],SMALL(IF($N$5=CutFilterR1[Column1],ROW(CutFilterR1[Column1])-MIN(ROW(CutFilterR1[Column1]))+1,""),ROW(A15)))) -> 
F20: =IF(ROW(F20:F20)>$E$3,"",INDEX(YieldCalcs[Code],SMALL(IF($E$5=YieldCalcs[PrimalinRegion],ROW(YieldCalcs[PrimalinRegion])-MIN(ROW(YieldCalcs[PrimalinRegion]))+1,""),ROW(A16)))) ->  | G20: =IF(ROW(G20:G20)>$E$3,"",INDEX(YieldCalcs[BoneOrder],SMALL(IF($E$5=YieldCalcs[PrimalinRegion],ROW(YieldCalcs[PrimalinRegion])-MIN(ROW(YieldCalcs[PrimalinRegion]))+1,""),ROW(A16)))) ->  | H20: =IF(ROW(H20:H20)>$E$3,"",INDEX(YieldCalcs[CutName],SMALL(IF($E$5=YieldCalcs[PrimalinRegion],ROW(YieldCalcs[PrimalinRegion])-MIN(ROW(YieldCalcs[PrimalinRegion]))+1,""),ROW(H16)))) ->  | I20: =IF($E$2>=ROWS($I$5:I20), INDEX(BoneOrderR1, MATCH(SMALL(COUNTIF(BoneOrderR1, "<"&BoneOrderR1),ROW(I20)+16-$E$2), COUNTIF(BoneOrderR1, "<"&BoneOrderR1), 0)), "") ->  | J20: =IF($E$2>=ROWS($J$5:J20), INDEX(CutR1unsort, MATCH(SMALL(COUNTIF(BoneOrderR1, "<"&BoneOrderR1), ROW(J20)+16-$E$2), COUNTIF(BoneOrderR1, "<"&BoneOrderR1), 0)), "") ->  | K20: =IF($E$2>=ROWS($J$5:J20), INDEX(CutFilterR1[Code], MATCH(SMALL(COUNTIF(BoneOrderR1, "<"&BoneOrderR1), ROW(J20)+16-$E$2), COUNTIF(BoneOrderR1, "<"&BoneOrderR1), 0)), "") ->  | L20: =VLOOKUP(CutFilterR1[[#This Row],[R1_CodeSorted]],'FQ Boning Order'!$N$2:$AB$142,15,FALSE) ->  | N20: =LEFT(CutFilterR1[[#This Row],[CostCodeSel]],M18) ->  | O20: =IFERROR(LEFT(CutFilterR1[[#This Row],[CostingCode]],$M$3),"") ->  | P20: =IF(ROW(P20:P20)>$O$3,"",INDEX(CutFilterR1[R1_CutSorted],SMALL(IF($N$5=CutFilterR1[Column1],ROW(CutFilterR1[Column1])-MIN(ROW(CutFilterR1[Column1]))+1,""),ROW(A16)))) -> 
F21: =IF(ROW(F21:F21)>$E$3,"",INDEX(YieldCalcs[Code],SMALL(IF($E$5=YieldCalcs[PrimalinRegion],ROW(YieldCalcs[PrimalinRegion])-MIN(ROW(YieldCalcs[PrimalinRegion]))+1,""),ROW(A17)))) ->  | G21: =IF(ROW(G21:G21)>$E$3,"",INDEX(YieldCalcs[BoneOrder],SMALL(IF($E$5=YieldCalcs[PrimalinRegion],ROW(YieldCalcs[PrimalinRegion])-MIN(ROW(YieldCalcs[PrimalinRegion]))+1,""),ROW(A17)))) ->  | H21: =IF(ROW(H21:H21)>$E$3,"",INDEX(YieldCalcs[CutName],SMALL(IF($E$5=YieldCalcs[PrimalinRegion],ROW(YieldCalcs[PrimalinRegion])-MIN(ROW(YieldCalcs[PrimalinRegion]))+1,""),ROW(H17)))) ->  | I21: =IF($E$2>=ROWS($I$5:I21), INDEX(BoneOrderR1, MATCH(SMALL(COUNTIF(BoneOrderR1, "<"&BoneOrderR1),ROW(I21)+16-$E$2), COUNTIF(BoneOrderR1, "<"&BoneOrderR1), 0)), "") ->  | J21: =IF($E$2>=ROWS($J$5:J21), INDEX(CutR1unsort, MATCH(SMALL(COUNTIF(BoneOrderR1, "<"&BoneOrderR1), ROW(J21)+16-$E$2), COUNTIF(BoneOrderR1, "<"&BoneOrderR1), 0)), "") ->  | K21: =IF($E$2>=ROWS($J$5:J21), INDEX(CutFilterR1[Code], MATCH(SMALL(COUNTIF(BoneOrderR1, "<"&BoneOrderR1), ROW(J21)+16-$E$2), COUNTIF(BoneOrderR1, "<"&BoneOrderR1), 0)), "") ->  | L21: =VLOOKUP(CutFilterR1[[#This Row],[R1_CodeSorted]],'FQ Boning Order'!$N$2:$AB$142,15,FALSE) ->  | N21: =LEFT(CutFilterR1[[#This Row],[CostCodeSel]],M19) ->  | O21: =IFERROR(LEFT(CutFilterR1[[#This Row],[CostingCode]],$M$3),"") ->  | P21: =IF(ROW(P21:P21)>$O$3,"",INDEX(CutFilterR1[R1_CutSorted],SMALL(IF($N$5=CutFilterR1[Column1],ROW(CutFilterR1[Column1])-MIN(ROW(CutFilterR1[Column1]))+1,""),ROW(A17)))) -> 
F22: =IF(ROW(F22:F22)>$E$3,"",INDEX(YieldCalcs[Code],SMALL(IF($E$5=YieldCalcs[PrimalinRegion],ROW(YieldCalcs[PrimalinRegion])-MIN(ROW(YieldCalcs[PrimalinRegion]))+1,""),ROW(A18)))) ->  | G22: =IF(ROW(G22:G22)>$E$3,"",INDEX(YieldCalcs[BoneOrder],SMALL(IF($E$5=YieldCalcs[PrimalinRegion],ROW(YieldCalcs[PrimalinRegion])-MIN(ROW(YieldCalcs[PrimalinRegion]))+1,""),ROW(A18)))) ->  | H22: =IF(ROW(H22:H22)>$E$3,"",INDEX(YieldCalcs[CutName],SMALL(IF($E$5=YieldCalcs[PrimalinRegion],ROW(YieldCalcs[PrimalinRegion])-MIN(ROW(YieldCalcs[PrimalinRegion]))+1,""),ROW(H18)))) ->  | I22: =IF($E$2>=ROWS($I$5:I22), INDEX(BoneOrderR1, MATCH(SMALL(COUNTIF(BoneOrderR1, "<"&BoneOrderR1),ROW(I22)+16-$E$2), COUNTIF(BoneOrderR1, "<"&BoneOrderR1), 0)), "") ->  | J22: =IF($E$2>=ROWS($J$5:J22), INDEX(CutR1unsort, MATCH(SMALL(COUNTIF(BoneOrderR1, "<"&BoneOrderR1), ROW(J22)+16-$E$2), COUNTIF(BoneOrderR1, "<"&BoneOrderR1), 0)), "") ->  | K22: =IF($E$2>=ROWS($J$5:J22), INDEX(CutFilterR1[Code], MATCH(SMALL(COUNTIF(BoneOrderR1, "<"&BoneOrderR1), ROW(J22)+16-$E$2), COUNTIF(BoneOrderR1, "<"&BoneOrderR1), 0)), "") ->  | L22: =VLOOKUP(CutFilterR1[[#This Row],[R1_CodeSorted]],'FQ Boning Order'!$N$2:$AB$142,15,FALSE) ->  | N22: =LEFT(CutFilterR1[[#This Row],[CostCodeSel]],M20) ->  | O22: =IFERROR(LEFT(CutFilterR1[[#This Row],[CostingCode]],$M$3),"") ->  | P22: =IF(ROW(P22:P22)>$O$3,"",INDEX(CutFilterR1[R1_CutSorted],SMALL(IF($N$5=CutFilterR1[Column1],ROW(CutFilterR1[Column1])-MIN(ROW(CutFilterR1[Column1]))+1,""),ROW(A18)))) -> 
F23: =IF(ROW(F23:F23)>$E$3,"",INDEX(YieldCalcs[Code],SMALL(IF($E$5=YieldCalcs[PrimalinRegion],ROW(YieldCalcs[PrimalinRegion])-MIN(ROW(YieldCalcs[PrimalinRegion]))+1,""),ROW(A19)))) ->  | G23: =IF(ROW(G23:G23)>$E$3,"",INDEX(YieldCalcs[BoneOrder],SMALL(IF($E$5=YieldCalcs[PrimalinRegion],ROW(YieldCalcs[PrimalinRegion])-MIN(ROW(YieldCalcs[PrimalinRegion]))+1,""),ROW(A19)))) ->  | H23: =IF(ROW(H23:H23)>$E$3,"",INDEX(YieldCalcs[CutName],SMALL(IF($E$5=YieldCalcs[PrimalinRegion],ROW(YieldCalcs[PrimalinRegion])-MIN(ROW(YieldCalcs[PrimalinRegion]))+1,""),ROW(H19)))) ->  | I23: =IF($E$2>=ROWS($I$5:I23), INDEX(BoneOrderR1, MATCH(SMALL(COUNTIF(BoneOrderR1, "<"&BoneOrderR1),ROW(I23)+16-$E$2), COUNTIF(BoneOrderR1, "<"&BoneOrderR1), 0)), "") ->  | J23: =IF($E$2>=ROWS($J$5:J23), INDEX(CutR1unsort, MATCH(SMALL(COUNTIF(BoneOrderR1, "<"&BoneOrderR1), ROW(J23)+16-$E$2), COUNTIF(BoneOrderR1, "<"&BoneOrderR1), 0)), "") ->  | K23: =IF($E$2>=ROWS($J$5:J23), INDEX(CutFilterR1[Code], MATCH(SMALL(COUNTIF(BoneOrderR1, "<"&BoneOrderR1), ROW(J23)+16-$E$2), COUNTIF(BoneOrderR1, "<"&BoneOrderR1), 0)), "") ->  | L23: =VLOOKUP(CutFilterR1[[#This Row],[R1_CodeSorted]],'FQ Boning Order'!$N$2:$AB$142,15,FALSE) ->  | N23: =LEFT(CutFilterR1[[#This Row],[CostCodeSel]],M21) ->  | O23: =IFERROR(LEFT(CutFilterR1[[#This Row],[CostingCode]],$M$3),"") ->  | P23: =IF(ROW(P23:P23)>$O$3,"",INDEX(CutFilterR1[R1_CutSorted],SMALL(IF($N$5=CutFilterR1[Column1],ROW(CutFilterR1[Column1])-MIN(ROW(CutFilterR1[Column1]))+1,""),ROW(A19)))) -> 
F24: =IF(ROW(F24:F24)>$E$3,"",INDEX(YieldCalcs[Code],SMALL(IF($E$5=YieldCalcs[PrimalinRegion],ROW(YieldCalcs[PrimalinRegion])-MIN(ROW(YieldCalcs[PrimalinRegion]))+1,""),ROW(A20)))) ->  | G24: =IF(ROW(G24:G24)>$E$3,"",INDEX(YieldCalcs[BoneOrder],SMALL(IF($E$5=YieldCalcs[PrimalinRegion],ROW(YieldCalcs[PrimalinRegion])-MIN(ROW(YieldCalcs[PrimalinRegion]))+1,""),ROW(A20)))) ->  | H24: =IF(ROW(H24:H24)>$E$3,"",INDEX(YieldCalcs[CutName],SMALL(IF($E$5=YieldCalcs[PrimalinRegion],ROW(YieldCalcs[PrimalinRegion])-MIN(ROW(YieldCalcs[PrimalinRegion]))+1,""),ROW(H20)))) ->  | I24: =IF($E$2>=ROWS($I$5:I24), INDEX(BoneOrderR1, MATCH(SMALL(COUNTIF(BoneOrderR1, "<"&BoneOrderR1),ROW(I24)+16-$E$2), COUNTIF(BoneOrderR1, "<"&BoneOrderR1), 0)), "") ->  | J24: =IF($E$2>=ROWS($J$5:J24), INDEX(CutR1unsort, MATCH(SMALL(COUNTIF(BoneOrderR1, "<"&BoneOrderR1), ROW(J24)+16-$E$2), COUNTIF(BoneOrderR1, "<"&BoneOrderR1), 0)), "") ->  | K24: =IF($E$2>=ROWS($J$5:J24), INDEX(CutFilterR1[Code], MATCH(SMALL(COUNTIF(BoneOrderR1, "<"&BoneOrderR1), ROW(J24)+16-$E$2), COUNTIF(BoneOrderR1, "<"&BoneOrderR1), 0)), "") ->  | L24: =VLOOKUP(CutFilterR1[[#This Row],[R1_CodeSorted]],'FQ Boning Order'!$N$2:$AB$142,15,FALSE) ->  | N24: =LEFT(CutFilterR1[[#This Row],[CostCodeSel]],M22) ->  | O24: =IFERROR(LEFT(CutFilterR1[[#This Row],[CostingCode]],$M$3),"") ->  | P24: =IF(ROW(P24:P24)>$O$3,"",INDEX(CutFilterR1[R1_CutSorted],SMALL(IF($N$5=CutFilterR1[Column1],ROW(CutFilterR1[Column1])-MIN(ROW(CutFilterR1[Column1]))+1,""),ROW(A20)))) -> 
A29: R2
D30: CutTotal | E30: =COUNTIF(YieldCalcs[PrimalinRegion],E33) -> 3
B31: ForeShank | D31: Index Count | E31: =COUNTIF(YieldCalcs[PrimalinRegion],'Cut List'!E33)+ROW(E31)+1 -> 35
B32: R2_CutType | D32: CutRegion | E32: Primal | F32: Code | G32: BoneOrder | H32: R2_Cut | I32: BoneOrderSorted | J32: R2_CutSorted
B33: ForeShank | D33: FQ | E33: =CutFilterR2[[#This Row],[CutRegion]]&'Cut Selection'!C12 -> FQForeShank | F33: =IF(ROW(F33:F33)>$E$31,"",INDEX(YieldCalcs[Code],SMALL(IF($E$33=YieldCalcs[PrimalinRegion],ROW(YieldCalcs[PrimalinRegion])-MIN(ROW(YieldCalcs[PrimalinRegion]))+1,""),ROW(A1)))) -> FQ02.2cc | G33: =IF(ROW(G33:G33)>$E$31,"",INDEX(YieldCalcs[BoneOrder],SMALL(IF($E$33=YieldCalcs[PrimalinRegion],ROW(YieldCalcs[PrimalinRegion])-MIN(ROW(YieldCalcs[PrimalinRegion]))+1,""),ROW(A1)))) -> 8.2 | H33: =IF(ROW(H33:H33)>$E$31,"",INDEX(YieldCalcs[CutName],SMALL(IF($E$33=YieldCalcs[PrimalinRegion],ROW(YieldCalcs[PrimalinRegion])-MIN(ROW(YieldCalcs[PrimalinRegion]))+1,""),ROW(H1)))) -> ForeShank Not tipped | I33: =IF($E$30>=ROWS($I$33:I33), INDEX(BoneOrderR2, MATCH(SMALL(COUNTIF(BoneOrderR2, "<"&BoneOrderR2), ROW(I5)+16-$E$30), COUNTIF(BoneOrderR2, "<"&BoneOrderR2), 0)), "") -> 8.2 | J33: =IF($E$30>=ROWS($J$33:J33), INDEX(CutR2unsort, MATCH(SMALL(COUNTIF(BoneOrderR2, "<"&BoneOrderR2), ROW(J5)+16-$E$30), COUNTIF(BoneOrderR2, "<"&BoneOrderR2), 0)), "") -> ForeShank Not tipped
F34: =IF(ROW(F34:F34)>$E$31,"",INDEX(YieldCalcs[Code],SMALL(IF($E$33=YieldCalcs[PrimalinRegion],ROW(YieldCalcs[PrimalinRegion])-MIN(ROW(YieldCalcs[PrimalinRegion]))+1,""),ROW(A2)))) -> FQ02.2 | G34: =IF(ROW(G34:G34)>$E$31,"",INDEX(YieldCalcs[BoneOrder],SMALL(IF($E$33=YieldCalcs[PrimalinRegion],ROW(YieldCalcs[PrimalinRegion])-MIN(ROW(YieldCalcs[PrimalinRegion]))+1,""),ROW(A2)))) -> 9 | H34: =IF(ROW(H34:H34)>$E$31,"",INDEX(YieldCalcs[CutName],SMALL(IF($E$33=YieldCalcs[PrimalinRegion],ROW(YieldCalcs[PrimalinRegion])-MIN(ROW(YieldCalcs[PrimalinRegion]))+1,""),ROW(H2)))) -> Fore Shank Tipped | I34: =IF($E$30>=ROWS($I$33:I34), INDEX(BoneOrderR2, MATCH(SMALL(COUNTIF(BoneOrderR2, "<"&BoneOrderR2), ROW(I6)+16-$E$30), COUNTIF(BoneOrderR2, "<"&BoneOrderR2), 0)), "") -> 9 | J34: =IF($E$30>=ROWS($J$33:J34), INDEX(CutR2unsort, MATCH(SMALL(COUNTIF(BoneOrderR2, "<"&BoneOrderR2), ROW(J6)+16-$E$30), COUNTIF(BoneOrderR2, "<"&BoneOrderR2), 0)), "") -> Fore Shank Tipped
F35: =IF(ROW(F35:F35)>$E$31,"",INDEX(YieldCalcs[Code],SMALL(IF($E$33=YieldCalcs[PrimalinRegion],ROW(YieldCalcs[PrimalinRegion])-MIN(ROW(YieldCalcs[PrimalinRegion]))+1,""),ROW(A3)))) -> FQ05.1FINAL | G35: =IF(ROW(G35:G35)>$E$31,"",INDEX(YieldCalcs[BoneOrder],SMALL(IF($E$33=YieldCalcs[PrimalinRegion],ROW(YieldCalcs[PrimalinRegion])-MIN(ROW(YieldCalcs[PrimalinRegion]))+1,""),ROW(A3)))) -> 40 | H35: =IF(ROW(H35:H35)>$E$31,"",INDEX(YieldCalcs[CutName],SMALL(IF($E$33=YieldCalcs[PrimalinRegion],ROW(YieldCalcs[PrimalinRegion])-MIN(ROW(YieldCalcs[PrimalinRegion]))+1,""),ROW(H3)))) -> ForeShank Lean | I35: =IF($E$30>=ROWS($I$33:I35), INDEX(BoneOrderR2, MATCH(SMALL(COUNTIF(BoneOrderR2, "<"&BoneOrderR2), ROW(I7)+16-$E$30), COUNTIF(BoneOrderR2, "<"&BoneOrderR2), 0)), "") -> 40 | J35: =IF($E$30>=ROWS($J$33:J35), INDEX(CutR2unsort, MATCH(SMALL(COUNTIF(BoneOrderR2, "<"&BoneOrderR2), ROW(J7)+16-$E$30), COUNTIF(BoneOrderR2, "<"&BoneOrderR2), 0)), "") -> ForeShank Lean
F36: =IF(ROW(F36:F36)>$E$31,"",INDEX(YieldCalcs[Code],SMALL(IF($E$33=YieldCalcs[PrimalinRegion],ROW(YieldCalcs[PrimalinRegion])-MIN(ROW(YieldCalcs[PrimalinRegion]))+1,""),ROW(A4)))) ->  | G36: =IF(ROW(G36:G36)>$E$31,"",INDEX(YieldCalcs[BoneOrder],SMALL(IF($E$33=YieldCalcs[PrimalinRegion],ROW(YieldCalcs[PrimalinRegion])-MIN(ROW(YieldCalcs[PrimalinRegion]))+1,""),ROW(A4)))) ->  | H36: =IF(ROW(H36:H36)>$E$31,"",INDEX(YieldCalcs[CutName],SMALL(IF($E$33=YieldCalcs[PrimalinRegion],ROW(YieldCalcs[PrimalinRegion])-MIN(ROW(YieldCalcs[PrimalinRegion]))+1,""),ROW(H4)))) ->  | I36: =IF($E$30>=ROWS($I$33:I36), INDEX(BoneOrderR2, MATCH(SMALL(COUNTIF(BoneOrderR2, "<"&BoneOrderR2), ROW(I8)+16-$E$30), COUNTIF(BoneOrderR2, "<"&BoneOrderR2), 0)), "") ->  | J36: =IF($E$30>=ROWS($J$33:J36), INDEX(CutR2unsort, MATCH(SMALL(COUNTIF(BoneOrderR2, "<"&BoneOrderR2), ROW(J8)+16-$E$30), COUNTIF(BoneOrderR2, "<"&BoneOrderR2), 0)), "") -> 
F37: =IF(ROW(F37:F37)>$E$31,"",INDEX(YieldCalcs[Code],SMALL(IF($E$33=YieldCalcs[PrimalinRegion],ROW(YieldCalcs[PrimalinRegion])-MIN(ROW(YieldCalcs[PrimalinRegion]))+1,""),ROW(A5)))) ->  | G37: =IF(ROW(G37:G37)>$E$31,"",INDEX(YieldCalcs[BoneOrder],SMALL(IF($E$33=YieldCalcs[PrimalinRegion],ROW(YieldCalcs[PrimalinRegion])-MIN(ROW(YieldCalcs[PrimalinRegion]))+1,""),ROW(A5)))) ->  | H37: =IF(ROW(H37:H37)>$E$31,"",INDEX(YieldCalcs[CutName],SMALL(IF($E$33=YieldCalcs[PrimalinRegion],ROW(YieldCalcs[PrimalinRegion])-MIN(ROW(YieldCalcs[PrimalinRegion]))+1,""),ROW(H5)))) ->  | I37: =IF($E$30>=ROWS($I$33:I37), INDEX(BoneOrderR2, MATCH(SMALL(COUNTIF(BoneOrderR2, "<"&BoneOrderR2), ROW(I9)+16-$E$30), COUNTIF(BoneOrderR2, "<"&BoneOrderR2), 0)), "") ->  | J37: =IF($E$30>=ROWS($J$33:J37), INDEX(CutR2unsort, MATCH(SMALL(COUNTIF(BoneOrderR2, "<"&BoneOrderR2), ROW(J9)+16-$E$30), COUNTIF(BoneOrderR2, "<"&BoneOrderR2), 0)), "") -> 
F38: =IF(ROW(F38:F38)>$E$31,"",INDEX(YieldCalcs[Code],SMALL(IF($E$33=YieldCalcs[PrimalinRegion],ROW(YieldCalcs[PrimalinRegion])-MIN(ROW(YieldCalcs[PrimalinRegion]))+1,""),ROW(A6)))) ->  | G38: =IF(ROW(G38:G38)>$E$31,"",INDEX(YieldCalcs[BoneOrder],SMALL(IF($E$33=YieldCalcs[PrimalinRegion],ROW(YieldCalcs[PrimalinRegion])-MIN(ROW(YieldCalcs[PrimalinRegion]))+1,""),ROW(A6)))) ->  | H38: =IF(ROW(H38:H38)>$E$31,"",INDEX(YieldCalcs[CutName],SMALL(IF($E$33=YieldCalcs[PrimalinRegion],ROW(YieldCalcs[PrimalinRegion])-MIN(ROW(YieldCalcs[PrimalinRegion]))+1,""),ROW(H6)))) ->  | I38: =IF($E$30>=ROWS($I$33:I38), INDEX(BoneOrderR2, MATCH(SMALL(COUNTIF(BoneOrderR2, "<"&BoneOrderR2), ROW(I10)+16-$E$30), COUNTIF(BoneOrderR2, "<"&BoneOrderR2), 0)), "") ->  | J38: =IF($E$30>=ROWS($J$33:J38), INDEX(CutR2unsort, MATCH(SMALL(COUNTIF(BoneOrderR2, "<"&BoneOrderR2), ROW(J10)+16-$E$30), COUNTIF(BoneOrderR2, "<"&BoneOrderR2), 0)), "") -> 
F39: =IF(ROW(F39:F39)>$E$31,"",INDEX(YieldCalcs[Code],SMALL(IF($E$33=YieldCalcs[PrimalinRegion],ROW(YieldCalcs[PrimalinRegion])-MIN(ROW(YieldCalcs[PrimalinRegion]))+1,""),ROW(A7)))) ->  | G39: =IF(ROW(G39:G39)>$E$31,"",INDEX(YieldCalcs[BoneOrder],SMALL(IF($E$33=YieldCalcs[PrimalinRegion],ROW(YieldCalcs[PrimalinRegion])-MIN(ROW(YieldCalcs[PrimalinRegion]))+1,""),ROW(A7)))) ->  | H39: =IF(ROW(H39:H39)>$E$31,"",INDEX(YieldCalcs[CutName],SMALL(IF($E$33=YieldCalcs[PrimalinRegion],ROW(YieldCalcs[PrimalinRegion])-MIN(ROW(YieldCalcs[PrimalinRegion]))+1,""),ROW(H7)))) ->  | I39: =IF($E$30>=ROWS($I$33:I39), INDEX(BoneOrderR2, MATCH(SMALL(COUNTIF(BoneOrderR2, "<"&BoneOrderR2), ROW(I11)+16-$E$30), COUNTIF(BoneOrderR2, "<"&BoneOrderR2), 0)), "") ->  | J39: =IF($E$30>=ROWS($J$33:J39), INDEX(CutR2unsort, MATCH(SMALL(COUNTIF(BoneOrderR2, "<"&BoneOrderR2), ROW(J11)+16-$E$30), COUNTIF(BoneOrderR2, "<"&BoneOrderR2), 0)), "") -> 
F40: =IF(ROW(F40:F40)>$E$31,"",INDEX(YieldCalcs[Code],SMALL(IF($E$33=YieldCalcs[PrimalinRegion],ROW(YieldCalcs[PrimalinRegion])-MIN(ROW(YieldCalcs[PrimalinRegion]))+1,""),ROW(A8)))) ->  | G40: =IF(ROW(G40:G40)>$E$31,"",INDEX(YieldCalcs[BoneOrder],SMALL(IF($E$33=YieldCalcs[PrimalinRegion],ROW(YieldCalcs[PrimalinRegion])-MIN(ROW(YieldCalcs[PrimalinRegion]))+1,""),ROW(A8)))) ->  | H40: =IF(ROW(H40:H40)>$E$31,"",INDEX(YieldCalcs[CutName],SMALL(IF($E$33=YieldCalcs[PrimalinRegion],ROW(YieldCalcs[PrimalinRegion])-MIN(ROW(YieldCalcs[PrimalinRegion]))+1,""),ROW(H8)))) ->  | I40: =IF($E$30>=ROWS($I$33:I40), INDEX(BoneOrderR2, MATCH(SMALL(COUNTIF(BoneOrderR2, "<"&BoneOrderR2), ROW(I12)+16-$E$30), COUNTIF(BoneOrderR2, "<"&BoneOrderR2), 0)), "") ->  | J40: =IF($E$30>=ROWS($J$33:J40), INDEX(CutR2unsort, MATCH(SMALL(COUNTIF(BoneOrderR2, "<"&BoneOrderR2), ROW(J12)+16-$E$30), COUNTIF(BoneOrderR2, "<"&BoneOrderR2), 0)), "") -> 
F41: =IF(ROW(F41:F41)>$E$31,"",INDEX(YieldCalcs[Code],SMALL(IF($E$33=YieldCalcs[PrimalinRegion],ROW(YieldCalcs[PrimalinRegion])-MIN(ROW(YieldCalcs[PrimalinRegion]))+1,""),ROW(A9)))) ->  | G41: =IF(ROW(G41:G41)>$E$31,"",INDEX(YieldCalcs[BoneOrder],SMALL(IF($E$33=YieldCalcs[PrimalinRegion],ROW(YieldCalcs[PrimalinRegion])-MIN(ROW(YieldCalcs[PrimalinRegion]))+1,""),ROW(A9)))) ->  | H41: =IF(ROW(H41:H41)>$E$31,"",INDEX(YieldCalcs[CutName],SMALL(IF($E$33=YieldCalcs[PrimalinRegion],ROW(YieldCalcs[PrimalinRegion])-MIN(ROW(YieldCalcs[PrimalinRegion]))+1,""),ROW(H9)))) ->  | I41: =IF($E$30>=ROWS($I$33:I41), INDEX(BoneOrderR2, MATCH(SMALL(COUNTIF(BoneOrderR2, "<"&BoneOrderR2), ROW(I13)+16-$E$30), COUNTIF(BoneOrderR2, "<"&BoneOrderR2), 0)), "") ->  | J41: =IF($E$30>=ROWS($J$33:J41), INDEX(CutR2unsort, MATCH(SMALL(COUNTIF(BoneOrderR2, "<"&BoneOrderR2), ROW(J13)+16-$E$30), COUNTIF(BoneOrderR2, "<"&BoneOrderR2), 0)), "") -> 
F42: =IF(ROW(F42:F42)>$E$31,"",INDEX(YieldCalcs[Code],SMALL(IF($E$33=YieldCalcs[PrimalinRegion],ROW(YieldCalcs[PrimalinRegion])-MIN(ROW(YieldCalcs[PrimalinRegion]))+1,""),ROW(A10)))) ->  | G42: =IF(ROW(G42:G42)>$E$31,"",INDEX(YieldCalcs[BoneOrder],SMALL(IF($E$33=YieldCalcs[PrimalinRegion],ROW(YieldCalcs[PrimalinRegion])-MIN(ROW(YieldCalcs[PrimalinRegion]))+1,""),ROW(A10)))) ->  | H42: =IF(ROW(H42:H42)>$E$31,"",INDEX(YieldCalcs[CutName],SMALL(IF($E$33=YieldCalcs[PrimalinRegion],ROW(YieldCalcs[PrimalinRegion])-MIN(ROW(YieldCalcs[PrimalinRegion]))+1,""),ROW(H10)))) ->  | I42: =IF($E$30>=ROWS($I$33:I42), INDEX(BoneOrderR2, MATCH(SMALL(COUNTIF(BoneOrderR2, "<"&BoneOrderR2), ROW(I14)+16-$E$30), COUNTIF(BoneOrderR2, "<"&BoneOrderR2), 0)), "") ->  | J42: =IF($E$30>=ROWS($J$33:J42), INDEX(CutR2unsort, MATCH(SMALL(COUNTIF(BoneOrderR2, "<"&BoneOrderR2), ROW(J14)+16-$E$30), COUNTIF(BoneOrderR2, "<"&BoneOrderR2), 0)), "") -> 
F43: =IF(ROW(F43:F43)>$E$31,"",INDEX(YieldCalcs[Code],SMALL(IF($E$33=YieldCalcs[PrimalinRegion],ROW(YieldCalcs[PrimalinRegion])-MIN(ROW(YieldCalcs[PrimalinRegion]))+1,""),ROW(A11)))) ->  | G43: =IF(ROW(G43:G43)>$E$31,"",INDEX(YieldCalcs[BoneOrder],SMALL(IF($E$33=YieldCalcs[PrimalinRegion],ROW(YieldCalcs[PrimalinRegion])-MIN(ROW(YieldCalcs[PrimalinRegion]))+1,""),ROW(A11)))) ->  | H43: =IF(ROW(H43:H43)>$E$31,"",INDEX(YieldCalcs[CutName],SMALL(IF($E$33=YieldCalcs[PrimalinRegion],ROW(YieldCalcs[PrimalinRegion])-MIN(ROW(YieldCalcs[PrimalinRegion]))+1,""),ROW(H11)))) ->  | I43: =IF($E$30>=ROWS($I$33:I43), INDEX(BoneOrderR2, MATCH(SMALL(COUNTIF(BoneOrderR2, "<"&BoneOrderR2), ROW(I15)+16-$E$30), COUNTIF(BoneOrderR2, "<"&BoneOrderR2), 0)), "") ->  | J43: =IF($E$30>=ROWS($J$33:J43), INDEX(CutR2unsort, MATCH(SMALL(COUNTIF(BoneOrderR2, "<"&BoneOrderR2), ROW(J15)+16-$E$30), COUNTIF(BoneOrderR2, "<"&BoneOrderR2), 0)), "") -> 
F44: =IF(ROW(F44:F44)>$E$31,"",INDEX(YieldCalcs[Code],SMALL(IF($E$33=YieldCalcs[PrimalinRegion],ROW(YieldCalcs[PrimalinRegion])-MIN(ROW(YieldCalcs[PrimalinRegion]))+1,""),ROW(A12)))) ->  | G44: =IF(ROW(G44:G44)>$E$31,"",INDEX(YieldCalcs[BoneOrder],SMALL(IF($E$33=YieldCalcs[PrimalinRegion],ROW(YieldCalcs[PrimalinRegion])-MIN(ROW(YieldCalcs[PrimalinRegion]))+1,""),ROW(A12)))) ->  | H44: =IF(ROW(H44:H44)>$E$31,"",INDEX(YieldCalcs[CutName],SMALL(IF($E$33=YieldCalcs[PrimalinRegion],ROW(YieldCalcs[PrimalinRegion])-MIN(ROW(YieldCalcs[PrimalinRegion]))+1,""),ROW(H12)))) ->  | I44: =IF($E$30>=ROWS($I$33:I44), INDEX(BoneOrderR2, MATCH(SMALL(COUNTIF(BoneOrderR2, "<"&BoneOrderR2), ROW(I16)+16-$E$30), COUNTIF(BoneOrderR2, "<"&BoneOrderR2), 0)), "") ->  | J44: =IF($E$30>=ROWS($J$33:J44), INDEX(CutR2unsort, MATCH(SMALL(COUNTIF(BoneOrderR2, "<"&BoneOrderR2), ROW(J16)+16-$E$30), COUNTIF(BoneOrderR2, "<"&BoneOrderR2), 0)), "") -> 
F45: =IF(ROW(F45:F45)>$E$31,"",INDEX(YieldCalcs[Code],SMALL(IF($E$33=YieldCalcs[PrimalinRegion],ROW(YieldCalcs[PrimalinRegion])-MIN(ROW(YieldCalcs[PrimalinRegion]))+1,""),ROW(A13)))) ->  | G45: =IF(ROW(G45:G45)>$E$31,"",INDEX(YieldCalcs[BoneOrder],SMALL(IF($E$33=YieldCalcs[PrimalinRegion],ROW(YieldCalcs[PrimalinRegion])-MIN(ROW(YieldCalcs[PrimalinRegion]))+1,""),ROW(A13)))) ->  | H45: =IF(ROW(H45:H45)>$E$31,"",INDEX(YieldCalcs[CutName],SMALL(IF($E$33=YieldCalcs[PrimalinRegion],ROW(YieldCalcs[PrimalinRegion])-MIN(ROW(YieldCalcs[PrimalinRegion]))+1,""),ROW(H13)))) ->  | I45: =IF($E$30>=ROWS($I$33:I45), INDEX(BoneOrderR2, MATCH(SMALL(COUNTIF(BoneOrderR2, "<"&BoneOrderR2), ROW(I17)+16-$E$30), COUNTIF(BoneOrderR2, "<"&BoneOrderR2), 0)), "") ->  | J45: =IF($E$30>=ROWS($J$33:J45), INDEX(CutR2unsort, MATCH(SMALL(COUNTIF(BoneOrderR2, "<"&BoneOrderR2), ROW(J17)+16-$E$30), COUNTIF(BoneOrderR2, "<"&BoneOrderR2), 0)), "") -> 
F46: =IF(ROW(F46:F46)>$E$31,"",INDEX(YieldCalcs[Code],SMALL(IF($E$33=YieldCalcs[PrimalinRegion],ROW(YieldCalcs[PrimalinRegion])-MIN(ROW(YieldCalcs[PrimalinRegion]))+1,""),ROW(A14)))) ->  | G46: =IF(ROW(G46:G46)>$E$31,"",INDEX(YieldCalcs[BoneOrder],SMALL(IF($E$33=YieldCalcs[PrimalinRegion],ROW(YieldCalcs[PrimalinRegion])-MIN(ROW(YieldCalcs[PrimalinRegion]))+1,""),ROW(A14)))) ->  | H46: =IF(ROW(H46:H46)>$E$31,"",INDEX(YieldCalcs[CutName],SMALL(IF($E$33=YieldCalcs[PrimalinRegion],ROW(YieldCalcs[PrimalinRegion])-MIN(ROW(YieldCalcs[PrimalinRegion]))+1,""),ROW(H14)))) ->  | I46: =IF($E$30>=ROWS($I$33:I46), INDEX(BoneOrderR2, MATCH(SMALL(COUNTIF(BoneOrderR2, "<"&BoneOrderR2), ROW(I18)+16-$E$30), COUNTIF(BoneOrderR2, "<"&BoneOrderR2), 0)), "") ->  | J46: =IF($E$30>=ROWS($J$33:J46), INDEX(CutR2unsort, MATCH(SMALL(COUNTIF(BoneOrderR2, "<"&BoneOrderR2), ROW(J18)+16-$E$30), COUNTIF(BoneOrderR2, "<"&BoneOrderR2), 0)), "") -> 
F47: =IF(ROW(F47:F47)>$E$31,"",INDEX(YieldCalcs[Code],SMALL(IF($E$33=YieldCalcs[PrimalinRegion],ROW(YieldCalcs[PrimalinRegion])-MIN(ROW(YieldCalcs[PrimalinRegion]))+1,""),ROW(A15)))) ->  | G47: =IF(ROW(G47:G47)>$E$31,"",INDEX(YieldCalcs[BoneOrder],SMALL(IF($E$33=YieldCalcs[PrimalinRegion],ROW(YieldCalcs[PrimalinRegion])-MIN(ROW(YieldCalcs[PrimalinRegion]))+1,""),ROW(A15)))) ->  | H47: =IF(ROW(H47:H47)>$E$31,"",INDEX(YieldCalcs[CutName],SMALL(IF($E$33=YieldCalcs[PrimalinRegion],ROW(YieldCalcs[PrimalinRegion])-MIN(ROW(YieldCalcs[PrimalinRegion]))+1,""),ROW(H15)))) ->  | I47: =IF($E$30>=ROWS($I$33:I47), INDEX(BoneOrderR2, MATCH(SMALL(COUNTIF(BoneOrderR2, "<"&BoneOrderR2), ROW(I19)+16-$E$30), COUNTIF(BoneOrderR2, "<"&BoneOrderR2), 0)), "") ->  | J47: =IF($E$30>=ROWS($J$33:J47), INDEX(CutR2unsort, MATCH(SMALL(COUNTIF(BoneOrderR2, "<"&BoneOrderR2), ROW(J19)+16-$E$30), COUNTIF(BoneOrderR2, "<"&BoneOrderR2), 0)), "") -> 
F48: =IF(ROW(F48:F48)>$E$31,"",INDEX(YieldCalcs[Code],SMALL(IF($E$33=YieldCalcs[PrimalinRegion],ROW(YieldCalcs[PrimalinRegion])-MIN(ROW(YieldCalcs[PrimalinRegion]))+1,""),ROW(A16)))) ->  | G48: =IF(ROW(G48:G48)>$E$31,"",INDEX(YieldCalcs[BoneOrder],SMALL(IF($E$33=YieldCalcs[PrimalinRegion],ROW(YieldCalcs[PrimalinRegion])-MIN(ROW(YieldCalcs[PrimalinRegion]))+1,""),ROW(A16)))) ->  | H48: =IF(ROW(H48:H48)>$E$31,"",INDEX(YieldCalcs[CutName],SMALL(IF($E$33=YieldCalcs[PrimalinRegion],ROW(YieldCalcs[PrimalinRegion])-MIN(ROW(YieldCalcs[PrimalinRegion]))+1,""),ROW(H16)))) ->  | I48: =IF($E$30>=ROWS($I$33:I48), INDEX(BoneOrderR2, MATCH(SMALL(COUNTIF(BoneOrderR2, "<"&BoneOrderR2), ROW(I20)+16-$E$30), COUNTIF(BoneOrderR2, "<"&BoneOrderR2), 0)), "") ->  | J48: =IF($E$30>=ROWS($J$33:J48), INDEX(CutR2unsort, MATCH(SMALL(COUNTIF(BoneOrderR2, "<"&BoneOrderR2), ROW(J20)+16-$E$30), COUNTIF(BoneOrderR2, "<"&BoneOrderR2), 0)), "") -> 
F49: =IF(ROW(F49:F49)>$E$31,"",INDEX(YieldCalcs[Code],SMALL(IF($E$33=YieldCalcs[PrimalinRegion],ROW(YieldCalcs[PrimalinRegion])-MIN(ROW(YieldCalcs[PrimalinRegion]))+1,""),ROW(A17)))) ->  | G49: =IF(ROW(G49:G49)>$E$31,"",INDEX(YieldCalcs[BoneOrder],SMALL(IF($E$33=YieldCalcs[PrimalinRegion],ROW(YieldCalcs[PrimalinRegion])-MIN(ROW(YieldCalcs[PrimalinRegion]))+1,""),ROW(A17)))) ->  | H49: =IF(ROW(H49:H49)>$E$31,"",INDEX(YieldCalcs[CutName],SMALL(IF($E$33=YieldCalcs[PrimalinRegion],ROW(YieldCalcs[PrimalinRegion])-MIN(ROW(YieldCalcs[PrimalinRegion]))+1,""),ROW(H17)))) ->  | I49: =IF($E$30>=ROWS($I$33:I49), INDEX(BoneOrderR2, MATCH(SMALL(COUNTIF(BoneOrderR2, "<"&BoneOrderR2), ROW(I21)+16-$E$30), COUNTIF(BoneOrderR2, "<"&BoneOrderR2), 0)), "") ->  | J49: =IF($E$30>=ROWS($J$33:J49), INDEX(CutR2unsort, MATCH(SMALL(COUNTIF(BoneOrderR2, "<"&BoneOrderR2), ROW(J21)+16-$E$30), COUNTIF(BoneOrderR2, "<"&BoneOrderR2), 0)), "") -> 
F50: =IF(ROW(F50:F50)>$E$31,"",INDEX(YieldCalcs[Code],SMALL(IF($E$33=YieldCalcs[PrimalinRegion],ROW(YieldCalcs[PrimalinRegion])-MIN(ROW(YieldCalcs[PrimalinRegion]))+1,""),ROW(A18)))) ->  | G50: =IF(ROW(G50:G50)>$E$31,"",INDEX(YieldCalcs[BoneOrder],SMALL(IF($E$33=YieldCalcs[PrimalinRegion],ROW(YieldCalcs[PrimalinRegion])-MIN(ROW(YieldCalcs[PrimalinRegion]))+1,""),ROW(A18)))) ->  | H50: =IF(ROW(H50:H50)>$E$31,"",INDEX(YieldCalcs[CutName],SMALL(IF($E$33=YieldCalcs[PrimalinRegion],ROW(YieldCalcs[PrimalinRegion])-MIN(ROW(YieldCalcs[PrimalinRegion]))+1,""),ROW(H18)))) ->  | I50: =IF($E$30>=ROWS($I$33:I50), INDEX(BoneOrderR2, MATCH(SMALL(COUNTIF(BoneOrderR2, "<"&BoneOrderR2), ROW(I22)+16-$E$30), COUNTIF(BoneOrderR2, "<"&BoneOrderR2), 0)), "") ->  | J50: =IF($E$30>=ROWS($J$33:J50), INDEX(CutR2unsort, MATCH(SMALL(COUNTIF(BoneOrderR2, "<"&BoneOrderR2), ROW(J22)+16-$E$30), COUNTIF(BoneOrderR2, "<"&BoneOrderR2), 0)), "") -> 
